Workbook

Sheet Indhold
A1: Investering Danmarks markedsstatistik 30.11.2023
A3: 1. Investeringsområde
A4: 1.1 | B4: Formue i detailafdelinger opgjort på investeringsområde
A5: 1.2 | B5: Investorernes nettokøb i detailafdelingerne opgjort på investeringsområde
A6: 1.3 | B6: Antal detailfonde opgjort på investeringsområde
A7: 1.4 | B7: Udbytter i detailfonde opgjort på investeringsområde og foreningsgruppe
A8: 1.5 | B8: Nettoflow i detailfonde opgjort på investeringsområde og foreningsgruppe
A9: 2. Investeringsforeninger
A10: 2.1 | B10: Branchens samlede formue opgjort på foreningsgruppe
A11: 2.2 | B11: Branchens samlede formue opgjort på foreningsgruppe og afdelingstype
A12: 2.3 | B12: Investorernes nettokøb og nettoflow i detailafdelingerne opgjort på foreningsgruppe
A13: 3. Investeringsforvaltningsselskaber
A14: 3.1 | B14: Branchens samlede formue opgjort på investeringsforvaltningsselskab
A15: 4. Afdelingstyper
A16: 4.1 | B16: Branchens samlede formue opgjort på fondstype
A17: 4.1 | B17: Branchens samlede formue opgjort på fondstype, netto
A18: 4.1 | B18: Investorernes nettokøb opgjort på fondstype
A19: 4.1 | B19: Investorernes nettokøb opgjort på fondstype, netto
A20: 4.1 | B20: Antal afdelinger og klasser opgjort på fondstype
A21: 4.1 | B21: Branchens samlede formue opgjort på foreningstype
A22: 5. Kategoriafkast
A23: 5.1 | B23: Månedlig formuevægtet kategoriafkast siden januar 2000
A33: https://finansdanmark.dk/tal-og-data/investeringsfondsstatistikker/forklaring-til-statistikker/om-brutto-og-nettotal-i-den-maanedlige-markedsstatistik/
A35: Investering Danmark Amaliegade 7 DK-1256 København K Tel: 3370 1000

Sheet 1.1 Formue (D)
A1: Formue i detailfonde opgjort på investeringsområde
B2: Bruttoformue | I2: Nettoformue*
A3: Kursværdi - mio. kroner | B3: 2018 | C3: 2019 | D3: 2020 | E3: 2021 | F3: 2022 | G3: October | H3: November | I3: 2018 | J3: 2019 | K3: 2020 | L3: 2021 | M3: 2022 | N3: October | O3: November
A4: Aktier Danmark | B4: 25732.09713 | C4: 27538.23893 | D4: 39352.04768 | E4: 50428.52546 | F4: 41394.6241 | G4: 39326.03964 | H4: 42041.16608 | I4: 23694.74261 | J4: 24588.3213 | K4: 36082.77515 | L4: 44771.9163 | M4: 36407.51584 | N4: 34726.65592 | O4: 37162.82281
A5: Aktier Brancher | B5: 181.870373 | C5: 124.248596 | D5: 149.286131 | E5: 0 | F5: 50.014755 | G5: 34.450311 | H5: 35.926088 | I5: 96.23646524 | J5: 124.2485955 | K5: 149.2861305 | L5: 0 | M5: 50.014755 | N5: 34.450311 | O5: 35.926088
A6: Aktier Ejendomme | B6: 2055.083012 | C6: 5357.97129 | D6: 5511.346531 | E6: 7847.094302 | F6: 9171.609592 | G6: 6045.719657 | H6: 6059.282708 | I6: 2054.979912 | J6: 4772.331595 | K6: 4882.380535 | L6: 6830.42704 | M6: 8034.769497 | N6: 5378.872604 | O6: 5393.10462
A7: Aktier Emerging markets | B7: 29377.19613 | C7: 28253.64664 | D7: 32421.48485 | E7: 35223.96247 | F7: 25932.73734 | G7: 27678.17582 | H7: 27375.94437 | I7: 21478.27239 | J7: 20079.74763 | K7: 22981.0567 | L7: 23705.71078 | M7: 16350.18327 | N7: 17246.32377 | O7: 16619.30172
A8: Aktier Enkeltlande | B8: 693.9191651 | C8: 586.5191903 | D8: 343.6171663 | E8: 441.0812704 | F8: 180.6598426 | G8: 217.3032193 | H8: 231.4977095 | I8: 693.9191653 | J8: 586.5191907 | K8: 343.6171663 | L8: 441.0812704 | M8: 180.6598426 | N8: 217.3032193 | O8: 231.4977095
A9: Aktier Europa | B9: 24581.79416 | C9: 22884.15448 | D9: 20950.56007 | E9: 25575.10662 | F9: 16696.20823 | G9: 13618.40393 | H9: 14482.65059 | I9: 21626.64232 | J9: 20676.61065 | K9: 18444.93691 | L9: 23731.94997 | M9: 15660.75138 | N9: 12858.64391 | O9: 13740.06669
A10: Aktier Fjernøsten | B10: 9116.057905 | C10: 8973.673757 | D10: 7635.403939 | E10: 8206.95293 | F10: 5766.238397 | G10: 4180.651769 | H10: 4214.31694 | I10: 8447.340563 | J10: 8252.10079 | K10: 6618.969025 | L10: 7140.621391 | M10: 4741.091135 | N10: 3528.180487 | O10: 3526.090524
A11: Aktier Globale | B11: 193442.3848 | C11: 265666.3697 | D11: 304547.4602 | E11: 411449.0342 | F11: 335873.2821 | G11: 360439.7328 | H11: 384159.2256 | I11: 167408.9938 | J11: 216202.4266 | K11: 250197.3495 | L11: 332864.5509 | M11: 272102.4187 | N11: 287018.5024 | O11: 306805.974
A12: Aktier Health Care | B12: 771.9894709 | C12: 819.1255167 | D12: 820.4353929 | E12: 718.3725068 | F12: 626.5959946 | G12: 512.4259828 | H12: 519.2818849 | I12: 771.9894709 | J12: 819.1255167 | K12: 820.4353929 | L12: 718.3725068 | M12: 626.5959946 | N12: 512.4259828 | O12: 519.2818849
A13: Aktier IT | B13: 1090.151262 | C13: 1543.1 | D13: 2483.249045 | E13: 3311.901258 | F13: 1970.375319 | G13: 2847.939609 | H13: 3175.797508 | I13: 1090.151262 | J13: 1543.1 | K13: 2483.249045 | L13: 3311.901258 | M13: 1970.375319 | N13: 2847.939609 | O13: 3175.797508
A14: Aktier Japan | B14: 4570.129837 | C14: 3092.1103 | D14: 1920.72785 | E14: 1574.000696 | F14: 1076.283089 | G14: 1023.10873 | H14: 1058.931094 | I14: 2657.209803 | J14: 2621.806871 | K14: 1580.677445 | L14: 1528.847026 | M14: 1049.31286 | N14: 976.1968139 | O14: 1010.274816
A15: Aktier Kina | B15: 760.135231 | C15: 735.0903443 | D15: 682.1377789 | E15: 623.0260909 | F15: 281.7900513 | G15: 230.3285352 | H15: 228.2648636 | I15: 760.135231 | J15: 735.0903443 | K15: 682.1377783 | L15: 623.0260893 | M15: 281.7900545 | N15: 230.3285348 | O15: 228.2648651
A16: Aktier Latinamerika | B16: 321.823174 | C16: 163.0567391 | D16: 133.3110749 | E16: 0 | F16: 0 | G16: 0 | H16: 0 | I16: 321.823174 | J16: 163.0567391 | K16: 133.3110749 | L16: 0 | M16: 0 | N16: 0 | O16: 0
A17: Aktier Nordamerika | B17: 22244.18401 | C17: 25043.48842 | D17: 25123.39246 | E17: 26549.51835 | F17: 19061.96599 | G17: 13900.54472 | H17: 14429.24769 | I17: 17718.04706 | J17: 22087.76088 | K17: 21860.05884 | L17: 23276.95724 | M17: 16440.08165 | N17: 12548.19849 | O17: 13250.16459
A18: Aktier Norden | B18: 797.6611789 | C18: 755.9916071 | D18: 1367.071226 | E18: 2564.886606 | F18: 1941.299937 | G18: 1407.428731 | H18: 1527.517504 | I18: 796.7798292 | J18: 754.1041685 | K18: 1365.778282 | L18: 2563.408979 | M18: 1941.299937 | N18: 1407.428731 | O18: 1527.517504
A19: Aktier Tyskland | B19: 1196.741282 | C19: 443.024958 | D19: 383.9665862 | E19: 413.2391501 | F19: 269.5475996 | G19: 245.802008 | H19: 262.8929908 | I19: 1196.741282 | J19: 443.024958 | K19: 383.9665862 | L19: 413.2391501 | M19: 269.5475996 | N19: 245.802008 | O19: 262.8929908
A20: Aktier Østeuropa | B20: 469.0541344 | C20: 463.3655928 | D20: 231.6056492 | E20: 260.1575484 | F20: 0.81653098 | G20: 0.82568694 | H20: 0.83325968 | I20: 469.0541344 | J20: 463.3655928 | K20: 231.6056492 | L20: 260.1575484 | M20: 0.81653098 | N20: 0.82568694 | O20: 0.83325968
A21: Kapitalforeninger Aktier | B21: 18916.19627 | C21: 28537.99475 | D21: 22450.74171 | E21: 29943.21429 | F21: 24175.02138 | G21: 23448.34801 | H21: 24717.98044 | I21: 18779.37926 | J21: 28181.83201 | K21: 22450.74171 | L21: 29219.85004 | M21: 23524.96894 | N21: 22811.9671 | O21: 24047.36524
A22: Udenlandske aktier i alt | B22: =SUM(B5:B21) -> 310586.3714 | C22: 393442.9319 | D22: 427155.7976 | E22: 554701.5483 | F22: 443074.4461 | G22: 455831.1895 | H22: 482479.5912 | I22: 266367.6951 | J22: 328506.2522 | K22: 355609.5578 | L22: 456630.1012 | M22: 363224.6774 | N22: 367863.3897 | O22: =SUM(O5:O21) -> 390374.354
A23: Obligationer Korte Danske | B23: 50509.25811 | C23: 46053.25518 | D23: 46653.70717 | E23: 47980.8239 | F23: 48023.19345 | G23: 52248.00453 | H23: 52506.19704 | I23: 48560.44658 | J23: 44176.84006 | K23: 44537.48453 | L23: 44041.15704 | M23: 43367.54026 | N23: 47197.99156 | O23: 47346.75028
A24: Obligationer Lange Danske | B24: 47776.86231 | C24: 49140.18718 | D24: 49229.19741 | E24: 52686.07192 | F24: 46358.24691 | G24: 50793.46711 | H24: 51980.73881 | I24: 34083.91134 | J24: 32806.8753 | K24: 30287.00943 | L24: 31756.91725 | M24: 29139.10304 | N24: 33424.31279 | O24: 34386.53371
A25: Obligationer Øvrige Danske | B25: 100314.4378 | C25: 109655.857 | D25: 108034.6662 | E25: 105471.6372 | F25: 102644.1937 | G25: 97619.21425 | H25: 98444.23239 | I25: 97263.39961 | J25: 103846.4012 | K25: 102319.4957 | L25: 98100.09583 | M25: 88376.53137 | N25: 81859.97955 | O25: 83058.08574
A26: Obligationer Danske Indeksobligationer | B26: 127.4289196 | C26: 129.2229238 | D26: 125.4710767 | E26: 115.2694455 | F26: 103.6730181 | G26: 93.22959478 | H26: 94.60198058 | I26: 127.4289196 | J26: 129.2229238 | K26: 125.4710767 | L26: 115.2694455 | M26: 103.6730181 | N26: 93.22959478 | O26: 94.60198058
A27: Danske obligationer i alt | B27: =SUM(B23:B26) -> 198727.9872 | C27: 204978.5222 | D27: 204043.0419 | E27: 206253.8024 | F27: 197129.3071 | G27: 200753.9155 | H27: 203025.7702 | I27: 180035.1865 | J27: 180959.3395 | K27: 177269.4607 | L27: 174013.4396 | M27: 160986.8477 | N27: 162575.5135 | O27: =SUM(O23:O26) -> 164885.9717
A28: Obligationer Investment Grade | B28: 25763.96355 | C28: 29659.77684 | D28: 38383.43911 | E28: 40315.95147 | F28: 35432.65982 | G28: 36854.67764 | H28: 37863.23472 | I28: 24876.39115 | J28: 27828.02927 | K28: 34301.07408 | L28: 32409.35457 | M28: 26919.77172 | N28: 29414.68785 | O28: 30989.30028
A29: Obligationer Non-Investment Grade | B29: 34062.93013 | C29: 39310.38701 | D29: 48426.97988 | E29: 47102.68139 | F29: 35587.12404 | G29: 35600.99022 | H29: 37074.99591 | I29: 28687.97488 | J29: 32646.16708 | K29: 40492.84534 | L29: 35976.67709 | M29: 29097.88861 | N29: 27681.40701 | O29: 28904.42901
A30: Obligationer Emerging Markets | B30: 55385.81542 | C30: 60740.19801 | D30: 61323.91991 | E30: 59100.61021 | F30: 41434.13575 | G30: 38544.79287 | H30: 39292.64986 | I30: 45383.59851 | J30: 48033.46949 | K30: 49057.64016 | L30: 45377.81212 | M30: 30006.48282 | N30: 29613.40202 | O30: 30166.31138
A31: Obligationer Øvrige | B31: 57427.2299 | C31: 61367.28104 | D31: 64785.3375 | E31: 70480.19942 | F31: 60732.20869 | G31: 59821.77107 | H31: 62145.5833 | I31: 53311.75002 | J31: 56937.14854 | K31: 59889.52536 | L31: 65112.67985 | M31: 56183.90116 | N31: 55827.14013 | O31: 57249.2044
A32: Obligationer Udenlandske Indeksobligationer | B32: 5390.870203 | C32: 4092.434163 | D32: 4296.915561 | E32: 9339.882382 | F32: 7893.974817 | G32: 8687.913234 | H32: 10626.32979 | I32: 4626.283423 | J32: 3759.411464 | K32: 4048.83747 | L32: 7365.539725 | M32: 6309.088773 | N32: 7238.537115 | O32: 9165.82792
A33: Kapitalforeninger Obligationer Udenlandske | B33: 11545.95806 | C33: 13161.48453 | D33: 14091.15873 | E33: 15406.55143 | F33: 12748.96388 | G33: 13215.42882 | H33: 13460.37712 | I33: 10141.4033 | J33: 11883.47573 | K33: 12773.54384 | L33: 13460.29865 | M33: 11779.72702 | N33: 12233.26565 | O33: 12434.32524
A34: Udenlandske obligationer i alt | B34: =SUM(B28:B33) -> 189576.7673 | C34: 208331.5616 | D34: 231307.7507 | E34: 241745.8763 | F34: 193829.067 | G34: 192725.5739 | H34: 200463.1707 | I34: 167027.4013 | J34: 181087.7016 | K34: 200563.4663 | L34: 199702.362 | M34: 160296.8601 | N34: 162008.4398 | O34: =SUM(O28:O33) -> 168909.3982
A35: Pengemarkedsforeninger | B35: 246.085367 | C35: 247.210166 | D35: 0 | E35: 0 | F35: 0 | G35: 0 | H35: 0 | I35: 246.0853669 | J35: 247.2101663 | K35: 0 | L35: 0 | M35: 0 | N35: 0 | O35: 0
A36: Øvrige | B36: 8707.770646 | C36: 8965.011126 | D36: 10082.54282 | E36: 12513.71167 | F36: 9767.969819 | G36: 10070.78642 | H36: 9939.589507 | I36: 8186.293541 | J36: 8487.408795 | K36: 10082.54282 | L36: 12513.71167 | M36: 9767.969819 | N36: 10070.78642 | O36: 9939.589506
A37: Blandede Balanceret | B37: 67232.63466 | C37: 87516.02013 | D37: 101143.136 | E37: 124068.2732 | F37: 112306.4808 | G37: 113816.7411 | H37: 117212.7308 | I37: 62776.16375 | J37: 81555.32735 | K37: 94293.82963 | L37: 115535.4749 | M37: 104793.9249 | N37: 106568.0383 | O37: 109841.3061
A38: Blandede Fleksibel | B38: 14572.51959 | C38: 16490.62859 | D38: 24739.99691 | E38: 34331.54512 | F38: 29294.65873 | G38: 32746.33409 | H38: 33935.25979 | I38: 12502.28363 | J38: 14188.25599 | K38: 22814.69154 | L38: 25575.61984 | M38: 22388.10708 | N38: 25247.56111 | O38: 26301.01339
A39: Blandede Høj Aktieandel | B39: 12642.19053 | C39: 16919.03448 | D39: 19306.37583 | E39: 30283.63833 | F39: 35693.52031 | G39: 40416.01371 | H39: 42539.24566 | I39: 12637.98421 | J39: 16919.03448 | K39: 19306.38686 | L39: 30283.63833 | M39: 35693.52031 | N39: 40416.01371 | O39: 42539.24566
A40: Blandede Lav Aktieandel | B40: 33759.74991 | C40: 42677.74309 | D40: 45491.52989 | E40: 48490.72544 | F40: 52586.77435 | G40: 49742.68019 | H40: 50559.4986 | I40: 33755.80638 | J40: 42677.74309 | K40: 45491.54019 | L40: 48490.72544 | M40: 52586.77435 | N40: 49742.68019 | O40: 50559.49859
A41: Blandede i alt | B41: =SUM(B37:B40) -> 128207.0947 | C41: 163603.4263 | D41: 190681.0386 | E41: 237174.1821 | F41: 229881.4342 | G41: 236721.7691 | H41: 244246.7348 | I41: 121672.238 | J41: 155340.3609 | K41: 181906.4482 | L41: 219885.4585 | M41: 215462.3267 | N41: 221974.2933 | O41: =SUM(O37:O40) -> 229241.0637
A42: Kapitalforeninger Blandede | B42: 34901.22016 | C42: 42267.29238 | D42: 55780.08935 | E42: 45357.66406 | F42: 15438.46931 | G42: 14227.2036 | H42: 14662.45214 | I42: 41611.21216 | J42: 25870.5933 | K42: 37040.70695 | L42: 45357.66406 | M42: 15438.46931 | N42: 14227.2036 | O42: 14662.45214
A43: Kapitalforeninger Øvrige | B43: 1277.413574 | C43: 1171.70211 | D43: 1644.350386 | E43: 1936.261908 | F43: 1837.035286 | G43: 3008.546738 | H43: 3114.407795 | I43: 1696.916511 | J43: 1171.70211 | K43: 1644.350386 | L43: 1936.261909 | M43: 1837.035286 | N43: 3008.546738 | O43: 3114.407795
A44: Kapitalforeninger Hedgestrategier | B44: 19901.95144 | C44: 26043.41105 | D44: 26171.54861 | E44: 26712.14382 | F44: 18226.75641 | G44: 17020.02324 | H44: 17717.35999 | I44: 21350.67298 | J44: 25810.03136 | K44: 25928.57601 | L44: 26433.71116 | M44: 18032.0534 | N44: 16840.25761 | O44: 17532.80459
A45: Andre Alternative Investeringsfonde | B45: 54.110585 | C45: 0 | D45: 0 | E45: 0 | F45: 537.6538018 | G45: 637.696896 | H45: 678.0947508 | I45: 54.11058496 | J45: 0 | K45: 0 | L45: 0 | M45: 365.0596378 | N45: 516.5144509 | O45: 548.5111561
A46: I alt danske foreninger | B46: =B4+B22+B27+B34+B35+B36+B41+B42+B43+B44+B45 -> 917918.8694 | C46: 1076589.308 | D46: 1186218.208 | E46: 1376823.716 | F46: 1151116.763 | G46: 1170322.744 | H46: 1218368.337 | I46: 831942.5546 | J46: 932068.9211 | K46: 1026127.884 | L46: 1181244.626 | M46: 981818.8152 | N46: 993811.601 | O46: =O4+O22+O27+O34+O35+O36+O41+O42+O43+O44+O45 -> 1036371.376
A47: * Nettoformuen angiver den formue, der er tilgået afdelingerne i den enkelte investeringsforening fra eksterne investorer.
A48: Investering Danmark Amaliegade 7 DK-1256 København K Tel: 3370 1000

Sheet 1.2 Nettokøb (D)
A1: Investorernes nettokøb i detailfonde opgjort på investeringsområde
B2: Nettokøb, brutto | J2: Nettokøb, netto*
A3: Kursværdi - mio kr. | B3: 2018 | C3: 2019 | D3: 2020 | E3: 2021 | F3: 2022 | G3: October | H3: November | I3: år-til-dato | J3: 2019 | K3: 2020 | L3: 2021 | M3: 2022 | N3: October | O3: November | P3: år-til-dato
A4: Aktier Danmark | B4: 2603.727559 | C4: -2863.798035 | D4: 3441.59918 | E4: 5282.338014 | F4: 2784.436179 | G4: -76.85322627 | H4: 122.2760521 | I4: 1594.123551 | J4: -2991.930707 | K4: 4049.581632 | L4: 4088.556863 | M4: 2137.960834 | N4: -236.5395535 | O4: 122.0736081 | P4: 1436.259317
A5: Aktier Brancher | B5: -1.694474 | C5: -91.258417 | D5: 8.690091 | E5: -152.358768 | F5: -113.441984 | G5: -6.949221 | H5: 0 | I5: -16.354821 | J5: 11.301013 | K5: 8.690091 | L5: -152.358768 | M5: -113.441984 | N5: -6.949221 | O5: 0 | P5: -16.354821
A6: Aktier Ejendomme | B6: 0 | C6: 3123.410402 | D6: 46.69188 | E6: 1983.458475 | F6: 1972.217896 | G6: -990.5219058 | H6: -26.1576297 | I6: -2720.774116 | J6: 3123.410402 | K6: 5.5763824 | L6: 1639.746475 | M6: 1792.918772 | N6: -990.5219053 | O6: -26.15762965 | P6: -2295.150837
A7: Aktier Emerging markets | B7: 5233.29823 | C7: -6374.404837 | D7: 35.34269758 | E7: 3819.285249 | F7: -357.6783622 | G7: 211.0916588 | H7: -1599.641711 | I7: 1097.822295 | J7: -5201.998396 | K7: -777.4699886 | L7: 1510.170092 | M7: -1255.698276 | N7: 225.7622191 | O7: -1464.330705 | P7: 257.0019372
A8: Aktier Enkeltlande | B8: -290.7200844 | C8: -108.5028346 | D8: -67.27587017 | E8: -8.24336896 | F8: -335.1444243 | G8: -0.1365929 | H8: 7.35222459 | I8: 20.89401452 | J8: -108.5028346 | K8: -67.27587017 | L8: -8.24336896 | M8: -335.1444243 | N8: -0.1365929 | O8: 7.35222459 | P8: 20.89401452
A9: Aktier Europa | B9: -1180.796247 | C9: -5345.721223 | D9: -1651.551186 | E9: -19.39008929 | F9: -2320.68292 | G9: -756.3882798 | H9: -110.1879363 | I9: -2851.628006 | J9: -5123.213163 | K9: -1857.88014 | L9: 1107.396058 | M9: -1847.117374 | N9: -563.0459309 | O9: -39.09904354 | P9: -2518.952495
A10: Aktier Fjernøsten | B10: -733.5565834 | C10: -1836.488367 | D10: -757.2449661 | E10: 595.7633096 | F10: -383.4217471 | G10: -159.4857012 | H10: -124.9774863 | I10: -1297.104131 | J10: -1682.064676 | K10: -921.4491916 | L10: 605.154285 | M10: -588.2985896 | N10: -159.5446234 | O10: -135.0303528 | P10: -1004.231577
A11: Aktier Globale | B11: 16218.05463 | C11: 18859.77198 | D11: 27835.93652 | E11: 29152.60707 | F11: 2213.374429 | G11: 4011.216351 | H11: 3686.048229 | I11: 25033.9818 | J11: 12772.80413 | K11: 25617.35321 | L11: 21812.18709 | M11: 4599.09722 | N11: 859.5905723 | O11: 3502.98431 | P11: 16443.03643
A12: Aktier Health Care | B12: -145.6015848 | C12: 46.4501465 | D12: 3.5556238 | E12: -61.78140882 | F12: -35.43434829 | G12: -6.1294 | H12: -8.499419 | I12: -46.508144 | J12: 46.45014647 | K12: 3.55562382 | L12: -61.78140882 | M12: -35.43434829 | N12: -6.1294 | O12: -8.499419 | P12: -46.508144
A13: Aktier IT | B13: 220.79709 | C13: 45.627486 | D13: 463.7436763 | E13: 191.2959058 | F13: -67.7427961 | G13: 136.4604313 | H13: 62.2477674 | I13: 492.8715892 | J13: 45.627486 | K13: 463.7436763 | L13: 191.2959058 | M13: -67.7427961 | N13: 136.4604313 | O13: 62.2477674 | P13: 492.8715892
A14: Aktier Japan | B14: -400.4535308 | C14: -2049.021185 | D14: -1022.679444 | E14: -462.3371099 | F14: -153.599858 | G14: 75.19050184 | H14: -9.58273915 | I14: -37.63667154 | J14: -420.7471714 | K14: -950.6847219 | L14: -110.4041153 | M14: -158.0521272 | N14: 45.34142164 | O14: -9.0448839 | P14: -55.31742567
A15: Aktier Kina | B15: 30.09722172 | C15: -121.201063 | D15: 1.074436852 | E15: 92.04059916 | F15: -162.2377005 | G15: -3.18324 | H15: 1.117425 | I15: -5.396127521 | J15: -131.1774235 | K15: 1.078547954 | L15: 92.04120583 | M15: -162.2377017 | N15: -3.18315431 | O15: 1.117313377 | P15: -5.39378213
A16: Aktier Latinamerika | B16: -101.0547532 | C16: -191.3201682 | D16: 8.25127154 | E16: -12.07775073 | F16: 0 | G16: 0 | H16: 0 | I16: 0 | J16: -91.23363388 | K16: 8.25127154 | L16: 0 | M16: 0 | N16: 0 | O16: 0 | P16: 0
A17: Aktier Nordamerika | B17: 982.3346636 | C17: 1161.983137 | D17: -422.3918895 | E17: -4304.360406 | F17: -1011.904561 | G17: -124.4993915 | H17: -316.4511975 | I17: -6336.00849 | J17: 1863.315053 | K17: -671.3194139 | L17: -2954.054425 | M17: -780.6746467 | N17: -255.3994771 | O17: -75.36038953 | P17: -4801.688002
A18: Aktier Norden | B18: -95.73456488 | C18: -64.82974584 | D18: 314.3974442 | E18: 878.891169 | F18: 176.9092739 | G18: -60.4578644 | H18: -25.37346555 | I18: -378.2074904 | J18: -65.68881784 | K18: 315.1391613 | L18: 878.891169 | M18: 177.9315259 | N18: -60.4578644 | O18: -25.37346555 | P18: -378.2074904
A19: Aktier Tyskland | B19: -154.6749912 | C19: -854.0899627 | D19: -29.29082951 | E19: -15.55732689 | F19: -24.73637401 | G19: -4.75993231 | H19: -4.2587884 | I19: -23.76448985 | J19: -236.1876833 | K19: -29.29082951 | L19: -15.55732689 | M19: -24.73637401 | N19: -4.75993231 | O19: -4.2587884 | P19: -23.76448985
A20: Aktier Østeuropa | B20: -151.2526727 | C20: -133.9021612 | D20: -21.62234134 | E20: -10.6720266 | F20: -0.26500281 | G20: 0 | H20: 0 | I20: 0 | J20: -133.9021612 | K20: -21.62234134 | L20: -10.6720266 | M20: -0.26500281 | N20: 0 | O20: 0 | P20: 0
A21: Kapitalforeninger Aktier | B21: 2523.414986 | C21: 4486.419886 | D21: 907.1528795 | E21: 2017.701029 | F21: 799.0334497 | G21: -75.52513227 | H21: -185.843819 | I21: 160.3619369 | J21: 4295.423245 | K21: 1221.294907 | L21: 1508.000489 | M21: 562.9633501 | N21: -75.52513238 | O21: -185.8438191 | P21: 160.3619367
A22: Udenlandske aktier i alt | B22: =SUM(B5:B21) -> 21952.45734 | C22: 10552.92307 | D22: 25652.78 | E22: 33684.26455 | F22: 195.2449713 | G22: 2245.922282 | H22: 1345.791454 | I22: 13092.54914 | J22: 8963.615511 | K22: 22347.69038 | L22: 26031.81133 | M22: 1764.067224 | N22: -858.4985896 | O22: 1600.703119 | P22: =SUM(P5:P21) -> 6228.596841
A23: Obligationer Korte Danske | B23: 4237.358494 | C23: -4385.170676 | D23: 823.5679127 | E23: 1560.247802 | F23: 3381.698258 | G23: 319.9982713 | H23: -254.3831158 | I23: 3503.766023 | J23: -4442.196214 | K23: 1335.487649 | L23: 459.2192831 | M23: 2400.732767 | N23: 277.8101762 | O23: -286.3708493 | P23: 3049.180986
A24: Obligationer Lange Danske | B24: 1950.841559 | C24: 670.3830928 | D24: 439.6283153 | E24: 5429.705007 | F24: 4130.113816 | G24: 16.33011663 | H24: -47.71038483 | I24: 5699.070453 | J24: -1092.676594 | K24: -1838.837881 | L24: 3210.910999 | M24: 2741.15332 | N24: -71.74143631 | O24: -78.36479585 | P24: 3957.257363
A25: Obligationer Øvrige Danske | B25: -6993.943237 | C25: 8505.294757 | D25: -985.3955872 | E25: 1322.446717 | F25: 7311.156677 | G25: 943.253608 | H25: -964.7073177 | I25: -6192.294274 | J25: 7210.603709 | K25: -1123.385453 | L25: 1084.647814 | M25: -446.4293278 | N25: -369.9791958 | O25: -303.8085185 | P25: -7493.365039
A26: Obligationer Danske Indeksobligationer | B26: 0 | C26: -1.07242 | D26: -3.35096 | E26: -2.8821 | F26: -5.90565 | G26: -1.9294 | H26: -0.51132 | I26: -9.17418 | J26: -1.07242 | K26: -3.35096 | L26: -2.8821 | M26: -5.90565 | N26: -1.9294 | O26: -0.51132 | P26: -9.17418
A27: Danske obligationer i alt | B27: =SUM(B23:B26) -> -805.743184 | C27: 4789.434754 | D27: 274.4496807 | E27: 8309.517427 | F27: 14817.0631 | G27: 1277.652596 | H27: -1267.312138 | I27: 3001.368021 | J27: 1674.65848 | K27: -1630.086645 | L27: 4751.895997 | M27: 4689.55111 | N27: -165.8398559 | O27: -669.0554836 | P27: =SUM(P23:P26) -> -496.1008705
A28: Obligationer Investment Grade | B28: 3763.987526 | C28: 2484.657532 | D28: 6889.82555 | E28: 3460.70144 | F28: 1229.871281 | G28: -183.540212 | H28: 75.82076245 | I28: 756.0413416 | J28: 2825.631109 | K28: 6484.079462 | L28: 1054.871766 | M28: -616.9040107 | N28: 261.421355 | O28: 784.915621 | P28: 2970.676984
A29: Obligationer Non-Investment Grade | B29: -4623.350026 | C29: 2330.033354 | D29: 7641.438193 | E29: -1539.387924 | F29: -5941.57034 | G29: -890.7379449 | H29: 301.4775637 | I29: -819.5383183 | J29: 3954.245369 | K29: 6574.74335 | L29: -4262.246933 | M29: -3197.114338 | N29: -1080.087594 | O29: 266.319592 | P29: -2483.914525
A30: Obligationer Emerging Markets | B30: 11182.58656 | C30: -946.4530357 | D30: 1950.743624 | E30: 3009.799109 | F30: -9872.816595 | G30: 753.0150767 | H30: -711.5010869 | I30: -2830.294048 | J30: -953.893976 | K30: 2278.21341 | L30: 2088.367361 | M30: -8779.770881 | N30: 483.5967907 | O30: -602.2777955 | P30: -1513.673746
A31: Obligationer Øvrige | B31: -2706.57713 | C31: 1008.753472 | D31: 2787.790329 | E31: 7447.843264 | F31: -428.0433025 | G31: -695.1109928 | H31: 570.0111248 | I31: -1046.732631 | J31: 855.7435298 | K31: 2088.979267 | L31: 7090.529049 | M31: -756.4302965 | N31: -695.1109928 | O31: -277.1648626 | P31: -1784.244458
A32: Obligationer Udenlandske Indeksobligationer | B32: -757.0548151 | C32: -1067.346563 | D32: 10.10387031 | E32: 4761.554548 | F32: -697.1851585 | G32: -26.14578776 | H32: 1764.412342 | I32: 2775.383104 | J32: 250.6570257 | K32: 106.8038244 | L32: 3107.91118 | M32: -427.6809078 | N32: -26.14578729 | O32: 1777.009535 | P32: 2900.299625
A33: Kapitalforeninger Obligationer Udenlandske | B33: -1815.34899 | C33: 1216.02822 | D33: 820.9634574 | E33: 1816.51718 | F33: -513.7751107 | G33: -2.3741974 | H33: -90.84079931 | I33: 497.3861361 | J33: 1510.96057 | K33: 820.9634574 | L33: 1239.971382 | M33: 221.0188338 | N33: -2.37419734 | O33: -90.84079928 | P33: 497.3861362
A34: Udenlandske obligationer i alt | B34: =SUM(B28:B33) -> 5044.243121 | C34: 5025.67298 | D34: 20100.86502 | E34: 18957.02762 | F34: -16223.51923 | G34: -1044.894058 | H34: 1909.379906 | I34: -667.7544149 | J34: 8443.343628 | K34: 18353.78277 | L34: 10319.4038 | M34: -13556.8816 | N34: -1058.700426 | O34: 1857.961291 | P34: =SUM(P28:P33) -> 586.5300167
A35: Pengemarkedsforeninger | B35: -23.283551 | C35: 2.903173 | D35: -245.747433 | E35: 0 | F35: 0 | G35: 0 | H35: 0 | I35: 0 | J35: 2.903173 | K35: -245.747433 | L35: 0 | M35: 0 | N35: 0 | O35: 0 | P35: 0
A36: Øvrige | B36: 107.3577836 | C36: -278.3586046 | D36: -123.9421292 | E36: 192.5128097 | F36: 1609.673334 | G36: -1.775251 | H36: -4.897483 | I36: -306.3080309 | J36: -175.7575884 | K36: 339.6949213 | L36: 286.0651474 | M36: 1609.673334 | N36: -1.775251 | O36: -4.897483 | P36: -306.3080309
A37: Blandede Balanceret | B37: 6223.478679 | C37: 12124.78767 | D37: 11833.19528 | E37: 11732.8794 | F37: 3970.907241 | G37: 267.9450075 | H37: -582.2554116 | I37: -2188.48477 | J37: 11202.81147 | K37: 10880.37172 | L37: 11311.56303 | M37: 3398.803281 | N37: -416.2442568 | O37: -593.9200747 | P37: -2890.240216
A38: Blandede Fleksibel | B38: 980.1822597 | C38: 556.9821821 | D38: 8488.748947 | E38: 7119.273893 | F38: -774.2547801 | G38: 249.6383465 | H38: -12.63472079 | I38: 3275.074741 | J38: 656.7179744 | K38: 9697.608773 | L38: 1032.913542 | M38: -297.6135538 | N38: 228.1039137 | O38: 52.42770701 | P38: 2873.875518
A39: Blandede Høj Aktieandel | B39: 1109.160774 | C39: 1731.521926 | D39: 2036.329133 | E39: 7160.244392 | F39: 5970.751457 | G39: 296.9218317 | H39: 218.4483141 | I39: 3798.929005 | J39: 1731.521926 | K39: 2036.329133 | L39: 7160.244392 | M39: 6435.144481 | N39: 296.9218317 | O39: 218.448314 | P39: 3798.936505
A40: Blandede Lav Aktieandel | B40: 2304.984299 | C40: 6747.687076 | D40: 2683.938616 | E40: 1354.51961 | F40: 527.3964364 | G40: -427.4535971 | H40: -548.1480145 | I40: -4179.211176 | J40: 6747.687076 | K40: 2683.938616 | L40: 1354.519611 | M40: -26.66985868 | N40: -427.4535973 | O40: -548.1480142 | P40: -4182.341226
A41: Blandede i alt | B41: =SUM(B37:B40) -> 10617.80601 | C41: 21160.97885 | D41: 25042.21198 | E41: 27366.91729 | F41: 9694.800355 | G41: 387.0515885 | H41: -924.5898329 | I41: 706.3077997 | J41: 20338.73845 | K41: 25298.24825 | L41: 20859.24058 | M41: 9509.66435 | N41: -318.6721088 | O41: -871.1920678 | P41: =SUM(P37:P40) -> -399.769419
A42: Kapitalforeninger Blandede | B42: 2806.157658 | C42: 2402.765801 | D42: 11276.94668 | E42: -15513.14249 | F42: -1548.400389 | G42: -114.391411 | H42: -60.3868556 | I42: -723.5387017 | J42: 1440.036702 | K42: 9180.689606 | L42: 3151.942697 | M42: -902.142705 | N42: -114.3914111 | O42: -60.38685568 | P42: -714.5585268
A43: Kapitalforeninger Øvrige | B43: 461.3774725 | C43: 398.0898029 | D43: 445.3848447 | E43: 279.5729008 | F43: 179.3559984 | G43: 52.4437533 | H43: 25.05500458 | I43: 1076.01024 | J43: 398.0898029 | K43: 445.3848447 | L43: 284.764848 | M43: 179.3559984 | N43: 52.48723746 | O43: 24.99836074 | P43: 1076.029443
A44: Kapitalforeninger Hedgestrategier | B44: 2439.618442 | C44: 2125.540377 | D44: -586.610522 | E44: -2372.873167 | F44: -1773.680292 | G44: -281.3756218 | H44: -282.2918623 | I44: -2219.978634 | J44: 2077.793857 | K44: -688.025233 | L44: -2334.999891 | M44: -1768.158786 | N44: -278.4868018 | O44: -279.5438623 | P44: -2194.606149
A45: Andre Alternative Investeringsfonde | B45: 2021.994919 | C45: 55.511081 | D45: 0 | E45: 0 | F45: 545.4014729 | G45: 0.50688612 | H45: -4.0142232 | I45: 103.3320536 | J45: 0 | K45: 0 | L45: 0 | M45: 370.2948455 | N45: 0.69804511 | O45: -4.0142232 | P45: 156.0275417
A46: I alt danske foreninger | B46: =B4+B22+B27+B34+B35+B36+B41+B42+B43+B44+B45 -> 47225.71357 | C46: 43371.66325 | D46: 85277.9373 | E46: 76186.13496 | F46: 10280.3755 | G46: 2444.287538 | H46: 859.0100222 | I46: 15656.11103 | J46: 40171.49131 | K46: 77451.21309 | L46: 67438.68138 | M46: 4033.384605 | N46: -2979.718715 | O46: 1716.646403 | P46: =P4+P22+P27+P34+P35+P36+P41+P42+P43+P44+P45 -> 5372.100163
A47: * Nettokøb, netto angiver det nettokøb i afdelingerne indenfor den enkelte investeringsforening, der er foretaget af eksterne investorer i perioden.
A48: Investering Danmark Amaliegade 7 DK-1256 København K Tel: 3370 1000

Sheet 1.3 Antal (D)
A1: Antal detailfonde* opgjort på investeringsområde
B2: 2018 | C2: 2019 | D2: 2020 | E2: 2021 | F2: 2022 | G2: October | H2: November
A3: Aktier Danmark | B3: 44 | C3: 45 | D3: 42 | E3: 43 | F3: 42 | G3: 49 | H3: 49
A4: Aktier Brancher | B4: 1 | C4: 1 | D4: 1 | E4: 1 | F4: 1 | G4: 1 | H4: 1
A5: Aktier Ejendomme | B5: 1 | C5: 1 | D5: 2 | E5: 2 | F5: 3 | G5: 3 | H5: 3
A6: Aktier Emerging markets | B6: 43 | C6: 42 | D6: 43 | E6: 46 | F6: 46 | G6: 36 | H6: 36
A7: Aktier Enkeltlande | B7: 3 | C7: 3 | D7: 3 | E7: 4 | F7: 4 | G7: 2 | H7: 2
A8: Aktier Europa | B8: 47 | C8: 47 | D8: 47 | E8: 51 | F8: 51 | G8: 50 | H8: 50
A9: Aktier Fjernøsten | B9: 16 | C9: 15 | D9: 16 | E9: 16 | F9: 16 | G9: 15 | H9: 15
A10: Aktier Globale | B10: 145 | C10: 153 | D10: 183 | E10: 196 | F10: 199 | G10: 211 | H10: 211
A11: Aktier Health Care | B11: 1 | C11: 1 | D11: 1 | E11: 1 | F11: 1 | G11: 1 | H11: 1
A12: Aktier IT | B12: 1 | C12: 1 | D12: 1 | E12: 1 | F12: 1 | G12: 1 | H12: 1
A13: Aktier Japan | B13: 11 | C13: 11 | D13: 11 | E13: 12 | F13: 12 | G13: 9 | H13: 9
A14: Aktier Kina | B14: 4 | C14: 4 | D14: 4 | E14: 4 | F14: 4 | G14: 2 | H14: 2
A15: Aktier Latinamerika | B15: 3 | C15: 3 | D15: 3 | E15: 2 | F15: 2 | G15: 0 | H15: 0
A16: Aktier Nordamerika | B16: 28 | C16: 28 | D16: 28 | E16: 30 | F16: 33 | G16: 25 | H16: 25
A17: Aktier Norden | B17: 7 | C17: 7 | D17: 9 | E17: 11 | F17: 10 | G17: 6 | H17: 6
A18: Aktier Tyskland | B18: 3 | C18: 3 | D18: 3 | E18: 3 | F18: 3 | G18: 1 | H18: 1
A19: Aktier Østeuropa | B19: 3 | C19: 3 | D19: 3 | E19: 3 | F19: 3 | G19: 1 | H19: 1
A20: Kapitalforeninger Aktier | B20: 15 | C20: 15 | D20: 16 | E20: 16 | F20: 15 | G20: 10 | H20: 10
A21: Udenlandske aktier i alt | B21: =SUM(B4:B20) -> 332 | C21: 338 | D21: 374 | E21: 399 | F21: 404 | G21: =SUM(G4:G20) -> 374 | H21: =SUM(H4:H20) -> 374
A22: Obligationer Korte Danske | B22: 27 | C22: 28 | D22: 31 | E22: 33 | F22: 32 | G22: 35 | H22: 35
A23: Obligationer Lange Danske | B23: 15 | C23: 15 | D23: 16 | E23: 18 | F23: 16 | G23: 19 | H23: 19
A24: Obligationer Øvrige Danske | B24: 45 | C24: 45 | D24: 48 | E24: 50 | F24: 52 | G24: 53 | H24: 53
A25: Obligationer Danske Indeksobligationer | B25: 1 | C25: 1 | D25: 1 | E25: 1 | F25: 1 | G25: 1 | H25: 1
A26: Danske obligationer i alt | B26: =SUM(B22:B25) -> 88 | C26: 89 | D26: 96 | E26: 102 | F26: 101 | G26: =SUM(G22:G25) -> 108 | H26: =SUM(H22:H25) -> 108
A27: Obligationer Investment Grade | B27: 40 | C27: 40 | D27: 39 | E27: 41 | F27: 40 | G27: 36 | H27: 36
A28: Obligationer Non-Investment Grade | B28: 45 | C28: 45 | D28: 46 | E28: 49 | F28: 48 | G28: 44 | H28: 44
A29: Obligationer Emerging Markets | B29: 47 | C29: 45 | D29: 46 | E29: 48 | F29: 48 | G29: 39 | H29: 39
A30: Obligationer Øvrige | B30: 30 | C30: 30 | D30: 34 | E30: 38 | F30: 38 | G30: 49 | H30: 49
A31: Obligationer Udenlandske Indeksobligationer | B31: 11 | C31: 10 | D31: 10 | E31: 10 | F31: 10 | G31: 8 | H31: 8
A32: Kapitalforeninger Obligationer Udenlandske | B32: 6 | C32: 9 | D32: 11 | E32: 11 | F32: 11 | G32: 10 | H32: 10
A33: Udenlandske obligationer i alt | B33: =SUM(B27:B32) -> 179 | C33: 179 | D33: 186 | E33: 197 | F33: 195 | G33: =SUM(G27:G32) -> 186 | H33: =SUM(H27:H32) -> 186
A34: Pengemarkedsforeninger | B34: 1 | C34: 1 | D34: 1 | E34: 1 | F34: 1 | G34: 0 | H34: 0
A35: Øvrige | B35: 6 | C35: 6 | D35: 6 | E35: 5 | F35: 5 | G35: 4 | H35: 4
A36: Blandede Balanceret | C36: 47 | D36: 54 | E36: 57 | F36: 57 | G36: 63 | H36: 63
A37: Blandede Fleksibel | C37: 12 | D37: 11 | E37: 12 | F37: 14 | G37: 15 | H37: 15
A38: Blandede Høj Aktieandel | C38: 28 | D38: 29 | E38: 33 | F38: 42 | G38: 59 | H38: 59
A39: Blandede Lav Aktieandel | C39: 31 | D39: 35 | E39: 37 | F39: 40 | G39: 44 | H39: 44
A40: Blandede i alt | B40: =SUM(B36:B39) -> 0 | C40: 118 | D40: 129 | E40: 139 | F40: 153 | G40: =SUM(G36:G39) -> 181 | H40: =SUM(H36:H39) -> 181
A41: Kapitalforeninger Blandede | B41: 23 | C41: 26 | D41: 28 | E41: 28 | F41: 24 | G41: 15 | H41: 15
A42: Kapitalforeninger Øvrige | B42: 8 | C42: 5 | D42: 5 | E42: 4 | F42: 5 | G42: 4 | H42: 4
A43: Kapitalforeninger Hedgestrategier | B43: 10 | C43: 10 | D43: 10 | E43: 9 | F43: 9 | G43: 10 | H43: 10
A44: Andre Alternative Investeringsfonde | B44: 1 | C44: 1 | D44: 2 | E44: 2 | F44: 4 | G44: 2 | H44: 2
A45: I alt danske foreninger | B45: =B3+B21+B26+B33+B34+B35+B40+B41+B42+B43+B44 -> 692 | C45: 818 | D45: 879 | E45: 929 | F45: 943 | G45: =G3+G21+G26+G33+G34+G35+G40+G41+G42+G43+G44 -> 933 | H45: =H3+H21+H26+H33+H34+H35+H40+H41+H42+H43+H44 -> 933
A46: * Antal afdelinger og klasser i alt. | J46: 948 | K46: 258 | L46: 148
A47: Investering Danmark Amaliegade 7 DK-1256 København K Tel: 3370 1000

Sheet 1.4 Udbytter (D)
A1: Udbetalte udbytter i detailfonde opgjort på investeringsområde | K1: Udbetalte udbytter i detailfonde opgjort på foreningsgruppe
A2: Mio kr. | B2: 2018 | C2: 2019 | D2: 2020 | E2: 2021 | F2: 2022 | G2: October | H2: November | I2: år-til-dato | K2: Mio. kr. | L2: 2018 | M2: 2019 | N2: 2020 | O2: 2021 | P2: 2022 | Q2: October | R2: November | S2: år-til-dato
A3: Aktier Danmark | B3: 3941.073594 | C3: 1723.737026 | D3: 1028.293896 | E3: 2153.887356 | F3: 4080.423856 | G3: 0 | H3: 0 | I3: 2523.753276 | K3: ACM Forvaltning A/S | L3: 19.27577762 | M3: 20.453449 | N3: 10.550413 | O3: 34.62528156 | P3: 68.967515 | Q3: 19.102335 | R3: 0 | S3: 95.902475
A4: Aktier Brancher | B4: 2.80933 | C4: 10.99863 | D4: 16.350345 | E4: 19.200392 | F4: 0 | G4: 0 | H4: 0 | I4: 0 | K4: Advice Capital | P4: 0 | Q4: 0 | R4: 0 | S4: 0
A5: Aktier Ejendomme | B5: 0 | C5: 0 | D5: 0 | E5: 0 | F5: 0 | G5: 0 | H5: 0 | I5: 0 | K5: Alm. Brand Invest | L5: 106.0686202 | M5: 120.5305501 | N5: 132.7982007 | O5: 215.5539002
A6: Aktier Emerging markets | B6: 1231.910985 | C6: 739.6497767 | D6: 1098.429316 | E6: 1499.294875 | F6: 1715.933377 | G6: 0 | H6: 0 | I6: 181.1728159 | K6: Amalie Invest | L6: 0 | M6: 0
A7: Aktier Enkeltlande | B7: 102.0140402 | C7: 64.5383195 | D7: 34.4188626 | E7: 11.713782 | F7: 21.3278168 | G7: 0 | H7: 0 | I7: 0.5147832 | K7: BankInvest | L7: 3908.466035 | M7: 1047.043602 | N7: 2617 | O7: 1871.728034 | P7: 4526.948173 | Q7: 0 | R7: 0 | S7: 2239.731736
A8: Aktier Europa | B8: 1594.736098 | C8: 581.0982336 | D8: 747.0791679 | E8: 332.864492 | F8: 1517.628685 | G8: 0 | H8: 0 | I8: 604.2002973 | K8: BIL Danmark | L8: 83.2847701 | M8: 0 | N8: 0 | O8: 0
A9: Aktier Fjernøsten | B9: 927.8352193 | C9: 266.4910471 | D9: 478.482303 | E9: 281.5790951 | F9: 625.1986516 | G9: 0 | H9: 0 | I9: 128.7783685 | K9: BLS Invest | L9: 254.354539 | M9: 576.690966 | N9: 392.722668 | O9: 489.04871 | P9: 837.60212 | Q9: 0 | R9: 0 | S9: 410.254559
A10: Aktier Globale | B10: 13701.0501 | C10: 7702.013327 | D10: 12003.74984 | E10: 9322.91594 | F10: 24816.65334 | G10: 0 | H10: 0 | I10: 15067.86265 | K10: C Worldwide | L10: 891.7372674 | M10: 391.0190962 | N10: 355 | O10: 284.2180895 | P10: 327.319263 | Q10: 0 | R10: 0 | S10: 262.5402713
A11: Aktier Health Care | B11: 91.7508838 | C11: 160.7137092 | D11: 24.45168 | E11: 71.2896408 | F11: 60.379782 | G11: 0 | H11: 0 | I11: 0 | K11: Carnegie Wealth Management | O11: 0 | P11: 37.623056 | Q11: 0 | R11: 0 | S11: 0
A12: Aktier IT | B12: 274.75994 | C12: 61.4464608 | D12: 76.9379464 | E12: 206.7887931 | F12: 305.101023 | G12: 0 | H12: 0 | I12: 215.8359624 | K12: Danske Invest | L12: 11460.45645 | M12: 4856.027481 | N12: 5511 | O12: 5253.408936 | P12: 7620.142336 | Q12: 0 | R12: 0 | S12: 3030.22027
A13: Aktier Japan | B13: 261.6917138 | C13: 116.639843 | D13: 145.5264267 | E13: 56.4507162 | F13: 93.3059783 | G13: 0 | H13: 0 | I13: 56.337509 | K13: Falcon Invest | L13: 0 | M13: 0 | N13: 0 | O13: 0 | P13: 0 | Q13: 0 | R13: 0 | S13: 0
A14: Aktier Kina | B14: 156.8620757 | C14: 62.2161069 | D14: 28.9260166 | E14: 87.2299909 | F14: 84.824819 | G14: 0 | H14: 0 | I14: 0 | K14: Formuepleje | L14: 262.858041 | M14: 113.810687 | N14: 122.856077 | O14: 101.486491 | P14: 254.235104 | Q14: 0 | R14: 0 | S14: 86.986361
A15: Aktier Latinamerika | B15: 19.465912 | C15: 13.506864 | D15: 1.3962224 | E15: 0 | F15: 0 | G15: 0 | H15: 0 | I15: 0 | K15: Fundamental Invest | L15: 109.680708 | M15: 29.80024 | N15: 19.443 | O15: 17.240847 | P15: 127.230279 | Q15: 0 | R15: 0 | S15: 59.218755
A16: Aktier Nordamerika | B16: 1996.38655 | C16: 1306.42615 | D16: 1500.96812 | E16: 1131.492284 | F16: 2195.311274 | G16: 0 | H16: 0 | I16: 872.8401393 | K16: Great Dane | L16: 11.363256 | M16: 18.527558 | N16: 8.0215641 | O16: 0 | P16: 9.336908 | Q16: 0 | R16: 0 | S16: 37.003091
A17: Aktier Norden | B17: 91.591499 | C17: 53.2401012 | D17: 35.8576634 | E17: 72.9997027 | F17: 159.9455087 | G17: 0 | H17: 0 | I17: 49.566353 | K17: Handelsinvest | L17: 564.346822 | M17: 412.904924 | N17: 606.325749 | O17: 923.095286 | P17: 1419.3181 | Q17: 0 | R17: 0 | S17: 376.207278
A18: Aktier Tyskland | B18: 133.0604239 | C18: 128.8614565 | D18: 45.0165672 | E18: 31.72232 | F18: 31.1067779 | G18: 0 | H18: 0 | I18: 12.6797712 | K18: HP Hedge | Q18: 0 | R18: 0 | S18: 0
A19: Aktier Østeuropa | B19: 31.014521 | C19: 8.5153048 | D19: 33.4166688 | E19: 5.3700098 | F19: 80.062964 | G19: 0 | H19: 0 | I19: 0 | K19: HP Invest | L19: 21.9868216 | M19: 1.6576106 | N19: 10.3383718 | O19: 4.0874353 | P19: 0
A20: Kapitalforeninger Aktier | B20: 377.1303022 | C20: 665.3142818 | D20: 362.8850976 | E20: 548.0091355 | F20: 1000.751829 | G20: 0 | H20: 0 | I20: 1096.838763 | K20: IA Invest | L20: 0 | M20: 0 | N20: 0 | O20: 1.201402 | P20: 13.4154 | Q20: 0 | R20: 0 | S20: 5.428932
A21: Udenlandske aktier i alt | B21: =SUM(B4:B20) -> 20994.06959 | C21: 11941.66961 | D21: 16633.89224 | E21: 13678.92117 | F21: 32707.53183 | G21: 0 | H21: 0 | I21: =SUM(I4:I20) -> 18286.62741 | K21: Investeringsforeningen Gudme Raaschou | L21: 198.372772 | M21: 216.956076 | N21: 61.681459 | O21: 102.630651 | P21: 42.011375 | Q21: 0 | R21: 0 | S21: 5.348995
A22: Obligationer Korte Danske | B22: 462.9101245 | C22: 222.85597 | D22: 95.8940066 | E22: 54.2796895 | F22: 133.1954636 | G22: 0 | H22: 0 | I22: 708.812277 | K22: Investin | L22: 26.7465 | M22: 13.8824 | N22: 24.8679139 | O22: 3.3512959 | P22: 29.60265955 | Q22: 0 | R22: 0 | S22: 5.6398794
A23: Obligationer Lange Danske | B23: 920.2822506 | C23: 678.2923056 | D23: 1158.1737 | E23: 485.2417418 | F23: 232.0629994 | G23: 0 | H23: 0 | I23: 871.3477581 | K23: IR Invest | L23: 0 | M23: 0 | N23: 0
A24: Obligationer Øvrige Danske | B24: 1624.612544 | C24: 1019.736339 | D24: 1828.027502 | E24: 889.673302 | F24: 371.6890851 | G24: 0 | H24: 0 | I24: 647.9610209 | K24: Jyske Invest | L24: 2470.491896 | M24: 579.7882619 | N24: 1664.610012 | O24: 2429.164225 | P24: 2977.773803 | Q24: 0 | R24: 0 | S24: 784.5959073
A25: Obligationer Danske Indeksobligationer | B25: 5.391396 | C25: 3.3696225 | D25: 2.4063282 | E25: 9.2431279 | F25: 1.5148188 | G25: 0 | H25: 0 | I25: 1.3066339 | K25: Kapitalforeningen Blue Strait Capital | N25: 0 | O25: 0 | P25: 56.9326842 | Q25: 0 | R25: 0 | S25: 17.8605531
A26: Danske obligationer i alt | B26: =SUM(B22:B25) -> 3013.196315 | C26: 1924.254238 | D26: 3084.501537 | E26: 1438.437861 | F26: 738.4623669 | G26: 0 | H26: 0 | I26: =SUM(I22:I25) -> 2229.42769 | K26: Kapitalforeningen Investering & Tryghed | L26: 0 | M26: 0 | N26: 0 | O26: 46.925154 | P26: 29.32 | Q26: 0 | R26: 0 | S26: 3.9315408
A27: Obligationer Investment Grade | B27: 804.3925173 | C27: 233.1698737 | D27: 488.7163785 | E27: 878.0403016 | F27: 455.2038399 | G27: 0 | H27: 0 | I27: 59.8780976 | K27: Lægernes Invest | L27: 1544.237926 | M27: 765.1440551 | N27: 710.0519932 | O27: 1287.287292 | P27: 0 | Q27: 0 | R27: 0 | S27: 226.5360326
A28: Obligationer Non-Investment Grade | B28: 2585.193688 | C28: 466.8975748 | D28: 405.7546255 | E28: 1247.851539 | F28: 513.1485379 | G28: 0 | H28: 0 | I28: 142.4263897 | K28: Lån & Spar Invest | L28: 244.713632 | M28: 40.884903 | N28: 97.2281675 | O28: 191.466233 | P28: 354.230413 | Q28: 0 | R28: 0 | S28: 170.723234
A29: Obligationer Emerging Markets | B29: 4159.564943 | C29: 391.8902484 | D29: 1092.827161 | E29: 2000.580602 | F29: 119.5696956 | G29: 0 | H29: 0 | I29: 13.434782 | K29: Maj Invest | L29: 1222.43547 | M29: 1046.663476 | N29: 830.624785 | O29: 339.514135 | P29: 1584.930274 | Q29: 0 | R29: 0 | S29: 1143.170396
A30: Obligationer Øvrige | B30: 1640.843568 | C30: 416.596087 | D30: 716.859421 | E30: 1137.419228 | F30: 229.4010133 | G30: 0 | H30: 0 | I30: 77.8204723 | K30: MS Invest | L30: 48.489375 | M30: 35.329997 | N30: 0 | O30: 0 | P30: 0 | Q30: 0 | R30: 0 | S30: 0
A31: Obligationer Udenlandske Indeksobligationer | B31: 293.5577415 | C31: 0 | D31: 3.7568585 | E31: 75.8857964 | F31: 0 | G31: 0 | H31: 0 | I31: 42.8147906 | K31: Nielsen Capital Management | L31: 45.4701883 | M31: 188.749436
A32: Kapitalforeninger Obligationer Udenlandske | B32: 0 | C32: 0 | D32: 69.782361 | E32: 78.586701 | F32: 48.9837198 | G32: 0 | H32: 0 | I32: 41.2191199 | K32: Nordea Invest | L32: 7813.884306 | M32: 3531.110188 | N32: 7456.410186 | O32: 4674.319071 | P32: 12185.94191 | Q32: 0 | R32: 0 | S32: 8381.244947
A33: Udenlandske obligationer i alt | B33: =SUM(B27:B32) -> 9483.552457 | C33: 1508.553784 | D33: 2777.696806 | E33: 5418.364167 | F33: 1366.306806 | G33: 0 | H33: 0 | I33: =SUM(I27:I32) -> 377.5936521 | K33: Nykredit Portefølje Administration | L33: 1586.91528 | M33: 1086.245169 | N33: 1550.435984 | O33: 1797.11119 | P33: 3467.4061 | Q33: 0 | R33: 0 | S33: 3245.693614
A34: Pengemarkedsforeninger | B34: 0 | C34: 0 | D34: 0 | E34: 0 | F34: 0 | G34: 0 | H34: 0 | I34: 0 | K34: PFA Invest | L34: 342.5573393 | M34: 371.340425 | N34: 399.669191 | O34: 487.315165 | P34: 1981.759717 | Q34: 0 | R34: 0 | S34: 785.159728
A35: Øvrige | B35: 0 | C35: 0 | D35: 32.9518 | E35: 0 | F35: 0 | G35: 0 | H35: 0 | I35: 0 | K35: PortfolioManager | L35: 0 | M35: 0 | N35: 0.211407 | O35: 0.628355 | P35: 1.47019 | Q35: 0 | R35: 0 | S35: 0.670755
A36: Blandede Balanceret | B36: 755.201526 | C36: 404.0266925 | D36: 1877.281509 | E36: 1245.968945 | F36: 3674.410212 | G36: 0 | H36: 0 | I36: 475.38441 | K36: SEBinvest | L36: 997.850054 | M36: 239.92982 | N36: 406.085983 | O36: 564.621055 | P36: 786.419734 | Q36: 0 | R36: 0 | S36: 313.140257
A37: Blandede Fleksibel | B37: 91.1629674 | C37: 228.050576 | D37: 161.246428 | E37: 231.1095444 | F37: 305.9147234 | G37: 0 | H37: 0 | I37: 223.6640684 | K37: Selected Investments | N37: 0 | O37: 0 | P37: 0 | Q37: 0 | R37: 0 | S37: 0
A38: Blandede Høj Aktieandel | B38: 123.2388508 | C38: 65.8031966 | D38: 409.0928732 | E38: 287.1067919 | F38: 1635.334911 | G38: 0 | H38: 0 | I38: 275.8250822 | K38: SparDanmark | L38: 0 | M38: 0 | N38: 0 | O38: 0 | P38: 0 | Q38: 0 | R38: 0 | S38: 3.2203668
A39: Blandede Lav Aktieandel | B39: 118.2857751 | C39: 237.822453 | D39: 546.3367013 | E39: 601.4442522 | F39: 1234.896093 | G39: 0 | H39: 0 | I39: 184.4352102 | K39: Sparinvest | P39: 0 | Q39: 0 | R39: 0 | S39: 2261.512496
A40: Blandede i alt | B40: =SUM(B36:B39) -> 1087.889119 | C40: 935.7029181 | D40: 2993.957511 | E40: 2365.629533 | F40: 6850.555939 | G40: 0 | H40: 0 | I40: =SUM(I36:I39) -> 1159.308771 | K40: StockRate Invest | L40: 1506.463153 | M40: 1173.718447 | N40: 1566 | O40: 1815.508396 | P40: 3741.952465 | Q40: 0 | R40: 0 | S40: 0
A41: Kapitalforeninger Blandede | B41: 7.640653 | C41: 70.4543652 | D41: 207.8691636 | E41: 235.6749933 | F41: 431.7269657 | G41: 0 | H41: 0 | I41: 0 | K41: Stonehenge | L41: 11.603074 | M41: 7.30326 | N41: 45.8493465 | O41: 13.832857 | P41: 16.471078 | Q41: 0 | R41: 0 | S41: 77.4780426
A42: Kapitalforeninger Øvrige | B42: 19.27577762 | C42: 24.5516851 | D42: 10.6506866 | E42: 34.62528156 | F42: 78.2743112 | G42: 19.102335 | H42: 0 | I42: 95.902475 | K42: Strategi Invest | L42: 56.3829049 | M42: 13.1974608 | N42: 35.034315 | O42: 31.4805741 | P42: 70.1826023
A43: Kapitalforeninger Hedgestrategier | B43: 0 | C43: 0 | D43: 0 | E43: 0 | F43: 0 | G43: 0 | H43: 0 | I43: 0 | K43: Sydinvest | L43: 42.2889208 | M43: 0 | Q43: 0 | R43: 0 | S43: 304.5500852
A44: Andre Alternative Investeringsfonde | B44: 0 | C44: 0 | D44: 0 | E44: 0 | F44: 0 | G44: 0 | H44: 0 | I44: 0 | K44: TRP-Invest | L44: 1711.839677 | M44: 686.6618189 | N44: 1385.088707 | O44: 1668.26892 | P44: 3013.837358 | Q44: 0 | R44: 0 | S44: 0
A45: I alt danske foreninger | B45: =B3+B21+B26+B33+B34+B35+B40+B41+B42+B43+B44 -> 38546.69751 | C45: 18128.92363 | D45: 26769.81364 | E45: 25325.54036 | F45: 46253.28208 | G45: 19.102335 | H45: 0 | I45: =I3+I21+I26+I33+I34+I35+I40+I41+I42+I43+I44 -> 24672.61327 | K45: ValueInvest Danmark | L45: 0 | M45: 0 | N45: 0 | O45: 0 | P45: 0 | Q45: 0 | R45: 0 | S45: 178.2611483
K46: Wealth Invest | L46: 677.7436186 | M46: 471.1743296 | N46: 416.9139901 | O46: 375.0704295 | P46: 379.9042016 | Q46: 0 | R46: 0 | S46: 160.381569
K47: I alt danske foreninger | L47: =SUM(L3:L46) -> 38242.36519 | M47: 18056.54569 | N47: 26436.81948 | O47: 25024.18941 | P47: 45962.28482 | Q47: 19.102335 | R47: 0 | S47: =SUM(S3:S46) -> 24672.61327
L48: 38546.69751 | M48: 18128.87824 | N48: 26769.81364 | O48: 25325.56756 | P48: 46253.28208
A49: Investering Danmark Amaliegade 7 DK-1256 København K Tel: 3370 1000

Sheet 1.5 Nettoflow (D)
A1: Nettoflow* i detailfonde opgjort på investeringsområde | K1: Nettoflow* i detailafdelinger opgjort på foreningsgruppe
A2: Kursværdi - mio kr. | B2: 2018 | C2: 2019 | D2: 2020 | E2: 2021 | F2: 2022 | G2: October | H2: November | I2: år-til-dato | K2: Kursværdi - mio kr. | L2: 2018 | M2: 2019 | N2: 2020 | O2: 2021 | P2: 2022 | Q2: October | R2: November | S2: år-til-dato
A3: Aktier Danmark | B3: ='1.2 Nettokøb (D)'!B4-'1.4 Udbytter (D)'!B3 -> -1337.346034 | C3: ='1.2 Nettokøb (D)'!C4-'1.4 Udbytter (D)'!C3 -> -4587.535061 | D3: ='1.2 Nettokøb (D)'!D4-'1.4 Udbytter (D)'!D3 -> 2413.305283 | E3: ='1.2 Nettokøb (D)'!E4-'1.4 Udbytter (D)'!E3 -> 3128.450658 | F3: ='1.2 Nettokøb (D)'!F4-'1.4 Udbytter (D)'!F3 -> -1295.987677 | G3: ='1.2 Nettokøb (D)'!G4-'1.4 Udbytter (D)'!G3 -> -76.85322627 | H3: ='1.2 Nettokøb (D)'!H4-'1.4 Udbytter (D)'!H3 -> 122.2760521 | I3: ='1.2 Nettokøb (D)'!I4-'1.4 Udbytter (D)'!I3 -> -929.6297249 | K3: ACM Forvaltning A/S | L3: =IFERROR('2.3 Nettokøb (D)'!B4-'1.4 Udbytter (D)'!L3,"") -> 238.5513704 | M3: =IFERROR('2.3 Nettokøb (D)'!C4-'1.4 Udbytter (D)'!M3,"") -> 382.49966 | N3: =IFERROR('2.3 Nettokøb (D)'!D4-'1.4 Udbytter (D)'!N3,"") -> 454.258794 | O3: =IFERROR('2.3 Nettokøb (D)'!E4-'1.4 Udbytter (D)'!O3,"") -> 250.1395664 | P3: =IFERROR('2.3 Nettokøb (D)'!F4-'1.4 Udbytter (D)'!P3,"") -> 65.39898339 | Q3: =IFERROR('2.3 Nettokøb (D)'!G4-'1.4 Udbytter (D)'!Q3,"") -> 2.8164183 | R3: =IFERROR('2.3 Nettokøb (D)'!H4-'1.4 Udbytter (D)'!R3,"") -> 10.7261335 | S3: =IFERROR('2.3 Nettokøb (D)'!I4-'1.4 Udbytter (D)'!S3,"") -> 854.398159
A4: Aktier Brancher | B4: ='1.2 Nettokøb (D)'!B5-'1.4 Udbytter (D)'!B4 -> -4.503804 | C4: ='1.2 Nettokøb (D)'!C5-'1.4 Udbytter (D)'!C4 -> -102.257047 | D4: ='1.2 Nettokøb (D)'!D5-'1.4 Udbytter (D)'!D4 -> -7.660254 | E4: ='1.2 Nettokøb (D)'!E5-'1.4 Udbytter (D)'!E4 -> -171.55916 | F4: ='1.2 Nettokøb (D)'!F5-'1.4 Udbytter (D)'!F4 -> -113.441984 | G4: ='1.2 Nettokøb (D)'!G5-'1.4 Udbytter (D)'!G4 -> -6.949221 | H4: ='1.2 Nettokøb (D)'!H5-'1.4 Udbytter (D)'!H4 -> 0 | I4: ='1.2 Nettokøb (D)'!I5-'1.4 Udbytter (D)'!I4 -> -16.354821 | K4: Advice Capital | L4: =IFERROR('2.3 Nettokøb (D)'!B5-'1.4 Udbytter (D)'!L4,"") -> 0 | M4: =IFERROR('2.3 Nettokøb (D)'!C5-'1.4 Udbytter (D)'!M4,"") -> 0 | N4: =IFERROR('2.3 Nettokøb (D)'!D5-'1.4 Udbytter (D)'!N4,"") -> 0 | O4: =IFERROR('2.3 Nettokøb (D)'!E5-'1.4 Udbytter (D)'!O4,"") -> 0 | P4: =IFERROR('2.3 Nettokøb (D)'!F5-'1.4 Udbytter (D)'!P4,"") -> 81.81517 | Q4: =IFERROR('2.3 Nettokøb (D)'!G5-'1.4 Udbytter (D)'!Q4,"") -> -6.949221 | R4: =IFERROR('2.3 Nettokøb (D)'!H5-'1.4 Udbytter (D)'!R4,"") -> 0 | S4: =IFERROR('2.3 Nettokøb (D)'!I5-'1.4 Udbytter (D)'!S4,"") -> -28.288308
A5: Aktier Ejendomme | B5: ='1.2 Nettokøb (D)'!B6-'1.4 Udbytter (D)'!B5 -> 0 | C5: ='1.2 Nettokøb (D)'!C6-'1.4 Udbytter (D)'!C5 -> 3123.410402 | D5: ='1.2 Nettokøb (D)'!D6-'1.4 Udbytter (D)'!D5 -> 46.69188 | E5: ='1.2 Nettokøb (D)'!E6-'1.4 Udbytter (D)'!E5 -> 1983.458475 | F5: ='1.2 Nettokøb (D)'!F6-'1.4 Udbytter (D)'!F5 -> 1972.217896 | G5: ='1.2 Nettokøb (D)'!G6-'1.4 Udbytter (D)'!G5 -> -990.5219058 | H5: ='1.2 Nettokøb (D)'!H6-'1.4 Udbytter (D)'!H5 -> -26.1576297 | I5: ='1.2 Nettokøb (D)'!I6-'1.4 Udbytter (D)'!I5 -> -2720.774116 | K5: Alm. Brand Invest | L5: =IFERROR('2.3 Nettokøb (D)'!B6-'1.4 Udbytter (D)'!L5,"") -> -87.59467892 | M5: =IFERROR('2.3 Nettokøb (D)'!C6-'1.4 Udbytter (D)'!M5,"") -> -219.5823722 | N5: =IFERROR('2.3 Nettokøb (D)'!D6-'1.4 Udbytter (D)'!N5,"") -> 160.9358515 | O5: =IFERROR('2.3 Nettokøb (D)'!E6-'1.4 Udbytter (D)'!O5,"") -> -4051.915719 | P5: =IFERROR('2.3 Nettokøb (D)'!F6-'1.4 Udbytter (D)'!P5,"") ->  | Q5: =IFERROR('2.3 Nettokøb (D)'!G6-'1.4 Udbytter (D)'!Q5,"") -> 0 | R5: =IFERROR('2.3 Nettokøb (D)'!H6-'1.4 Udbytter (D)'!R5,"") -> 0 | S5: =IFERROR('2.3 Nettokøb (D)'!I6-'1.4 Udbytter (D)'!S5,"") -> 0
A6: Aktier Emerging markets | B6: ='1.2 Nettokøb (D)'!B7-'1.4 Udbytter (D)'!B6 -> 4001.387245 | C6: ='1.2 Nettokøb (D)'!C7-'1.4 Udbytter (D)'!C6 -> -7114.054613 | D6: ='1.2 Nettokøb (D)'!D7-'1.4 Udbytter (D)'!D6 -> -1063.086618 | E6: ='1.2 Nettokøb (D)'!E7-'1.4 Udbytter (D)'!E6 -> 2319.990374 | F6: ='1.2 Nettokøb (D)'!F7-'1.4 Udbytter (D)'!F6 -> -2073.611739 | G6: ='1.2 Nettokøb (D)'!G7-'1.4 Udbytter (D)'!G6 -> 211.0916588 | H6: ='1.2 Nettokøb (D)'!H7-'1.4 Udbytter (D)'!H6 -> -1599.641711 | I6: ='1.2 Nettokøb (D)'!I7-'1.4 Udbytter (D)'!I6 -> 916.649479 | K6: Amalie Invest | L6: =IFERROR('2.3 Nettokøb (D)'!B7-'1.4 Udbytter (D)'!L6,"") -> -146.5864238 | M6: =IFERROR('2.3 Nettokøb (D)'!C7-'1.4 Udbytter (D)'!M6,"") -> 0 | N6: =IFERROR('2.3 Nettokøb (D)'!D7-'1.4 Udbytter (D)'!N6,"") -> 0 | O6: =IFERROR('2.3 Nettokøb (D)'!E7-'1.4 Udbytter (D)'!O6,"") ->  | P6: =IFERROR('2.3 Nettokøb (D)'!F7-'1.4 Udbytter (D)'!P6,"") ->  | Q6: =IFERROR('2.3 Nettokøb (D)'!G7-'1.4 Udbytter (D)'!Q6,"") -> 0 | R6: =IFERROR('2.3 Nettokøb (D)'!H7-'1.4 Udbytter (D)'!R6,"") -> 0 | S6: =IFERROR('2.3 Nettokøb (D)'!I7-'1.4 Udbytter (D)'!S6,"") -> 0
A7: Aktier Enkeltlande | B7: ='1.2 Nettokøb (D)'!B8-'1.4 Udbytter (D)'!B7 -> -392.7341246 | C7: ='1.2 Nettokøb (D)'!C8-'1.4 Udbytter (D)'!C7 -> -173.0411541 | D7: ='1.2 Nettokøb (D)'!D8-'1.4 Udbytter (D)'!D7 -> -101.6947328 | E7: ='1.2 Nettokøb (D)'!E8-'1.4 Udbytter (D)'!E7 -> -19.95715096 | F7: ='1.2 Nettokøb (D)'!F8-'1.4 Udbytter (D)'!F7 -> -356.4722411 | G7: ='1.2 Nettokøb (D)'!G8-'1.4 Udbytter (D)'!G7 -> -0.1365929 | H7: ='1.2 Nettokøb (D)'!H8-'1.4 Udbytter (D)'!H7 -> 7.35222459 | I7: ='1.2 Nettokøb (D)'!I8-'1.4 Udbytter (D)'!I7 -> 20.37923132 | K7: BankInvest | L7: =IFERROR('2.3 Nettokøb (D)'!B8-'1.4 Udbytter (D)'!L7,"") -> -700.9781331 | M7: =IFERROR('2.3 Nettokøb (D)'!C8-'1.4 Udbytter (D)'!M7,"") -> 12205.46429 | N7: =IFERROR('2.3 Nettokøb (D)'!D8-'1.4 Udbytter (D)'!N7,"") -> 10649.93705 | O7: =IFERROR('2.3 Nettokøb (D)'!E8-'1.4 Udbytter (D)'!O7,"") -> 8748.218368 | P7: =IFERROR('2.3 Nettokøb (D)'!F8-'1.4 Udbytter (D)'!P7,"") -> -1415.424191 | Q7: =IFERROR('2.3 Nettokøb (D)'!G8-'1.4 Udbytter (D)'!Q7,"") -> -1630.932329 | R7: =IFERROR('2.3 Nettokøb (D)'!H8-'1.4 Udbytter (D)'!R7,"") -> 950.9407135 | S7: =IFERROR('2.3 Nettokøb (D)'!I8-'1.4 Udbytter (D)'!S7,"") -> -1587.284377
A8: Aktier Europa | B8: ='1.2 Nettokøb (D)'!B9-'1.4 Udbytter (D)'!B8 -> -2775.532345 | C8: ='1.2 Nettokøb (D)'!C9-'1.4 Udbytter (D)'!C8 -> -5926.819457 | D8: ='1.2 Nettokøb (D)'!D9-'1.4 Udbytter (D)'!D8 -> -2398.630354 | E8: ='1.2 Nettokøb (D)'!E9-'1.4 Udbytter (D)'!E8 -> -352.2545813 | F8: ='1.2 Nettokøb (D)'!F9-'1.4 Udbytter (D)'!F8 -> -3838.311604 | G8: ='1.2 Nettokøb (D)'!G9-'1.4 Udbytter (D)'!G8 -> -756.3882798 | H8: ='1.2 Nettokøb (D)'!H9-'1.4 Udbytter (D)'!H8 -> -110.1879363 | I8: ='1.2 Nettokøb (D)'!I9-'1.4 Udbytter (D)'!I8 -> -3455.828303 | K8: BIL Danmark | L8: =IFERROR('2.3 Nettokøb (D)'!B9-'1.4 Udbytter (D)'!L8,"") -> -96.49330465 | M8: =IFERROR('2.3 Nettokøb (D)'!C9-'1.4 Udbytter (D)'!M8,"") -> 465.7118198 | N8: =IFERROR('2.3 Nettokøb (D)'!D9-'1.4 Udbytter (D)'!N8,"") -> 407.763474 | O8: =IFERROR('2.3 Nettokøb (D)'!E9-'1.4 Udbytter (D)'!O8,"") -> -412.447581 | P8: =IFERROR('2.3 Nettokøb (D)'!F9-'1.4 Udbytter (D)'!P8,"") ->  | Q8: =IFERROR('2.3 Nettokøb (D)'!G9-'1.4 Udbytter (D)'!Q8,"") -> 0 | R8: =IFERROR('2.3 Nettokøb (D)'!H9-'1.4 Udbytter (D)'!R8,"") -> 0 | S8: =IFERROR('2.3 Nettokøb (D)'!I9-'1.4 Udbytter (D)'!S8,"") -> 0
A9: Aktier Fjernøsten | B9: ='1.2 Nettokøb (D)'!B10-'1.4 Udbytter (D)'!B9 -> -1661.391803 | C9: ='1.2 Nettokøb (D)'!C10-'1.4 Udbytter (D)'!C9 -> -2102.979414 | D9: ='1.2 Nettokøb (D)'!D10-'1.4 Udbytter (D)'!D9 -> -1235.727269 | E9: ='1.2 Nettokøb (D)'!E10-'1.4 Udbytter (D)'!E9 -> 314.1842145 | F9: ='1.2 Nettokøb (D)'!F10-'1.4 Udbytter (D)'!F9 -> -1008.620399 | G9: ='1.2 Nettokøb (D)'!G10-'1.4 Udbytter (D)'!G9 -> -159.4857012 | H9: ='1.2 Nettokøb (D)'!H10-'1.4 Udbytter (D)'!H9 -> -124.9774863 | I9: ='1.2 Nettokøb (D)'!I10-'1.4 Udbytter (D)'!I9 -> -1425.882499 | K9: BLS Invest | L9: =IFERROR('2.3 Nettokøb (D)'!B10-'1.4 Udbytter (D)'!L9,"") -> 861.4418778 | M9: =IFERROR('2.3 Nettokøb (D)'!C10-'1.4 Udbytter (D)'!M9,"") -> 2832.901628 | N9: =IFERROR('2.3 Nettokøb (D)'!D10-'1.4 Udbytter (D)'!N9,"") -> 2171.90987 | O9: =IFERROR('2.3 Nettokøb (D)'!E10-'1.4 Udbytter (D)'!O9,"") -> -214.4580859 | P9: =IFERROR('2.3 Nettokøb (D)'!F10-'1.4 Udbytter (D)'!P9,"") -> -774.3739228 | Q9: =IFERROR('2.3 Nettokøb (D)'!G10-'1.4 Udbytter (D)'!Q9,"") -> 160.0456744 | R9: =IFERROR('2.3 Nettokøb (D)'!H10-'1.4 Udbytter (D)'!R9,"") -> 248.6239347 | S9: =IFERROR('2.3 Nettokøb (D)'!I10-'1.4 Udbytter (D)'!S9,"") -> 809.1883758
A10: Aktier Globale | B10: ='1.2 Nettokøb (D)'!B11-'1.4 Udbytter (D)'!B10 -> 2517.004535 | C10: ='1.2 Nettokøb (D)'!C11-'1.4 Udbytter (D)'!C10 -> 11157.75865 | D10: ='1.2 Nettokøb (D)'!D11-'1.4 Udbytter (D)'!D10 -> 15832.18668 | E10: ='1.2 Nettokøb (D)'!E11-'1.4 Udbytter (D)'!E10 -> 19829.69113 | F10: ='1.2 Nettokøb (D)'!F11-'1.4 Udbytter (D)'!F10 -> -22603.27891 | G10: ='1.2 Nettokøb (D)'!G11-'1.4 Udbytter (D)'!G10 -> 4011.216351 | H10: ='1.2 Nettokøb (D)'!H11-'1.4 Udbytter (D)'!H10 -> 3686.048229 | I10: ='1.2 Nettokøb (D)'!I11-'1.4 Udbytter (D)'!I10 -> 9966.119148 | K10: C Worldwide | L10: =IFERROR('2.3 Nettokøb (D)'!B11-'1.4 Udbytter (D)'!L10,"") -> -271.094654 | M10: =IFERROR('2.3 Nettokøb (D)'!C11-'1.4 Udbytter (D)'!M10,"") -> -664.4880515 | N10: =IFERROR('2.3 Nettokøb (D)'!D11-'1.4 Udbytter (D)'!N10,"") -> 250.7100305 | O10: =IFERROR('2.3 Nettokøb (D)'!E11-'1.4 Udbytter (D)'!O10,"") -> 552.4691366 | P10: =IFERROR('2.3 Nettokøb (D)'!F11-'1.4 Udbytter (D)'!P10,"") -> -397.2171801 | Q10: =IFERROR('2.3 Nettokøb (D)'!G11-'1.4 Udbytter (D)'!Q10,"") -> -144.0582099 | R10: =IFERROR('2.3 Nettokøb (D)'!H11-'1.4 Udbytter (D)'!R10,"") -> -156.6049151 | S10: =IFERROR('2.3 Nettokøb (D)'!I11-'1.4 Udbytter (D)'!S10,"") -> -701.6250473
A11: Aktier Health Care | B11: ='1.2 Nettokøb (D)'!B12-'1.4 Udbytter (D)'!B11 -> -237.3524686 | C11: ='1.2 Nettokøb (D)'!C12-'1.4 Udbytter (D)'!C11 -> -114.2635627 | D11: ='1.2 Nettokøb (D)'!D12-'1.4 Udbytter (D)'!D11 -> -20.8960562 | E11: ='1.2 Nettokøb (D)'!E12-'1.4 Udbytter (D)'!E11 -> -133.0710496 | F11: ='1.2 Nettokøb (D)'!F12-'1.4 Udbytter (D)'!F11 -> -95.81413029 | G11: ='1.2 Nettokøb (D)'!G12-'1.4 Udbytter (D)'!G11 -> -6.1294 | H11: ='1.2 Nettokøb (D)'!H12-'1.4 Udbytter (D)'!H11 -> -8.499419 | I11: ='1.2 Nettokøb (D)'!I12-'1.4 Udbytter (D)'!I11 -> -46.508144 | K11: Carnegie Wealth Management | L11: =IFERROR('2.3 Nettokøb (D)'!B12-'1.4 Udbytter (D)'!L11,"") -> 0 | M11: =IFERROR('2.3 Nettokøb (D)'!C12-'1.4 Udbytter (D)'!M11,"") -> 0 | N11: =IFERROR('2.3 Nettokøb (D)'!D12-'1.4 Udbytter (D)'!N11,"") -> 48.69363 | O11: =IFERROR('2.3 Nettokøb (D)'!E12-'1.4 Udbytter (D)'!O11,"") -> 156.145475 | P11: =IFERROR('2.3 Nettokøb (D)'!F12-'1.4 Udbytter (D)'!P11,"") -> -5.699387 | Q11: =IFERROR('2.3 Nettokøb (D)'!G12-'1.4 Udbytter (D)'!Q11,"") -> -4.222 | R11: =IFERROR('2.3 Nettokøb (D)'!H12-'1.4 Udbytter (D)'!R11,"") -> -4.196 | S11: =IFERROR('2.3 Nettokøb (D)'!I12-'1.4 Udbytter (D)'!S11,"") -> -53.353
A12: Aktier IT | B12: ='1.2 Nettokøb (D)'!B13-'1.4 Udbytter (D)'!B12 -> -53.96285 | C12: ='1.2 Nettokøb (D)'!C13-'1.4 Udbytter (D)'!C12 -> -15.8189748 | D12: ='1.2 Nettokøb (D)'!D13-'1.4 Udbytter (D)'!D12 -> 386.8057299 | E12: ='1.2 Nettokøb (D)'!E13-'1.4 Udbytter (D)'!E12 -> -15.4928873 | F12: ='1.2 Nettokøb (D)'!F13-'1.4 Udbytter (D)'!F12 -> -372.8438191 | G12: ='1.2 Nettokøb (D)'!G13-'1.4 Udbytter (D)'!G12 -> 136.4604313 | H12: ='1.2 Nettokøb (D)'!H13-'1.4 Udbytter (D)'!H12 -> 62.2477674 | I12: ='1.2 Nettokøb (D)'!I13-'1.4 Udbytter (D)'!I12 -> 277.0356268 | K12: Danske Invest | L12: =IFERROR('2.3 Nettokøb (D)'!B13-'1.4 Udbytter (D)'!L12,"") -> -3118.035561 | M12: =IFERROR('2.3 Nettokøb (D)'!C13-'1.4 Udbytter (D)'!M12,"") -> -19085.74425 | N12: =IFERROR('2.3 Nettokøb (D)'!D13-'1.4 Udbytter (D)'!N12,"") -> -9563.891684 | O12: =IFERROR('2.3 Nettokøb (D)'!E13-'1.4 Udbytter (D)'!O12,"") -> -300.1836236 | P12: =IFERROR('2.3 Nettokøb (D)'!F13-'1.4 Udbytter (D)'!P12,"") -> -19391.58833 | Q12: =IFERROR('2.3 Nettokøb (D)'!G13-'1.4 Udbytter (D)'!Q12,"") -> 656.8948102 | R12: =IFERROR('2.3 Nettokøb (D)'!H13-'1.4 Udbytter (D)'!R12,"") -> 1391.860307 | S12: =IFERROR('2.3 Nettokøb (D)'!I13-'1.4 Udbytter (D)'!S12,"") -> 41.21244141
A13: Aktier Japan | B13: ='1.2 Nettokøb (D)'!B14-'1.4 Udbytter (D)'!B13 -> -662.1452446 | C13: ='1.2 Nettokøb (D)'!C14-'1.4 Udbytter (D)'!C13 -> -2165.661028 | D13: ='1.2 Nettokøb (D)'!D14-'1.4 Udbytter (D)'!D13 -> -1168.205871 | E13: ='1.2 Nettokøb (D)'!E14-'1.4 Udbytter (D)'!E13 -> -518.7878261 | F13: ='1.2 Nettokøb (D)'!F14-'1.4 Udbytter (D)'!F13 -> -246.9058363 | G13: ='1.2 Nettokøb (D)'!G14-'1.4 Udbytter (D)'!G13 -> 75.19050184 | H13: ='1.2 Nettokøb (D)'!H14-'1.4 Udbytter (D)'!H13 -> -9.58273915 | I13: ='1.2 Nettokøb (D)'!I14-'1.4 Udbytter (D)'!I13 -> -93.97418054 | K13: Falcon Invest | L13: =IFERROR('2.3 Nettokøb (D)'!B14-'1.4 Udbytter (D)'!L13,"") -> 77.651288 | M13: =IFERROR('2.3 Nettokøb (D)'!C14-'1.4 Udbytter (D)'!M13,"") -> 6.362021 | N13: =IFERROR('2.3 Nettokøb (D)'!D14-'1.4 Udbytter (D)'!N13,"") -> 45.470066 | O13: =IFERROR('2.3 Nettokøb (D)'!E14-'1.4 Udbytter (D)'!O13,"") -> 0.40395 | P13: =IFERROR('2.3 Nettokøb (D)'!F14-'1.4 Udbytter (D)'!P13,"") -> -99.11605 | Q13: =IFERROR('2.3 Nettokøb (D)'!G14-'1.4 Udbytter (D)'!Q13,"") -> -3.236 | R13: =IFERROR('2.3 Nettokøb (D)'!H14-'1.4 Udbytter (D)'!R13,"") -> -6.6387 | S13: =IFERROR('2.3 Nettokøb (D)'!I14-'1.4 Udbytter (D)'!S13,"") -> 66.108823
A14: Aktier Kina | B14: ='1.2 Nettokøb (D)'!B15-'1.4 Udbytter (D)'!B14 -> -126.764854 | C14: ='1.2 Nettokøb (D)'!C15-'1.4 Udbytter (D)'!C14 -> -183.4171699 | D14: ='1.2 Nettokøb (D)'!D15-'1.4 Udbytter (D)'!D14 -> -27.85157975 | E14: ='1.2 Nettokøb (D)'!E15-'1.4 Udbytter (D)'!E14 -> 4.810608263 | F14: ='1.2 Nettokøb (D)'!F15-'1.4 Udbytter (D)'!F14 -> -247.0625195 | G14: ='1.2 Nettokøb (D)'!G15-'1.4 Udbytter (D)'!G14 -> -3.18324 | H14: ='1.2 Nettokøb (D)'!H15-'1.4 Udbytter (D)'!H14 -> 1.117425 | I14: ='1.2 Nettokøb (D)'!I15-'1.4 Udbytter (D)'!I14 -> -5.396127521 | K14: Formuepleje | L14: =IFERROR('2.3 Nettokøb (D)'!B15-'1.4 Udbytter (D)'!L14,"") -> 801.786694 | M14: =IFERROR('2.3 Nettokøb (D)'!C15-'1.4 Udbytter (D)'!M14,"") -> 4804.672737 | N14: =IFERROR('2.3 Nettokøb (D)'!D15-'1.4 Udbytter (D)'!N14,"") -> 8312.108635 | O14: =IFERROR('2.3 Nettokøb (D)'!E15-'1.4 Udbytter (D)'!O14,"") -> -8073.882855 | P14: =IFERROR('2.3 Nettokøb (D)'!F15-'1.4 Udbytter (D)'!P14,"") -> -9140.915839 | Q14: =IFERROR('2.3 Nettokøb (D)'!G15-'1.4 Udbytter (D)'!Q14,"") -> -393.27849 | R14: =IFERROR('2.3 Nettokøb (D)'!H15-'1.4 Udbytter (D)'!R14,"") -> -42.48947 | S14: =IFERROR('2.3 Nettokøb (D)'!I15-'1.4 Udbytter (D)'!S14,"") -> -5772.634172
A15: Aktier Latinamerika | B15: ='1.2 Nettokøb (D)'!B16-'1.4 Udbytter (D)'!B15 -> -120.5206652 | C15: ='1.2 Nettokøb (D)'!C16-'1.4 Udbytter (D)'!C15 -> -204.8270322 | D15: ='1.2 Nettokøb (D)'!D16-'1.4 Udbytter (D)'!D15 -> 6.85504914 | E15: ='1.2 Nettokøb (D)'!E16-'1.4 Udbytter (D)'!E15 -> -12.07775073 | F15: ='1.2 Nettokøb (D)'!F16-'1.4 Udbytter (D)'!F15 -> 0 | G15: ='1.2 Nettokøb (D)'!G16-'1.4 Udbytter (D)'!G15 -> 0 | H15: ='1.2 Nettokøb (D)'!H16-'1.4 Udbytter (D)'!H15 -> 0 | I15: ='1.2 Nettokøb (D)'!I16-'1.4 Udbytter (D)'!I15 -> 0 | K15: Fundamental Invest | L15: =IFERROR('2.3 Nettokøb (D)'!B16-'1.4 Udbytter (D)'!L15,"") -> -523.570352 | M15: =IFERROR('2.3 Nettokøb (D)'!C16-'1.4 Udbytter (D)'!M15,"") -> -462.59792 | N15: =IFERROR('2.3 Nettokøb (D)'!D16-'1.4 Udbytter (D)'!N15,"") -> -241.169143 | O15: =IFERROR('2.3 Nettokøb (D)'!E16-'1.4 Udbytter (D)'!O15,"") -> -136.102974 | P15: =IFERROR('2.3 Nettokøb (D)'!F16-'1.4 Udbytter (D)'!P15,"") -> -215.928175 | Q15: =IFERROR('2.3 Nettokøb (D)'!G16-'1.4 Udbytter (D)'!Q15,"") -> -16.142025 | R15: =IFERROR('2.3 Nettokøb (D)'!H16-'1.4 Udbytter (D)'!R15,"") -> -18.6917 | S15: =IFERROR('2.3 Nettokøb (D)'!I16-'1.4 Udbytter (D)'!S15,"") -> -171.31826
A16: Aktier Nordamerika | B16: ='1.2 Nettokøb (D)'!B17-'1.4 Udbytter (D)'!B16 -> -1014.051886 | C16: ='1.2 Nettokøb (D)'!C17-'1.4 Udbytter (D)'!C16 -> -144.4430128 | D16: ='1.2 Nettokøb (D)'!D17-'1.4 Udbytter (D)'!D16 -> -1923.36001 | E16: ='1.2 Nettokøb (D)'!E17-'1.4 Udbytter (D)'!E16 -> -5435.85269 | F16: ='1.2 Nettokøb (D)'!F17-'1.4 Udbytter (D)'!F16 -> -3207.215835 | G16: ='1.2 Nettokøb (D)'!G17-'1.4 Udbytter (D)'!G16 -> -124.4993915 | H16: ='1.2 Nettokøb (D)'!H17-'1.4 Udbytter (D)'!H16 -> -316.4511975 | I16: ='1.2 Nettokøb (D)'!I17-'1.4 Udbytter (D)'!I16 -> -7208.848629 | K16: Great Dane | L16: =IFERROR('2.3 Nettokøb (D)'!B17-'1.4 Udbytter (D)'!L16,"") -> 0.120756 | M16: =IFERROR('2.3 Nettokøb (D)'!C17-'1.4 Udbytter (D)'!M16,"") -> -33.09739 | N16: =IFERROR('2.3 Nettokøb (D)'!D17-'1.4 Udbytter (D)'!N16,"") -> -101.1867931 | O16: =IFERROR('2.3 Nettokøb (D)'!E17-'1.4 Udbytter (D)'!O16,"") -> 158.770096 | P16: =IFERROR('2.3 Nettokøb (D)'!F17-'1.4 Udbytter (D)'!P16,"") -> 426.851612 | Q16: =IFERROR('2.3 Nettokøb (D)'!G17-'1.4 Udbytter (D)'!Q16,"") -> 2.924128 | R16: =IFERROR('2.3 Nettokøb (D)'!H17-'1.4 Udbytter (D)'!R16,"") -> 20.956432 | S16: =IFERROR('2.3 Nettokøb (D)'!I17-'1.4 Udbytter (D)'!S16,"") -> -34.15334
A17: Aktier Norden | B17: ='1.2 Nettokøb (D)'!B18-'1.4 Udbytter (D)'!B17 -> -187.3260639 | C17: ='1.2 Nettokøb (D)'!C18-'1.4 Udbytter (D)'!C17 -> -118.069847 | D17: ='1.2 Nettokøb (D)'!D18-'1.4 Udbytter (D)'!D17 -> 278.5397808 | E17: ='1.2 Nettokøb (D)'!E18-'1.4 Udbytter (D)'!E17 -> 805.8914663 | F17: ='1.2 Nettokøb (D)'!F18-'1.4 Udbytter (D)'!F17 -> 16.9637652 | G17: ='1.2 Nettokøb (D)'!G18-'1.4 Udbytter (D)'!G17 -> -60.4578644 | H17: ='1.2 Nettokøb (D)'!H18-'1.4 Udbytter (D)'!H17 -> -25.37346555 | I17: ='1.2 Nettokøb (D)'!I18-'1.4 Udbytter (D)'!I17 -> -427.7738434 | K17: Handelsinvest | L17: =IFERROR('2.3 Nettokøb (D)'!B18-'1.4 Udbytter (D)'!L17,"") -> 392.864868 | M17: =IFERROR('2.3 Nettokøb (D)'!C18-'1.4 Udbytter (D)'!M17,"") -> -426.545282 | N17: =IFERROR('2.3 Nettokøb (D)'!D18-'1.4 Udbytter (D)'!N17,"") -> 8.682735 | O17: =IFERROR('2.3 Nettokøb (D)'!E18-'1.4 Udbytter (D)'!O17,"") -> 2896.743819 | P17: =IFERROR('2.3 Nettokøb (D)'!F18-'1.4 Udbytter (D)'!P17,"") -> -932.740762 | Q17: =IFERROR('2.3 Nettokøb (D)'!G18-'1.4 Udbytter (D)'!Q17,"") -> -1526.118624 | R17: =IFERROR('2.3 Nettokøb (D)'!H18-'1.4 Udbytter (D)'!R17,"") -> -704.849078 | S17: =IFERROR('2.3 Nettokøb (D)'!I18-'1.4 Udbytter (D)'!S17,"") -> -10824.02361
A18: Aktier Tyskland | B18: ='1.2 Nettokøb (D)'!B19-'1.4 Udbytter (D)'!B18 -> -287.7354151 | C18: ='1.2 Nettokøb (D)'!C19-'1.4 Udbytter (D)'!C18 -> -982.9514192 | D18: ='1.2 Nettokøb (D)'!D19-'1.4 Udbytter (D)'!D18 -> -74.30739671 | E18: ='1.2 Nettokøb (D)'!E19-'1.4 Udbytter (D)'!E18 -> -47.27964689 | F18: ='1.2 Nettokøb (D)'!F19-'1.4 Udbytter (D)'!F18 -> -55.84315191 | G18: ='1.2 Nettokøb (D)'!G19-'1.4 Udbytter (D)'!G18 -> -4.75993231 | H18: ='1.2 Nettokøb (D)'!H19-'1.4 Udbytter (D)'!H18 -> -4.2587884 | I18: ='1.2 Nettokøb (D)'!I19-'1.4 Udbytter (D)'!I18 -> -36.44426105 | K18: HP Hedge | L18: =IFERROR('2.3 Nettokøb (D)'!B19-'1.4 Udbytter (D)'!L18,"") -> 0 | M18: =IFERROR('2.3 Nettokøb (D)'!C19-'1.4 Udbytter (D)'!M18,"") -> 0 | N18: =IFERROR('2.3 Nettokøb (D)'!D19-'1.4 Udbytter (D)'!N18,"") -> 0 | O18: =IFERROR('2.3 Nettokøb (D)'!E19-'1.4 Udbytter (D)'!O18,"") -> 0 | P18: =IFERROR('2.3 Nettokøb (D)'!F19-'1.4 Udbytter (D)'!P18,"") -> 0 | Q18: =IFERROR('2.3 Nettokøb (D)'!G19-'1.4 Udbytter (D)'!Q18,"") -> 0 | R18: =IFERROR('2.3 Nettokøb (D)'!H19-'1.4 Udbytter (D)'!R18,"") -> -6.482223 | S18: =IFERROR('2.3 Nettokøb (D)'!I19-'1.4 Udbytter (D)'!S18,"") -> -40.240711
A19: Aktier Østeuropa | B19: ='1.2 Nettokøb (D)'!B20-'1.4 Udbytter (D)'!B19 -> -182.2671937 | C19: ='1.2 Nettokøb (D)'!C20-'1.4 Udbytter (D)'!C19 -> -142.417466 | D19: ='1.2 Nettokøb (D)'!D20-'1.4 Udbytter (D)'!D19 -> -55.03901014 | E19: ='1.2 Nettokøb (D)'!E20-'1.4 Udbytter (D)'!E19 -> -16.0420364 | F19: ='1.2 Nettokøb (D)'!F20-'1.4 Udbytter (D)'!F19 -> -80.32796681 | G19: ='1.2 Nettokøb (D)'!G20-'1.4 Udbytter (D)'!G19 -> 0 | H19: ='1.2 Nettokøb (D)'!H20-'1.4 Udbytter (D)'!H19 -> 0 | I19: ='1.2 Nettokøb (D)'!I20-'1.4 Udbytter (D)'!I19 -> 0 | K19: HP Invest | L19: =IFERROR('2.3 Nettokøb (D)'!B20-'1.4 Udbytter (D)'!L19,"") -> 387.5015457 | M19: =IFERROR('2.3 Nettokøb (D)'!C20-'1.4 Udbytter (D)'!M19,"") -> -364.2502478 | N19: =IFERROR('2.3 Nettokøb (D)'!D20-'1.4 Udbytter (D)'!N19,"") -> -443.627658 | O19: =IFERROR('2.3 Nettokøb (D)'!E20-'1.4 Udbytter (D)'!O19,"") -> -315.2306352 | P19: =IFERROR('2.3 Nettokøb (D)'!F20-'1.4 Udbytter (D)'!P19,"") -> 215.7171738 | Q19: =IFERROR('2.3 Nettokøb (D)'!G20-'1.4 Udbytter (D)'!Q19,"") -> 0 | R19: =IFERROR('2.3 Nettokøb (D)'!H20-'1.4 Udbytter (D)'!R19,"") -> 0 | S19: =IFERROR('2.3 Nettokøb (D)'!I20-'1.4 Udbytter (D)'!S19,"") -> 0
A20: Kapitalforeninger Aktier | B20: ='1.2 Nettokøb (D)'!B21-'1.4 Udbytter (D)'!B20 -> 2146.284684 | C20: ='1.2 Nettokøb (D)'!C21-'1.4 Udbytter (D)'!C20 -> 3821.105604 | D20: ='1.2 Nettokøb (D)'!D21-'1.4 Udbytter (D)'!D20 -> 544.2677819 | E20: ='1.2 Nettokøb (D)'!E21-'1.4 Udbytter (D)'!E20 -> 1469.691894 | F20: ='1.2 Nettokøb (D)'!F21-'1.4 Udbytter (D)'!F20 -> -201.7183798 | G20: ='1.2 Nettokøb (D)'!G21-'1.4 Udbytter (D)'!G20 -> -75.52513227 | H20: ='1.2 Nettokøb (D)'!H21-'1.4 Udbytter (D)'!H20 -> -185.843819 | I20: ='1.2 Nettokøb (D)'!I21-'1.4 Udbytter (D)'!I20 -> -936.4768258 | K20: IA Invest | L20: =IFERROR('2.3 Nettokøb (D)'!B21-'1.4 Udbytter (D)'!L20,"") -> 0 | M20: =IFERROR('2.3 Nettokøb (D)'!C21-'1.4 Udbytter (D)'!M20,"") -> 0 | N20: =IFERROR('2.3 Nettokøb (D)'!D21-'1.4 Udbytter (D)'!N20,"") -> 62.90423 | O20: =IFERROR('2.3 Nettokøb (D)'!E21-'1.4 Udbytter (D)'!O20,"") -> -20.708633 | P20: =IFERROR('2.3 Nettokøb (D)'!F21-'1.4 Udbytter (D)'!P20,"") -> -80.757576 | Q20: =IFERROR('2.3 Nettokøb (D)'!G21-'1.4 Udbytter (D)'!Q20,"") -> 0 | R20: =IFERROR('2.3 Nettokøb (D)'!H21-'1.4 Udbytter (D)'!R20,"") -> 1.83264 | S20: =IFERROR('2.3 Nettokøb (D)'!I21-'1.4 Udbytter (D)'!S20,"") -> -4.682311
A21: Udenlandske aktier i alt | B21: ='1.2 Nettokøb (D)'!B22-'1.4 Udbytter (D)'!B21 -> 958.3877455 | C21: ='1.2 Nettokøb (D)'!C22-'1.4 Udbytter (D)'!C21 -> -1388.746541 | D21: ='1.2 Nettokøb (D)'!D22-'1.4 Udbytter (D)'!D21 -> 9018.887753 | E21: ='1.2 Nettokøb (D)'!E22-'1.4 Udbytter (D)'!E21 -> 20005.34338 | F21: ='1.2 Nettokøb (D)'!F22-'1.4 Udbytter (D)'!F21 -> -32512.28686 | G21: ='1.2 Nettokøb (D)'!G22-'1.4 Udbytter (D)'!G21 -> 2245.922282 | H21: ='1.2 Nettokøb (D)'!H22-'1.4 Udbytter (D)'!H21 -> 1345.791454 | I21: ='1.2 Nettokøb (D)'!I22-'1.4 Udbytter (D)'!I21 -> -5194.078267 | K21: Investeringsforeningen Gudme Raaschou | L21: =IFERROR('2.3 Nettokøb (D)'!B22-'1.4 Udbytter (D)'!L21,"") -> 102.077981 | M21: =IFERROR('2.3 Nettokøb (D)'!C22-'1.4 Udbytter (D)'!M21,"") -> -1936.189459 | N21: =IFERROR('2.3 Nettokøb (D)'!D22-'1.4 Udbytter (D)'!N21,"") -> 286.294268 | O21: =IFERROR('2.3 Nettokøb (D)'!E22-'1.4 Udbytter (D)'!O21,"") -> 196.811824 | P21: =IFERROR('2.3 Nettokøb (D)'!F22-'1.4 Udbytter (D)'!P21,"") -> -84.25927 | Q21: =IFERROR('2.3 Nettokøb (D)'!G22-'1.4 Udbytter (D)'!Q21,"") -> 10.23823 | R21: =IFERROR('2.3 Nettokøb (D)'!H22-'1.4 Udbytter (D)'!R21,"") -> -12.83917 | S21: =IFERROR('2.3 Nettokøb (D)'!I22-'1.4 Udbytter (D)'!S21,"") -> 54.158081
A22: Obligationer Korte Danske | B22: ='1.2 Nettokøb (D)'!B23-'1.4 Udbytter (D)'!B22 -> 3774.448369 | C22: ='1.2 Nettokøb (D)'!C23-'1.4 Udbytter (D)'!C22 -> -4608.026646 | D22: ='1.2 Nettokøb (D)'!D23-'1.4 Udbytter (D)'!D22 -> 727.6739061 | E22: ='1.2 Nettokøb (D)'!E23-'1.4 Udbytter (D)'!E22 -> 1505.968113 | F22: ='1.2 Nettokøb (D)'!F23-'1.4 Udbytter (D)'!F22 -> 3248.502794 | G22: ='1.2 Nettokøb (D)'!G23-'1.4 Udbytter (D)'!G22 -> 319.9982713 | H22: ='1.2 Nettokøb (D)'!H23-'1.4 Udbytter (D)'!H22 -> -254.3831158 | I22: ='1.2 Nettokøb (D)'!I23-'1.4 Udbytter (D)'!I22 -> 2794.953746 | K22: Investin | L22: =IFERROR('2.3 Nettokøb (D)'!B23-'1.4 Udbytter (D)'!L22,"") -> 504.9108429 | M22: =IFERROR('2.3 Nettokøb (D)'!C23-'1.4 Udbytter (D)'!M22,"") -> -750.7004425 | N22: =IFERROR('2.3 Nettokøb (D)'!D23-'1.4 Udbytter (D)'!N22,"") -> 1359.66356 | O22: =IFERROR('2.3 Nettokøb (D)'!E23-'1.4 Udbytter (D)'!O22,"") -> 1779.458185 | P22: =IFERROR('2.3 Nettokøb (D)'!F23-'1.4 Udbytter (D)'!P22,"") -> -271.9044292 | Q22: =IFERROR('2.3 Nettokøb (D)'!G23-'1.4 Udbytter (D)'!Q22,"") -> -12.45584589 | R22: =IFERROR('2.3 Nettokøb (D)'!H23-'1.4 Udbytter (D)'!R22,"") -> -20.4120114 | S22: =IFERROR('2.3 Nettokøb (D)'!I23-'1.4 Udbytter (D)'!S22,"") -> -210.5012805
A23: Obligationer Lange Danske | B23: ='1.2 Nettokøb (D)'!B24-'1.4 Udbytter (D)'!B23 -> 1030.559309 | C23: ='1.2 Nettokøb (D)'!C24-'1.4 Udbytter (D)'!C23 -> -7.90921281 | D23: ='1.2 Nettokøb (D)'!D24-'1.4 Udbytter (D)'!D23 -> -718.5453842 | E23: ='1.2 Nettokøb (D)'!E24-'1.4 Udbytter (D)'!E23 -> 4944.463265 | F23: ='1.2 Nettokøb (D)'!F24-'1.4 Udbytter (D)'!F23 -> 3898.050816 | G23: ='1.2 Nettokøb (D)'!G24-'1.4 Udbytter (D)'!G23 -> 16.33011663 | H23: ='1.2 Nettokøb (D)'!H24-'1.4 Udbytter (D)'!H23 -> -47.71038483 | I23: ='1.2 Nettokøb (D)'!I24-'1.4 Udbytter (D)'!I23 -> 4827.722695 | K23: IR Invest | L23: =IFERROR('2.3 Nettokøb (D)'!B24-'1.4 Udbytter (D)'!L23,"") -> -14.61189 | M23: =IFERROR('2.3 Nettokøb (D)'!C24-'1.4 Udbytter (D)'!M23,"") -> 22.42224 | N23: =IFERROR('2.3 Nettokøb (D)'!D24-'1.4 Udbytter (D)'!N23,"") -> 62.90423 | O23: =IFERROR('2.3 Nettokøb (D)'!E24-'1.4 Udbytter (D)'!O23,"") ->  | P23: =IFERROR('2.3 Nettokøb (D)'!F24-'1.4 Udbytter (D)'!P23,"") ->  | Q23: =IFERROR('2.3 Nettokøb (D)'!G24-'1.4 Udbytter (D)'!Q23,"") -> 0 | R23: =IFERROR('2.3 Nettokøb (D)'!H24-'1.4 Udbytter (D)'!R23,"") -> 0 | S23: =IFERROR('2.3 Nettokøb (D)'!I24-'1.4 Udbytter (D)'!S23,"") -> 0
A24: Obligationer Øvrige Danske | B24: ='1.2 Nettokøb (D)'!B25-'1.4 Udbytter (D)'!B24 -> -8618.555781 | C24: ='1.2 Nettokøb (D)'!C25-'1.4 Udbytter (D)'!C24 -> 7485.558418 | D24: ='1.2 Nettokøb (D)'!D25-'1.4 Udbytter (D)'!D24 -> -2813.42309 | E24: ='1.2 Nettokøb (D)'!E25-'1.4 Udbytter (D)'!E24 -> 432.7734155 | F24: ='1.2 Nettokøb (D)'!F25-'1.4 Udbytter (D)'!F24 -> 6939.467592 | G24: ='1.2 Nettokøb (D)'!G25-'1.4 Udbytter (D)'!G24 -> 943.253608 | H24: ='1.2 Nettokøb (D)'!H25-'1.4 Udbytter (D)'!H24 -> -964.7073177 | I24: ='1.2 Nettokøb (D)'!I25-'1.4 Udbytter (D)'!I24 -> -6840.255295 | K24: Jyske Invest | L24: =IFERROR('2.3 Nettokøb (D)'!B25-'1.4 Udbytter (D)'!L24,"") -> -1160.291264 | M24: =IFERROR('2.3 Nettokøb (D)'!C25-'1.4 Udbytter (D)'!M24,"") -> 9194.500754 | N24: =IFERROR('2.3 Nettokøb (D)'!D25-'1.4 Udbytter (D)'!N24,"") -> 2066.762439 | O24: =IFERROR('2.3 Nettokøb (D)'!E25-'1.4 Udbytter (D)'!O24,"") -> 16835.49631 | P24: =IFERROR('2.3 Nettokøb (D)'!F25-'1.4 Udbytter (D)'!P24,"") -> 1853.672314 | Q24: =IFERROR('2.3 Nettokøb (D)'!G25-'1.4 Udbytter (D)'!Q24,"") -> 1505.845327 | R24: =IFERROR('2.3 Nettokøb (D)'!H25-'1.4 Udbytter (D)'!R24,"") -> 435.6164819 | S24: =IFERROR('2.3 Nettokøb (D)'!I25-'1.4 Udbytter (D)'!S24,"") -> 15777.40518
A25: Obligationer Danske Indeksobligationer | B25: ='1.2 Nettokøb (D)'!B26-'1.4 Udbytter (D)'!B25 -> -5.391396 | C25: ='1.2 Nettokøb (D)'!C26-'1.4 Udbytter (D)'!C25 -> -4.4420425 | D25: ='1.2 Nettokøb (D)'!D26-'1.4 Udbytter (D)'!D25 -> -5.7572882 | E25: ='1.2 Nettokøb (D)'!E26-'1.4 Udbytter (D)'!E25 -> -12.1252279 | F25: ='1.2 Nettokøb (D)'!F26-'1.4 Udbytter (D)'!F25 -> -7.4204688 | G25: ='1.2 Nettokøb (D)'!G26-'1.4 Udbytter (D)'!G25 -> -1.9294 | H25: ='1.2 Nettokøb (D)'!H26-'1.4 Udbytter (D)'!H25 -> -0.51132 | I25: ='1.2 Nettokøb (D)'!I26-'1.4 Udbytter (D)'!I25 -> -10.4808139 | K25: Kapitalforeningen Blue Strait Capital | L25: =IFERROR('2.3 Nettokøb (D)'!B26-'1.4 Udbytter (D)'!L25,"") -> 0 | M25: =IFERROR('2.3 Nettokøb (D)'!C26-'1.4 Udbytter (D)'!M25,"") -> 0 | N25: =IFERROR('2.3 Nettokøb (D)'!D26-'1.4 Udbytter (D)'!N25,"") -> 34.38106893 | O25: =IFERROR('2.3 Nettokøb (D)'!E26-'1.4 Udbytter (D)'!O25,"") -> 34.900732 | P25: =IFERROR('2.3 Nettokøb (D)'!F26-'1.4 Udbytter (D)'!P25,"") -> 125.8851349 | Q25: =IFERROR('2.3 Nettokøb (D)'!G26-'1.4 Udbytter (D)'!Q25,"") -> 5.175 | R25: =IFERROR('2.3 Nettokøb (D)'!H26-'1.4 Udbytter (D)'!R25,"") -> -21.01 | S25: =IFERROR('2.3 Nettokøb (D)'!I26-'1.4 Udbytter (D)'!S25,"") -> -29.12330982
A26: Danske obligationer i alt | B26: ='1.2 Nettokøb (D)'!B27-'1.4 Udbytter (D)'!B26 -> -3818.939499 | C26: ='1.2 Nettokøb (D)'!C27-'1.4 Udbytter (D)'!C26 -> 2865.180517 | D26: ='1.2 Nettokøb (D)'!D27-'1.4 Udbytter (D)'!D26 -> -2810.051856 | E26: ='1.2 Nettokøb (D)'!E27-'1.4 Udbytter (D)'!E26 -> 6871.079566 | F26: ='1.2 Nettokøb (D)'!F27-'1.4 Udbytter (D)'!F26 -> 14078.60073 | G26: ='1.2 Nettokøb (D)'!G27-'1.4 Udbytter (D)'!G26 -> 1277.652596 | H26: ='1.2 Nettokøb (D)'!H27-'1.4 Udbytter (D)'!H26 -> -1267.312138 | I26: ='1.2 Nettokøb (D)'!I27-'1.4 Udbytter (D)'!I26 -> 771.9403315 | K26: Kapitalforeningen Investering & Tryghed | L26: =IFERROR('2.3 Nettokøb (D)'!B27-'1.4 Udbytter (D)'!L26,"") -> 107.7105243 | M26: =IFERROR('2.3 Nettokøb (D)'!C27-'1.4 Udbytter (D)'!M26,"") -> 614.5068331 | N26: =IFERROR('2.3 Nettokøb (D)'!D27-'1.4 Udbytter (D)'!N26,"") -> 852.9159024 | O26: =IFERROR('2.3 Nettokøb (D)'!E27-'1.4 Udbytter (D)'!O26,"") -> 1703.430057 | P26: =IFERROR('2.3 Nettokøb (D)'!F27-'1.4 Udbytter (D)'!P26,"") -> 8.33543283 | Q26: =IFERROR('2.3 Nettokøb (D)'!G27-'1.4 Udbytter (D)'!Q26,"") -> -139.4325669 | R26: =IFERROR('2.3 Nettokøb (D)'!H27-'1.4 Udbytter (D)'!R26,"") -> -197.8699606 | S26: =IFERROR('2.3 Nettokøb (D)'!I27-'1.4 Udbytter (D)'!S26,"") -> -1469.602159
A27: Obligationer Investment Grade | B27: ='1.2 Nettokøb (D)'!B28-'1.4 Udbytter (D)'!B27 -> 2959.595008 | C27: ='1.2 Nettokøb (D)'!C28-'1.4 Udbytter (D)'!C27 -> 2251.487658 | D27: ='1.2 Nettokøb (D)'!D28-'1.4 Udbytter (D)'!D27 -> 6401.109171 | E27: ='1.2 Nettokøb (D)'!E28-'1.4 Udbytter (D)'!E27 -> 2582.661138 | F27: ='1.2 Nettokøb (D)'!F28-'1.4 Udbytter (D)'!F27 -> 774.6674408 | G27: ='1.2 Nettokøb (D)'!G28-'1.4 Udbytter (D)'!G27 -> -183.540212 | H27: ='1.2 Nettokøb (D)'!H28-'1.4 Udbytter (D)'!H27 -> 75.82076245 | I27: ='1.2 Nettokøb (D)'!I28-'1.4 Udbytter (D)'!I27 -> 696.163244 | K27: Lægernes Invest | L27: =IFERROR('2.3 Nettokøb (D)'!B28-'1.4 Udbytter (D)'!L27,"") -> -3748.951118 | M27: =IFERROR('2.3 Nettokøb (D)'!C28-'1.4 Udbytter (D)'!M27,"") -> 6548.420512 | N27: =IFERROR('2.3 Nettokøb (D)'!D28-'1.4 Udbytter (D)'!N27,"") -> 8984.36012 | O27: =IFERROR('2.3 Nettokøb (D)'!E28-'1.4 Udbytter (D)'!O27,"") -> -9657.777891 | P27: =IFERROR('2.3 Nettokøb (D)'!F28-'1.4 Udbytter (D)'!P27,"") -> -2388.955994 | Q27: =IFERROR('2.3 Nettokøb (D)'!G28-'1.4 Udbytter (D)'!Q27,"") -> -1612.202027 | R27: =IFERROR('2.3 Nettokøb (D)'!H28-'1.4 Udbytter (D)'!R27,"") -> 2468.339134 | S27: =IFERROR('2.3 Nettokøb (D)'!I28-'1.4 Udbytter (D)'!S27,"") -> -829.9791882
A28: Obligationer Non-Investment Grade | B28: ='1.2 Nettokøb (D)'!B29-'1.4 Udbytter (D)'!B28 -> -7208.543714 | C28: ='1.2 Nettokøb (D)'!C29-'1.4 Udbytter (D)'!C28 -> 1863.13578 | D28: ='1.2 Nettokøb (D)'!D29-'1.4 Udbytter (D)'!D28 -> 7235.683568 | E28: ='1.2 Nettokøb (D)'!E29-'1.4 Udbytter (D)'!E28 -> -2787.239463 | F28: ='1.2 Nettokøb (D)'!F29-'1.4 Udbytter (D)'!F28 -> -6454.718878 | G28: ='1.2 Nettokøb (D)'!G29-'1.4 Udbytter (D)'!G28 -> -890.7379449 | H28: ='1.2 Nettokøb (D)'!H29-'1.4 Udbytter (D)'!H28 -> 301.4775637 | I28: ='1.2 Nettokøb (D)'!I29-'1.4 Udbytter (D)'!I28 -> -961.964708 | K28: Lån & Spar Invest | L28: =IFERROR('2.3 Nettokøb (D)'!B29-'1.4 Udbytter (D)'!L28,"") -> 102.503487 | M28: =IFERROR('2.3 Nettokøb (D)'!C29-'1.4 Udbytter (D)'!M28,"") -> 228.420171 | N28: =IFERROR('2.3 Nettokøb (D)'!D29-'1.4 Udbytter (D)'!N28,"") -> 426.0073195 | O28: =IFERROR('2.3 Nettokøb (D)'!E29-'1.4 Udbytter (D)'!O28,"") -> 1035.709466 | P28: =IFERROR('2.3 Nettokøb (D)'!F29-'1.4 Udbytter (D)'!P28,"") -> -196.992983 | Q28: =IFERROR('2.3 Nettokøb (D)'!G29-'1.4 Udbytter (D)'!Q28,"") -> -4.68297 | R28: =IFERROR('2.3 Nettokøb (D)'!H29-'1.4 Udbytter (D)'!R28,"") -> 140.30374 | S28: =IFERROR('2.3 Nettokøb (D)'!I29-'1.4 Udbytter (D)'!S28,"") -> -379.387511
A29: Obligationer Emerging Markets | B29: ='1.2 Nettokøb (D)'!B30-'1.4 Udbytter (D)'!B29 -> 7023.021612 | C29: ='1.2 Nettokøb (D)'!C30-'1.4 Udbytter (D)'!C29 -> -1338.343284 | D29: ='1.2 Nettokøb (D)'!D30-'1.4 Udbytter (D)'!D29 -> 857.9164626 | E29: ='1.2 Nettokøb (D)'!E30-'1.4 Udbytter (D)'!E29 -> 1009.218507 | F29: ='1.2 Nettokøb (D)'!F30-'1.4 Udbytter (D)'!F29 -> -9992.386291 | G29: ='1.2 Nettokøb (D)'!G30-'1.4 Udbytter (D)'!G29 -> 753.0150767 | H29: ='1.2 Nettokøb (D)'!H30-'1.4 Udbytter (D)'!H29 -> -711.5010869 | I29: ='1.2 Nettokøb (D)'!I30-'1.4 Udbytter (D)'!I29 -> -2843.72883 | K29: Maj Invest | L29: =IFERROR('2.3 Nettokøb (D)'!B30-'1.4 Udbytter (D)'!L29,"") -> -201.0314 | M29: =IFERROR('2.3 Nettokøb (D)'!C30-'1.4 Udbytter (D)'!M29,"") -> 21.034885 | N29: =IFERROR('2.3 Nettokøb (D)'!D30-'1.4 Udbytter (D)'!N29,"") -> 125.742432 | O29: =IFERROR('2.3 Nettokøb (D)'!E30-'1.4 Udbytter (D)'!O29,"") -> -2324.012902 | P29: =IFERROR('2.3 Nettokøb (D)'!F30-'1.4 Udbytter (D)'!P29,"") -> -3182.732132 | Q29: =IFERROR('2.3 Nettokøb (D)'!G30-'1.4 Udbytter (D)'!Q29,"") -> -13.611108 | R29: =IFERROR('2.3 Nettokøb (D)'!H30-'1.4 Udbytter (D)'!R29,"") -> -156.503304 | S29: =IFERROR('2.3 Nettokøb (D)'!I30-'1.4 Udbytter (D)'!S29,"") -> -2265.322479
A30: Obligationer Øvrige | B30: ='1.2 Nettokøb (D)'!B31-'1.4 Udbytter (D)'!B30 -> -4347.420697 | C30: ='1.2 Nettokøb (D)'!C31-'1.4 Udbytter (D)'!C30 -> 592.157385 | D30: ='1.2 Nettokøb (D)'!D31-'1.4 Udbytter (D)'!D30 -> 2070.930908 | E30: ='1.2 Nettokøb (D)'!E31-'1.4 Udbytter (D)'!E30 -> 6310.424036 | F30: ='1.2 Nettokøb (D)'!F31-'1.4 Udbytter (D)'!F30 -> -657.4443158 | G30: ='1.2 Nettokøb (D)'!G31-'1.4 Udbytter (D)'!G30 -> -695.1109928 | H30: ='1.2 Nettokøb (D)'!H31-'1.4 Udbytter (D)'!H30 -> 570.0111248 | I30: ='1.2 Nettokøb (D)'!I31-'1.4 Udbytter (D)'!I30 -> -1124.553103 | K30: MS Invest | L30: =IFERROR('2.3 Nettokøb (D)'!B31-'1.4 Udbytter (D)'!L30,"") -> 77.228709 | M30: =IFERROR('2.3 Nettokøb (D)'!C31-'1.4 Udbytter (D)'!M30,"") -> -112.552447 | N30: =IFERROR('2.3 Nettokøb (D)'!D31-'1.4 Udbytter (D)'!N30,"") -> -81.010572 | O30: =IFERROR('2.3 Nettokøb (D)'!E31-'1.4 Udbytter (D)'!O30,"") -> -57.312491 | P30: =IFERROR('2.3 Nettokøb (D)'!F31-'1.4 Udbytter (D)'!P30,"") -> -96.068572 | Q30: =IFERROR('2.3 Nettokøb (D)'!G31-'1.4 Udbytter (D)'!Q30,"") -> 0 | R30: =IFERROR('2.3 Nettokøb (D)'!H31-'1.4 Udbytter (D)'!R30,"") -> 0 | S30: =IFERROR('2.3 Nettokøb (D)'!I31-'1.4 Udbytter (D)'!S30,"") -> 0
A31: Obligationer Udenlandske Indeksobligationer | B31: ='1.2 Nettokøb (D)'!B32-'1.4 Udbytter (D)'!B31 -> -1050.612557 | C31: ='1.2 Nettokøb (D)'!C32-'1.4 Udbytter (D)'!C31 -> -1067.346563 | D31: ='1.2 Nettokøb (D)'!D32-'1.4 Udbytter (D)'!D31 -> 6.34701181 | E31: ='1.2 Nettokøb (D)'!E32-'1.4 Udbytter (D)'!E31 -> 4685.668752 | F31: ='1.2 Nettokøb (D)'!F32-'1.4 Udbytter (D)'!F31 -> -697.1851585 | G31: ='1.2 Nettokøb (D)'!G32-'1.4 Udbytter (D)'!G31 -> -26.14578776 | H31: ='1.2 Nettokøb (D)'!H32-'1.4 Udbytter (D)'!H31 -> 1764.412342 | I31: ='1.2 Nettokøb (D)'!I32-'1.4 Udbytter (D)'!I31 -> 2732.568313 | K31: Nielsen Capital Management | L31: =IFERROR('2.3 Nettokøb (D)'!B32-'1.4 Udbytter (D)'!L31,"") -> -39.49440196 | M31: =IFERROR('2.3 Nettokøb (D)'!C32-'1.4 Udbytter (D)'!M31,"") -> -127.5260759 | N31: =IFERROR('2.3 Nettokøb (D)'!D32-'1.4 Udbytter (D)'!N31,"") -> 0 | O31: =IFERROR('2.3 Nettokøb (D)'!E32-'1.4 Udbytter (D)'!O31,"") ->  | P31: =IFERROR('2.3 Nettokøb (D)'!F32-'1.4 Udbytter (D)'!P31,"") ->  | Q31: =IFERROR('2.3 Nettokøb (D)'!G32-'1.4 Udbytter (D)'!Q31,"") -> 0 | R31: =IFERROR('2.3 Nettokøb (D)'!H32-'1.4 Udbytter (D)'!R31,"") -> 0 | S31: =IFERROR('2.3 Nettokøb (D)'!I32-'1.4 Udbytter (D)'!S31,"") -> 0
A32: Kapitalforeninger Obligationer Udenlandske | B32: ='1.2 Nettokøb (D)'!B33-'1.4 Udbytter (D)'!B32 -> -1815.34899 | C32: ='1.2 Nettokøb (D)'!C33-'1.4 Udbytter (D)'!C32 -> 1216.02822 | D32: ='1.2 Nettokøb (D)'!D33-'1.4 Udbytter (D)'!D32 -> 751.1810964 | E32: ='1.2 Nettokøb (D)'!E33-'1.4 Udbytter (D)'!E32 -> 1737.930479 | F32: ='1.2 Nettokøb (D)'!F33-'1.4 Udbytter (D)'!F32 -> -562.7588305 | G32: ='1.2 Nettokøb (D)'!G33-'1.4 Udbytter (D)'!G32 -> -2.3741974 | H32: ='1.2 Nettokøb (D)'!H33-'1.4 Udbytter (D)'!H32 -> -90.84079931 | I32: ='1.2 Nettokøb (D)'!I33-'1.4 Udbytter (D)'!I32 -> 456.1670162 | K32: Nordea Invest | L32: =IFERROR('2.3 Nettokøb (D)'!B33-'1.4 Udbytter (D)'!L32,"") -> -1.2186484 | M32: =IFERROR('2.3 Nettokøb (D)'!C33-'1.4 Udbytter (D)'!M32,"") -> 297.3168852 | N32: =IFERROR('2.3 Nettokøb (D)'!D33-'1.4 Udbytter (D)'!N32,"") -> 10735.32348 | O32: =IFERROR('2.3 Nettokøb (D)'!E33-'1.4 Udbytter (D)'!O32,"") -> 25549.559 | P32: =IFERROR('2.3 Nettokøb (D)'!F33-'1.4 Udbytter (D)'!P32,"") -> -1381.707532 | Q32: =IFERROR('2.3 Nettokøb (D)'!G33-'1.4 Udbytter (D)'!Q32,"") -> -482.37227 | R32: =IFERROR('2.3 Nettokøb (D)'!H33-'1.4 Udbytter (D)'!R32,"") -> -206.278963 | S32: =IFERROR('2.3 Nettokøb (D)'!I33-'1.4 Udbytter (D)'!S32,"") -> -1625.689497
A33: Udenlandske obligationer i alt | B33: ='1.2 Nettokøb (D)'!B34-'1.4 Udbytter (D)'!B33 -> -4439.309337 | C33: ='1.2 Nettokøb (D)'!C34-'1.4 Udbytter (D)'!C33 -> 3517.119196 | D33: ='1.2 Nettokøb (D)'!D34-'1.4 Udbytter (D)'!D33 -> 17323.16822 | E33: ='1.2 Nettokøb (D)'!E34-'1.4 Udbytter (D)'!E33 -> 13538.66345 | F33: ='1.2 Nettokøb (D)'!F34-'1.4 Udbytter (D)'!F33 -> -17589.82603 | G33: ='1.2 Nettokøb (D)'!G34-'1.4 Udbytter (D)'!G33 -> -1044.894058 | H33: ='1.2 Nettokøb (D)'!H34-'1.4 Udbytter (D)'!H33 -> 1909.379906 | I33: ='1.2 Nettokøb (D)'!I34-'1.4 Udbytter (D)'!I33 -> -1045.348067 | K33: Nykredit Portefølje Administration | L33: =IFERROR('2.3 Nettokøb (D)'!B34-'1.4 Udbytter (D)'!L33,"") -> 17160.26451 | M33: =IFERROR('2.3 Nettokøb (D)'!C34-'1.4 Udbytter (D)'!M33,"") -> 10596.08162 | N33: =IFERROR('2.3 Nettokøb (D)'!D34-'1.4 Udbytter (D)'!N33,"") -> 6351.498159 | O33: =IFERROR('2.3 Nettokøb (D)'!E34-'1.4 Udbytter (D)'!O33,"") -> -11565.65414 | P33: =IFERROR('2.3 Nettokøb (D)'!F34-'1.4 Udbytter (D)'!P33,"") -> -5210.364204 | Q33: =IFERROR('2.3 Nettokøb (D)'!G34-'1.4 Udbytter (D)'!Q33,"") -> 529.3959397 | R33: =IFERROR('2.3 Nettokøb (D)'!H34-'1.4 Udbytter (D)'!R33,"") -> -1707.874724 | S33: =IFERROR('2.3 Nettokøb (D)'!I34-'1.4 Udbytter (D)'!S33,"") -> -6161.757596
A34: Pengemarkedsforeninger | B34: ='1.2 Nettokøb (D)'!B35-'1.4 Udbytter (D)'!B34 -> -23.283551 | C34: ='1.2 Nettokøb (D)'!C35-'1.4 Udbytter (D)'!C34 -> 2.903173 | D34: ='1.2 Nettokøb (D)'!D35-'1.4 Udbytter (D)'!D34 -> -245.747433 | E34: ='1.2 Nettokøb (D)'!E35-'1.4 Udbytter (D)'!E34 -> 0 | F34: ='1.2 Nettokøb (D)'!F35-'1.4 Udbytter (D)'!F34 -> 0 | G34: ='1.2 Nettokøb (D)'!G35-'1.4 Udbytter (D)'!G34 -> 0 | H34: ='1.2 Nettokøb (D)'!H35-'1.4 Udbytter (D)'!H34 -> 0 | I34: ='1.2 Nettokøb (D)'!I35-'1.4 Udbytter (D)'!I34 -> 0 | K34: PFA Invest | L34: =IFERROR('2.3 Nettokøb (D)'!B35-'1.4 Udbytter (D)'!L34,"") -> 2754.428722 | M34: =IFERROR('2.3 Nettokøb (D)'!C35-'1.4 Udbytter (D)'!M34,"") -> 2308.558405 | N34: =IFERROR('2.3 Nettokøb (D)'!D35-'1.4 Udbytter (D)'!N34,"") -> 2458.577982 | O34: =IFERROR('2.3 Nettokøb (D)'!E35-'1.4 Udbytter (D)'!O34,"") -> 1531.671866 | P34: =IFERROR('2.3 Nettokøb (D)'!F35-'1.4 Udbytter (D)'!P34,"") -> -616.5829562 | Q34: =IFERROR('2.3 Nettokøb (D)'!G35-'1.4 Udbytter (D)'!Q34,"") -> -267.601325 | R34: =IFERROR('2.3 Nettokøb (D)'!H35-'1.4 Udbytter (D)'!R34,"") -> -559.03536 | S34: =IFERROR('2.3 Nettokøb (D)'!I35-'1.4 Udbytter (D)'!S34,"") -> -2042.223777
A35: Øvrige | B35: ='1.2 Nettokøb (D)'!B36-'1.4 Udbytter (D)'!B35 -> 107.3577836 | C35: ='1.2 Nettokøb (D)'!C36-'1.4 Udbytter (D)'!C35 -> -278.3586046 | D35: ='1.2 Nettokøb (D)'!D36-'1.4 Udbytter (D)'!D35 -> -156.8939292 | E35: ='1.2 Nettokøb (D)'!E36-'1.4 Udbytter (D)'!E35 -> 192.5128097 | F35: ='1.2 Nettokøb (D)'!F36-'1.4 Udbytter (D)'!F35 -> 1609.673334 | G35: ='1.2 Nettokøb (D)'!G36-'1.4 Udbytter (D)'!G35 -> -1.775251 | H35: ='1.2 Nettokøb (D)'!H36-'1.4 Udbytter (D)'!H35 -> -4.897483 | I35: ='1.2 Nettokøb (D)'!I36-'1.4 Udbytter (D)'!I35 -> -306.3080309 | K35: PortfolioManager | L35: =IFERROR('2.3 Nettokøb (D)'!B36-'1.4 Udbytter (D)'!L35,"") -> 2.86784 | M35: =IFERROR('2.3 Nettokøb (D)'!C36-'1.4 Udbytter (D)'!M35,"") -> 270.9818111 | N35: =IFERROR('2.3 Nettokøb (D)'!D36-'1.4 Udbytter (D)'!N35,"") -> 226.8255666 | O35: =IFERROR('2.3 Nettokøb (D)'!E36-'1.4 Udbytter (D)'!O35,"") -> 386.6984971 | P35: =IFERROR('2.3 Nettokøb (D)'!F36-'1.4 Udbytter (D)'!P35,"") -> 170.7490238 | Q35: =IFERROR('2.3 Nettokøb (D)'!G36-'1.4 Udbytter (D)'!Q35,"") -> -13.73832165 | R35: =IFERROR('2.3 Nettokøb (D)'!H36-'1.4 Udbytter (D)'!R35,"") -> -14.34423519 | S35: =IFERROR('2.3 Nettokøb (D)'!I36-'1.4 Udbytter (D)'!S35,"") -> 3.127343582
A36: Blandede Balanceret | B36: ='1.2 Nettokøb (D)'!B37-'1.4 Udbytter (D)'!B36 -> 5468.277153 | C36: ='1.2 Nettokøb (D)'!C37-'1.4 Udbytter (D)'!C36 -> 11720.76097 | D36: ='1.2 Nettokøb (D)'!D37-'1.4 Udbytter (D)'!D36 -> 9955.913775 | E36: ='1.2 Nettokøb (D)'!E37-'1.4 Udbytter (D)'!E36 -> 10486.91045 | F36: ='1.2 Nettokøb (D)'!F37-'1.4 Udbytter (D)'!F36 -> 296.4970297 | G36: ='1.2 Nettokøb (D)'!G37-'1.4 Udbytter (D)'!G36 -> 267.9450075 | H36: ='1.2 Nettokøb (D)'!H37-'1.4 Udbytter (D)'!H36 -> -582.2554116 | I36: ='1.2 Nettokøb (D)'!I37-'1.4 Udbytter (D)'!I36 -> -2663.86918 | K36: SEBinvest | L36: =IFERROR('2.3 Nettokøb (D)'!B37-'1.4 Udbytter (D)'!L36,"") -> 116.505105 | M36: =IFERROR('2.3 Nettokøb (D)'!C37-'1.4 Udbytter (D)'!M36,"") -> -2110.801107 | N36: =IFERROR('2.3 Nettokøb (D)'!D37-'1.4 Udbytter (D)'!N36,"") -> 1806.336671 | O36: =IFERROR('2.3 Nettokøb (D)'!E37-'1.4 Udbytter (D)'!O36,"") -> -75.495368 | P36: =IFERROR('2.3 Nettokøb (D)'!F37-'1.4 Udbytter (D)'!P36,"") -> -1174.150537 | Q36: =IFERROR('2.3 Nettokøb (D)'!G37-'1.4 Udbytter (D)'!Q36,"") -> 56.10437 | R36: =IFERROR('2.3 Nettokøb (D)'!H37-'1.4 Udbytter (D)'!R36,"") -> 56.476466 | S36: =IFERROR('2.3 Nettokøb (D)'!I37-'1.4 Udbytter (D)'!S36,"") -> -1850.273705
A37: Blandede Fleksibel | B37: ='1.2 Nettokøb (D)'!B38-'1.4 Udbytter (D)'!B37 -> 889.0192923 | C37: ='1.2 Nettokøb (D)'!C38-'1.4 Udbytter (D)'!C37 -> 328.9316061 | D37: ='1.2 Nettokøb (D)'!D38-'1.4 Udbytter (D)'!D37 -> 8327.502519 | E37: ='1.2 Nettokøb (D)'!E38-'1.4 Udbytter (D)'!E37 -> 6888.164348 | F37: ='1.2 Nettokøb (D)'!F38-'1.4 Udbytter (D)'!F37 -> -1080.169504 | G37: ='1.2 Nettokøb (D)'!G38-'1.4 Udbytter (D)'!G37 -> 249.6383465 | H37: ='1.2 Nettokøb (D)'!H38-'1.4 Udbytter (D)'!H37 -> -12.63472079 | I37: ='1.2 Nettokøb (D)'!I38-'1.4 Udbytter (D)'!I37 -> 3051.410673 | K37: Selected Investments | L37: =IFERROR('2.3 Nettokøb (D)'!B38-'1.4 Udbytter (D)'!L37,"") -> 0 | M37: =IFERROR('2.3 Nettokøb (D)'!C38-'1.4 Udbytter (D)'!M37,"") -> 0 | N37: =IFERROR('2.3 Nettokøb (D)'!D38-'1.4 Udbytter (D)'!N37,"") -> 677.940958 | O37: =IFERROR('2.3 Nettokøb (D)'!E38-'1.4 Udbytter (D)'!O37,"") -> -156.239592 | P37: =IFERROR('2.3 Nettokøb (D)'!F38-'1.4 Udbytter (D)'!P37,"") -> 52.044614 | Q37: =IFERROR('2.3 Nettokøb (D)'!G38-'1.4 Udbytter (D)'!Q37,"") -> 12.219888 | R37: =IFERROR('2.3 Nettokøb (D)'!H38-'1.4 Udbytter (D)'!R37,"") -> 1.616968 | S37: =IFERROR('2.3 Nettokøb (D)'!I38-'1.4 Udbytter (D)'!S37,"") -> 15.312091
A38: Blandede Høj Aktieandel | B38: ='1.2 Nettokøb (D)'!B39-'1.4 Udbytter (D)'!B38 -> 985.9219235 | C38: ='1.2 Nettokøb (D)'!C39-'1.4 Udbytter (D)'!C38 -> 1665.71873 | D38: ='1.2 Nettokøb (D)'!D39-'1.4 Udbytter (D)'!D38 -> 1627.23626 | E38: ='1.2 Nettokøb (D)'!E39-'1.4 Udbytter (D)'!E38 -> 6873.1376 | F38: ='1.2 Nettokøb (D)'!F39-'1.4 Udbytter (D)'!F38 -> 4335.416547 | G38: ='1.2 Nettokøb (D)'!G39-'1.4 Udbytter (D)'!G38 -> 296.9218317 | H38: ='1.2 Nettokøb (D)'!H39-'1.4 Udbytter (D)'!H38 -> 218.4483141 | I38: ='1.2 Nettokøb (D)'!I39-'1.4 Udbytter (D)'!I38 -> 3523.103922 | K38: SparDanmark | L38: =IFERROR('2.3 Nettokøb (D)'!B39-'1.4 Udbytter (D)'!L38,"") -> 0 | M38: =IFERROR('2.3 Nettokøb (D)'!C39-'1.4 Udbytter (D)'!M38,"") -> 0 | N38: =IFERROR('2.3 Nettokøb (D)'!D39-'1.4 Udbytter (D)'!N38,"") -> 0 | O38: =IFERROR('2.3 Nettokøb (D)'!E39-'1.4 Udbytter (D)'!O38,"") -> 0 | P38: =IFERROR('2.3 Nettokøb (D)'!F39-'1.4 Udbytter (D)'!P38,"") -> 3719.529837 | Q38: =IFERROR('2.3 Nettokøb (D)'!G39-'1.4 Udbytter (D)'!Q38,"") -> 8.39535168 | R38: =IFERROR('2.3 Nettokøb (D)'!H39-'1.4 Udbytter (D)'!R38,"") -> 3.84178659 | S38: =IFERROR('2.3 Nettokøb (D)'!I39-'1.4 Udbytter (D)'!S38,"") -> 446.3838945
A39: Blandede Lav Aktieandel | B39: ='1.2 Nettokøb (D)'!B40-'1.4 Udbytter (D)'!B39 -> 2186.698524 | C39: ='1.2 Nettokøb (D)'!C40-'1.4 Udbytter (D)'!C39 -> 6509.864623 | D39: ='1.2 Nettokøb (D)'!D40-'1.4 Udbytter (D)'!D39 -> 2137.601915 | E39: ='1.2 Nettokøb (D)'!E40-'1.4 Udbytter (D)'!E39 -> 753.0753578 | F39: ='1.2 Nettokøb (D)'!F40-'1.4 Udbytter (D)'!F39 -> -707.4996567 | G39: ='1.2 Nettokøb (D)'!G40-'1.4 Udbytter (D)'!G39 -> -427.4535971 | H39: ='1.2 Nettokøb (D)'!H40-'1.4 Udbytter (D)'!H39 -> -548.1480145 | I39: ='1.2 Nettokøb (D)'!I40-'1.4 Udbytter (D)'!I39 -> -4363.646386 | K39: Sparinvest | L39: =IFERROR('2.3 Nettokøb (D)'!B40-'1.4 Udbytter (D)'!L39,"") -> 1681.690757 | M39: =IFERROR('2.3 Nettokøb (D)'!C40-'1.4 Udbytter (D)'!M39,"") -> 2789.969977 | N39: =IFERROR('2.3 Nettokøb (D)'!D40-'1.4 Udbytter (D)'!N39,"") -> 4783.580796 | O39: =IFERROR('2.3 Nettokøb (D)'!E40-'1.4 Udbytter (D)'!O39,"") -> 11073.28419 | P39: =IFERROR('2.3 Nettokøb (D)'!F40-'1.4 Udbytter (D)'!P39,"") -> 6107.819916 | Q39: =IFERROR('2.3 Nettokøb (D)'!G40-'1.4 Udbytter (D)'!Q39,"") -> 4233.863382 | R39: =IFERROR('2.3 Nettokøb (D)'!H40-'1.4 Udbytter (D)'!R39,"") -> 692.9210727 | S39: =IFERROR('2.3 Nettokøb (D)'!I40-'1.4 Udbytter (D)'!S39,"") -> 10011.88509
A40: Blandede i alt | B40: ='1.2 Nettokøb (D)'!B41-'1.4 Udbytter (D)'!B40 -> 9529.916893 | C40: ='1.2 Nettokøb (D)'!C41-'1.4 Udbytter (D)'!C40 -> 20225.27593 | D40: ='1.2 Nettokøb (D)'!D41-'1.4 Udbytter (D)'!D40 -> 22048.25447 | E40: ='1.2 Nettokøb (D)'!E41-'1.4 Udbytter (D)'!E40 -> 25001.28776 | F40: ='1.2 Nettokøb (D)'!F41-'1.4 Udbytter (D)'!F40 -> 2844.244416 | G40: ='1.2 Nettokøb (D)'!G41-'1.4 Udbytter (D)'!G40 -> 387.0515885 | H40: ='1.2 Nettokøb (D)'!H41-'1.4 Udbytter (D)'!H40 -> -924.5898329 | I40: ='1.2 Nettokøb (D)'!I41-'1.4 Udbytter (D)'!I40 -> -453.0009712 | K40: StockRate Invest | L40: =IFERROR('2.3 Nettokøb (D)'!B41-'1.4 Udbytter (D)'!L40,"") -> -1477.505353 | M40: =IFERROR('2.3 Nettokøb (D)'!C41-'1.4 Udbytter (D)'!M40,"") -> -1141.300028 | N40: =IFERROR('2.3 Nettokøb (D)'!D41-'1.4 Udbytter (D)'!N40,"") -> -1481.579239 | O40: =IFERROR('2.3 Nettokøb (D)'!E41-'1.4 Udbytter (D)'!O40,"") -> -1554.256234 | P40: =IFERROR('2.3 Nettokøb (D)'!F41-'1.4 Udbytter (D)'!P40,"") -> -3647.245179 | Q40: =IFERROR('2.3 Nettokøb (D)'!G41-'1.4 Udbytter (D)'!Q40,"") -> -1.055658 | R40: =IFERROR('2.3 Nettokøb (D)'!H41-'1.4 Udbytter (D)'!R40,"") -> -5.847609 | S40: =IFERROR('2.3 Nettokøb (D)'!I41-'1.4 Udbytter (D)'!S40,"") -> 42.31191
A41: Kapitalforeninger Blandede | B41: ='1.2 Nettokøb (D)'!B42-'1.4 Udbytter (D)'!B41 -> 2798.517005 | C41: ='1.2 Nettokøb (D)'!C42-'1.4 Udbytter (D)'!C41 -> 2332.311436 | D41: ='1.2 Nettokøb (D)'!D42-'1.4 Udbytter (D)'!D41 -> 11069.07751 | E41: ='1.2 Nettokøb (D)'!E42-'1.4 Udbytter (D)'!E41 -> -15748.81748 | F41: ='1.2 Nettokøb (D)'!F42-'1.4 Udbytter (D)'!F41 -> -1980.127355 | G41: ='1.2 Nettokøb (D)'!G42-'1.4 Udbytter (D)'!G41 -> -114.391411 | H41: ='1.2 Nettokøb (D)'!H42-'1.4 Udbytter (D)'!H41 -> -60.3868556 | I41: ='1.2 Nettokøb (D)'!I42-'1.4 Udbytter (D)'!I41 -> -723.5387017 | K41: Stonehenge | L41: =IFERROR('2.3 Nettokøb (D)'!B42-'1.4 Udbytter (D)'!L41,"") -> -57.50491341 | M41: =IFERROR('2.3 Nettokøb (D)'!C42-'1.4 Udbytter (D)'!M41,"") -> 128.0567426 | N41: =IFERROR('2.3 Nettokøb (D)'!D42-'1.4 Udbytter (D)'!N41,"") -> 77.4458033 | O41: =IFERROR('2.3 Nettokøb (D)'!E42-'1.4 Udbytter (D)'!O41,"") -> 21.66066594 | P41: =IFERROR('2.3 Nettokøb (D)'!F42-'1.4 Udbytter (D)'!P41,"") -> 112.0476301 | Q41: =IFERROR('2.3 Nettokøb (D)'!G42-'1.4 Udbytter (D)'!Q41,"") -> -10.1757455 | R41: =IFERROR('2.3 Nettokøb (D)'!H42-'1.4 Udbytter (D)'!R41,"") -> -43.36628115 | S41: =IFERROR('2.3 Nettokøb (D)'!I42-'1.4 Udbytter (D)'!S41,"") -> -166.5717624
A42: Kapitalforeninger Øvrige | B42: ='1.2 Nettokøb (D)'!B43-'1.4 Udbytter (D)'!B42 -> 442.1016949 | C42: ='1.2 Nettokøb (D)'!C43-'1.4 Udbytter (D)'!C42 -> 373.5381178 | D42: ='1.2 Nettokøb (D)'!D43-'1.4 Udbytter (D)'!D42 -> 434.7341581 | E42: ='1.2 Nettokøb (D)'!E43-'1.4 Udbytter (D)'!E42 -> 244.9476192 | F42: ='1.2 Nettokøb (D)'!F43-'1.4 Udbytter (D)'!F42 -> 101.0816872 | G42: ='1.2 Nettokøb (D)'!G43-'1.4 Udbytter (D)'!G42 -> 33.3414183 | H42: ='1.2 Nettokøb (D)'!H43-'1.4 Udbytter (D)'!H42 -> 25.05500458 | I42: ='1.2 Nettokøb (D)'!I43-'1.4 Udbytter (D)'!I42 -> 980.1077652 | K42: Strategi Invest | L42: =IFERROR('2.3 Nettokøb (D)'!B43-'1.4 Udbytter (D)'!L42,"") -> -26.1374753 | M42: =IFERROR('2.3 Nettokøb (D)'!C43-'1.4 Udbytter (D)'!M42,"") -> -13.1974608 | N42: =IFERROR('2.3 Nettokøb (D)'!D43-'1.4 Udbytter (D)'!N42,"") -> -35.034315 | O42: =IFERROR('2.3 Nettokøb (D)'!E43-'1.4 Udbytter (D)'!O42,"") ->  | P42: =IFERROR('2.3 Nettokøb (D)'!F43-'1.4 Udbytter (D)'!P42,"") ->  | Q42: =IFERROR('2.3 Nettokøb (D)'!G43-'1.4 Udbytter (D)'!Q42,"") -> 0 | R42: =IFERROR('2.3 Nettokøb (D)'!H43-'1.4 Udbytter (D)'!R42,"") -> 0 | S42: =IFERROR('2.3 Nettokøb (D)'!I43-'1.4 Udbytter (D)'!S42,"") -> 0
A43: Kapitalforeninger Hedgestrategier | B43: ='1.2 Nettokøb (D)'!B44-'1.4 Udbytter (D)'!B43 -> 2439.618442 | C43: ='1.2 Nettokøb (D)'!C44-'1.4 Udbytter (D)'!C43 -> 2125.540377 | D43: ='1.2 Nettokøb (D)'!D44-'1.4 Udbytter (D)'!D43 -> -586.610522 | E43: ='1.2 Nettokøb (D)'!E44-'1.4 Udbytter (D)'!E43 -> -2372.873167 | F43: ='1.2 Nettokøb (D)'!F44-'1.4 Udbytter (D)'!F43 -> -1773.680292 | G43: ='1.2 Nettokøb (D)'!G44-'1.4 Udbytter (D)'!G43 -> -281.3756218 | H43: ='1.2 Nettokøb (D)'!H44-'1.4 Udbytter (D)'!H43 -> -282.2918623 | I43: ='1.2 Nettokøb (D)'!I44-'1.4 Udbytter (D)'!I43 -> -2219.978634 | K43: Sydinvest | L43: =IFERROR('2.3 Nettokøb (D)'!B44-'1.4 Udbytter (D)'!L43,"") -> -841.2659739 | M43: =IFERROR('2.3 Nettokøb (D)'!C44-'1.4 Udbytter (D)'!M43,"") -> 1656.651178 | N43: =IFERROR('2.3 Nettokøb (D)'!D44-'1.4 Udbytter (D)'!N43,"") -> 7810.487406 | O43: =IFERROR('2.3 Nettokøb (D)'!E44-'1.4 Udbytter (D)'!O43,"") ->  | P43: =IFERROR('2.3 Nettokøb (D)'!F44-'1.4 Udbytter (D)'!P43,"") ->  | Q43: =IFERROR('2.3 Nettokøb (D)'!G44-'1.4 Udbytter (D)'!Q43,"") -> 2233.741107 | R43: =IFERROR('2.3 Nettokøb (D)'!H44-'1.4 Udbytter (D)'!R43,"") -> -150.8364125 | S43: =IFERROR('2.3 Nettokøb (D)'!I44-'1.4 Udbytter (D)'!S43,"") -> 1326.137302
A44: Andre Alternative Investeringsfonde | B44: ='1.2 Nettokøb (D)'!B45-'1.4 Udbytter (D)'!B44 -> 2021.994919 | C44: ='1.2 Nettokøb (D)'!C45-'1.4 Udbytter (D)'!C44 -> 55.511081 | D44: ='1.2 Nettokøb (D)'!D45-'1.4 Udbytter (D)'!D44 -> 0 | E44: ='1.2 Nettokøb (D)'!E45-'1.4 Udbytter (D)'!E44 -> 0 | F44: ='1.2 Nettokøb (D)'!F45-'1.4 Udbytter (D)'!F44 -> 545.4014729 | G44: ='1.2 Nettokøb (D)'!G45-'1.4 Udbytter (D)'!G44 -> 0.50688612 | H44: ='1.2 Nettokøb (D)'!H45-'1.4 Udbytter (D)'!H44 -> -4.0142232 | I44: ='1.2 Nettokøb (D)'!I45-'1.4 Udbytter (D)'!I44 -> 103.3320536 | K44: TRP-Invest | L44: =IFERROR('2.3 Nettokøb (D)'!B45-'1.4 Udbytter (D)'!L44,"") -> -3520.562172 | M44: =IFERROR('2.3 Nettokøb (D)'!C45-'1.4 Udbytter (D)'!M44,"") -> -980.7938065 | N44: =IFERROR('2.3 Nettokøb (D)'!D45-'1.4 Udbytter (D)'!N44,"") -> -1362.140418 | O44: =IFERROR('2.3 Nettokøb (D)'!E45-'1.4 Udbytter (D)'!O44,"") -> -1095.979921 | P44: =IFERROR('2.3 Nettokøb (D)'!F45-'1.4 Udbytter (D)'!P44,"") -> -3748.631303 | Q44: =IFERROR('2.3 Nettokøb (D)'!G45-'1.4 Udbytter (D)'!Q44,"") -> -1.76959457 | R44: =IFERROR('2.3 Nettokøb (D)'!H45-'1.4 Udbytter (D)'!R44,"") -> -51.14186785 | S44: =IFERROR('2.3 Nettokøb (D)'!I45-'1.4 Udbytter (D)'!S44,"") -> -51.96426012
A45: I alt danske foreninger | B45: =B3+B21+B26+B33+B34+B35+B40+B41+B42+B43+B44 -> 8679.016061 | C45: 25242.73962 | D45: 58508.12365 | E45: 50860.59459 | F45: -35972.90657 | G45: 2425.185203 | H45: 859.0100222 | I45: =I3+I21+I26+I33+I34+I35+I40+I41+I42+I43+I44 -> -9016.502246 | K45: ValueInvest Danmark | L45: =IFERROR('2.3 Nettokøb (D)'!B46-'1.4 Udbytter (D)'!L45,"") -> -482.5729014 | M45: =IFERROR('2.3 Nettokøb (D)'!C46-'1.4 Udbytter (D)'!M45,"") -> -475.7461418 | N45: =IFERROR('2.3 Nettokøb (D)'!D46-'1.4 Udbytter (D)'!N45,"") -> -522.0404624 | O45: =IFERROR('2.3 Nettokøb (D)'!E46-'1.4 Udbytter (D)'!O45,"") -> -221.7201614 | P45: =IFERROR('2.3 Nettokøb (D)'!F46-'1.4 Udbytter (D)'!P45,"") -> -342.3021463 | Q45: =IFERROR('2.3 Nettokøb (D)'!G46-'1.4 Udbytter (D)'!Q45,"") -> -692.9986545 | R45: =IFERROR('2.3 Nettokøb (D)'!H46-'1.4 Udbytter (D)'!R45,"") -> -55.14800472 | S45: =IFERROR('2.3 Nettokøb (D)'!I46-'1.4 Udbytter (D)'!S45,"") -> -1315.433622
A46: * Nettoflow er nettokøb, brutto korrigeret for udbytte. | K46: Wealth Invest | L46: =IFERROR('2.3 Nettokøb (D)'!B47-'1.4 Udbytter (D)'!L46,"") -> 128.7421156 | M46: =IFERROR('2.3 Nettokøb (D)'!C47-'1.4 Udbytter (D)'!M46,"") -> -1154.304125 | N46: =IFERROR('2.3 Nettokøb (D)'!D47-'1.4 Udbytter (D)'!N46,"") -> 1035.279801 | O46: =IFERROR('2.3 Nettokøb (D)'!E47-'1.4 Udbytter (D)'!O46,"") -> 2024.356106 | P46: =IFERROR('2.3 Nettokøb (D)'!F47-'1.4 Udbytter (D)'!P46,"") -> -721.6263906 | Q46: =IFERROR('2.3 Nettokøb (D)'!G47-'1.4 Udbytter (D)'!Q46,"") -> -15.44143663 | R46: =IFERROR('2.3 Nettokøb (D)'!H47-'1.4 Udbytter (D)'!R46,"") -> -1422.585798 | S46: =IFERROR('2.3 Nettokøb (D)'!I47-'1.4 Udbytter (D)'!S46,"") -> -848.697647
K47: I alt danske foreninger | L47: =SUM(L3:L46) -> 8983.348375 | M47: 25315.11756 | N47: 58904.02204 | O47: 34702.5485 | P47: -42577.41819 | Q47: 2425.185203 | R47: 859.0100222 | S47: =SUM(S3:S46) -> -9016.502246 | T47: 0 | U47: 0 | V47: 0 | W47: 0 | X47: 0 | Y47: 0 | Z47: 0 | AA47: 0 | AB47: 0 | AC47: 0 | AD47: 0 | AE47: 0 | AF47: 0 | AG47: 0 | AH47: 0 | AI47: 0 | AJ47: 0 | AK47: 0 | AL47: 0 | AM47: 0 | AN47: 0 | AO47: 0 | AP47: 0 | AQ47: 0 | AR47: 0 | AS47: 0 | AT47: 0 | AU47: 0 | AV47: 0 | AW47: 0 | AX47: 0 | AY47: 0 | AZ47: 0 | BA47: 0 | BB47: 0 | BC47: 0 | BD47: 0 | BE47: 0 | BF47: 0 | BG47: 0 | BH47: 0 | BI47: 0 | BJ47: 0 | BK47: 0 | BL47: 0 | BM47: 0 | BN47: 0 | BO47: 0 | BP47: 0 | BQ47: 0 | BR47: 0 | BS47: 0 | BT47: 0 | BU47: 0 | BV47: 0 | BW47: 0 | BX47: 0 | BY47: 0 | BZ47: 0 | CA47: 0 | CB47: 0 | CC47: 0 | CD47: =SUM(CD3:CD46) -> 0 | CE47: 0 | CF47: 0 | CG47: 0 | CH47: 0 | CI47: 0 | CJ47: 0 | CK47: 0 | CL47: 0 | CM47: 0 | CN47: 0 | CO47: 0 | CP47: 0 | CQ47: 0 | CR47: 0 | CS47: 0 | CT47: 0 | CU47: 0 | CV47: 0 | CW47: 0 | CX47: 0 | CY47: 0 | CZ47: 0 | DA47: 0 | DB47: 0 | DC47: 0 | DD47: 0 | DE47: 0 | DF47: 0 | DG47: 0 | DH47: 0 | DI47: 0 | DJ47: 0 | DK47: 0 | DL47: 0 | DM47: 0 | DN47: 0 | DO47: 0 | DP47: 0 | DQ47: 0 | DR47: 0 | DS47: 0 | DT47: 0 | DU47: 0 | DV47: 0 | DW47: 0 | DX47: 0 | DY47: 0 | DZ47: 0 | EA47: 0 | EB47: 0 | EC47: 0 | ED47: 0 | EE47: 0 | EF47: 0 | EG47: 0 | EH47: 0 | EI47: 0 | EJ47: 0 | EK47: 0 | EL47: 0 | EM47: 0 | EN47: 0 | EO47: 0 | EP47: =SUM(EP3:EP46) -> 0 | EQ47: 0 | ER47: 0 | ES47: 0 | ET47: 0 | EU47: 0 | EV47: 0 | EW47: 0 | EX47: 0 | EY47: 0 | EZ47: 0 | FA47: 0 | FB47: 0 | FC47: 0 | FD47: 0 | FE47: 0 | FF47: 0 | FG47: 0 | FH47: 0 | FI47: 0 | FJ47: 0 | FK47: 0 | FL47: 0 | FM47: 0 | FN47: 0 | FO47: 0 | FP47: 0 | FQ47: 0 | FR47: 0 | FS47: 0 | FT47: 0 | FU47: 0 | FV47: 0 | FW47: 0 | FX47: 0 | FY47: 0 | FZ47: 0 | GA47: 0 | GB47: 0 | GC47: 0 | GD47: 0 | GE47: 0 | GF47: 0 | GG47: 0 | GH47: 0 | GI47: 0 | GJ47: 0 | GK47: 0 | GL47: 0 | GM47: 0 | GN47: 0 | GO47: 0 | GP47: 0 | GQ47: 0 | GR47: 0 | GS47: 0 | GT47: 0 | GU47: 0 | GV47: 0 | GW47: 0 | GX47: 0 | GY47: 0 | GZ47: 0 | HA47: 0 | HB47: =SUM(HB3:HB46) -> 0 | HC47: 0 | HD47: 0 | HE47: 0 | HF47: 0 | HG47: 0 | HH47: 0 | HI47: 0 | HJ47: 0 | HK47: 0 | HL47: 0 | HM47: 0 | HN47: 0 | HO47: 0 | HP47: 0 | HQ47: 0 | HR47: 0 | HS47: 0 | HT47: 0 | HU47: 0 | HV47: 0 | HW47: 0 | HX47: 0 | HY47: 0 | HZ47: 0 | IA47: 0 | IB47: 0 | IC47: 0 | ID47: 0 | IE47: 0 | IF47: 0 | IG47: 0 | IH47: 0 | II47: 0 | IJ47: 0 | IK47: 0 | IL47: 0 | IM47: 0 | IN47: 0 | IO47: 0 | IP47: 0 | IQ47: 0 | IR47: 0 | IS47: 0 | IT47: 0 | IU47: 0 | IV47: 0 | IW47: 0 | IX47: 0 | IY47: 0 | IZ47: 0 | JA47: 0 | JB47: 0 | JC47: 0 | JD47: 0 | JE47: 0 | JF47: 0 | JG47: 0 | JH47: 0 | JI47: 0 | JJ47: 0 | JK47: 0 | JL47: 0 | JM47: 0 | JN47: =SUM(JN3:JN46) -> 0 | JO47: 0 | JP47: 0 | JQ47: 0 | JR47: 0 | JS47: 0 | JT47: 0 | JU47: 0 | JV47: 0 | JW47: 0 | JX47: 0 | JY47: 0 | JZ47: 0 | KA47: 0 | KB47: 0 | KC47: 0 | KD47: 0 | KE47: 0 | KF47: 0 | KG47: 0 | KH47: 0 | KI47: 0 | KJ47: 0 | KK47: 0 | KL47: 0 | KM47: 0 | KN47: 0 | KO47: 0 | KP47: 0 | KQ47: 0 | KR47: 0 | KS47: 0 | KT47: 0 | KU47: 0 | KV47: 0 | KW47: 0 | KX47: 0 | KY47: 0 | KZ47: 0 | LA47: 0 | LB47: 0 | LC47: 0 | LD47: 0 | LE47: 0 | LF47: 0 | LG47: 0 | LH47: 0 | LI47: 0 | LJ47: 0 | LK47: 0 | LL47: 0 | LM47: 0 | LN47: 0 | LO47: 0 | LP47: 0 | LQ47: 0 | LR47: 0 | LS47: 0 | LT47: 0 | LU47: 0 | LV47: 0 | LW47: 0 | LX47: 0 | LY47: 0 | LZ47: =SUM(LZ3:LZ46) -> 0 | MA47: 0 | MB47: 0 | MC47: 0 | MD47: 0 | ME47: 0 | MF47: 0 | MG47: 0 | MH47: 0 | MI47: 0 | MJ47: 0 | MK47: 0 | ML47: 0 | MM47: 0 | MN47: 0 | MO47: 0 | MP47: 0 | MQ47: 0 | MR47: 0 | MS47: 0 | MT47: 0 | MU47: 0 | MV47: 0 | MW47: 0 | MX47: 0 | MY47: 0 | MZ47: 0 | NA47: 0 | NB47: 0 | NC47: 0 | ND47: 0 | NE47: 0 | NF47: 0 | NG47: 0 | NH47: 0 | NI47: 0 | NJ47: 0 | NK47: 0 | NL47: 0 | NM47: 0 | NN47: 0 | NO47: 0 | NP47: 0 | NQ47: 0 | NR47: 0 | NS47: 0 | NT47: 0 | NU47: 0 | NV47: 0 | NW47: 0 | NX47: 0 | NY47: 0 | NZ47: 0 | OA47: 0 | OB47: 0 | OC47: 0 | OD47: 0 | OE47: 0 | OF47: 0 | OG47: 0 | OH47: 0 | OI47: 0 | OJ47: 0 | OK47: 0 | OL47: =SUM(OL3:OL46) -> 0 | OM47: 0 | ON47: 0 | OO47: 0 | OP47: 0 | OQ47: 0 | OR47: 0 | OS47: 0 | OT47: 0 | OU47: 0 | OV47: 0 | OW47: 0 | OX47: 0 | OY47: 0 | OZ47: 0 | PA47: 0 | PB47: 0 | PC47: 0 | PD47: 0 | PE47: 0 | PF47: 0 | PG47: 0 | PH47: 0 | PI47: 0 | PJ47: 0 | PK47: 0 | PL47: 0 | PM47: 0 | PN47: 0 | PO47: 0 | PP47: 0 | PQ47: 0 | PR47: 0 | PS47: 0 | PT47: 0 | PU47: 0 | PV47: 0 | PW47: 0 | PX47: 0 | PY47: 0 | PZ47: 0 | QA47: 0 | QB47: 0 | QC47: 0 | QD47: 0 | QE47: 0 | QF47: 0 | QG47: 0 | QH47: 0 | QI47: 0 | QJ47: 0 | QK47: 0 | QL47: 0 | QM47: 0 | QN47: 0 | QO47: 0 | QP47: 0 | QQ47: 0 | QR47: 0 | QS47: 0 | QT47: 0 | QU47: 0 | QV47: 0 | QW47: 0 | QX47: =SUM(QX3:QX46) -> 0 | QY47: 0 | QZ47: 0 | RA47: 0 | RB47: 0 | RC47: 0 | RD47: 0 | RE47: 0 | RF47: 0 | RG47: 0 | RH47: 0 | RI47: 0 | RJ47: 0 | RK47: 0 | RL47: 0 | RM47: 0 | RN47: 0 | RO47: 0 | RP47: 0 | RQ47: 0 | RR47: 0 | RS47: 0 | RT47: 0 | RU47: 0 | RV47: 0 | RW47: 0 | RX47: 0 | RY47: 0 | RZ47: 0 | SA47: 0 | SB47: 0 | SC47: 0 | SD47: 0 | SE47: 0 | SF47: 0 | SG47: 0 | SH47: 0 | SI47: 0 | SJ47: 0 | SK47: 0 | SL47: 0 | SM47: 0 | SN47: 0 | SO47: 0 | SP47: 0 | SQ47: 0 | SR47: 0 | SS47: 0 | ST47: 0 | SU47: 0 | SV47: 0 | SW47: 0 | SX47: 0 | SY47: 0 | SZ47: 0 | TA47: 0 | TB47: 0 | TC47: 0 | TD47: 0 | TE47: 0 | TF47: 0 | TG47: 0 | TH47: 0 | TI47: 0 | TJ47: =SUM(TJ3:TJ46) -> 0 | TK47: 0 | TL47: 0 | TM47: 0 | TN47: 0 | TO47: 0 | TP47: 0 | TQ47: 0 | TR47: 0 | TS47: 0 | TT47: 0 | TU47: 0 | TV47: 0 | TW47: 0 | TX47: 0 | TY47: 0 | TZ47: 0 | UA47: 0 | UB47: 0 | UC47: 0 | UD47: 0 | UE47: 0 | UF47: 0 | UG47: 0 | UH47: 0 | UI47: 0 | UJ47: 0 | UK47: 0 | UL47: 0 | UM47: 0 | UN47: 0 | UO47: 0 | UP47: 0 | UQ47: 0 | UR47: 0 | US47: 0 | UT47: 0 | UU47: 0 | UV47: 0 | UW47: 0 | UX47: 0 | UY47: 0 | UZ47: 0 | VA47: 0 | VB47: 0 | VC47: 0 | VD47: 0 | VE47: 0 | VF47: 0 | VG47: 0 | VH47: 0 | VI47: 0 | VJ47: 0 | VK47: 0 | VL47: 0 | VM47: 0 | VN47: 0 | VO47: 0 | VP47: 0 | VQ47: 0 | VR47: 0 | VS47: 0 | VT47: 0 | VU47: 0 | VV47: =SUM(VV3:VV46) -> 0 | VW47: 0 | VX47: 0 | VY47: 0 | VZ47: 0 | WA47: 0 | WB47: 0 | WC47: 0 | WD47: 0 | WE47: 0 | WF47: 0 | WG47: 0 | WH47: 0 | WI47: 0 | WJ47: 0 | WK47: 0 | WL47: 0 | WM47: 0 | WN47: 0 | WO47: 0 | WP47: 0 | WQ47: 0 | WR47: 0 | WS47: 0 | WT47: 0 | WU47: 0 | WV47: 0 | WW47: 0 | WX47: 0 | WY47: 0 | WZ47: 0 | XA47: 0 | XB47: 0 | XC47: 0 | XD47: 0 | XE47: 0 | XF47: 0 | XG47: 0 | XH47: 0 | XI47: 0 | XJ47: 0 | XK47: 0 | XL47: 0 | XM47: 0 | XN47: 0 | XO47: 0 | XP47: 0 | XQ47: 0 | XR47: 0 | XS47: 0 | XT47: 0 | XU47: 0 | XV47: 0 | XW47: 0 | XX47: 0 | XY47: 0 | XZ47: 0 | YA47: 0 | YB47: 0 | YC47: 0 | YD47: 0 | YE47: 0 | YF47: 0 | YG47: 0 | YH47: =SUM(YH3:YH46) -> 0 | YI47: 0 | YJ47: 0 | YK47: 0 | YL47: 0 | YM47: 0 | YN47: 0 | YO47: 0 | YP47: 0 | YQ47: 0 | YR47: 0 | YS47: 0 | YT47: 0 | YU47: 0 | YV47: 0 | YW47: 0 | YX47: 0 | YY47: 0 | YZ47: 0 | ZA47: 0 | ZB47: 0 | ZC47: 0 | ZD47: 0 | ZE47: 0 | ZF47: 0 | ZG47: 0 | ZH47: 0 | ZI47: 0 | ZJ47: 0 | ZK47: 0 | ZL47: 0 | ZM47: 0 | ZN47: 0 | ZO47: 0 | ZP47: 0 | ZQ47: 0 | ZR47: 0 | ZS47: 0 | ZT47: 0 | ZU47: 0 | ZV47: 0 | ZW47: 0 | ZX47: 0 | ZY47: 0 | ZZ47: 0 | AAA47: 0 | AAB47: 0 | AAC47: 0 | AAD47: 0 | AAE47: 0 | AAF47: 0 | AAG47: 0 | AAH47: 0 | AAI47: 0 | AAJ47: 0 | AAK47: 0 | AAL47: 0 | AAM47: 0 | AAN47: 0 | AAO47: 0 | AAP47: 0 | AAQ47: 0 | AAR47: 0 | AAS47: 0 | AAT47: =SUM(AAT3:AAT46) -> 0 | AAU47: 0 | AAV47: 0 | AAW47: 0 | AAX47: 0 | AAY47: 0 | AAZ47: 0 | ABA47: 0 | ABB47: 0 | ABC47: 0 | ABD47: 0 | ABE47: 0 | ABF47: 0 | ABG47: 0 | ABH47: 0 | ABI47: 0 | ABJ47: 0 | ABK47: 0 | ABL47: 0 | ABM47: 0 | ABN47: 0 | ABO47: 0 | ABP47: 0 | ABQ47: 0 | ABR47: 0 | ABS47: 0 | ABT47: 0 | ABU47: 0 | ABV47: 0 | ABW47: 0 | ABX47: 0 | ABY47: 0 | ABZ47: 0 | ACA47: 0 | ACB47: 0 | ACC47: 0 | ACD47: 0 | ACE47: 0 | ACF47: 0 | ACG47: 0 | ACH47: 0 | ACI47: 0 | ACJ47: 0 | ACK47: 0 | ACL47: 0 | ACM47: 0 | ACN47: 0 | ACO47: 0 | ACP47: 0 | ACQ47: 0 | ACR47: 0 | ACS47: 0 | ACT47: 0 | ACU47: 0 | ACV47: 0 | ACW47: 0 | ACX47: 0 | ACY47: 0 | ACZ47: 0 | ADA47: 0 | ADB47: 0 | ADC47: 0 | ADD47: 0 | ADE47: 0 | ADF47: =SUM(ADF3:ADF46) -> 0 | ADG47: 0 | ADH47: 0 | ADI47: 0 | ADJ47: 0 | ADK47: 0 | ADL47: 0 | ADM47: 0 | ADN47: 0 | ADO47: 0 | ADP47: 0 | ADQ47: 0 | ADR47: 0 | ADS47: 0 | ADT47: 0 | ADU47: 0 | ADV47: 0 | ADW47: 0 | ADX47: 0 | ADY47: 0 | ADZ47: 0 | AEA47: 0 | AEB47: 0 | AEC47: 0 | AED47: 0 | AEE47: 0 | AEF47: 0 | AEG47: 0 | AEH47: 0 | AEI47: 0 | AEJ47: 0 | AEK47: 0 | AEL47: 0 | AEM47: 0 | AEN47: 0 | AEO47: 0 | AEP47: 0 | AEQ47: 0 | AER47: 0 | AES47: 0 | AET47: 0 | AEU47: 0 | AEV47: 0 | AEW47: 0 | AEX47: 0 | AEY47: 0 | AEZ47: 0 | AFA47: 0 | AFB47: 0 | AFC47: 0 | AFD47: 0 | AFE47: 0 | AFF47: 0 | AFG47: 0 | AFH47: 0 | AFI47: 0 | AFJ47: 0 | AFK47: 0 | AFL47: 0 | AFM47: 0 | AFN47: 0 | AFO47: 0 | AFP47: 0 | AFQ47: 0 | AFR47: =SUM(AFR3:AFR46) -> 0 | AFS47: 0 | AFT47: 0 | AFU47: 0 | AFV47: 0 | AFW47: 0 | AFX47: 0 | AFY47: 0 | AFZ47: 0 | AGA47: 0 | AGB47: 0 | AGC47: 0 | AGD47: 0 | AGE47: 0 | AGF47: 0 | AGG47: 0 | AGH47: 0 | AGI47: 0 | AGJ47: 0 | AGK47: 0 | AGL47: 0 | AGM47: 0 | AGN47: 0 | AGO47: 0 | AGP47: 0 | AGQ47: 0 | AGR47: 0 | AGS47: 0 | AGT47: 0 | AGU47: 0 | AGV47: 0 | AGW47: 0 | AGX47: 0 | AGY47: 0 | AGZ47: 0 | AHA47: 0 | AHB47: 0 | AHC47: 0 | AHD47: 0 | AHE47: 0 | AHF47: 0 | AHG47: 0 | AHH47: 0 | AHI47: 0 | AHJ47: 0 | AHK47: 0 | AHL47: 0 | AHM47: 0 | AHN47: 0 | AHO47: 0 | AHP47: 0 | AHQ47: 0 | AHR47: 0 | AHS47: 0 | AHT47: 0 | AHU47: 0 | AHV47: 0 | AHW47: 0 | AHX47: 0 | AHY47: 0 | AHZ47: 0 | AIA47: 0 | AIB47: 0 | AIC47: 0 | AID47: =SUM(AID3:AID46) -> 0 | AIE47: 0 | AIF47: 0 | AIG47: 0 | AIH47: 0 | AII47: 0 | AIJ47: 0 | AIK47: 0 | AIL47: 0 | AIM47: 0 | AIN47: 0 | AIO47: 0 | AIP47: 0 | AIQ47: 0 | AIR47: 0 | AIS47: 0 | AIT47: 0 | AIU47: 0 | AIV47: 0 | AIW47: 0 | AIX47: 0 | AIY47: 0 | AIZ47: 0 | AJA47: 0 | AJB47: 0 | AJC47: 0 | AJD47: 0 | AJE47: 0 | AJF47: 0 | AJG47: 0 | AJH47: 0 | AJI47: 0 | AJJ47: 0 | AJK47: 0 | AJL47: 0 | AJM47: 0 | AJN47: 0 | AJO47: 0 | AJP47: 0 | AJQ47: 0 | AJR47: 0 | AJS47: 0 | AJT47: 0 | AJU47: 0 | AJV47: 0 | AJW47: 0 | AJX47: 0 | AJY47: 0 | AJZ47: 0 | AKA47: 0 | AKB47: 0 | AKC47: 0 | AKD47: 0 | AKE47: 0 | AKF47: 0 | AKG47: 0 | AKH47: 0 | AKI47: 0 | AKJ47: 0 | AKK47: 0 | AKL47: 0 | AKM47: 0 | AKN47: 0 | AKO47: 0 | AKP47: =SUM(AKP3:AKP46) -> 0 | AKQ47: 0 | AKR47: 0 | AKS47: 0 | AKT47: 0 | AKU47: 0 | AKV47: 0 | AKW47: 0 | AKX47: 0 | AKY47: 0 | AKZ47: 0 | ALA47: 0 | ALB47: 0 | ALC47: 0 | ALD47: 0 | ALE47: 0 | ALF47: 0 | ALG47: 0 | ALH47: 0 | ALI47: 0 | ALJ47: 0 | ALK47: 0 | ALL47: 0 | ALM47: 0 | ALN47: 0 | ALO47: 0 | ALP47: 0 | ALQ47: 0 | ALR47: 0 | ALS47: 0 | ALT47: 0 | ALU47: 0 | ALV47: 0 | ALW47: 0 | ALX47: 0 | ALY47: 0 | ALZ47: 0 | AMA47: 0 | AMB47: 0 | AMC47: 0 | AMD47: 0 | AME47: 0 | AMF47: 0 | AMG47: 0 | AMH47: 0 | AMI47: 0 | AMJ47: 0 | AMK47: 0 | AML47: 0 | AMM47: 0 | AMN47: 0 | AMO47: 0 | AMP47: 0 | AMQ47: 0 | AMR47: 0 | AMS47: 0 | AMT47: 0 | AMU47: 0 | AMV47: 0 | AMW47: 0 | AMX47: 0 | AMY47: 0 | AMZ47: 0 | ANA47: 0 | ANB47: =SUM(ANB3:ANB46) -> 0 | ANC47: 0 | AND47: 0 | ANE47: 0 | ANF47: 0 | ANG47: 0 | ANH47: 0 | ANI47: 0 | ANJ47: 0 | ANK47: 0 | ANL47: 0 | ANM47: 0 | ANN47: 0 | ANO47: 0 | ANP47: 0 | ANQ47: 0 | ANR47: 0 | ANS47: 0 | ANT47: 0 | ANU47: 0 | ANV47: 0 | ANW47: 0 | ANX47: 0 | ANY47: 0 | ANZ47: 0 | AOA47: 0 | AOB47: 0 | AOC47: 0 | AOD47: 0 | AOE47: 0 | AOF47: 0 | AOG47: 0 | AOH47: 0 | AOI47: 0 | AOJ47: 0 | AOK47: 0 | AOL47: 0 | AOM47: 0 | AON47: 0 | AOO47: 0 | AOP47: 0 | AOQ47: 0 | AOR47: 0 | AOS47: 0 | AOT47: 0 | AOU47: 0 | AOV47: 0 | AOW47: 0 | AOX47: 0 | AOY47: 0 | AOZ47: 0 | APA47: 0 | APB47: 0 | APC47: 0 | APD47: 0 | APE47: 0 | APF47: 0 | APG47: 0 | APH47: 0 | API47: 0 | APJ47: 0 | APK47: 0 | APL47: 0 | APM47: 0 | APN47: =SUM(APN3:APN46) -> 0 | APO47: 0 | APP47: 0 | APQ47: 0 | APR47: 0 | APS47: 0 | APT47: 0 | APU47: 0 | APV47: 0 | APW47: 0 | APX47: 0 | APY47: 0 | APZ47: 0 | AQA47: 0 | AQB47: 0 | AQC47: 0 | AQD47: 0 | AQE47: 0 | AQF47: 0 | AQG47: 0 | AQH47: 0 | AQI47: 0 | AQJ47: 0 | AQK47: 0 | AQL47: 0 | AQM47: 0 | AQN47: 0 | AQO47: 0 | AQP47: 0 | AQQ47: 0 | AQR47: 0 | AQS47: 0 | AQT47: 0 | AQU47: 0 | AQV47: 0 | AQW47: 0 | AQX47: 0 | AQY47: 0 | AQZ47: 0 | ARA47: 0 | ARB47: 0 | ARC47: 0 | ARD47: 0 | ARE47: 0 | ARF47: 0 | ARG47: 0 | ARH47: 0 | ARI47: 0 | ARJ47: 0 | ARK47: 0 | ARL47: 0 | ARM47: 0 | ARN47: 0 | ARO47: 0 | ARP47: 0 | ARQ47: 0 | ARR47: 0 | ARS47: 0 | ART47: 0 | ARU47: 0 | ARV47: 0 | ARW47: 0 | ARX47: 0 | ARY47: 0 | ARZ47: =SUM(ARZ3:ARZ46) -> 0 | ASA47: 0 | ASB47: 0 | ASC47: 0 | ASD47: 0 | ASE47: 0 | ASF47: 0 | ASG47: 0 | ASH47: 0 | ASI47: 0 | ASJ47: 0 | ASK47: 0 | ASL47: 0 | ASM47: 0 | ASN47: 0 | ASO47: 0 | ASP47: 0 | ASQ47: 0 | ASR47: 0 | ASS47: 0 | AST47: 0 | ASU47: 0 | ASV47: 0 | ASW47: 0 | ASX47: 0 | ASY47: 0 | ASZ47: 0 | ATA47: 0 | ATB47: 0 | ATC47: 0 | ATD47: 0 | ATE47: 0 | ATF47: 0 | ATG47: 0 | ATH47: 0 | ATI47: 0 | ATJ47: 0 | ATK47: 0 | ATL47: 0 | ATM47: 0 | ATN47: 0 | ATO47: 0 | ATP47: 0 | ATQ47: 0 | ATR47: 0 | ATS47: 0 | ATT47: 0 | ATU47: 0 | ATV47: 0 | ATW47: 0 | ATX47: 0 | ATY47: 0 | ATZ47: 0 | AUA47: 0 | AUB47: 0 | AUC47: 0 | AUD47: 0 | AUE47: 0 | AUF47: 0 | AUG47: 0 | AUH47: 0 | AUI47: 0 | AUJ47: 0 | AUK47: 0 | AUL47: =SUM(AUL3:AUL46) -> 0 | AUM47: 0 | AUN47: 0 | AUO47: 0 | AUP47: 0 | AUQ47: 0 | AUR47: 0 | AUS47: 0 | AUT47: 0 | AUU47: 0 | AUV47: 0 | AUW47: 0 | AUX47: 0 | AUY47: 0 | AUZ47: 0 | AVA47: 0 | AVB47: 0 | AVC47: 0 | AVD47: 0 | AVE47: 0 | AVF47: 0 | AVG47: 0 | AVH47: 0 | AVI47: 0 | AVJ47: 0 | AVK47: 0 | AVL47: 0 | AVM47: 0 | AVN47: 0 | AVO47: 0 | AVP47: 0 | AVQ47: 0 | AVR47: 0 | AVS47: 0 | AVT47: 0 | AVU47: 0 | AVV47: 0 | AVW47: 0 | AVX47: 0 | AVY47: 0 | AVZ47: 0 | AWA47: 0 | AWB47: 0 | AWC47: 0 | AWD47: 0 | AWE47: 0 | AWF47: 0 | AWG47: 0 | AWH47: 0 | AWI47: 0 | AWJ47: 0 | AWK47: 0 | AWL47: 0 | AWM47: 0 | AWN47: 0 | AWO47: 0 | AWP47: 0 | AWQ47: 0 | AWR47: 0 | AWS47: 0 | AWT47: 0 | AWU47: 0 | AWV47: 0 | AWW47: 0 | AWX47: =SUM(AWX3:AWX46) -> 0 | AWY47: 0 | AWZ47: 0 | AXA47: 0 | AXB47: 0 | AXC47: 0 | AXD47: 0 | AXE47: 0 | AXF47: 0 | AXG47: 0 | AXH47: 0 | AXI47: 0 | AXJ47: 0 | AXK47: 0 | AXL47: 0 | AXM47: 0 | AXN47: 0 | AXO47: 0 | AXP47: 0 | AXQ47: 0 | AXR47: 0 | AXS47: 0 | AXT47: 0 | AXU47: 0 | AXV47: 0 | AXW47: 0 | AXX47: 0 | AXY47: 0 | AXZ47: 0 | AYA47: 0 | AYB47: 0 | AYC47: 0 | AYD47: 0 | AYE47: 0 | AYF47: 0 | AYG47: 0 | AYH47: 0 | AYI47: 0 | AYJ47: 0 | AYK47: 0 | AYL47: 0 | AYM47: 0 | AYN47: 0 | AYO47: 0 | AYP47: 0 | AYQ47: 0 | AYR47: 0 | AYS47: 0 | AYT47: 0 | AYU47: 0 | AYV47: 0 | AYW47: 0 | AYX47: 0 | AYY47: 0 | AYZ47: 0 | AZA47: 0 | AZB47: 0 | AZC47: 0 | AZD47: 0 | AZE47: 0 | AZF47: 0 | AZG47: 0 | AZH47: 0 | AZI47: 0 | AZJ47: =SUM(AZJ3:AZJ46) -> 0 | AZK47: 0 | AZL47: 0 | AZM47: 0 | AZN47: 0 | AZO47: 0 | AZP47: 0 | AZQ47: 0 | AZR47: 0 | AZS47: 0 | AZT47: 0 | AZU47: 0 | AZV47: 0 | AZW47: 0 | AZX47: 0 | AZY47: 0 | AZZ47: 0 | BAA47: 0 | BAB47: 0 | BAC47: 0 | BAD47: 0 | BAE47: 0 | BAF47: 0 | BAG47: 0 | BAH47: 0 | BAI47: 0 | BAJ47: 0 | BAK47: 0 | BAL47: 0 | BAM47: 0 | BAN47: 0 | BAO47: 0 | BAP47: 0 | BAQ47: 0 | BAR47: 0 | BAS47: 0 | BAT47: 0 | BAU47: 0 | BAV47: 0 | BAW47: 0 | BAX47: 0 | BAY47: 0 | BAZ47: 0 | BBA47: 0 | BBB47: 0 | BBC47: 0 | BBD47: 0 | BBE47: 0 | BBF47: 0 | BBG47: 0 | BBH47: 0 | BBI47: 0 | BBJ47: 0 | BBK47: 0 | BBL47: 0 | BBM47: 0 | BBN47: 0 | BBO47: 0 | BBP47: 0 | BBQ47: 0 | BBR47: 0 | BBS47: 0 | BBT47: 0 | BBU47: 0 | BBV47: =SUM(BBV3:BBV46) -> 0 | BBW47: 0 | BBX47: 0 | BBY47: 0 | BBZ47: 0 | BCA47: 0 | BCB47: 0 | BCC47: 0 | BCD47: 0 | BCE47: 0 | BCF47: 0 | BCG47: 0 | BCH47: 0 | BCI47: 0 | BCJ47: 0 | BCK47: 0 | BCL47: 0 | BCM47: 0 | BCN47: 0 | BCO47: 0 | BCP47: 0 | BCQ47: 0 | BCR47: 0 | BCS47: 0 | BCT47: 0 | BCU47: 0 | BCV47: 0 | BCW47: 0 | BCX47: 0 | BCY47: 0 | BCZ47: 0 | BDA47: 0 | BDB47: 0 | BDC47: 0 | BDD47: 0 | BDE47: 0 | BDF47: 0 | BDG47: 0 | BDH47: 0 | BDI47: 0 | BDJ47: 0 | BDK47: 0 | BDL47: 0 | BDM47: 0 | BDN47: 0 | BDO47: 0 | BDP47: 0 | BDQ47: 0 | BDR47: 0 | BDS47: 0 | BDT47: 0 | BDU47: 0 | BDV47: 0 | BDW47: 0 | BDX47: 0 | BDY47: 0 | BDZ47: 0 | BEA47: 0 | BEB47: 0 | BEC47: 0 | BED47: 0 | BEE47: 0 | BEF47: 0 | BEG47: 0 | BEH47: =SUM(BEH3:BEH46) -> 0 | BEI47: 0 | BEJ47: 0 | BEK47: 0 | BEL47: 0 | BEM47: 0 | BEN47: 0 | BEO47: 0 | BEP47: 0 | BEQ47: 0 | BER47: 0 | BES47: 0 | BET47: 0 | BEU47: 0 | BEV47: 0 | BEW47: 0 | BEX47: 0 | BEY47: 0 | BEZ47: 0 | BFA47: 0 | BFB47: 0 | BFC47: 0 | BFD47: 0 | BFE47: 0 | BFF47: 0 | BFG47: 0 | BFH47: 0 | BFI47: 0 | BFJ47: 0 | BFK47: 0 | BFL47: 0 | BFM47: 0 | BFN47: 0 | BFO47: 0 | BFP47: 0 | BFQ47: 0 | BFR47: 0 | BFS47: 0 | BFT47: 0 | BFU47: 0 | BFV47: 0 | BFW47: 0 | BFX47: 0 | BFY47: 0 | BFZ47: 0 | BGA47: 0 | BGB47: 0 | BGC47: 0 | BGD47: 0 | BGE47: 0 | BGF47: 0 | BGG47: 0 | BGH47: 0 | BGI47: 0 | BGJ47: 0 | BGK47: 0 | BGL47: 0 | BGM47: 0 | BGN47: 0 | BGO47: 0 | BGP47: 0 | BGQ47: 0 | BGR47: 0 | BGS47: 0 | BGT47: =SUM(BGT3:BGT46) -> 0 | BGU47: 0 | BGV47: 0 | BGW47: 0 | BGX47: 0 | BGY47: 0 | BGZ47: 0 | BHA47: 0 | BHB47: 0 | BHC47: 0 | BHD47: 0 | BHE47: 0 | BHF47: 0 | BHG47: 0 | BHH47: 0 | BHI47: 0 | BHJ47: 0 | BHK47: 0 | BHL47: 0 | BHM47: 0 | BHN47: 0 | BHO47: 0 | BHP47: 0 | BHQ47: 0 | BHR47: 0 | BHS47: 0 | BHT47: 0 | BHU47: 0 | BHV47: 0 | BHW47: 0 | BHX47: 0 | BHY47: 0 | BHZ47: 0 | BIA47: 0 | BIB47: 0 | BIC47: 0 | BID47: 0 | BIE47: 0 | BIF47: 0 | BIG47: 0 | BIH47: 0 | BII47: 0 | BIJ47: 0 | BIK47: 0 | BIL47: 0 | BIM47: 0 | BIN47: 0 | BIO47: 0 | BIP47: 0 | BIQ47: 0 | BIR47: 0 | BIS47: 0 | BIT47: 0 | BIU47: 0 | BIV47: 0 | BIW47: 0 | BIX47: 0 | BIY47: 0 | BIZ47: 0 | BJA47: 0 | BJB47: 0 | BJC47: 0 | BJD47: 0 | BJE47: 0 | BJF47: =SUM(BJF3:BJF46) -> 0 | BJG47: 0 | BJH47: 0 | BJI47: 0 | BJJ47: 0 | BJK47: 0 | BJL47: 0 | BJM47: 0 | BJN47: 0 | BJO47: 0 | BJP47: 0 | BJQ47: 0 | BJR47: 0 | BJS47: 0 | BJT47: 0 | BJU47: 0 | BJV47: 0 | BJW47: 0 | BJX47: 0 | BJY47: 0 | BJZ47: 0 | BKA47: 0 | BKB47: 0 | BKC47: 0 | BKD47: 0 | BKE47: 0 | BKF47: 0 | BKG47: 0 | BKH47: 0 | BKI47: 0 | BKJ47: 0 | BKK47: 0 | BKL47: 0 | BKM47: 0 | BKN47: 0 | BKO47: 0 | BKP47: 0 | BKQ47: 0 | BKR47: 0 | BKS47: 0 | BKT47: 0 | BKU47: 0 | BKV47: 0 | BKW47: 0 | BKX47: 0 | BKY47: 0 | BKZ47: 0 | BLA47: 0 | BLB47: 0 | BLC47: 0 | BLD47: 0 | BLE47: 0 | BLF47: 0 | BLG47: 0 | BLH47: 0 | BLI47: 0 | BLJ47: 0 | BLK47: 0 | BLL47: 0 | BLM47: 0 | BLN47: 0 | BLO47: 0 | BLP47: 0 | BLQ47: 0 | BLR47: =SUM(BLR3:BLR46) -> 0 | BLS47: 0 | BLT47: 0 | BLU47: 0 | BLV47: 0 | BLW47: 0 | BLX47: 0 | BLY47: 0 | BLZ47: 0 | BMA47: 0 | BMB47: 0 | BMC47: 0 | BMD47: 0 | BME47: 0 | BMF47: 0 | BMG47: 0 | BMH47: 0 | BMI47: 0 | BMJ47: 0 | BMK47: 0 | BML47: 0 | BMM47: 0 | BMN47: 0 | BMO47: 0 | BMP47: 0 | BMQ47: 0 | BMR47: 0 | BMS47: 0 | BMT47: 0 | BMU47: 0 | BMV47: 0 | BMW47: 0 | BMX47: 0 | BMY47: 0 | BMZ47: 0 | BNA47: 0 | BNB47: 0 | BNC47: 0 | BND47: 0 | BNE47: 0 | BNF47: 0 | BNG47: 0 | BNH47: 0 | BNI47: 0 | BNJ47: 0 | BNK47: 0 | BNL47: 0 | BNM47: 0 | BNN47: 0 | BNO47: 0 | BNP47: 0 | BNQ47: 0 | BNR47: 0 | BNS47: 0 | BNT47: 0 | BNU47: 0 | BNV47: 0 | BNW47: 0 | BNX47: 0 | BNY47: 0 | BNZ47: 0 | BOA47: 0 | BOB47: 0 | BOC47: 0 | BOD47: =SUM(BOD3:BOD46) -> 0 | BOE47: 0 | BOF47: 0 | BOG47: 0 | BOH47: 0 | BOI47: 0 | BOJ47: 0 | BOK47: 0 | BOL47: 0 | BOM47: 0 | BON47: 0 | BOO47: 0 | BOP47: 0 | BOQ47: 0 | BOR47: 0 | BOS47: 0 | BOT47: 0 | BOU47: 0 | BOV47: 0 | BOW47: 0 | BOX47: 0 | BOY47: 0 | BOZ47: 0 | BPA47: 0 | BPB47: 0 | BPC47: 0 | BPD47: 0 | BPE47: 0 | BPF47: 0 | BPG47: 0 | BPH47: 0 | BPI47: 0 | BPJ47: 0 | BPK47: 0 | BPL47: 0 | BPM47: 0 | BPN47: 0 | BPO47: 0 | BPP47: 0 | BPQ47: 0 | BPR47: 0 | BPS47: 0 | BPT47: 0 | BPU47: 0 | BPV47: 0 | BPW47: 0 | BPX47: 0 | BPY47: 0 | BPZ47: 0 | BQA47: 0 | BQB47: 0 | BQC47: 0 | BQD47: 0 | BQE47: 0 | BQF47: 0 | BQG47: 0 | BQH47: 0 | BQI47: 0 | BQJ47: 0 | BQK47: 0 | BQL47: 0 | BQM47: 0 | BQN47: 0 | BQO47: 0 | BQP47: =SUM(BQP3:BQP46) -> 0 | BQQ47: 0 | BQR47: 0 | BQS47: 0 | BQT47: 0 | BQU47: 0 | BQV47: 0 | BQW47: 0 | BQX47: 0 | BQY47: 0 | BQZ47: 0 | BRA47: 0 | BRB47: 0 | BRC47: 0 | BRD47: 0 | BRE47: 0 | BRF47: 0 | BRG47: 0 | BRH47: 0 | BRI47: 0 | BRJ47: 0 | BRK47: 0 | BRL47: 0 | BRM47: 0 | BRN47: 0 | BRO47: 0 | BRP47: 0 | BRQ47: 0 | BRR47: 0 | BRS47: 0 | BRT47: 0 | BRU47: 0 | BRV47: 0 | BRW47: 0 | BRX47: 0 | BRY47: 0 | BRZ47: 0 | BSA47: 0 | BSB47: 0 | BSC47: 0 | BSD47: 0 | BSE47: 0 | BSF47: 0 | BSG47: 0 | BSH47: 0 | BSI47: 0 | BSJ47: 0 | BSK47: 0 | BSL47: 0 | BSM47: 0 | BSN47: 0 | BSO47: 0 | BSP47: 0 | BSQ47: 0 | BSR47: 0 | BSS47: 0 | BST47: 0 | BSU47: 0 | BSV47: 0 | BSW47: 0 | BSX47: 0 | BSY47: 0 | BSZ47: 0 | BTA47: 0 | BTB47: =SUM(BTB3:BTB46) -> 0 | BTC47: 0 | BTD47: 0 | BTE47: 0 | BTF47: 0 | BTG47: 0 | BTH47: 0 | BTI47: 0 | BTJ47: 0 | BTK47: 0 | BTL47: 0 | BTM47: 0 | BTN47: 0 | BTO47: 0 | BTP47: 0 | BTQ47: 0 | BTR47: 0 | BTS47: 0 | BTT47: 0 | BTU47: 0 | BTV47: 0 | BTW47: 0 | BTX47: 0 | BTY47: 0 | BTZ47: 0 | BUA47: 0 | BUB47: 0 | BUC47: 0 | BUD47: 0 | BUE47: 0 | BUF47: 0 | BUG47: 0 | BUH47: 0 | BUI47: 0 | BUJ47: 0 | BUK47: 0 | BUL47: 0 | BUM47: 0 | BUN47: 0 | BUO47: 0 | BUP47: 0 | BUQ47: 0 | BUR47: 0 | BUS47: 0 | BUT47: 0 | BUU47: 0 | BUV47: 0 | BUW47: 0 | BUX47: 0 | BUY47: 0 | BUZ47: 0 | BVA47: 0 | BVB47: 0 | BVC47: 0 | BVD47: 0 | BVE47: 0 | BVF47: 0 | BVG47: 0 | BVH47: 0 | BVI47: 0 | BVJ47: 0 | BVK47: 0 | BVL47: 0 | BVM47: 0 | BVN47: =SUM(BVN3:BVN46) -> 0 | BVO47: 0 | BVP47: 0 | BVQ47: 0 | BVR47: 0 | BVS47: 0 | BVT47: 0 | BVU47: 0 | BVV47: 0 | BVW47: 0 | BVX47: 0 | BVY47: 0 | BVZ47: 0 | BWA47: 0 | BWB47: 0 | BWC47: 0 | BWD47: 0 | BWE47: 0 | BWF47: 0 | BWG47: 0 | BWH47: 0 | BWI47: 0 | BWJ47: 0 | BWK47: 0 | BWL47: 0 | BWM47: 0 | BWN47: 0 | BWO47: 0 | BWP47: 0 | BWQ47: 0 | BWR47: 0 | BWS47: 0 | BWT47: 0 | BWU47: 0 | BWV47: 0 | BWW47: 0 | BWX47: 0 | BWY47: 0 | BWZ47: 0 | BXA47: 0 | BXB47: 0 | BXC47: 0 | BXD47: 0 | BXE47: 0 | BXF47: 0 | BXG47: 0 | BXH47: 0 | BXI47: 0 | BXJ47: 0 | BXK47: 0 | BXL47: 0 | BXM47: 0 | BXN47: 0 | BXO47: 0 | BXP47: 0 | BXQ47: 0 | BXR47: 0 | BXS47: 0 | BXT47: 0 | BXU47: 0 | BXV47: 0 | BXW47: 0 | BXX47: 0 | BXY47: 0 | BXZ47: =SUM(BXZ3:BXZ46) -> 0 | BYA47: 0 | BYB47: 0 | BYC47: 0 | BYD47: 0 | BYE47: 0 | BYF47: 0 | BYG47: 0 | BYH47: 0 | BYI47: 0 | BYJ47: 0 | BYK47: 0 | BYL47: 0 | BYM47: 0 | BYN47: 0 | BYO47: 0 | BYP47: 0 | BYQ47: 0 | BYR47: 0 | BYS47: 0 | BYT47: 0 | BYU47: 0 | BYV47: 0 | BYW47: 0 | BYX47: 0 | BYY47: 0 | BYZ47: 0 | BZA47: 0 | BZB47: 0 | BZC47: 0 | BZD47: 0 | BZE47: 0 | BZF47: 0 | BZG47: 0 | BZH47: 0 | BZI47: 0 | BZJ47: 0 | BZK47: 0 | BZL47: 0 | BZM47: 0 | BZN47: 0 | BZO47: 0 | BZP47: 0 | BZQ47: 0 | BZR47: 0 | BZS47: 0 | BZT47: 0 | BZU47: 0 | BZV47: 0 | BZW47: 0 | BZX47: 0 | BZY47: 0 | BZZ47: 0 | CAA47: 0 | CAB47: 0 | CAC47: 0 | CAD47: 0 | CAE47: 0 | CAF47: 0 | CAG47: 0 | CAH47: 0 | CAI47: 0 | CAJ47: 0 | CAK47: 0 | CAL47: =SUM(CAL3:CAL46) -> 0 | CAM47: 0 | CAN47: 0 | CAO47: 0 | CAP47: 0 | CAQ47: 0 | CAR47: 0 | CAS47: 0 | CAT47: 0 | CAU47: 0 | CAV47: 0 | CAW47: 0 | CAX47: 0 | CAY47: 0 | CAZ47: 0 | CBA47: 0 | CBB47: 0 | CBC47: 0 | CBD47: 0 | CBE47: 0 | CBF47: 0 | CBG47: 0 | CBH47: 0 | CBI47: 0 | CBJ47: 0 | CBK47: 0 | CBL47: 0 | CBM47: 0 | CBN47: 0 | CBO47: 0 | CBP47: 0 | CBQ47: 0 | CBR47: 0 | CBS47: 0 | CBT47: 0 | CBU47: 0 | CBV47: 0 | CBW47: 0 | CBX47: 0 | CBY47: 0 | CBZ47: 0 | CCA47: 0 | CCB47: 0 | CCC47: 0 | CCD47: 0 | CCE47: 0 | CCF47: 0 | CCG47: 0 | CCH47: 0 | CCI47: 0 | CCJ47: 0 | CCK47: 0 | CCL47: 0 | CCM47: 0 | CCN47: 0 | CCO47: 0 | CCP47: 0 | CCQ47: 0 | CCR47: 0 | CCS47: 0 | CCT47: 0 | CCU47: 0 | CCV47: 0 | CCW47: 0 | CCX47: =SUM(CCX3:CCX46) -> 0 | CCY47: 0 | CCZ47: 0 | CDA47: 0 | CDB47: 0 | CDC47: 0 | CDD47: 0 | CDE47: 0 | CDF47: 0 | CDG47: 0 | CDH47: 0 | CDI47: 0 | CDJ47: 0 | CDK47: 0 | CDL47: 0 | CDM47: 0 | CDN47: 0 | CDO47: 0 | CDP47: 0 | CDQ47: 0 | CDR47: 0 | CDS47: 0 | CDT47: 0 | CDU47: 0 | CDV47: 0 | CDW47: 0 | CDX47: 0 | CDY47: 0 | CDZ47: 0 | CEA47: 0 | CEB47: 0 | CEC47: 0 | CED47: 0 | CEE47: 0 | CEF47: 0 | CEG47: 0 | CEH47: 0 | CEI47: 0 | CEJ47: 0 | CEK47: 0 | CEL47: 0 | CEM47: 0 | CEN47: 0 | CEO47: 0 | CEP47: 0 | CEQ47: 0 | CER47: 0 | CES47: 0 | CET47: 0 | CEU47: 0 | CEV47: 0 | CEW47: 0 | CEX47: 0 | CEY47: 0 | CEZ47: 0 | CFA47: 0 | CFB47: 0 | CFC47: 0 | CFD47: 0 | CFE47: 0 | CFF47: 0 | CFG47: 0 | CFH47: 0 | CFI47: 0 | CFJ47: =SUM(CFJ3:CFJ46) -> 0 | CFK47: 0 | CFL47: 0 | CFM47: 0 | CFN47: 0 | CFO47: 0 | CFP47: 0 | CFQ47: 0 | CFR47: 0 | CFS47: 0 | CFT47: 0 | CFU47: 0 | CFV47: 0 | CFW47: 0 | CFX47: 0 | CFY47: 0 | CFZ47: 0 | CGA47: 0 | CGB47: 0 | CGC47: 0 | CGD47: 0 | CGE47: 0 | CGF47: 0 | CGG47: 0 | CGH47: 0 | CGI47: 0 | CGJ47: 0 | CGK47: 0 | CGL47: 0 | CGM47: 0 | CGN47: 0 | CGO47: 0 | CGP47: 0 | CGQ47: 0 | CGR47: 0 | CGS47: 0 | CGT47: 0 | CGU47: 0 | CGV47: 0 | CGW47: 0 | CGX47: 0 | CGY47: 0 | CGZ47: 0 | CHA47: 0 | CHB47: 0 | CHC47: 0 | CHD47: 0 | CHE47: 0 | CHF47: 0 | CHG47: 0 | CHH47: 0 | CHI47: 0 | CHJ47: 0 | CHK47: 0 | CHL47: 0 | CHM47: 0 | CHN47: 0 | CHO47: 0 | CHP47: 0 | CHQ47: 0 | CHR47: 0 | CHS47: 0 | CHT47: 0 | CHU47: 0 | CHV47: =SUM(CHV3:CHV46) -> 0 | CHW47: 0 | CHX47: 0 | CHY47: 0 | CHZ47: 0 | CIA47: 0 | CIB47: 0 | CIC47: 0 | CID47: 0 | CIE47: 0 | CIF47: 0 | CIG47: 0 | CIH47: 0 | CII47: 0 | CIJ47: 0 | CIK47: 0 | CIL47: 0 | CIM47: 0 | CIN47: 0 | CIO47: 0 | CIP47: 0 | CIQ47: 0 | CIR47: 0 | CIS47: 0 | CIT47: 0 | CIU47: 0 | CIV47: 0 | CIW47: 0 | CIX47: 0 | CIY47: 0 | CIZ47: 0 | CJA47: 0 | CJB47: 0 | CJC47: 0 | CJD47: 0 | CJE47: 0 | CJF47: 0 | CJG47: 0 | CJH47: 0 | CJI47: 0 | CJJ47: 0 | CJK47: 0 | CJL47: 0 | CJM47: 0 | CJN47: 0 | CJO47: 0 | CJP47: 0 | CJQ47: 0 | CJR47: 0 | CJS47: 0 | CJT47: 0 | CJU47: 0 | CJV47: 0 | CJW47: 0 | CJX47: 0 | CJY47: 0 | CJZ47: 0 | CKA47: 0 | CKB47: 0 | CKC47: 0 | CKD47: 0 | CKE47: 0 | CKF47: 0 | CKG47: 0 | CKH47: =SUM(CKH3:CKH46) -> 0 | CKI47: 0 | CKJ47: 0 | CKK47: 0 | CKL47: 0 | CKM47: 0 | CKN47: 0 | CKO47: 0 | CKP47: 0 | CKQ47: 0 | CKR47: 0 | CKS47: 0 | CKT47: 0 | CKU47: 0 | CKV47: 0 | CKW47: 0 | CKX47: 0 | CKY47: 0 | CKZ47: 0 | CLA47: 0 | CLB47: 0 | CLC47: 0 | CLD47: 0 | CLE47: 0 | CLF47: 0 | CLG47: 0 | CLH47: 0 | CLI47: 0 | CLJ47: 0 | CLK47: 0 | CLL47: 0 | CLM47: 0 | CLN47: 0 | CLO47: 0 | CLP47: 0 | CLQ47: 0 | CLR47: 0 | CLS47: 0 | CLT47: 0 | CLU47: 0 | CLV47: 0 | CLW47: 0 | CLX47: 0 | CLY47: 0 | CLZ47: 0 | CMA47: 0 | CMB47: 0 | CMC47: 0 | CMD47: 0 | CME47: 0 | CMF47: 0 | CMG47: 0 | CMH47: 0 | CMI47: 0 | CMJ47: 0 | CMK47: 0 | CML47: 0 | CMM47: 0 | CMN47: 0 | CMO47: 0 | CMP47: 0 | CMQ47: 0 | CMR47: 0 | CMS47: 0 | CMT47: =SUM(CMT3:CMT46) -> 0 | CMU47: 0 | CMV47: 0 | CMW47: 0 | CMX47: 0 | CMY47: 0 | CMZ47: 0 | CNA47: 0 | CNB47: 0 | CNC47: 0 | CND47: 0 | CNE47: 0 | CNF47: 0 | CNG47: 0 | CNH47: 0 | CNI47: 0 | CNJ47: 0 | CNK47: 0 | CNL47: 0 | CNM47: 0 | CNN47: 0 | CNO47: 0 | CNP47: 0 | CNQ47: 0 | CNR47: 0 | CNS47: 0 | CNT47: 0 | CNU47: 0 | CNV47: 0 | CNW47: 0 | CNX47: 0 | CNY47: 0 | CNZ47: 0 | COA47: 0 | COB47: 0 | COC47: 0 | COD47: 0 | COE47: 0 | COF47: 0 | COG47: 0 | COH47: 0 | COI47: 0 | COJ47: 0 | COK47: 0 | COL47: 0 | COM47: 0 | CON47: 0 | COO47: 0 | COP47: 0 | COQ47: 0 | COR47: 0 | COS47: 0 | COT47: 0 | COU47: 0 | COV47: 0 | COW47: 0 | COX47: 0 | COY47: 0 | COZ47: 0 | CPA47: 0 | CPB47: 0 | CPC47: 0 | CPD47: 0 | CPE47: 0 | CPF47: =SUM(CPF3:CPF46) -> 0 | CPG47: 0 | CPH47: 0 | CPI47: 0 | CPJ47: 0 | CPK47: 0 | CPL47: 0 | CPM47: 0 | CPN47: 0 | CPO47: 0 | CPP47: 0 | CPQ47: 0 | CPR47: 0 | CPS47: 0 | CPT47: 0 | CPU47: 0 | CPV47: 0 | CPW47: 0 | CPX47: 0 | CPY47: 0 | CPZ47: 0 | CQA47: 0 | CQB47: 0 | CQC47: 0 | CQD47: 0 | CQE47: 0 | CQF47: 0 | CQG47: 0 | CQH47: 0 | CQI47: 0 | CQJ47: 0 | CQK47: 0 | CQL47: 0 | CQM47: 0 | CQN47: 0 | CQO47: 0 | CQP47: 0 | CQQ47: 0 | CQR47: 0 | CQS47: 0 | CQT47: 0 | CQU47: 0 | CQV47: 0 | CQW47: 0 | CQX47: 0 | CQY47: 0 | CQZ47: 0 | CRA47: 0 | CRB47: 0 | CRC47: 0 | CRD47: 0 | CRE47: 0 | CRF47: 0 | CRG47: 0 | CRH47: 0 | CRI47: 0 | CRJ47: 0 | CRK47: 0 | CRL47: 0 | CRM47: 0 | CRN47: 0 | CRO47: 0 | CRP47: 0 | CRQ47: 0 | CRR47: =SUM(CRR3:CRR46) -> 0 | CRS47: 0 | CRT47: 0 | CRU47: 0 | CRV47: 0 | CRW47: 0 | CRX47: 0 | CRY47: 0 | CRZ47: 0 | CSA47: 0 | CSB47: 0 | CSC47: 0 | CSD47: 0 | CSE47: 0 | CSF47: 0 | CSG47: 0 | CSH47: 0 | CSI47: 0 | CSJ47: 0 | CSK47: 0 | CSL47: 0 | CSM47: 0 | CSN47: 0 | CSO47: 0 | CSP47: 0 | CSQ47: 0 | CSR47: 0 | CSS47: 0 | CST47: 0 | CSU47: 0 | CSV47: 0 | CSW47: 0 | CSX47: 0 | CSY47: 0 | CSZ47: 0 | CTA47: 0 | CTB47: 0 | CTC47: 0 | CTD47: 0 | CTE47: 0 | CTF47: 0 | CTG47: 0 | CTH47: 0 | CTI47: 0 | CTJ47: 0 | CTK47: 0 | CTL47: 0 | CTM47: 0 | CTN47: 0 | CTO47: 0 | CTP47: 0 | CTQ47: 0 | CTR47: 0 | CTS47: 0 | CTT47: 0 | CTU47: 0 | CTV47: 0 | CTW47: 0 | CTX47: 0 | CTY47: 0 | CTZ47: 0 | CUA47: 0 | CUB47: 0 | CUC47: 0 | CUD47: =SUM(CUD3:CUD46) -> 0 | CUE47: 0 | CUF47: 0 | CUG47: 0 | CUH47: 0 | CUI47: 0 | CUJ47: 0 | CUK47: 0 | CUL47: 0 | CUM47: 0 | CUN47: 0 | CUO47: 0 | CUP47: 0 | CUQ47: 0 | CUR47: 0 | CUS47: 0 | CUT47: 0 | CUU47: 0 | CUV47: 0 | CUW47: 0 | CUX47: 0 | CUY47: 0 | CUZ47: 0 | CVA47: 0 | CVB47: 0 | CVC47: 0 | CVD47: 0 | CVE47: 0 | CVF47: 0 | CVG47: 0 | CVH47: 0 | CVI47: 0 | CVJ47: 0 | CVK47: 0 | CVL47: 0 | CVM47: 0 | CVN47: 0 | CVO47: 0 | CVP47: 0 | CVQ47: 0 | CVR47: 0 | CVS47: 0 | CVT47: 0 | CVU47: 0 | CVV47: 0 | CVW47: 0 | CVX47: 0 | CVY47: 0 | CVZ47: 0 | CWA47: 0 | CWB47: 0 | CWC47: 0 | CWD47: 0 | CWE47: 0 | CWF47: 0 | CWG47: 0 | CWH47: 0 | CWI47: 0 | CWJ47: 0 | CWK47: 0 | CWL47: 0 | CWM47: 0 | CWN47: 0 | CWO47: 0 | CWP47: =SUM(CWP3:CWP46) -> 0 | CWQ47: 0 | CWR47: 0 | CWS47: 0 | CWT47: 0 | CWU47: 0 | CWV47: 0 | CWW47: 0 | CWX47: 0 | CWY47: 0 | CWZ47: 0 | CXA47: 0 | CXB47: 0 | CXC47: 0 | CXD47: 0 | CXE47: 0 | CXF47: 0 | CXG47: 0 | CXH47: 0 | CXI47: 0 | CXJ47: 0 | CXK47: 0 | CXL47: 0 | CXM47: 0 | CXN47: 0 | CXO47: 0 | CXP47: 0 | CXQ47: 0 | CXR47: 0 | CXS47: 0 | CXT47: 0 | CXU47: 0 | CXV47: 0 | CXW47: 0 | CXX47: 0 | CXY47: 0 | CXZ47: 0 | CYA47: 0 | CYB47: 0 | CYC47: 0 | CYD47: 0 | CYE47: 0 | CYF47: 0 | CYG47: 0 | CYH47: 0 | CYI47: 0 | CYJ47: 0 | CYK47: 0 | CYL47: 0 | CYM47: 0 | CYN47: 0 | CYO47: 0 | CYP47: 0 | CYQ47: 0 | CYR47: 0 | CYS47: 0 | CYT47: 0 | CYU47: 0 | CYV47: 0 | CYW47: 0 | CYX47: 0 | CYY47: 0 | CYZ47: 0 | CZA47: 0 | CZB47: =SUM(CZB3:CZB46) -> 0 | CZC47: 0 | CZD47: 0 | CZE47: 0 | CZF47: 0 | CZG47: 0 | CZH47: 0 | CZI47: 0 | CZJ47: 0 | CZK47: 0 | CZL47: 0 | CZM47: 0 | CZN47: 0 | CZO47: 0 | CZP47: 0 | CZQ47: 0 | CZR47: 0 | CZS47: 0 | CZT47: 0 | CZU47: 0 | CZV47: 0 | CZW47: 0 | CZX47: 0 | CZY47: 0 | CZZ47: 0 | DAA47: 0 | DAB47: 0 | DAC47: 0 | DAD47: 0 | DAE47: 0 | DAF47: 0 | DAG47: 0 | DAH47: 0 | DAI47: 0 | DAJ47: 0 | DAK47: 0 | DAL47: 0 | DAM47: 0 | DAN47: 0 | DAO47: 0 | DAP47: 0 | DAQ47: 0 | DAR47: 0 | DAS47: 0 | DAT47: 0 | DAU47: 0 | DAV47: 0 | DAW47: 0 | DAX47: 0 | DAY47: 0 | DAZ47: 0 | DBA47: 0 | DBB47: 0 | DBC47: 0 | DBD47: 0 | DBE47: 0 | DBF47: 0 | DBG47: 0 | DBH47: 0 | DBI47: 0 | DBJ47: 0 | DBK47: 0 | DBL47: 0 | DBM47: 0 | DBN47: =SUM(DBN3:DBN46) -> 0 | DBO47: 0 | DBP47: 0 | DBQ47: 0 | DBR47: 0 | DBS47: 0 | DBT47: 0 | DBU47: 0 | DBV47: 0 | DBW47: 0 | DBX47: 0 | DBY47: 0 | DBZ47: 0 | DCA47: 0 | DCB47: 0 | DCC47: 0 | DCD47: 0 | DCE47: 0 | DCF47: 0 | DCG47: 0 | DCH47: 0 | DCI47: 0 | DCJ47: 0 | DCK47: 0 | DCL47: 0 | DCM47: 0 | DCN47: 0 | DCO47: 0 | DCP47: 0 | DCQ47: 0 | DCR47: 0 | DCS47: 0 | DCT47: 0 | DCU47: 0 | DCV47: 0 | DCW47: 0 | DCX47: 0 | DCY47: 0 | DCZ47: 0 | DDA47: 0 | DDB47: 0 | DDC47: 0 | DDD47: 0 | DDE47: 0 | DDF47: 0 | DDG47: 0 | DDH47: 0 | DDI47: 0 | DDJ47: 0 | DDK47: 0 | DDL47: 0 | DDM47: 0 | DDN47: 0 | DDO47: 0 | DDP47: 0 | DDQ47: 0 | DDR47: 0 | DDS47: 0 | DDT47: 0 | DDU47: 0 | DDV47: 0 | DDW47: 0 | DDX47: 0 | DDY47: 0 | DDZ47: =SUM(DDZ3:DDZ46) -> 0 | DEA47: 0 | DEB47: 0 | DEC47: 0 | DED47: 0 | DEE47: 0 | DEF47: 0 | DEG47: 0 | DEH47: 0 | DEI47: 0 | DEJ47: 0 | DEK47: 0 | DEL47: 0 | DEM47: 0 | DEN47: 0 | DEO47: 0 | DEP47: 0 | DEQ47: 0 | DER47: 0 | DES47: 0 | DET47: 0 | DEU47: 0 | DEV47: 0 | DEW47: 0 | DEX47: 0 | DEY47: 0 | DEZ47: 0 | DFA47: 0 | DFB47: 0 | DFC47: 0 | DFD47: 0 | DFE47: 0 | DFF47: 0 | DFG47: 0 | DFH47: 0 | DFI47: 0 | DFJ47: 0 | DFK47: 0 | DFL47: 0 | DFM47: 0 | DFN47: 0 | DFO47: 0 | DFP47: 0 | DFQ47: 0 | DFR47: 0 | DFS47: 0 | DFT47: 0 | DFU47: 0 | DFV47: 0 | DFW47: 0 | DFX47: 0 | DFY47: 0 | DFZ47: 0 | DGA47: 0 | DGB47: 0 | DGC47: 0 | DGD47: 0 | DGE47: 0 | DGF47: 0 | DGG47: 0 | DGH47: 0 | DGI47: 0 | DGJ47: 0 | DGK47: 0 | DGL47: =SUM(DGL3:DGL46) -> 0 | DGM47: 0 | DGN47: 0 | DGO47: 0 | DGP47: 0 | DGQ47: 0 | DGR47: 0 | DGS47: 0 | DGT47: 0 | DGU47: 0 | DGV47: 0 | DGW47: 0 | DGX47: 0 | DGY47: 0 | DGZ47: 0 | DHA47: 0 | DHB47: 0 | DHC47: 0 | DHD47: 0 | DHE47: 0 | DHF47: 0 | DHG47: 0 | DHH47: 0 | DHI47: 0 | DHJ47: 0 | DHK47: 0 | DHL47: 0 | DHM47: 0 | DHN47: 0 | DHO47: 0 | DHP47: 0 | DHQ47: 0 | DHR47: 0 | DHS47: 0 | DHT47: 0 | DHU47: 0 | DHV47: 0 | DHW47: 0 | DHX47: 0 | DHY47: 0 | DHZ47: 0 | DIA47: 0 | DIB47: 0 | DIC47: 0 | DID47: 0 | DIE47: 0 | DIF47: 0 | DIG47: 0 | DIH47: 0 | DII47: 0 | DIJ47: 0 | DIK47: 0 | DIL47: 0 | DIM47: 0 | DIN47: 0 | DIO47: 0 | DIP47: 0 | DIQ47: 0 | DIR47: 0 | DIS47: 0 | DIT47: 0 | DIU47: 0 | DIV47: 0 | DIW47: 0 | DIX47: =SUM(DIX3:DIX46) -> 0 | DIY47: 0 | DIZ47: 0 | DJA47: 0 | DJB47: 0 | DJC47: 0 | DJD47: 0 | DJE47: 0 | DJF47: 0 | DJG47: 0 | DJH47: 0 | DJI47: 0 | DJJ47: 0 | DJK47: 0 | DJL47: 0 | DJM47: 0 | DJN47: 0 | DJO47: 0 | DJP47: 0 | DJQ47: 0 | DJR47: 0 | DJS47: 0 | DJT47: 0 | DJU47: 0 | DJV47: 0 | DJW47: 0 | DJX47: 0 | DJY47: 0 | DJZ47: 0 | DKA47: 0 | DKB47: 0 | DKC47: 0 | DKD47: 0 | DKE47: 0 | DKF47: 0 | DKG47: 0 | DKH47: 0 | DKI47: 0 | DKJ47: 0 | DKK47: 0 | DKL47: 0 | DKM47: 0 | DKN47: 0 | DKO47: 0 | DKP47: 0 | DKQ47: 0 | DKR47: 0 | DKS47: 0 | DKT47: 0 | DKU47: 0 | DKV47: 0 | DKW47: 0 | DKX47: 0 | DKY47: 0 | DKZ47: 0 | DLA47: 0 | DLB47: 0 | DLC47: 0 | DLD47: 0 | DLE47: 0 | DLF47: 0 | DLG47: 0 | DLH47: 0 | DLI47: 0 | DLJ47: =SUM(DLJ3:DLJ46) -> 0 | DLK47: 0 | DLL47: 0 | DLM47: 0 | DLN47: 0 | DLO47: 0 | DLP47: 0 | DLQ47: 0 | DLR47: 0 | DLS47: 0 | DLT47: 0 | DLU47: 0 | DLV47: 0 | DLW47: 0 | DLX47: 0 | DLY47: 0 | DLZ47: 0 | DMA47: 0 | DMB47: 0 | DMC47: 0 | DMD47: 0 | DME47: 0 | DMF47: 0 | DMG47: 0 | DMH47: 0 | DMI47: 0 | DMJ47: 0 | DMK47: 0 | DML47: 0 | DMM47: 0 | DMN47: 0 | DMO47: 0 | DMP47: 0 | DMQ47: 0 | DMR47: 0 | DMS47: 0 | DMT47: 0 | DMU47: 0 | DMV47: 0 | DMW47: 0 | DMX47: 0 | DMY47: 0 | DMZ47: 0 | DNA47: 0 | DNB47: 0 | DNC47: 0 | DND47: 0 | DNE47: 0 | DNF47: 0 | DNG47: 0 | DNH47: 0 | DNI47: 0 | DNJ47: 0 | DNK47: 0 | DNL47: 0 | DNM47: 0 | DNN47: 0 | DNO47: 0 | DNP47: 0 | DNQ47: 0 | DNR47: 0 | DNS47: 0 | DNT47: 0 | DNU47: 0 | DNV47: =SUM(DNV3:DNV46) -> 0 | DNW47: 0 | DNX47: 0 | DNY47: 0 | DNZ47: 0 | DOA47: 0 | DOB47: 0 | DOC47: 0 | DOD47: 0 | DOE47: 0 | DOF47: 0 | DOG47: 0 | DOH47: 0 | DOI47: 0 | DOJ47: 0 | DOK47: 0 | DOL47: 0 | DOM47: 0 | DON47: 0 | DOO47: 0 | DOP47: 0 | DOQ47: 0 | DOR47: 0 | DOS47: 0 | DOT47: 0 | DOU47: 0 | DOV47: 0 | DOW47: 0 | DOX47: 0 | DOY47: 0 | DOZ47: 0 | DPA47: 0 | DPB47: 0 | DPC47: 0 | DPD47: 0 | DPE47: 0 | DPF47: 0 | DPG47: 0 | DPH47: 0 | DPI47: 0 | DPJ47: 0 | DPK47: 0 | DPL47: 0 | DPM47: 0 | DPN47: 0 | DPO47: 0 | DPP47: 0 | DPQ47: 0 | DPR47: 0 | DPS47: 0 | DPT47: 0 | DPU47: 0 | DPV47: 0 | DPW47: 0 | DPX47: 0 | DPY47: 0 | DPZ47: 0 | DQA47: 0 | DQB47: 0 | DQC47: 0 | DQD47: 0 | DQE47: 0 | DQF47: 0 | DQG47: 0 | DQH47: =SUM(DQH3:DQH46) -> 0 | DQI47: 0 | DQJ47: 0 | DQK47: 0 | DQL47: 0 | DQM47: 0 | DQN47: 0 | DQO47: 0 | DQP47: 0 | DQQ47: 0 | DQR47: 0 | DQS47: 0 | DQT47: 0 | DQU47: 0 | DQV47: 0 | DQW47: 0 | DQX47: 0 | DQY47: 0 | DQZ47: 0 | DRA47: 0 | DRB47: 0 | DRC47: 0 | DRD47: 0 | DRE47: 0 | DRF47: 0 | DRG47: 0 | DRH47: 0 | DRI47: 0 | DRJ47: 0 | DRK47: 0 | DRL47: 0 | DRM47: 0 | DRN47: 0 | DRO47: 0 | DRP47: 0 | DRQ47: 0 | DRR47: 0 | DRS47: 0 | DRT47: 0 | DRU47: 0 | DRV47: 0 | DRW47: 0 | DRX47: 0 | DRY47: 0 | DRZ47: 0 | DSA47: 0 | DSB47: 0 | DSC47: 0 | DSD47: 0 | DSE47: 0 | DSF47: 0 | DSG47: 0 | DSH47: 0 | DSI47: 0 | DSJ47: 0 | DSK47: 0 | DSL47: 0 | DSM47: 0 | DSN47: 0 | DSO47: 0 | DSP47: 0 | DSQ47: 0 | DSR47: 0 | DSS47: 0 | DST47: =SUM(DST3:DST46) -> 0 | DSU47: 0 | DSV47: 0 | DSW47: 0 | DSX47: 0 | DSY47: 0 | DSZ47: 0 | DTA47: 0 | DTB47: 0 | DTC47: 0 | DTD47: 0 | DTE47: 0 | DTF47: 0 | DTG47: 0 | DTH47: 0 | DTI47: 0 | DTJ47: 0 | DTK47: 0 | DTL47: 0 | DTM47: 0 | DTN47: 0 | DTO47: 0 | DTP47: 0 | DTQ47: 0 | DTR47: 0 | DTS47: 0 | DTT47: 0 | DTU47: 0 | DTV47: 0 | DTW47: 0 | DTX47: 0 | DTY47: 0 | DTZ47: 0 | DUA47: 0 | DUB47: 0 | DUC47: 0 | DUD47: 0 | DUE47: 0 | DUF47: 0 | DUG47: 0 | DUH47: 0 | DUI47: 0 | DUJ47: 0 | DUK47: 0 | DUL47: 0 | DUM47: 0 | DUN47: 0 | DUO47: 0 | DUP47: 0 | DUQ47: 0 | DUR47: 0 | DUS47: 0 | DUT47: 0 | DUU47: 0 | DUV47: 0 | DUW47: 0 | DUX47: 0 | DUY47: 0 | DUZ47: 0 | DVA47: 0 | DVB47: 0 | DVC47: 0 | DVD47: 0 | DVE47: 0 | DVF47: =SUM(DVF3:DVF46) -> 0 | DVG47: 0 | DVH47: 0 | DVI47: 0 | DVJ47: 0 | DVK47: 0 | DVL47: 0 | DVM47: 0 | DVN47: 0 | DVO47: 0 | DVP47: 0 | DVQ47: 0 | DVR47: 0 | DVS47: 0 | DVT47: 0 | DVU47: 0 | DVV47: 0 | DVW47: 0 | DVX47: 0 | DVY47: 0 | DVZ47: 0 | DWA47: 0 | DWB47: 0 | DWC47: 0 | DWD47: 0 | DWE47: 0 | DWF47: 0 | DWG47: 0 | DWH47: 0 | DWI47: 0 | DWJ47: 0 | DWK47: 0 | DWL47: 0 | DWM47: 0 | DWN47: 0 | DWO47: 0 | DWP47: 0 | DWQ47: 0 | DWR47: 0 | DWS47: 0 | DWT47: 0 | DWU47: 0 | DWV47: 0 | DWW47: 0 | DWX47: 0 | DWY47: 0 | DWZ47: 0 | DXA47: 0 | DXB47: 0 | DXC47: 0 | DXD47: 0 | DXE47: 0 | DXF47: 0 | DXG47: 0 | DXH47: 0 | DXI47: 0 | DXJ47: 0 | DXK47: 0 | DXL47: 0 | DXM47: 0 | DXN47: 0 | DXO47: 0 | DXP47: 0 | DXQ47: 0 | DXR47: =SUM(DXR3:DXR46) -> 0 | DXS47: 0 | DXT47: 0 | DXU47: 0 | DXV47: 0 | DXW47: 0 | DXX47: 0 | DXY47: 0 | DXZ47: 0 | DYA47: 0 | DYB47: 0 | DYC47: 0 | DYD47: 0 | DYE47: 0 | DYF47: 0 | DYG47: 0 | DYH47: 0 | DYI47: 0 | DYJ47: 0 | DYK47: 0 | DYL47: 0 | DYM47: 0 | DYN47: 0 | DYO47: 0 | DYP47: 0 | DYQ47: 0 | DYR47: 0 | DYS47: 0 | DYT47: 0 | DYU47: 0 | DYV47: 0 | DYW47: 0 | DYX47: 0 | DYY47: 0 | DYZ47: 0 | DZA47: 0 | DZB47: 0 | DZC47: 0 | DZD47: 0 | DZE47: 0 | DZF47: 0 | DZG47: 0 | DZH47: 0 | DZI47: 0 | DZJ47: 0 | DZK47: 0 | DZL47: 0 | DZM47: 0 | DZN47: 0 | DZO47: 0 | DZP47: 0 | DZQ47: 0 | DZR47: 0 | DZS47: 0 | DZT47: 0 | DZU47: 0 | DZV47: 0 | DZW47: 0 | DZX47: 0 | DZY47: 0 | DZZ47: 0 | EAA47: 0 | EAB47: 0 | EAC47: 0 | EAD47: =SUM(EAD3:EAD46) -> 0 | EAE47: 0 | EAF47: 0 | EAG47: 0 | EAH47: 0 | EAI47: 0 | EAJ47: 0 | EAK47: 0 | EAL47: 0 | EAM47: 0 | EAN47: 0 | EAO47: 0 | EAP47: 0 | EAQ47: 0 | EAR47: 0 | EAS47: 0 | EAT47: 0 | EAU47: 0 | EAV47: 0 | EAW47: 0 | EAX47: 0 | EAY47: 0 | EAZ47: 0 | EBA47: 0 | EBB47: 0 | EBC47: 0 | EBD47: 0 | EBE47: 0 | EBF47: 0 | EBG47: 0 | EBH47: 0 | EBI47: 0 | EBJ47: 0 | EBK47: 0 | EBL47: 0 | EBM47: 0 | EBN47: 0 | EBO47: 0 | EBP47: 0 | EBQ47: 0 | EBR47: 0 | EBS47: 0 | EBT47: 0 | EBU47: 0 | EBV47: 0 | EBW47: 0 | EBX47: 0 | EBY47: 0 | EBZ47: 0 | ECA47: 0 | ECB47: 0 | ECC47: 0 | ECD47: 0 | ECE47: 0 | ECF47: 0 | ECG47: 0 | ECH47: 0 | ECI47: 0 | ECJ47: 0 | ECK47: 0 | ECL47: 0 | ECM47: 0 | ECN47: 0 | ECO47: 0 | ECP47: =SUM(ECP3:ECP46) -> 0 | ECQ47: 0 | ECR47: 0 | ECS47: 0 | ECT47: 0 | ECU47: 0 | ECV47: 0 | ECW47: 0 | ECX47: 0 | ECY47: 0 | ECZ47: 0 | EDA47: 0 | EDB47: 0 | EDC47: 0 | EDD47: 0 | EDE47: 0 | EDF47: 0 | EDG47: 0 | EDH47: 0 | EDI47: 0 | EDJ47: 0 | EDK47: 0 | EDL47: 0 | EDM47: 0 | EDN47: 0 | EDO47: 0 | EDP47: 0 | EDQ47: 0 | EDR47: 0 | EDS47: 0 | EDT47: 0 | EDU47: 0 | EDV47: 0 | EDW47: 0 | EDX47: 0 | EDY47: 0 | EDZ47: 0 | EEA47: 0 | EEB47: 0 | EEC47: 0 | EED47: 0 | EEE47: 0 | EEF47: 0 | EEG47: 0 | EEH47: 0 | EEI47: 0 | EEJ47: 0 | EEK47: 0 | EEL47: 0 | EEM47: 0 | EEN47: 0 | EEO47: 0 | EEP47: 0 | EEQ47: 0 | EER47: 0 | EES47: 0 | EET47: 0 | EEU47: 0 | EEV47: 0 | EEW47: 0 | EEX47: 0 | EEY47: 0 | EEZ47: 0 | EFA47: 0 | EFB47: =SUM(EFB3:EFB46) -> 0 | EFC47: 0 | EFD47: 0 | EFE47: 0 | EFF47: 0 | EFG47: 0 | EFH47: 0 | EFI47: 0 | EFJ47: 0 | EFK47: 0 | EFL47: 0 | EFM47: 0 | EFN47: 0 | EFO47: 0 | EFP47: 0 | EFQ47: 0 | EFR47: 0 | EFS47: 0 | EFT47: 0 | EFU47: 0 | EFV47: 0 | EFW47: 0 | EFX47: 0 | EFY47: 0 | EFZ47: 0 | EGA47: 0 | EGB47: 0 | EGC47: 0 | EGD47: 0 | EGE47: 0 | EGF47: 0 | EGG47: 0 | EGH47: 0 | EGI47: 0 | EGJ47: 0 | EGK47: 0 | EGL47: 0 | EGM47: 0 | EGN47: 0 | EGO47: 0 | EGP47: 0 | EGQ47: 0 | EGR47: 0 | EGS47: 0 | EGT47: 0 | EGU47: 0 | EGV47: 0 | EGW47: 0 | EGX47: 0 | EGY47: 0 | EGZ47: 0 | EHA47: 0 | EHB47: 0 | EHC47: 0 | EHD47: 0 | EHE47: 0 | EHF47: 0 | EHG47: 0 | EHH47: 0 | EHI47: 0 | EHJ47: 0 | EHK47: 0 | EHL47: 0 | EHM47: 0 | EHN47: =SUM(EHN3:EHN46) -> 0 | EHO47: 0 | EHP47: 0 | EHQ47: 0 | EHR47: 0 | EHS47: 0 | EHT47: 0 | EHU47: 0 | EHV47: 0 | EHW47: 0 | EHX47: 0 | EHY47: 0 | EHZ47: 0 | EIA47: 0 | EIB47: 0 | EIC47: 0 | EID47: 0 | EIE47: 0 | EIF47: 0 | EIG47: 0 | EIH47: 0 | EII47: 0 | EIJ47: 0 | EIK47: 0 | EIL47: 0 | EIM47: 0 | EIN47: 0 | EIO47: 0 | EIP47: 0 | EIQ47: 0 | EIR47: 0 | EIS47: 0 | EIT47: 0 | EIU47: 0 | EIV47: 0 | EIW47: 0 | EIX47: 0 | EIY47: 0 | EIZ47: 0 | EJA47: 0 | EJB47: 0 | EJC47: 0 | EJD47: 0 | EJE47: 0 | EJF47: 0 | EJG47: 0 | EJH47: 0 | EJI47: 0 | EJJ47: 0 | EJK47: 0 | EJL47: 0 | EJM47: 0 | EJN47: 0 | EJO47: 0 | EJP47: 0 | EJQ47: 0 | EJR47: 0 | EJS47: 0 | EJT47: 0 | EJU47: 0 | EJV47: 0 | EJW47: 0 | EJX47: 0 | EJY47: 0 | EJZ47: =SUM(EJZ3:EJZ46) -> 0 | EKA47: 0 | EKB47: 0 | EKC47: 0 | EKD47: 0 | EKE47: 0 | EKF47: 0 | EKG47: 0 | EKH47: 0 | EKI47: 0 | EKJ47: 0 | EKK47: 0 | EKL47: 0 | EKM47: 0 | EKN47: 0 | EKO47: 0 | EKP47: 0 | EKQ47: 0 | EKR47: 0 | EKS47: 0 | EKT47: 0 | EKU47: 0 | EKV47: 0 | EKW47: 0 | EKX47: 0 | EKY47: 0 | EKZ47: 0 | ELA47: 0 | ELB47: 0 | ELC47: 0 | ELD47: 0 | ELE47: 0 | ELF47: 0 | ELG47: 0 | ELH47: 0 | ELI47: 0 | ELJ47: 0 | ELK47: 0 | ELL47: 0 | ELM47: 0 | ELN47: 0 | ELO47: 0 | ELP47: 0 | ELQ47: 0 | ELR47: 0 | ELS47: 0 | ELT47: 0 | ELU47: 0 | ELV47: 0 | ELW47: 0 | ELX47: 0 | ELY47: 0 | ELZ47: 0 | EMA47: 0 | EMB47: 0 | EMC47: 0 | EMD47: 0 | EME47: 0 | EMF47: 0 | EMG47: 0 | EMH47: 0 | EMI47: 0 | EMJ47: 0 | EMK47: 0 | EML47: =SUM(EML3:EML46) -> 0 | EMM47: 0 | EMN47: 0 | EMO47: 0 | EMP47: 0 | EMQ47: 0 | EMR47: 0 | EMS47: 0 | EMT47: 0 | EMU47: 0 | EMV47: 0 | EMW47: 0 | EMX47: 0 | EMY47: 0 | EMZ47: 0 | ENA47: 0 | ENB47: 0 | ENC47: 0 | END47: 0 | ENE47: 0 | ENF47: 0 | ENG47: 0 | ENH47: 0 | ENI47: 0 | ENJ47: 0 | ENK47: 0 | ENL47: 0 | ENM47: 0 | ENN47: 0 | ENO47: 0 | ENP47: 0 | ENQ47: 0 | ENR47: 0 | ENS47: 0 | ENT47: 0 | ENU47: 0 | ENV47: 0 | ENW47: 0 | ENX47: 0 | ENY47: 0 | ENZ47: 0 | EOA47: 0 | EOB47: 0 | EOC47: 0 | EOD47: 0 | EOE47: 0 | EOF47: 0 | EOG47: 0 | EOH47: 0 | EOI47: 0 | EOJ47: 0 | EOK47: 0 | EOL47: 0 | EOM47: 0 | EON47: 0 | EOO47: 0 | EOP47: 0 | EOQ47: 0 | EOR47: 0 | EOS47: 0 | EOT47: 0 | EOU47: 0 | EOV47: 0 | EOW47: 0 | EOX47: =SUM(EOX3:EOX46) -> 0 | EOY47: 0 | EOZ47: 0 | EPA47: 0 | EPB47: 0 | EPC47: 0 | EPD47: 0 | EPE47: 0 | EPF47: 0 | EPG47: 0 | EPH47: 0 | EPI47: 0 | EPJ47: 0 | EPK47: 0 | EPL47: 0 | EPM47: 0 | EPN47: 0 | EPO47: 0 | EPP47: 0 | EPQ47: 0 | EPR47: 0 | EPS47: 0 | EPT47: 0 | EPU47: 0 | EPV47: 0 | EPW47: 0 | EPX47: 0 | EPY47: 0 | EPZ47: 0 | EQA47: 0 | EQB47: 0 | EQC47: 0 | EQD47: 0 | EQE47: 0 | EQF47: 0 | EQG47: 0 | EQH47: 0 | EQI47: 0 | EQJ47: 0 | EQK47: 0 | EQL47: 0 | EQM47: 0 | EQN47: 0 | EQO47: 0 | EQP47: 0 | EQQ47: 0 | EQR47: 0 | EQS47: 0 | EQT47: 0 | EQU47: 0 | EQV47: 0 | EQW47: 0 | EQX47: 0 | EQY47: 0 | EQZ47: 0 | ERA47: 0 | ERB47: 0 | ERC47: 0 | ERD47: 0 | ERE47: 0 | ERF47: 0 | ERG47: 0 | ERH47: 0 | ERI47: 0 | ERJ47: =SUM(ERJ3:ERJ46) -> 0 | ERK47: 0 | ERL47: 0 | ERM47: 0 | ERN47: 0 | ERO47: 0 | ERP47: 0 | ERQ47: 0 | ERR47: 0 | ERS47: 0 | ERT47: 0 | ERU47: 0 | ERV47: 0 | ERW47: 0 | ERX47: 0 | ERY47: 0 | ERZ47: 0 | ESA47: 0 | ESB47: 0 | ESC47: 0 | ESD47: 0 | ESE47: 0 | ESF47: 0 | ESG47: 0 | ESH47: 0 | ESI47: 0 | ESJ47: 0 | ESK47: 0 | ESL47: 0 | ESM47: 0 | ESN47: 0 | ESO47: 0 | ESP47: 0 | ESQ47: 0 | ESR47: 0 | ESS47: 0 | EST47: 0 | ESU47: 0 | ESV47: 0 | ESW47: 0 | ESX47: 0 | ESY47: 0 | ESZ47: 0 | ETA47: 0 | ETB47: 0 | ETC47: 0 | ETD47: 0 | ETE47: 0 | ETF47: 0 | ETG47: 0 | ETH47: 0 | ETI47: 0 | ETJ47: 0 | ETK47: 0 | ETL47: 0 | ETM47: 0 | ETN47: 0 | ETO47: 0 | ETP47: 0 | ETQ47: 0 | ETR47: 0 | ETS47: 0 | ETT47: 0 | ETU47: 0 | ETV47: =SUM(ETV3:ETV46) -> 0 | ETW47: 0 | ETX47: 0 | ETY47: 0 | ETZ47: 0 | EUA47: 0 | EUB47: 0 | EUC47: 0 | EUD47: 0 | EUE47: 0 | EUF47: 0 | EUG47: 0 | EUH47: 0 | EUI47: 0 | EUJ47: 0 | EUK47: 0 | EUL47: 0 | EUM47: 0 | EUN47: 0 | EUO47: 0 | EUP47: 0 | EUQ47: 0 | EUR47: 0 | EUS47: 0 | EUT47: 0 | EUU47: 0 | EUV47: 0 | EUW47: 0 | EUX47: 0 | EUY47: 0 | EUZ47: 0 | EVA47: 0 | EVB47: 0 | EVC47: 0 | EVD47: 0 | EVE47: 0 | EVF47: 0 | EVG47: 0 | EVH47: 0 | EVI47: 0 | EVJ47: 0 | EVK47: 0 | EVL47: 0 | EVM47: 0 | EVN47: 0 | EVO47: 0 | EVP47: 0 | EVQ47: 0 | EVR47: 0 | EVS47: 0 | EVT47: 0 | EVU47: 0 | EVV47: 0 | EVW47: 0 | EVX47: 0 | EVY47: 0 | EVZ47: 0 | EWA47: 0 | EWB47: 0 | EWC47: 0 | EWD47: 0 | EWE47: 0 | EWF47: 0 | EWG47: 0 | EWH47: =SUM(EWH3:EWH46) -> 0 | EWI47: 0 | EWJ47: 0 | EWK47: 0 | EWL47: 0 | EWM47: 0 | EWN47: 0 | EWO47: 0 | EWP47: 0 | EWQ47: 0 | EWR47: 0 | EWS47: 0 | EWT47: 0 | EWU47: 0 | EWV47: 0 | EWW47: 0 | EWX47: 0 | EWY47: 0 | EWZ47: 0 | EXA47: 0 | EXB47: 0 | EXC47: 0 | EXD47: 0 | EXE47: 0 | EXF47: 0 | EXG47: 0 | EXH47: 0 | EXI47: 0 | EXJ47: 0 | EXK47: 0 | EXL47: 0 | EXM47: 0 | EXN47: 0 | EXO47: 0 | EXP47: 0 | EXQ47: 0 | EXR47: 0 | EXS47: 0 | EXT47: 0 | EXU47: 0 | EXV47: 0 | EXW47: 0 | EXX47: 0 | EXY47: 0 | EXZ47: 0 | EYA47: 0 | EYB47: 0 | EYC47: 0 | EYD47: 0 | EYE47: 0 | EYF47: 0 | EYG47: 0 | EYH47: 0 | EYI47: 0 | EYJ47: 0 | EYK47: 0 | EYL47: 0 | EYM47: 0 | EYN47: 0 | EYO47: 0 | EYP47: 0 | EYQ47: 0 | EYR47: 0 | EYS47: 0 | EYT47: =SUM(EYT3:EYT46) -> 0 | EYU47: 0 | EYV47: 0 | EYW47: 0 | EYX47: 0 | EYY47: 0 | EYZ47: 0 | EZA47: 0 | EZB47: 0 | EZC47: 0 | EZD47: 0 | EZE47: 0 | EZF47: 0 | EZG47: 0 | EZH47: 0 | EZI47: 0 | EZJ47: 0 | EZK47: 0 | EZL47: 0 | EZM47: 0 | EZN47: 0 | EZO47: 0 | EZP47: 0 | EZQ47: 0 | EZR47: 0 | EZS47: 0 | EZT47: 0 | EZU47: 0 | EZV47: 0 | EZW47: 0 | EZX47: 0 | EZY47: 0 | EZZ47: 0 | FAA47: 0 | FAB47: 0 | FAC47: 0 | FAD47: 0 | FAE47: 0 | FAF47: 0 | FAG47: 0 | FAH47: 0 | FAI47: 0 | FAJ47: 0 | FAK47: 0 | FAL47: 0 | FAM47: 0 | FAN47: 0 | FAO47: 0 | FAP47: 0 | FAQ47: 0 | FAR47: 0 | FAS47: 0 | FAT47: 0 | FAU47: 0 | FAV47: 0 | FAW47: 0 | FAX47: 0 | FAY47: 0 | FAZ47: 0 | FBA47: 0 | FBB47: 0 | FBC47: 0 | FBD47: 0 | FBE47: 0 | FBF47: =SUM(FBF3:FBF46) -> 0 | FBG47: 0 | FBH47: 0 | FBI47: 0 | FBJ47: 0 | FBK47: 0 | FBL47: 0 | FBM47: 0 | FBN47: 0 | FBO47: 0 | FBP47: 0 | FBQ47: 0 | FBR47: 0 | FBS47: 0 | FBT47: 0 | FBU47: 0 | FBV47: 0 | FBW47: 0 | FBX47: 0 | FBY47: 0 | FBZ47: 0 | FCA47: 0 | FCB47: 0 | FCC47: 0 | FCD47: 0 | FCE47: 0 | FCF47: 0 | FCG47: 0 | FCH47: 0 | FCI47: 0 | FCJ47: 0 | FCK47: 0 | FCL47: 0 | FCM47: 0 | FCN47: 0 | FCO47: 0 | FCP47: 0 | FCQ47: 0 | FCR47: 0 | FCS47: 0 | FCT47: 0 | FCU47: 0 | FCV47: 0 | FCW47: 0 | FCX47: 0 | FCY47: 0 | FCZ47: 0 | FDA47: 0 | FDB47: 0 | FDC47: 0 | FDD47: 0 | FDE47: 0 | FDF47: 0 | FDG47: 0 | FDH47: 0 | FDI47: 0 | FDJ47: 0 | FDK47: 0 | FDL47: 0 | FDM47: 0 | FDN47: 0 | FDO47: 0 | FDP47: 0 | FDQ47: 0 | FDR47: =SUM(FDR3:FDR46) -> 0 | FDS47: 0 | FDT47: 0 | FDU47: 0 | FDV47: 0 | FDW47: 0 | FDX47: 0 | FDY47: 0 | FDZ47: 0 | FEA47: 0 | FEB47: 0 | FEC47: 0 | FED47: 0 | FEE47: 0 | FEF47: 0 | FEG47: 0 | FEH47: 0 | FEI47: 0 | FEJ47: 0 | FEK47: 0 | FEL47: 0 | FEM47: 0 | FEN47: 0 | FEO47: 0 | FEP47: 0 | FEQ47: 0 | FER47: 0 | FES47: 0 | FET47: 0 | FEU47: 0 | FEV47: 0 | FEW47: 0 | FEX47: 0 | FEY47: 0 | FEZ47: 0 | FFA47: 0 | FFB47: 0 | FFC47: 0 | FFD47: 0 | FFE47: 0 | FFF47: 0 | FFG47: 0 | FFH47: 0 | FFI47: 0 | FFJ47: 0 | FFK47: 0 | FFL47: 0 | FFM47: 0 | FFN47: 0 | FFO47: 0 | FFP47: 0 | FFQ47: 0 | FFR47: 0 | FFS47: 0 | FFT47: 0 | FFU47: 0 | FFV47: 0 | FFW47: 0 | FFX47: 0 | FFY47: 0 | FFZ47: 0 | FGA47: 0 | FGB47: 0 | FGC47: 0 | FGD47: =SUM(FGD3:FGD46) -> 0 | FGE47: 0 | FGF47: 0 | FGG47: 0 | FGH47: 0 | FGI47: 0 | FGJ47: 0 | FGK47: 0 | FGL47: 0 | FGM47: 0 | FGN47: 0 | FGO47: 0 | FGP47: 0 | FGQ47: 0 | FGR47: 0 | FGS47: 0 | FGT47: 0 | FGU47: 0 | FGV47: 0 | FGW47: 0 | FGX47: 0 | FGY47: 0 | FGZ47: 0 | FHA47: 0 | FHB47: 0 | FHC47: 0 | FHD47: 0 | FHE47: 0 | FHF47: 0 | FHG47: 0 | FHH47: 0 | FHI47: 0 | FHJ47: 0 | FHK47: 0 | FHL47: 0 | FHM47: 0 | FHN47: 0 | FHO47: 0 | FHP47: 0 | FHQ47: 0 | FHR47: 0 | FHS47: 0 | FHT47: 0 | FHU47: 0 | FHV47: 0 | FHW47: 0 | FHX47: 0 | FHY47: 0 | FHZ47: 0 | FIA47: 0 | FIB47: 0 | FIC47: 0 | FID47: 0 | FIE47: 0 | FIF47: 0 | FIG47: 0 | FIH47: 0 | FII47: 0 | FIJ47: 0 | FIK47: 0 | FIL47: 0 | FIM47: 0 | FIN47: 0 | FIO47: 0 | FIP47: =SUM(FIP3:FIP46) -> 0 | FIQ47: 0 | FIR47: 0 | FIS47: 0 | FIT47: 0 | FIU47: 0 | FIV47: 0 | FIW47: 0 | FIX47: 0 | FIY47: 0 | FIZ47: 0 | FJA47: 0 | FJB47: 0 | FJC47: 0 | FJD47: 0 | FJE47: 0 | FJF47: 0 | FJG47: 0 | FJH47: 0 | FJI47: 0 | FJJ47: 0 | FJK47: 0 | FJL47: 0 | FJM47: 0 | FJN47: 0 | FJO47: 0 | FJP47: 0 | FJQ47: 0 | FJR47: 0 | FJS47: 0 | FJT47: 0 | FJU47: 0 | FJV47: 0 | FJW47: 0 | FJX47: 0 | FJY47: 0 | FJZ47: 0 | FKA47: 0 | FKB47: 0 | FKC47: 0 | FKD47: 0 | FKE47: 0 | FKF47: 0 | FKG47: 0 | FKH47: 0 | FKI47: 0 | FKJ47: 0 | FKK47: 0 | FKL47: 0 | FKM47: 0 | FKN47: 0 | FKO47: 0 | FKP47: 0 | FKQ47: 0 | FKR47: 0 | FKS47: 0 | FKT47: 0 | FKU47: 0 | FKV47: 0 | FKW47: 0 | FKX47: 0 | FKY47: 0 | FKZ47: 0 | FLA47: 0 | FLB47: =SUM(FLB3:FLB46) -> 0 | FLC47: 0 | FLD47: 0 | FLE47: 0 | FLF47: 0 | FLG47: 0 | FLH47: 0 | FLI47: 0 | FLJ47: 0 | FLK47: 0 | FLL47: 0 | FLM47: 0 | FLN47: 0 | FLO47: 0 | FLP47: 0 | FLQ47: 0 | FLR47: 0 | FLS47: 0 | FLT47: 0 | FLU47: 0 | FLV47: 0 | FLW47: 0 | FLX47: 0 | FLY47: 0 | FLZ47: 0 | FMA47: 0 | FMB47: 0 | FMC47: 0 | FMD47: 0 | FME47: 0 | FMF47: 0 | FMG47: 0 | FMH47: 0 | FMI47: 0 | FMJ47: 0 | FMK47: 0 | FML47: 0 | FMM47: 0 | FMN47: 0 | FMO47: 0 | FMP47: 0 | FMQ47: 0 | FMR47: 0 | FMS47: 0 | FMT47: 0 | FMU47: 0 | FMV47: 0 | FMW47: 0 | FMX47: 0 | FMY47: 0 | FMZ47: 0 | FNA47: 0 | FNB47: 0 | FNC47: 0 | FND47: 0 | FNE47: 0 | FNF47: 0 | FNG47: 0 | FNH47: 0 | FNI47: 0 | FNJ47: 0 | FNK47: 0 | FNL47: 0 | FNM47: 0 | FNN47: =SUM(FNN3:FNN46) -> 0 | FNO47: 0 | FNP47: 0 | FNQ47: 0 | FNR47: 0 | FNS47: 0 | FNT47: 0 | FNU47: 0 | FNV47: 0 | FNW47: 0 | FNX47: 0 | FNY47: 0 | FNZ47: 0 | FOA47: 0 | FOB47: 0 | FOC47: 0 | FOD47: 0 | FOE47: 0 | FOF47: 0 | FOG47: 0 | FOH47: 0 | FOI47: 0 | FOJ47: 0 | FOK47: 0 | FOL47: 0 | FOM47: 0 | FON47: 0 | FOO47: 0 | FOP47: 0 | FOQ47: 0 | FOR47: 0 | FOS47: 0 | FOT47: 0 | FOU47: 0 | FOV47: 0 | FOW47: 0 | FOX47: 0 | FOY47: 0 | FOZ47: 0 | FPA47: 0 | FPB47: 0 | FPC47: 0 | FPD47: 0 | FPE47: 0 | FPF47: 0 | FPG47: 0 | FPH47: 0 | FPI47: 0 | FPJ47: 0 | FPK47: 0 | FPL47: 0 | FPM47: 0 | FPN47: 0 | FPO47: 0 | FPP47: 0 | FPQ47: 0 | FPR47: 0 | FPS47: 0 | FPT47: 0 | FPU47: 0 | FPV47: 0 | FPW47: 0 | FPX47: 0 | FPY47: 0 | FPZ47: =SUM(FPZ3:FPZ46) -> 0 | FQA47: 0 | FQB47: 0 | FQC47: 0 | FQD47: 0 | FQE47: 0 | FQF47: 0 | FQG47: 0 | FQH47: 0 | FQI47: 0 | FQJ47: 0 | FQK47: 0 | FQL47: 0 | FQM47: 0 | FQN47: 0 | FQO47: 0 | FQP47: 0 | FQQ47: 0 | FQR47: 0 | FQS47: 0 | FQT47: 0 | FQU47: 0 | FQV47: 0 | FQW47: 0 | FQX47: 0 | FQY47: 0 | FQZ47: 0 | FRA47: 0 | FRB47: 0 | FRC47: 0 | FRD47: 0 | FRE47: 0 | FRF47: 0 | FRG47: 0 | FRH47: 0 | FRI47: 0 | FRJ47: 0 | FRK47: 0 | FRL47: 0 | FRM47: 0 | FRN47: 0 | FRO47: 0 | FRP47: 0 | FRQ47: 0 | FRR47: 0 | FRS47: 0 | FRT47: 0 | FRU47: 0 | FRV47: 0 | FRW47: 0 | FRX47: 0 | FRY47: 0 | FRZ47: 0 | FSA47: 0 | FSB47: 0 | FSC47: 0 | FSD47: 0 | FSE47: 0 | FSF47: 0 | FSG47: 0 | FSH47: 0 | FSI47: 0 | FSJ47: 0 | FSK47: 0 | FSL47: =SUM(FSL3:FSL46) -> 0 | FSM47: 0 | FSN47: 0 | FSO47: 0 | FSP47: 0 | FSQ47: 0 | FSR47: 0 | FSS47: 0 | FST47: 0 | FSU47: 0 | FSV47: 0 | FSW47: 0 | FSX47: 0 | FSY47: 0 | FSZ47: 0 | FTA47: 0 | FTB47: 0 | FTC47: 0 | FTD47: 0 | FTE47: 0 | FTF47: 0 | FTG47: 0 | FTH47: 0 | FTI47: 0 | FTJ47: 0 | FTK47: 0 | FTL47: 0 | FTM47: 0 | FTN47: 0 | FTO47: 0 | FTP47: 0 | FTQ47: 0 | FTR47: 0 | FTS47: 0 | FTT47: 0 | FTU47: 0 | FTV47: 0 | FTW47: 0 | FTX47: 0 | FTY47: 0 | FTZ47: 0 | FUA47: 0 | FUB47: 0 | FUC47: 0 | FUD47: 0 | FUE47: 0 | FUF47: 0 | FUG47: 0 | FUH47: 0 | FUI47: 0 | FUJ47: 0 | FUK47: 0 | FUL47: 0 | FUM47: 0 | FUN47: 0 | FUO47: 0 | FUP47: 0 | FUQ47: 0 | FUR47: 0 | FUS47: 0 | FUT47: 0 | FUU47: 0 | FUV47: 0 | FUW47: 0 | FUX47: =SUM(FUX3:FUX46) -> 0 | FUY47: 0 | FUZ47: 0 | FVA47: 0 | FVB47: 0 | FVC47: 0 | FVD47: 0 | FVE47: 0 | FVF47: 0 | FVG47: 0 | FVH47: 0 | FVI47: 0 | FVJ47: 0 | FVK47: 0 | FVL47: 0 | FVM47: 0 | FVN47: 0 | FVO47: 0 | FVP47: 0 | FVQ47: 0 | FVR47: 0 | FVS47: 0 | FVT47: 0 | FVU47: 0 | FVV47: 0 | FVW47: 0 | FVX47: 0 | FVY47: 0 | FVZ47: 0 | FWA47: 0 | FWB47: 0 | FWC47: 0 | FWD47: 0 | FWE47: 0 | FWF47: 0 | FWG47: 0 | FWH47: 0 | FWI47: 0 | FWJ47: 0 | FWK47: 0 | FWL47: 0 | FWM47: 0 | FWN47: 0 | FWO47: 0 | FWP47: 0 | FWQ47: 0 | FWR47: 0 | FWS47: 0 | FWT47: 0 | FWU47: 0 | FWV47: 0 | FWW47: 0 | FWX47: 0 | FWY47: 0 | FWZ47: 0 | FXA47: 0 | FXB47: 0 | FXC47: 0 | FXD47: 0 | FXE47: 0 | FXF47: 0 | FXG47: 0 | FXH47: 0 | FXI47: 0 | FXJ47: =SUM(FXJ3:FXJ46) -> 0 | FXK47: 0 | FXL47: 0 | FXM47: 0 | FXN47: 0 | FXO47: 0 | FXP47: 0 | FXQ47: 0 | FXR47: 0 | FXS47: 0 | FXT47: 0 | FXU47: 0 | FXV47: 0 | FXW47: 0 | FXX47: 0 | FXY47: 0 | FXZ47: 0 | FYA47: 0 | FYB47: 0 | FYC47: 0 | FYD47: 0 | FYE47: 0 | FYF47: 0 | FYG47: 0 | FYH47: 0 | FYI47: 0 | FYJ47: 0 | FYK47: 0 | FYL47: 0 | FYM47: 0 | FYN47: 0 | FYO47: 0 | FYP47: 0 | FYQ47: 0 | FYR47: 0 | FYS47: 0 | FYT47: 0 | FYU47: 0 | FYV47: 0 | FYW47: 0 | FYX47: 0 | FYY47: 0 | FYZ47: 0 | FZA47: 0 | FZB47: 0 | FZC47: 0 | FZD47: 0 | FZE47: 0 | FZF47: 0 | FZG47: 0 | FZH47: 0 | FZI47: 0 | FZJ47: 0 | FZK47: 0 | FZL47: 0 | FZM47: 0 | FZN47: 0 | FZO47: 0 | FZP47: 0 | FZQ47: 0 | FZR47: 0 | FZS47: 0 | FZT47: 0 | FZU47: 0 | FZV47: =SUM(FZV3:FZV46) -> 0 | FZW47: 0 | FZX47: 0 | FZY47: 0 | FZZ47: 0 | GAA47: 0 | GAB47: 0 | GAC47: 0 | GAD47: 0 | GAE47: 0 | GAF47: 0 | GAG47: 0 | GAH47: 0 | GAI47: 0 | GAJ47: 0 | GAK47: 0 | GAL47: 0 | GAM47: 0 | GAN47: 0 | GAO47: 0 | GAP47: 0 | GAQ47: 0 | GAR47: 0 | GAS47: 0 | GAT47: 0 | GAU47: 0 | GAV47: 0 | GAW47: 0 | GAX47: 0 | GAY47: 0 | GAZ47: 0 | GBA47: 0 | GBB47: 0 | GBC47: 0 | GBD47: 0 | GBE47: 0 | GBF47: 0 | GBG47: 0 | GBH47: 0 | GBI47: 0 | GBJ47: 0 | GBK47: 0 | GBL47: 0 | GBM47: 0 | GBN47: 0 | GBO47: 0 | GBP47: 0 | GBQ47: 0 | GBR47: 0 | GBS47: 0 | GBT47: 0 | GBU47: 0 | GBV47: 0 | GBW47: 0 | GBX47: 0 | GBY47: 0 | GBZ47: 0 | GCA47: 0 | GCB47: 0 | GCC47: 0 | GCD47: 0 | GCE47: 0 | GCF47: 0 | GCG47: 0 | GCH47: =SUM(GCH3:GCH46) -> 0 | GCI47: 0 | GCJ47: 0 | GCK47: 0 | GCL47: 0 | GCM47: 0 | GCN47: 0 | GCO47: 0 | GCP47: 0 | GCQ47: 0 | GCR47: 0 | GCS47: 0 | GCT47: 0 | GCU47: 0 | GCV47: 0 | GCW47: 0 | GCX47: 0 | GCY47: 0 | GCZ47: 0 | GDA47: 0 | GDB47: 0 | GDC47: 0 | GDD47: 0 | GDE47: 0 | GDF47: 0 | GDG47: 0 | GDH47: 0 | GDI47: 0 | GDJ47: 0 | GDK47: 0 | GDL47: 0 | GDM47: 0 | GDN47: 0 | GDO47: 0 | GDP47: 0 | GDQ47: 0 | GDR47: 0 | GDS47: 0 | GDT47: 0 | GDU47: 0 | GDV47: 0 | GDW47: 0 | GDX47: 0 | GDY47: 0 | GDZ47: 0 | GEA47: 0 | GEB47: 0 | GEC47: 0 | GED47: 0 | GEE47: 0 | GEF47: 0 | GEG47: 0 | GEH47: 0 | GEI47: 0 | GEJ47: 0 | GEK47: 0 | GEL47: 0 | GEM47: 0 | GEN47: 0 | GEO47: 0 | GEP47: 0 | GEQ47: 0 | GER47: 0 | GES47: 0 | GET47: =SUM(GET3:GET46) -> 0 | GEU47: 0 | GEV47: 0 | GEW47: 0 | GEX47: 0 | GEY47: 0 | GEZ47: 0 | GFA47: 0 | GFB47: 0 | GFC47: 0 | GFD47: 0 | GFE47: 0 | GFF47: 0 | GFG47: 0 | GFH47: 0 | GFI47: 0 | GFJ47: 0 | GFK47: 0 | GFL47: 0 | GFM47: 0 | GFN47: 0 | GFO47: 0 | GFP47: 0 | GFQ47: 0 | GFR47: 0 | GFS47: 0 | GFT47: 0 | GFU47: 0 | GFV47: 0 | GFW47: 0 | GFX47: 0 | GFY47: 0 | GFZ47: 0 | GGA47: 0 | GGB47: 0 | GGC47: 0 | GGD47: 0 | GGE47: 0 | GGF47: 0 | GGG47: 0 | GGH47: 0 | GGI47: 0 | GGJ47: 0 | GGK47: 0 | GGL47: 0 | GGM47: 0 | GGN47: 0 | GGO47: 0 | GGP47: 0 | GGQ47: 0 | GGR47: 0 | GGS47: 0 | GGT47: 0 | GGU47: 0 | GGV47: 0 | GGW47: 0 | GGX47: 0 | GGY47: 0 | GGZ47: 0 | GHA47: 0 | GHB47: 0 | GHC47: 0 | GHD47: 0 | GHE47: 0 | GHF47: =SUM(GHF3:GHF46) -> 0 | GHG47: 0 | GHH47: 0 | GHI47: 0 | GHJ47: 0 | GHK47: 0 | GHL47: 0 | GHM47: 0 | GHN47: 0 | GHO47: 0 | GHP47: 0 | GHQ47: 0 | GHR47: 0 | GHS47: 0 | GHT47: 0 | GHU47: 0 | GHV47: 0 | GHW47: 0 | GHX47: 0 | GHY47: 0 | GHZ47: 0 | GIA47: 0 | GIB47: 0 | GIC47: 0 | GID47: 0 | GIE47: 0 | GIF47: 0 | GIG47: 0 | GIH47: 0 | GII47: 0 | GIJ47: 0 | GIK47: 0 | GIL47: 0 | GIM47: 0 | GIN47: 0 | GIO47: 0 | GIP47: 0 | GIQ47: 0 | GIR47: 0 | GIS47: 0 | GIT47: 0 | GIU47: 0 | GIV47: 0 | GIW47: 0 | GIX47: 0 | GIY47: 0 | GIZ47: 0 | GJA47: 0 | GJB47: 0 | GJC47: 0 | GJD47: 0 | GJE47: 0 | GJF47: 0 | GJG47: 0 | GJH47: 0 | GJI47: 0 | GJJ47: 0 | GJK47: 0 | GJL47: 0 | GJM47: 0 | GJN47: 0 | GJO47: 0 | GJP47: 0 | GJQ47: 0 | GJR47: =SUM(GJR3:GJR46) -> 0 | GJS47: 0 | GJT47: 0 | GJU47: 0 | GJV47: 0 | GJW47: 0 | GJX47: 0 | GJY47: 0 | GJZ47: 0 | GKA47: 0 | GKB47: 0 | GKC47: 0 | GKD47: 0 | GKE47: 0 | GKF47: 0 | GKG47: 0 | GKH47: 0 | GKI47: 0 | GKJ47: 0 | GKK47: 0 | GKL47: 0 | GKM47: 0 | GKN47: 0 | GKO47: 0 | GKP47: 0 | GKQ47: 0 | GKR47: 0 | GKS47: 0 | GKT47: 0 | GKU47: 0 | GKV47: 0 | GKW47: 0 | GKX47: 0 | GKY47: 0 | GKZ47: 0 | GLA47: 0 | GLB47: 0 | GLC47: 0 | GLD47: 0 | GLE47: 0 | GLF47: 0 | GLG47: 0 | GLH47: 0 | GLI47: 0 | GLJ47: 0 | GLK47: 0 | GLL47: 0 | GLM47: 0 | GLN47: 0 | GLO47: 0 | GLP47: 0 | GLQ47: 0 | GLR47: 0 | GLS47: 0 | GLT47: 0 | GLU47: 0 | GLV47: 0 | GLW47: 0 | GLX47: 0 | GLY47: 0 | GLZ47: 0 | GMA47: 0 | GMB47: 0 | GMC47: 0 | GMD47: =SUM(GMD3:GMD46) -> 0 | GME47: 0 | GMF47: 0 | GMG47: 0 | GMH47: 0 | GMI47: 0 | GMJ47: 0 | GMK47: 0 | GML47: 0 | GMM47: 0 | GMN47: 0 | GMO47: 0 | GMP47: 0 | GMQ47: 0 | GMR47: 0 | GMS47: 0 | GMT47: 0 | GMU47: 0 | GMV47: 0 | GMW47: 0 | GMX47: 0 | GMY47: 0 | GMZ47: 0 | GNA47: 0 | GNB47: 0 | GNC47: 0 | GND47: 0 | GNE47: 0 | GNF47: 0 | GNG47: 0 | GNH47: 0 | GNI47: 0 | GNJ47: 0 | GNK47: 0 | GNL47: 0 | GNM47: 0 | GNN47: 0 | GNO47: 0 | GNP47: 0 | GNQ47: 0 | GNR47: 0 | GNS47: 0 | GNT47: 0 | GNU47: 0 | GNV47: 0 | GNW47: 0 | GNX47: 0 | GNY47: 0 | GNZ47: 0 | GOA47: 0 | GOB47: 0 | GOC47: 0 | GOD47: 0 | GOE47: 0 | GOF47: 0 | GOG47: 0 | GOH47: 0 | GOI47: 0 | GOJ47: 0 | GOK47: 0 | GOL47: 0 | GOM47: 0 | GON47: 0 | GOO47: 0 | GOP47: =SUM(GOP3:GOP46) -> 0 | GOQ47: 0 | GOR47: 0 | GOS47: 0 | GOT47: 0 | GOU47: 0 | GOV47: 0 | GOW47: 0 | GOX47: 0 | GOY47: 0 | GOZ47: 0 | GPA47: 0 | GPB47: 0 | GPC47: 0 | GPD47: 0 | GPE47: 0 | GPF47: 0 | GPG47: 0 | GPH47: 0 | GPI47: 0 | GPJ47: 0 | GPK47: 0 | GPL47: 0 | GPM47: 0 | GPN47: 0 | GPO47: 0 | GPP47: 0 | GPQ47: 0 | GPR47: 0 | GPS47: 0 | GPT47: 0 | GPU47: 0 | GPV47: 0 | GPW47: 0 | GPX47: 0 | GPY47: 0 | GPZ47: 0 | GQA47: 0 | GQB47: 0 | GQC47: 0 | GQD47: 0 | GQE47: 0 | GQF47: 0 | GQG47: 0 | GQH47: 0 | GQI47: 0 | GQJ47: 0 | GQK47: 0 | GQL47: 0 | GQM47: 0 | GQN47: 0 | GQO47: 0 | GQP47: 0 | GQQ47: 0 | GQR47: 0 | GQS47: 0 | GQT47: 0 | GQU47: 0 | GQV47: 0 | GQW47: 0 | GQX47: 0 | GQY47: 0 | GQZ47: 0 | GRA47: 0 | GRB47: =SUM(GRB3:GRB46) -> 0 | GRC47: 0 | GRD47: 0 | GRE47: 0 | GRF47: 0 | GRG47: 0 | GRH47: 0 | GRI47: 0 | GRJ47: 0 | GRK47: 0 | GRL47: 0 | GRM47: 0 | GRN47: 0 | GRO47: 0 | GRP47: 0 | GRQ47: 0 | GRR47: 0 | GRS47: 0 | GRT47: 0 | GRU47: 0 | GRV47: 0 | GRW47: 0 | GRX47: 0 | GRY47: 0 | GRZ47: 0 | GSA47: 0 | GSB47: 0 | GSC47: 0 | GSD47: 0 | GSE47: 0 | GSF47: 0 | GSG47: 0 | GSH47: 0 | GSI47: 0 | GSJ47: 0 | GSK47: 0 | GSL47: 0 | GSM47: 0 | GSN47: 0 | GSO47: 0 | GSP47: 0 | GSQ47: 0 | GSR47: 0 | GSS47: 0 | GST47: 0 | GSU47: 0 | GSV47: 0 | GSW47: 0 | GSX47: 0 | GSY47: 0 | GSZ47: 0 | GTA47: 0 | GTB47: 0 | GTC47: 0 | GTD47: 0 | GTE47: 0 | GTF47: 0 | GTG47: 0 | GTH47: 0 | GTI47: 0 | GTJ47: 0 | GTK47: 0 | GTL47: 0 | GTM47: 0 | GTN47: =SUM(GTN3:GTN46) -> 0 | GTO47: 0 | GTP47: 0 | GTQ47: 0 | GTR47: 0 | GTS47: 0 | GTT47: 0 | GTU47: 0 | GTV47: 0 | GTW47: 0 | GTX47: 0 | GTY47: 0 | GTZ47: 0 | GUA47: 0 | GUB47: 0 | GUC47: 0 | GUD47: 0 | GUE47: 0 | GUF47: 0 | GUG47: 0 | GUH47: 0 | GUI47: 0 | GUJ47: 0 | GUK47: 0 | GUL47: 0 | GUM47: 0 | GUN47: 0 | GUO47: 0 | GUP47: 0 | GUQ47: 0 | GUR47: 0 | GUS47: 0 | GUT47: 0 | GUU47: 0 | GUV47: 0 | GUW47: 0 | GUX47: 0 | GUY47: 0 | GUZ47: 0 | GVA47: 0 | GVB47: 0 | GVC47: 0 | GVD47: 0 | GVE47: 0 | GVF47: 0 | GVG47: 0 | GVH47: 0 | GVI47: 0 | GVJ47: 0 | GVK47: 0 | GVL47: 0 | GVM47: 0 | GVN47: 0 | GVO47: 0 | GVP47: 0 | GVQ47: 0 | GVR47: 0 | GVS47: 0 | GVT47: 0 | GVU47: 0 | GVV47: 0 | GVW47: 0 | GVX47: 0 | GVY47: 0 | GVZ47: =SUM(GVZ3:GVZ46) -> 0 | GWA47: 0 | GWB47: 0 | GWC47: 0 | GWD47: 0 | GWE47: 0 | GWF47: 0 | GWG47: 0 | GWH47: 0 | GWI47: 0 | GWJ47: 0 | GWK47: 0 | GWL47: 0 | GWM47: 0 | GWN47: 0 | GWO47: 0 | GWP47: 0 | GWQ47: 0 | GWR47: 0 | GWS47: 0 | GWT47: 0 | GWU47: 0 | GWV47: 0 | GWW47: 0 | GWX47: 0 | GWY47: 0 | GWZ47: 0 | GXA47: 0 | GXB47: 0 | GXC47: 0 | GXD47: 0 | GXE47: 0 | GXF47: 0 | GXG47: 0 | GXH47: 0 | GXI47: 0 | GXJ47: 0 | GXK47: 0 | GXL47: 0 | GXM47: 0 | GXN47: 0 | GXO47: 0 | GXP47: 0 | GXQ47: 0 | GXR47: 0 | GXS47: 0 | GXT47: 0 | GXU47: 0 | GXV47: 0 | GXW47: 0 | GXX47: 0 | GXY47: 0 | GXZ47: 0 | GYA47: 0 | GYB47: 0 | GYC47: 0 | GYD47: 0 | GYE47: 0 | GYF47: 0 | GYG47: 0 | GYH47: 0 | GYI47: 0 | GYJ47: 0 | GYK47: 0 | GYL47: =SUM(GYL3:GYL46) -> 0 | GYM47: 0 | GYN47: 0 | GYO47: 0 | GYP47: 0 | GYQ47: 0 | GYR47: 0 | GYS47: 0 | GYT47: 0 | GYU47: 0 | GYV47: 0 | GYW47: 0 | GYX47: 0 | GYY47: 0 | GYZ47: 0 | GZA47: 0 | GZB47: 0 | GZC47: 0 | GZD47: 0 | GZE47: 0 | GZF47: 0 | GZG47: 0 | GZH47: 0 | GZI47: 0 | GZJ47: 0 | GZK47: 0 | GZL47: 0 | GZM47: 0 | GZN47: 0 | GZO47: 0 | GZP47: 0 | GZQ47: 0 | GZR47: 0 | GZS47: 0 | GZT47: 0 | GZU47: 0 | GZV47: 0 | GZW47: 0 | GZX47: 0 | GZY47: 0 | GZZ47: 0 | HAA47: 0 | HAB47: 0 | HAC47: 0 | HAD47: 0 | HAE47: 0 | HAF47: 0 | HAG47: 0 | HAH47: 0 | HAI47: 0 | HAJ47: 0 | HAK47: 0 | HAL47: 0 | HAM47: 0 | HAN47: 0 | HAO47: 0 | HAP47: 0 | HAQ47: 0 | HAR47: 0 | HAS47: 0 | HAT47: 0 | HAU47: 0 | HAV47: 0 | HAW47: 0 | HAX47: =SUM(HAX3:HAX46) -> 0 | HAY47: 0 | HAZ47: 0 | HBA47: 0 | HBB47: 0 | HBC47: 0 | HBD47: 0 | HBE47: 0 | HBF47: 0 | HBG47: 0 | HBH47: 0 | HBI47: 0 | HBJ47: 0 | HBK47: 0 | HBL47: 0 | HBM47: 0 | HBN47: 0 | HBO47: 0 | HBP47: 0 | HBQ47: 0 | HBR47: 0 | HBS47: 0 | HBT47: 0 | HBU47: 0 | HBV47: 0 | HBW47: 0 | HBX47: 0 | HBY47: 0 | HBZ47: 0 | HCA47: 0 | HCB47: 0 | HCC47: 0 | HCD47: 0 | HCE47: 0 | HCF47: 0 | HCG47: 0 | HCH47: 0 | HCI47: 0 | HCJ47: 0 | HCK47: 0 | HCL47: 0 | HCM47: 0 | HCN47: 0 | HCO47: 0 | HCP47: 0 | HCQ47: 0 | HCR47: 0 | HCS47: 0 | HCT47: 0 | HCU47: 0 | HCV47: 0 | HCW47: 0 | HCX47: 0 | HCY47: 0 | HCZ47: 0 | HDA47: 0 | HDB47: 0 | HDC47: 0 | HDD47: 0 | HDE47: 0 | HDF47: 0 | HDG47: 0 | HDH47: 0 | HDI47: 0 | HDJ47: =SUM(HDJ3:HDJ46) -> 0 | HDK47: 0 | HDL47: 0 | HDM47: 0 | HDN47: 0 | HDO47: 0 | HDP47: 0 | HDQ47: 0 | HDR47: 0 | HDS47: 0 | HDT47: 0 | HDU47: 0 | HDV47: 0 | HDW47: 0 | HDX47: 0 | HDY47: 0 | HDZ47: 0 | HEA47: 0 | HEB47: 0 | HEC47: 0 | HED47: 0 | HEE47: 0 | HEF47: 0 | HEG47: 0 | HEH47: 0 | HEI47: 0 | HEJ47: 0 | HEK47: 0 | HEL47: 0 | HEM47: 0 | HEN47: 0 | HEO47: 0 | HEP47: 0 | HEQ47: 0 | HER47: 0 | HES47: 0 | HET47: 0 | HEU47: 0 | HEV47: 0 | HEW47: 0 | HEX47: 0 | HEY47: 0 | HEZ47: 0 | HFA47: 0 | HFB47: 0 | HFC47: 0 | HFD47: 0 | HFE47: 0 | HFF47: 0 | HFG47: 0 | HFH47: 0 | HFI47: 0 | HFJ47: 0 | HFK47: 0 | HFL47: 0 | HFM47: 0 | HFN47: 0 | HFO47: 0 | HFP47: 0 | HFQ47: 0 | HFR47: 0 | HFS47: 0 | HFT47: 0 | HFU47: 0 | HFV47: =SUM(HFV3:HFV46) -> 0 | HFW47: 0 | HFX47: 0 | HFY47: 0 | HFZ47: 0 | HGA47: 0 | HGB47: 0 | HGC47: 0 | HGD47: 0 | HGE47: 0 | HGF47: 0 | HGG47: 0 | HGH47: 0 | HGI47: 0 | HGJ47: 0 | HGK47: 0 | HGL47: 0 | HGM47: 0 | HGN47: 0 | HGO47: 0 | HGP47: 0 | HGQ47: 0 | HGR47: 0 | HGS47: 0 | HGT47: 0 | HGU47: 0 | HGV47: 0 | HGW47: 0 | HGX47: 0 | HGY47: 0 | HGZ47: 0 | HHA47: 0 | HHB47: 0 | HHC47: 0 | HHD47: 0 | HHE47: 0 | HHF47: 0 | HHG47: 0 | HHH47: 0 | HHI47: 0 | HHJ47: 0 | HHK47: 0 | HHL47: 0 | HHM47: 0 | HHN47: 0 | HHO47: 0 | HHP47: 0 | HHQ47: 0 | HHR47: 0 | HHS47: 0 | HHT47: 0 | HHU47: 0 | HHV47: 0 | HHW47: 0 | HHX47: 0 | HHY47: 0 | HHZ47: 0 | HIA47: 0 | HIB47: 0 | HIC47: 0 | HID47: 0 | HIE47: 0 | HIF47: 0 | HIG47: 0 | HIH47: =SUM(HIH3:HIH46) -> 0 | HII47: 0 | HIJ47: 0 | HIK47: 0 | HIL47: 0 | HIM47: 0 | HIN47: 0 | HIO47: 0 | HIP47: 0 | HIQ47: 0 | HIR47: 0 | HIS47: 0 | HIT47: 0 | HIU47: 0 | HIV47: 0 | HIW47: 0 | HIX47: 0 | HIY47: 0 | HIZ47: 0 | HJA47: 0 | HJB47: 0 | HJC47: 0 | HJD47: 0 | HJE47: 0 | HJF47: 0 | HJG47: 0 | HJH47: 0 | HJI47: 0 | HJJ47: 0 | HJK47: 0 | HJL47: 0 | HJM47: 0 | HJN47: 0 | HJO47: 0 | HJP47: 0 | HJQ47: 0 | HJR47: 0 | HJS47: 0 | HJT47: 0 | HJU47: 0 | HJV47: 0 | HJW47: 0 | HJX47: 0 | HJY47: 0 | HJZ47: 0 | HKA47: 0 | HKB47: 0 | HKC47: 0 | HKD47: 0 | HKE47: 0 | HKF47: 0 | HKG47: 0 | HKH47: 0 | HKI47: 0 | HKJ47: 0 | HKK47: 0 | HKL47: 0 | HKM47: 0 | HKN47: 0 | HKO47: 0 | HKP47: 0 | HKQ47: 0 | HKR47: 0 | HKS47: 0 | HKT47: =SUM(HKT3:HKT46) -> 0 | HKU47: 0 | HKV47: 0 | HKW47: 0 | HKX47: 0 | HKY47: 0 | HKZ47: 0 | HLA47: 0 | HLB47: 0 | HLC47: 0 | HLD47: 0 | HLE47: 0 | HLF47: 0 | HLG47: 0 | HLH47: 0 | HLI47: 0 | HLJ47: 0 | HLK47: 0 | HLL47: 0 | HLM47: 0 | HLN47: 0 | HLO47: 0 | HLP47: 0 | HLQ47: 0 | HLR47: 0 | HLS47: 0 | HLT47: 0 | HLU47: 0 | HLV47: 0 | HLW47: 0 | HLX47: 0 | HLY47: 0 | HLZ47: 0 | HMA47: 0 | HMB47: 0 | HMC47: 0 | HMD47: 0 | HME47: 0 | HMF47: 0 | HMG47: 0 | HMH47: 0 | HMI47: 0 | HMJ47: 0 | HMK47: 0 | HML47: 0 | HMM47: 0 | HMN47: 0 | HMO47: 0 | HMP47: 0 | HMQ47: 0 | HMR47: 0 | HMS47: 0 | HMT47: 0 | HMU47: 0 | HMV47: 0 | HMW47: 0 | HMX47: 0 | HMY47: 0 | HMZ47: 0 | HNA47: 0 | HNB47: 0 | HNC47: 0 | HND47: 0 | HNE47: 0 | HNF47: =SUM(HNF3:HNF46) -> 0 | HNG47: 0 | HNH47: 0 | HNI47: 0 | HNJ47: 0 | HNK47: 0 | HNL47: 0 | HNM47: 0 | HNN47: 0 | HNO47: 0 | HNP47: 0 | HNQ47: 0 | HNR47: 0 | HNS47: 0 | HNT47: 0 | HNU47: 0 | HNV47: 0 | HNW47: 0 | HNX47: 0 | HNY47: 0 | HNZ47: 0 | HOA47: 0 | HOB47: 0 | HOC47: 0 | HOD47: 0 | HOE47: 0 | HOF47: 0 | HOG47: 0 | HOH47: 0 | HOI47: 0 | HOJ47: 0 | HOK47: 0 | HOL47: 0 | HOM47: 0 | HON47: 0 | HOO47: 0 | HOP47: 0 | HOQ47: 0 | HOR47: 0 | HOS47: 0 | HOT47: 0 | HOU47: 0 | HOV47: 0 | HOW47: 0 | HOX47: 0 | HOY47: 0 | HOZ47: 0 | HPA47: 0 | HPB47: 0 | HPC47: 0 | HPD47: 0 | HPE47: 0 | HPF47: 0 | HPG47: 0 | HPH47: 0 | HPI47: 0 | HPJ47: 0 | HPK47: 0 | HPL47: 0 | HPM47: 0 | HPN47: 0 | HPO47: 0 | HPP47: 0 | HPQ47: 0 | HPR47: =SUM(HPR3:HPR46) -> 0 | HPS47: 0 | HPT47: 0 | HPU47: 0 | HPV47: 0 | HPW47: 0 | HPX47: 0 | HPY47: 0 | HPZ47: 0 | HQA47: 0 | HQB47: 0 | HQC47: 0 | HQD47: 0 | HQE47: 0 | HQF47: 0 | HQG47: 0 | HQH47: 0 | HQI47: 0 | HQJ47: 0 | HQK47: 0 | HQL47: 0 | HQM47: 0 | HQN47: 0 | HQO47: 0 | HQP47: 0 | HQQ47: 0 | HQR47: 0 | HQS47: 0 | HQT47: 0 | HQU47: 0 | HQV47: 0 | HQW47: 0 | HQX47: 0 | HQY47: 0 | HQZ47: 0 | HRA47: 0 | HRB47: 0 | HRC47: 0 | HRD47: 0 | HRE47: 0 | HRF47: 0 | HRG47: 0 | HRH47: 0 | HRI47: 0 | HRJ47: 0 | HRK47: 0 | HRL47: 0 | HRM47: 0 | HRN47: 0 | HRO47: 0 | HRP47: 0 | HRQ47: 0 | HRR47: 0 | HRS47: 0 | HRT47: 0 | HRU47: 0 | HRV47: 0 | HRW47: 0 | HRX47: 0 | HRY47: 0 | HRZ47: 0 | HSA47: 0 | HSB47: 0 | HSC47: 0 | HSD47: =SUM(HSD3:HSD46) -> 0 | HSE47: 0 | HSF47: 0 | HSG47: 0 | HSH47: 0 | HSI47: 0 | HSJ47: 0 | HSK47: 0 | HSL47: 0 | HSM47: 0 | HSN47: 0 | HSO47: 0 | HSP47: 0 | HSQ47: 0 | HSR47: 0 | HSS47: 0 | HST47: 0 | HSU47: 0 | HSV47: 0 | HSW47: 0 | HSX47: 0 | HSY47: 0 | HSZ47: 0 | HTA47: 0 | HTB47: 0 | HTC47: 0 | HTD47: 0 | HTE47: 0 | HTF47: 0 | HTG47: 0 | HTH47: 0 | HTI47: 0 | HTJ47: 0 | HTK47: 0 | HTL47: 0 | HTM47: 0 | HTN47: 0 | HTO47: 0 | HTP47: 0 | HTQ47: 0 | HTR47: 0 | HTS47: 0 | HTT47: 0 | HTU47: 0 | HTV47: 0 | HTW47: 0 | HTX47: 0 | HTY47: 0 | HTZ47: 0 | HUA47: 0 | HUB47: 0 | HUC47: 0 | HUD47: 0 | HUE47: 0 | HUF47: 0 | HUG47: 0 | HUH47: 0 | HUI47: 0 | HUJ47: 0 | HUK47: 0 | HUL47: 0 | HUM47: 0 | HUN47: 0 | HUO47: 0 | HUP47: =SUM(HUP3:HUP46) -> 0 | HUQ47: 0 | HUR47: 0 | HUS47: 0 | HUT47: 0 | HUU47: 0 | HUV47: 0 | HUW47: 0 | HUX47: 0 | HUY47: 0 | HUZ47: 0 | HVA47: 0 | HVB47: 0 | HVC47: 0 | HVD47: 0 | HVE47: 0 | HVF47: 0 | HVG47: 0 | HVH47: 0 | HVI47: 0 | HVJ47: 0 | HVK47: 0 | HVL47: 0 | HVM47: 0 | HVN47: 0 | HVO47: 0 | HVP47: 0 | HVQ47: 0 | HVR47: 0 | HVS47: 0 | HVT47: 0 | HVU47: 0 | HVV47: 0 | HVW47: 0 | HVX47: 0 | HVY47: 0 | HVZ47: 0 | HWA47: 0 | HWB47: 0 | HWC47: 0 | HWD47: 0 | HWE47: 0 | HWF47: 0 | HWG47: 0 | HWH47: 0 | HWI47: 0 | HWJ47: 0 | HWK47: 0 | HWL47: 0 | HWM47: 0 | HWN47: 0 | HWO47: 0 | HWP47: 0 | HWQ47: 0 | HWR47: 0 | HWS47: 0 | HWT47: 0 | HWU47: 0 | HWV47: 0 | HWW47: 0 | HWX47: 0 | HWY47: 0 | HWZ47: 0 | HXA47: 0 | HXB47: =SUM(HXB3:HXB46) -> 0 | HXC47: 0 | HXD47: 0 | HXE47: 0 | HXF47: 0 | HXG47: 0 | HXH47: 0 | HXI47: 0 | HXJ47: 0 | HXK47: 0 | HXL47: 0 | HXM47: 0 | HXN47: 0 | HXO47: 0 | HXP47: 0 | HXQ47: 0 | HXR47: 0 | HXS47: 0 | HXT47: 0 | HXU47: 0 | HXV47: 0 | HXW47: 0 | HXX47: 0 | HXY47: 0 | HXZ47: 0 | HYA47: 0 | HYB47: 0 | HYC47: 0 | HYD47: 0 | HYE47: 0 | HYF47: 0 | HYG47: 0 | HYH47: 0 | HYI47: 0 | HYJ47: 0 | HYK47: 0 | HYL47: 0 | HYM47: 0 | HYN47: 0 | HYO47: 0 | HYP47: 0 | HYQ47: 0 | HYR47: 0 | HYS47: 0 | HYT47: 0 | HYU47: 0 | HYV47: 0 | HYW47: 0 | HYX47: 0 | HYY47: 0 | HYZ47: 0 | HZA47: 0 | HZB47: 0 | HZC47: 0 | HZD47: 0 | HZE47: 0 | HZF47: 0 | HZG47: 0 | HZH47: 0 | HZI47: 0 | HZJ47: 0 | HZK47: 0 | HZL47: 0 | HZM47: 0 | HZN47: =SUM(HZN3:HZN46) -> 0 | HZO47: 0 | HZP47: 0 | HZQ47: 0 | HZR47: 0 | HZS47: 0 | HZT47: 0 | HZU47: 0 | HZV47: 0 | HZW47: 0 | HZX47: 0 | HZY47: 0 | HZZ47: 0 | IAA47: 0 | IAB47: 0 | IAC47: 0 | IAD47: 0 | IAE47: 0 | IAF47: 0 | IAG47: 0 | IAH47: 0 | IAI47: 0 | IAJ47: 0 | IAK47: 0 | IAL47: 0 | IAM47: 0 | IAN47: 0 | IAO47: 0 | IAP47: 0 | IAQ47: 0 | IAR47: 0 | IAS47: 0 | IAT47: 0 | IAU47: 0 | IAV47: 0 | IAW47: 0 | IAX47: 0 | IAY47: 0 | IAZ47: 0 | IBA47: 0 | IBB47: 0 | IBC47: 0 | IBD47: 0 | IBE47: 0 | IBF47: 0 | IBG47: 0 | IBH47: 0 | IBI47: 0 | IBJ47: 0 | IBK47: 0 | IBL47: 0 | IBM47: 0 | IBN47: 0 | IBO47: 0 | IBP47: 0 | IBQ47: 0 | IBR47: 0 | IBS47: 0 | IBT47: 0 | IBU47: 0 | IBV47: 0 | IBW47: 0 | IBX47: 0 | IBY47: 0 | IBZ47: =SUM(IBZ3:IBZ46) -> 0 | ICA47: 0 | ICB47: 0 | ICC47: 0 | ICD47: 0 | ICE47: 0 | ICF47: 0 | ICG47: 0 | ICH47: 0 | ICI47: 0 | ICJ47: 0 | ICK47: 0 | ICL47: 0 | ICM47: 0 | ICN47: 0 | ICO47: 0 | ICP47: 0 | ICQ47: 0 | ICR47: 0 | ICS47: 0 | ICT47: 0 | ICU47: 0 | ICV47: 0 | ICW47: 0 | ICX47: 0 | ICY47: 0 | ICZ47: 0 | IDA47: 0 | IDB47: 0 | IDC47: 0 | IDD47: 0 | IDE47: 0 | IDF47: 0 | IDG47: 0 | IDH47: 0 | IDI47: 0 | IDJ47: 0 | IDK47: 0 | IDL47: 0 | IDM47: 0 | IDN47: 0 | IDO47: 0 | IDP47: 0 | IDQ47: 0 | IDR47: 0 | IDS47: 0 | IDT47: 0 | IDU47: 0 | IDV47: 0 | IDW47: 0 | IDX47: 0 | IDY47: 0 | IDZ47: 0 | IEA47: 0 | IEB47: 0 | IEC47: 0 | IED47: 0 | IEE47: 0 | IEF47: 0 | IEG47: 0 | IEH47: 0 | IEI47: 0 | IEJ47: 0 | IEK47: 0 | IEL47: =SUM(IEL3:IEL46) -> 0 | IEM47: 0 | IEN47: 0 | IEO47: 0 | IEP47: 0 | IEQ47: 0 | IER47: 0 | IES47: 0 | IET47: 0 | IEU47: 0 | IEV47: 0 | IEW47: 0 | IEX47: 0 | IEY47: 0 | IEZ47: 0 | IFA47: 0 | IFB47: 0 | IFC47: 0 | IFD47: 0 | IFE47: 0 | IFF47: 0 | IFG47: 0 | IFH47: 0 | IFI47: 0 | IFJ47: 0 | IFK47: 0 | IFL47: 0 | IFM47: 0 | IFN47: 0 | IFO47: 0 | IFP47: 0 | IFQ47: 0 | IFR47: 0 | IFS47: 0 | IFT47: 0 | IFU47: 0 | IFV47: 0 | IFW47: 0 | IFX47: 0 | IFY47: 0 | IFZ47: 0 | IGA47: 0 | IGB47: 0 | IGC47: 0 | IGD47: 0 | IGE47: 0 | IGF47: 0 | IGG47: 0 | IGH47: 0 | IGI47: 0 | IGJ47: 0 | IGK47: 0 | IGL47: 0 | IGM47: 0 | IGN47: 0 | IGO47: 0 | IGP47: 0 | IGQ47: 0 | IGR47: 0 | IGS47: 0 | IGT47: 0 | IGU47: 0 | IGV47: 0 | IGW47: 0 | IGX47: =SUM(IGX3:IGX46) -> 0 | IGY47: 0 | IGZ47: 0 | IHA47: 0 | IHB47: 0 | IHC47: 0 | IHD47: 0 | IHE47: 0 | IHF47: 0 | IHG47: 0 | IHH47: 0 | IHI47: 0 | IHJ47: 0 | IHK47: 0 | IHL47: 0 | IHM47: 0 | IHN47: 0 | IHO47: 0 | IHP47: 0 | IHQ47: 0 | IHR47: 0 | IHS47: 0 | IHT47: 0 | IHU47: 0 | IHV47: 0 | IHW47: 0 | IHX47: 0 | IHY47: 0 | IHZ47: 0 | IIA47: 0 | IIB47: 0 | IIC47: 0 | IID47: 0 | IIE47: 0 | IIF47: 0 | IIG47: 0 | IIH47: 0 | III47: 0 | IIJ47: 0 | IIK47: 0 | IIL47: 0 | IIM47: 0 | IIN47: 0 | IIO47: 0 | IIP47: 0 | IIQ47: 0 | IIR47: 0 | IIS47: 0 | IIT47: 0 | IIU47: 0 | IIV47: 0 | IIW47: 0 | IIX47: 0 | IIY47: 0 | IIZ47: 0 | IJA47: 0 | IJB47: 0 | IJC47: 0 | IJD47: 0 | IJE47: 0 | IJF47: 0 | IJG47: 0 | IJH47: 0 | IJI47: 0 | IJJ47: =SUM(IJJ3:IJJ46) -> 0 | IJK47: 0 | IJL47: 0 | IJM47: 0 | IJN47: 0 | IJO47: 0 | IJP47: 0 | IJQ47: 0 | IJR47: 0 | IJS47: 0 | IJT47: 0 | IJU47: 0 | IJV47: 0 | IJW47: 0 | IJX47: 0 | IJY47: 0 | IJZ47: 0 | IKA47: 0 | IKB47: 0 | IKC47: 0 | IKD47: 0 | IKE47: 0 | IKF47: 0 | IKG47: 0 | IKH47: 0 | IKI47: 0 | IKJ47: 0 | IKK47: 0 | IKL47: 0 | IKM47: 0 | IKN47: 0 | IKO47: 0 | IKP47: 0 | IKQ47: 0 | IKR47: 0 | IKS47: 0 | IKT47: 0 | IKU47: 0 | IKV47: 0 | IKW47: 0 | IKX47: 0 | IKY47: 0 | IKZ47: 0 | ILA47: 0 | ILB47: 0 | ILC47: 0 | ILD47: 0 | ILE47: 0 | ILF47: 0 | ILG47: 0 | ILH47: 0 | ILI47: 0 | ILJ47: 0 | ILK47: 0 | ILL47: 0 | ILM47: 0 | ILN47: 0 | ILO47: 0 | ILP47: 0 | ILQ47: 0 | ILR47: 0 | ILS47: 0 | ILT47: 0 | ILU47: 0 | ILV47: =SUM(ILV3:ILV46) -> 0 | ILW47: 0 | ILX47: 0 | ILY47: 0 | ILZ47: 0 | IMA47: 0 | IMB47: 0 | IMC47: 0 | IMD47: 0 | IME47: 0 | IMF47: 0 | IMG47: 0 | IMH47: 0 | IMI47: 0 | IMJ47: 0 | IMK47: 0 | IML47: 0 | IMM47: 0 | IMN47: 0 | IMO47: 0 | IMP47: 0 | IMQ47: 0 | IMR47: 0 | IMS47: 0 | IMT47: 0 | IMU47: 0 | IMV47: 0 | IMW47: 0 | IMX47: 0 | IMY47: 0 | IMZ47: 0 | INA47: 0 | INB47: 0 | INC47: 0 | IND47: 0 | INE47: 0 | INF47: 0 | ING47: 0 | INH47: 0 | INI47: 0 | INJ47: 0 | INK47: 0 | INL47: 0 | INM47: 0 | INN47: 0 | INO47: 0 | INP47: 0 | INQ47: 0 | INR47: 0 | INS47: 0 | INT47: 0 | INU47: 0 | INV47: 0 | INW47: 0 | INX47: 0 | INY47: 0 | INZ47: 0 | IOA47: 0 | IOB47: 0 | IOC47: 0 | IOD47: 0 | IOE47: 0 | IOF47: 0 | IOG47: 0 | IOH47: =SUM(IOH3:IOH46) -> 0 | IOI47: 0 | IOJ47: 0 | IOK47: 0 | IOL47: 0 | IOM47: 0 | ION47: 0 | IOO47: 0 | IOP47: 0 | IOQ47: 0 | IOR47: 0 | IOS47: 0 | IOT47: 0 | IOU47: 0 | IOV47: 0 | IOW47: 0 | IOX47: 0 | IOY47: 0 | IOZ47: 0 | IPA47: 0 | IPB47: 0 | IPC47: 0 | IPD47: 0 | IPE47: 0 | IPF47: 0 | IPG47: 0 | IPH47: 0 | IPI47: 0 | IPJ47: 0 | IPK47: 0 | IPL47: 0 | IPM47: 0 | IPN47: 0 | IPO47: 0 | IPP47: 0 | IPQ47: 0 | IPR47: 0 | IPS47: 0 | IPT47: 0 | IPU47: 0 | IPV47: 0 | IPW47: 0 | IPX47: 0 | IPY47: 0 | IPZ47: 0 | IQA47: 0 | IQB47: 0 | IQC47: 0 | IQD47: 0 | IQE47: 0 | IQF47: 0 | IQG47: 0 | IQH47: 0 | IQI47: 0 | IQJ47: 0 | IQK47: 0 | IQL47: 0 | IQM47: 0 | IQN47: 0 | IQO47: 0 | IQP47: 0 | IQQ47: 0 | IQR47: 0 | IQS47: 0 | IQT47: =SUM(IQT3:IQT46) -> 0 | IQU47: 0 | IQV47: 0 | IQW47: 0 | IQX47: 0 | IQY47: 0 | IQZ47: 0 | IRA47: 0 | IRB47: 0 | IRC47: 0 | IRD47: 0 | IRE47: 0 | IRF47: 0 | IRG47: 0 | IRH47: 0 | IRI47: 0 | IRJ47: 0 | IRK47: 0 | IRL47: 0 | IRM47: 0 | IRN47: 0 | IRO47: 0 | IRP47: 0 | IRQ47: 0 | IRR47: 0 | IRS47: 0 | IRT47: 0 | IRU47: 0 | IRV47: 0 | IRW47: 0 | IRX47: 0 | IRY47: 0 | IRZ47: 0 | ISA47: 0 | ISB47: 0 | ISC47: 0 | ISD47: 0 | ISE47: 0 | ISF47: 0 | ISG47: 0 | ISH47: 0 | ISI47: 0 | ISJ47: 0 | ISK47: 0 | ISL47: 0 | ISM47: 0 | ISN47: 0 | ISO47: 0 | ISP47: 0 | ISQ47: 0 | ISR47: 0 | ISS47: 0 | IST47: 0 | ISU47: 0 | ISV47: 0 | ISW47: 0 | ISX47: 0 | ISY47: 0 | ISZ47: 0 | ITA47: 0 | ITB47: 0 | ITC47: 0 | ITD47: 0 | ITE47: 0 | ITF47: =SUM(ITF3:ITF46) -> 0 | ITG47: 0 | ITH47: 0 | ITI47: 0 | ITJ47: 0 | ITK47: 0 | ITL47: 0 | ITM47: 0 | ITN47: 0 | ITO47: 0 | ITP47: 0 | ITQ47: 0 | ITR47: 0 | ITS47: 0 | ITT47: 0 | ITU47: 0 | ITV47: 0 | ITW47: 0 | ITX47: 0 | ITY47: 0 | ITZ47: 0 | IUA47: 0 | IUB47: 0 | IUC47: 0 | IUD47: 0 | IUE47: 0 | IUF47: 0 | IUG47: 0 | IUH47: 0 | IUI47: 0 | IUJ47: 0 | IUK47: 0 | IUL47: 0 | IUM47: 0 | IUN47: 0 | IUO47: 0 | IUP47: 0 | IUQ47: 0 | IUR47: 0 | IUS47: 0 | IUT47: 0 | IUU47: 0 | IUV47: 0 | IUW47: 0 | IUX47: 0 | IUY47: 0 | IUZ47: 0 | IVA47: 0 | IVB47: 0 | IVC47: 0 | IVD47: 0 | IVE47: 0 | IVF47: 0 | IVG47: 0 | IVH47: 0 | IVI47: 0 | IVJ47: 0 | IVK47: 0 | IVL47: 0 | IVM47: 0 | IVN47: 0 | IVO47: 0 | IVP47: 0 | IVQ47: 0 | IVR47: =SUM(IVR3:IVR46) -> 0 | IVS47: 0 | IVT47: 0 | IVU47: 0 | IVV47: 0 | IVW47: 0 | IVX47: 0 | IVY47: 0 | IVZ47: 0 | IWA47: 0 | IWB47: 0 | IWC47: 0 | IWD47: 0 | IWE47: 0 | IWF47: 0 | IWG47: 0 | IWH47: 0 | IWI47: 0 | IWJ47: 0 | IWK47: 0 | IWL47: 0 | IWM47: 0 | IWN47: 0 | IWO47: 0 | IWP47: 0 | IWQ47: 0 | IWR47: 0 | IWS47: 0 | IWT47: 0 | IWU47: 0 | IWV47: 0 | IWW47: 0 | IWX47: 0 | IWY47: 0 | IWZ47: 0 | IXA47: 0 | IXB47: 0 | IXC47: 0 | IXD47: 0 | IXE47: 0 | IXF47: 0 | IXG47: 0 | IXH47: 0 | IXI47: 0 | IXJ47: 0 | IXK47: 0 | IXL47: 0 | IXM47: 0 | IXN47: 0 | IXO47: 0 | IXP47: 0 | IXQ47: 0 | IXR47: 0 | IXS47: 0 | IXT47: 0 | IXU47: 0 | IXV47: 0 | IXW47: 0 | IXX47: 0 | IXY47: 0 | IXZ47: 0 | IYA47: 0 | IYB47: 0 | IYC47: 0 | IYD47: =SUM(IYD3:IYD46) -> 0 | IYE47: 0 | IYF47: 0 | IYG47: 0 | IYH47: 0 | IYI47: 0 | IYJ47: 0 | IYK47: 0 | IYL47: 0 | IYM47: 0 | IYN47: 0 | IYO47: 0 | IYP47: 0 | IYQ47: 0 | IYR47: 0 | IYS47: 0 | IYT47: 0 | IYU47: 0 | IYV47: 0 | IYW47: 0 | IYX47: 0 | IYY47: 0 | IYZ47: 0 | IZA47: 0 | IZB47: 0 | IZC47: 0 | IZD47: 0 | IZE47: 0 | IZF47: 0 | IZG47: 0 | IZH47: 0 | IZI47: 0 | IZJ47: 0 | IZK47: 0 | IZL47: 0 | IZM47: 0 | IZN47: 0 | IZO47: 0 | IZP47: 0 | IZQ47: 0 | IZR47: 0 | IZS47: 0 | IZT47: 0 | IZU47: 0 | IZV47: 0 | IZW47: 0 | IZX47: 0 | IZY47: 0 | IZZ47: 0 | JAA47: 0 | JAB47: 0 | JAC47: 0 | JAD47: 0 | JAE47: 0 | JAF47: 0 | JAG47: 0 | JAH47: 0 | JAI47: 0 | JAJ47: 0 | JAK47: 0 | JAL47: 0 | JAM47: 0 | JAN47: 0 | JAO47: 0 | JAP47: =SUM(JAP3:JAP46) -> 0 | JAQ47: 0 | JAR47: 0 | JAS47: 0 | JAT47: 0 | JAU47: 0 | JAV47: 0 | JAW47: 0 | JAX47: 0 | JAY47: 0 | JAZ47: 0 | JBA47: 0 | JBB47: 0 | JBC47: 0 | JBD47: 0 | JBE47: 0 | JBF47: 0 | JBG47: 0 | JBH47: 0 | JBI47: 0 | JBJ47: 0 | JBK47: 0 | JBL47: 0 | JBM47: 0 | JBN47: 0 | JBO47: 0 | JBP47: 0 | JBQ47: 0 | JBR47: 0 | JBS47: 0 | JBT47: 0 | JBU47: 0 | JBV47: 0 | JBW47: 0 | JBX47: 0 | JBY47: 0 | JBZ47: 0 | JCA47: 0 | JCB47: 0 | JCC47: 0 | JCD47: 0 | JCE47: 0 | JCF47: 0 | JCG47: 0 | JCH47: 0 | JCI47: 0 | JCJ47: 0 | JCK47: 0 | JCL47: 0 | JCM47: 0 | JCN47: 0 | JCO47: 0 | JCP47: 0 | JCQ47: 0 | JCR47: 0 | JCS47: 0 | JCT47: 0 | JCU47: 0 | JCV47: 0 | JCW47: 0 | JCX47: 0 | JCY47: 0 | JCZ47: 0 | JDA47: 0 | JDB47: =SUM(JDB3:JDB46) -> 0 | JDC47: 0 | JDD47: 0 | JDE47: 0 | JDF47: 0 | JDG47: 0 | JDH47: 0 | JDI47: 0 | JDJ47: 0 | JDK47: 0 | JDL47: 0 | JDM47: 0 | JDN47: 0 | JDO47: 0 | JDP47: 0 | JDQ47: 0 | JDR47: 0 | JDS47: 0 | JDT47: 0 | JDU47: 0 | JDV47: 0 | JDW47: 0 | JDX47: 0 | JDY47: 0 | JDZ47: 0 | JEA47: 0 | JEB47: 0 | JEC47: 0 | JED47: 0 | JEE47: 0 | JEF47: 0 | JEG47: 0 | JEH47: 0 | JEI47: 0 | JEJ47: 0 | JEK47: 0 | JEL47: 0 | JEM47: 0 | JEN47: 0 | JEO47: 0 | JEP47: 0 | JEQ47: 0 | JER47: 0 | JES47: 0 | JET47: 0 | JEU47: 0 | JEV47: 0 | JEW47: 0 | JEX47: 0 | JEY47: 0 | JEZ47: 0 | JFA47: 0 | JFB47: 0 | JFC47: 0 | JFD47: 0 | JFE47: 0 | JFF47: 0 | JFG47: 0 | JFH47: 0 | JFI47: 0 | JFJ47: 0 | JFK47: 0 | JFL47: 0 | JFM47: 0 | JFN47: =SUM(JFN3:JFN46) -> 0 | JFO47: 0 | JFP47: 0 | JFQ47: 0 | JFR47: 0 | JFS47: 0 | JFT47: 0 | JFU47: 0 | JFV47: 0 | JFW47: 0 | JFX47: 0 | JFY47: 0 | JFZ47: 0 | JGA47: 0 | JGB47: 0 | JGC47: 0 | JGD47: 0 | JGE47: 0 | JGF47: 0 | JGG47: 0 | JGH47: 0 | JGI47: 0 | JGJ47: 0 | JGK47: 0 | JGL47: 0 | JGM47: 0 | JGN47: 0 | JGO47: 0 | JGP47: 0 | JGQ47: 0 | JGR47: 0 | JGS47: 0 | JGT47: 0 | JGU47: 0 | JGV47: 0 | JGW47: 0 | JGX47: 0 | JGY47: 0 | JGZ47: 0 | JHA47: 0 | JHB47: 0 | JHC47: 0 | JHD47: 0 | JHE47: 0 | JHF47: 0 | JHG47: 0 | JHH47: 0 | JHI47: 0 | JHJ47: 0 | JHK47: 0 | JHL47: 0 | JHM47: 0 | JHN47: 0 | JHO47: 0 | JHP47: 0 | JHQ47: 0 | JHR47: 0 | JHS47: 0 | JHT47: 0 | JHU47: 0 | JHV47: 0 | JHW47: 0 | JHX47: 0 | JHY47: 0 | JHZ47: =SUM(JHZ3:JHZ46) -> 0 | JIA47: 0 | JIB47: 0 | JIC47: 0 | JID47: 0 | JIE47: 0 | JIF47: 0 | JIG47: 0 | JIH47: 0 | JII47: 0 | JIJ47: 0 | JIK47: 0 | JIL47: 0 | JIM47: 0 | JIN47: 0 | JIO47: 0 | JIP47: 0 | JIQ47: 0 | JIR47: 0 | JIS47: 0 | JIT47: 0 | JIU47: 0 | JIV47: 0 | JIW47: 0 | JIX47: 0 | JIY47: 0 | JIZ47: 0 | JJA47: 0 | JJB47: 0 | JJC47: 0 | JJD47: 0 | JJE47: 0 | JJF47: 0 | JJG47: 0 | JJH47: 0 | JJI47: 0 | JJJ47: 0 | JJK47: 0 | JJL47: 0 | JJM47: 0 | JJN47: 0 | JJO47: 0 | JJP47: 0 | JJQ47: 0 | JJR47: 0 | JJS47: 0 | JJT47: 0 | JJU47: 0 | JJV47: 0 | JJW47: 0 | JJX47: 0 | JJY47: 0 | JJZ47: 0 | JKA47: 0 | JKB47: 0 | JKC47: 0 | JKD47: 0 | JKE47: 0 | JKF47: 0 | JKG47: 0 | JKH47: 0 | JKI47: 0 | JKJ47: 0 | JKK47: 0 | JKL47: =SUM(JKL3:JKL46) -> 0 | JKM47: 0 | JKN47: 0 | JKO47: 0 | JKP47: 0 | JKQ47: 0 | JKR47: 0 | JKS47: 0 | JKT47: 0 | JKU47: 0 | JKV47: 0 | JKW47: 0 | JKX47: 0 | JKY47: 0 | JKZ47: 0 | JLA47: 0 | JLB47: 0 | JLC47: 0 | JLD47: 0 | JLE47: 0 | JLF47: 0 | JLG47: 0 | JLH47: 0 | JLI47: 0 | JLJ47: 0 | JLK47: 0 | JLL47: 0 | JLM47: 0 | JLN47: 0 | JLO47: 0 | JLP47: 0 | JLQ47: 0 | JLR47: 0 | JLS47: 0 | JLT47: 0 | JLU47: 0 | JLV47: 0 | JLW47: 0 | JLX47: 0 | JLY47: 0 | JLZ47: 0 | JMA47: 0 | JMB47: 0 | JMC47: 0 | JMD47: 0 | JME47: 0 | JMF47: 0 | JMG47: 0 | JMH47: 0 | JMI47: 0 | JMJ47: 0 | JMK47: 0 | JML47: 0 | JMM47: 0 | JMN47: 0 | JMO47: 0 | JMP47: 0 | JMQ47: 0 | JMR47: 0 | JMS47: 0 | JMT47: 0 | JMU47: 0 | JMV47: 0 | JMW47: 0 | JMX47: =SUM(JMX3:JMX46) -> 0 | JMY47: 0 | JMZ47: 0 | JNA47: 0 | JNB47: 0 | JNC47: 0 | JND47: 0 | JNE47: 0 | JNF47: 0 | JNG47: 0 | JNH47: 0 | JNI47: 0 | JNJ47: 0 | JNK47: 0 | JNL47: 0 | JNM47: 0 | JNN47: 0 | JNO47: 0 | JNP47: 0 | JNQ47: 0 | JNR47: 0 | JNS47: 0 | JNT47: 0 | JNU47: 0 | JNV47: 0 | JNW47: 0 | JNX47: 0 | JNY47: 0 | JNZ47: 0 | JOA47: 0 | JOB47: 0 | JOC47: 0 | JOD47: 0 | JOE47: 0 | JOF47: 0 | JOG47: 0 | JOH47: 0 | JOI47: 0 | JOJ47: 0 | JOK47: 0 | JOL47: 0 | JOM47: 0 | JON47: 0 | JOO47: 0 | JOP47: 0 | JOQ47: 0 | JOR47: 0 | JOS47: 0 | JOT47: 0 | JOU47: 0 | JOV47: 0 | JOW47: 0 | JOX47: 0 | JOY47: 0 | JOZ47: 0 | JPA47: 0 | JPB47: 0 | JPC47: 0 | JPD47: 0 | JPE47: 0 | JPF47: 0 | JPG47: 0 | JPH47: 0 | JPI47: 0 | JPJ47: =SUM(JPJ3:JPJ46) -> 0 | JPK47: 0 | JPL47: 0 | JPM47: 0 | JPN47: 0 | JPO47: 0 | JPP47: 0 | JPQ47: 0 | JPR47: 0 | JPS47: 0 | JPT47: 0 | JPU47: 0 | JPV47: 0 | JPW47: 0 | JPX47: 0 | JPY47: 0 | JPZ47: 0 | JQA47: 0 | JQB47: 0 | JQC47: 0 | JQD47: 0 | JQE47: 0 | JQF47: 0 | JQG47: 0 | JQH47: 0 | JQI47: 0 | JQJ47: 0 | JQK47: 0 | JQL47: 0 | JQM47: 0 | JQN47: 0 | JQO47: 0 | JQP47: 0 | JQQ47: 0 | JQR47: 0 | JQS47: 0 | JQT47: 0 | JQU47: 0 | JQV47: 0 | JQW47: 0 | JQX47: 0 | JQY47: 0 | JQZ47: 0 | JRA47: 0 | JRB47: 0 | JRC47: 0 | JRD47: 0 | JRE47: 0 | JRF47: 0 | JRG47: 0 | JRH47: 0 | JRI47: 0 | JRJ47: 0 | JRK47: 0 | JRL47: 0 | JRM47: 0 | JRN47: 0 | JRO47: 0 | JRP47: 0 | JRQ47: 0 | JRR47: 0 | JRS47: 0 | JRT47: 0 | JRU47: 0 | JRV47: =SUM(JRV3:JRV46) -> 0 | JRW47: 0 | JRX47: 0 | JRY47: 0 | JRZ47: 0 | JSA47: 0 | JSB47: 0 | JSC47: 0 | JSD47: 0 | JSE47: 0 | JSF47: 0 | JSG47: 0 | JSH47: 0 | JSI47: 0 | JSJ47: 0 | JSK47: 0 | JSL47: 0 | JSM47: 0 | JSN47: 0 | JSO47: 0 | JSP47: 0 | JSQ47: 0 | JSR47: 0 | JSS47: 0 | JST47: 0 | JSU47: 0 | JSV47: 0 | JSW47: 0 | JSX47: 0 | JSY47: 0 | JSZ47: 0 | JTA47: 0 | JTB47: 0 | JTC47: 0 | JTD47: 0 | JTE47: 0 | JTF47: 0 | JTG47: 0 | JTH47: 0 | JTI47: 0 | JTJ47: 0 | JTK47: 0 | JTL47: 0 | JTM47: 0 | JTN47: 0 | JTO47: 0 | JTP47: 0 | JTQ47: 0 | JTR47: 0 | JTS47: 0 | JTT47: 0 | JTU47: 0 | JTV47: 0 | JTW47: 0 | JTX47: 0 | JTY47: 0 | JTZ47: 0 | JUA47: 0 | JUB47: 0 | JUC47: 0 | JUD47: 0 | JUE47: 0 | JUF47: 0 | JUG47: 0 | JUH47: =SUM(JUH3:JUH46) -> 0 | JUI47: 0 | JUJ47: 0 | JUK47: 0 | JUL47: 0 | JUM47: 0 | JUN47: 0 | JUO47: 0 | JUP47: 0 | JUQ47: 0 | JUR47: 0 | JUS47: 0 | JUT47: 0 | JUU47: 0 | JUV47: 0 | JUW47: 0 | JUX47: 0 | JUY47: 0 | JUZ47: 0 | JVA47: 0 | JVB47: 0 | JVC47: 0 | JVD47: 0 | JVE47: 0 | JVF47: 0 | JVG47: 0 | JVH47: 0 | JVI47: 0 | JVJ47: 0 | JVK47: 0 | JVL47: 0 | JVM47: 0 | JVN47: 0 | JVO47: 0 | JVP47: 0 | JVQ47: 0 | JVR47: 0 | JVS47: 0 | JVT47: 0 | JVU47: 0 | JVV47: 0 | JVW47: 0 | JVX47: 0 | JVY47: 0 | JVZ47: 0 | JWA47: 0 | JWB47: 0 | JWC47: 0 | JWD47: 0 | JWE47: 0 | JWF47: 0 | JWG47: 0 | JWH47: 0 | JWI47: 0 | JWJ47: 0 | JWK47: 0 | JWL47: 0 | JWM47: 0 | JWN47: 0 | JWO47: 0 | JWP47: 0 | JWQ47: 0 | JWR47: 0 | JWS47: 0 | JWT47: =SUM(JWT3:JWT46) -> 0 | JWU47: 0 | JWV47: 0 | JWW47: 0 | JWX47: 0 | JWY47: 0 | JWZ47: 0 | JXA47: 0 | JXB47: 0 | JXC47: 0 | JXD47: 0 | JXE47: 0 | JXF47: 0 | JXG47: 0 | JXH47: 0 | JXI47: 0 | JXJ47: 0 | JXK47: 0 | JXL47: 0 | JXM47: 0 | JXN47: 0 | JXO47: 0 | JXP47: 0 | JXQ47: 0 | JXR47: 0 | JXS47: 0 | JXT47: 0 | JXU47: 0 | JXV47: 0 | JXW47: 0 | JXX47: 0 | JXY47: 0 | JXZ47: 0 | JYA47: 0 | JYB47: 0 | JYC47: 0 | JYD47: 0 | JYE47: 0 | JYF47: 0 | JYG47: 0 | JYH47: 0 | JYI47: 0 | JYJ47: 0 | JYK47: 0 | JYL47: 0 | JYM47: 0 | JYN47: 0 | JYO47: 0 | JYP47: 0 | JYQ47: 0 | JYR47: 0 | JYS47: 0 | JYT47: 0 | JYU47: 0 | JYV47: 0 | JYW47: 0 | JYX47: 0 | JYY47: 0 | JYZ47: 0 | JZA47: 0 | JZB47: 0 | JZC47: 0 | JZD47: 0 | JZE47: 0 | JZF47: =SUM(JZF3:JZF46) -> 0 | JZG47: 0 | JZH47: 0 | JZI47: 0 | JZJ47: 0 | JZK47: 0 | JZL47: 0 | JZM47: 0 | JZN47: 0 | JZO47: 0 | JZP47: 0 | JZQ47: 0 | JZR47: 0 | JZS47: 0 | JZT47: 0 | JZU47: 0 | JZV47: 0 | JZW47: 0 | JZX47: 0 | JZY47: 0 | JZZ47: 0 | KAA47: 0 | KAB47: 0 | KAC47: 0 | KAD47: 0 | KAE47: 0 | KAF47: 0 | KAG47: 0 | KAH47: 0 | KAI47: 0 | KAJ47: 0 | KAK47: 0 | KAL47: 0 | KAM47: 0 | KAN47: 0 | KAO47: 0 | KAP47: 0 | KAQ47: 0 | KAR47: 0 | KAS47: 0 | KAT47: 0 | KAU47: 0 | KAV47: 0 | KAW47: 0 | KAX47: 0 | KAY47: 0 | KAZ47: 0 | KBA47: 0 | KBB47: 0 | KBC47: 0 | KBD47: 0 | KBE47: 0 | KBF47: 0 | KBG47: 0 | KBH47: 0 | KBI47: 0 | KBJ47: 0 | KBK47: 0 | KBL47: 0 | KBM47: 0 | KBN47: 0 | KBO47: 0 | KBP47: 0 | KBQ47: 0 | KBR47: =SUM(KBR3:KBR46) -> 0 | KBS47: 0 | KBT47: 0 | KBU47: 0 | KBV47: 0 | KBW47: 0 | KBX47: 0 | KBY47: 0 | KBZ47: 0 | KCA47: 0 | KCB47: 0 | KCC47: 0 | KCD47: 0 | KCE47: 0 | KCF47: 0 | KCG47: 0 | KCH47: 0 | KCI47: 0 | KCJ47: 0 | KCK47: 0 | KCL47: 0 | KCM47: 0 | KCN47: 0 | KCO47: 0 | KCP47: 0 | KCQ47: 0 | KCR47: 0 | KCS47: 0 | KCT47: 0 | KCU47: 0 | KCV47: 0 | KCW47: 0 | KCX47: 0 | KCY47: 0 | KCZ47: 0 | KDA47: 0 | KDB47: 0 | KDC47: 0 | KDD47: 0 | KDE47: 0 | KDF47: 0 | KDG47: 0 | KDH47: 0 | KDI47: 0 | KDJ47: 0 | KDK47: 0 | KDL47: 0 | KDM47: 0 | KDN47: 0 | KDO47: 0 | KDP47: 0 | KDQ47: 0 | KDR47: 0 | KDS47: 0 | KDT47: 0 | KDU47: 0 | KDV47: 0 | KDW47: 0 | KDX47: 0 | KDY47: 0 | KDZ47: 0 | KEA47: 0 | KEB47: 0 | KEC47: 0 | KED47: =SUM(KED3:KED46) -> 0 | KEE47: 0 | KEF47: 0 | KEG47: 0 | KEH47: 0 | KEI47: 0 | KEJ47: 0 | KEK47: 0 | KEL47: 0 | KEM47: 0 | KEN47: 0 | KEO47: 0 | KEP47: 0 | KEQ47: 0 | KER47: 0 | KES47: 0 | KET47: 0 | KEU47: 0 | KEV47: 0 | KEW47: 0 | KEX47: 0 | KEY47: 0 | KEZ47: 0 | KFA47: 0 | KFB47: 0 | KFC47: 0 | KFD47: 0 | KFE47: 0 | KFF47: 0 | KFG47: 0 | KFH47: 0 | KFI47: 0 | KFJ47: 0 | KFK47: 0 | KFL47: 0 | KFM47: 0 | KFN47: 0 | KFO47: 0 | KFP47: 0 | KFQ47: 0 | KFR47: 0 | KFS47: 0 | KFT47: 0 | KFU47: 0 | KFV47: 0 | KFW47: 0 | KFX47: 0 | KFY47: 0 | KFZ47: 0 | KGA47: 0 | KGB47: 0 | KGC47: 0 | KGD47: 0 | KGE47: 0 | KGF47: 0 | KGG47: 0 | KGH47: 0 | KGI47: 0 | KGJ47: 0 | KGK47: 0 | KGL47: 0 | KGM47: 0 | KGN47: 0 | KGO47: 0 | KGP47: =SUM(KGP3:KGP46) -> 0 | KGQ47: 0 | KGR47: 0 | KGS47: 0 | KGT47: 0 | KGU47: 0 | KGV47: 0 | KGW47: 0 | KGX47: 0 | KGY47: 0 | KGZ47: 0 | KHA47: 0 | KHB47: 0 | KHC47: 0 | KHD47: 0 | KHE47: 0 | KHF47: 0 | KHG47: 0 | KHH47: 0 | KHI47: 0 | KHJ47: 0 | KHK47: 0 | KHL47: 0 | KHM47: 0 | KHN47: 0 | KHO47: 0 | KHP47: 0 | KHQ47: 0 | KHR47: 0 | KHS47: 0 | KHT47: 0 | KHU47: 0 | KHV47: 0 | KHW47: 0 | KHX47: 0 | KHY47: 0 | KHZ47: 0 | KIA47: 0 | KIB47: 0 | KIC47: 0 | KID47: 0 | KIE47: 0 | KIF47: 0 | KIG47: 0 | KIH47: 0 | KII47: 0 | KIJ47: 0 | KIK47: 0 | KIL47: 0 | KIM47: 0 | KIN47: 0 | KIO47: 0 | KIP47: 0 | KIQ47: 0 | KIR47: 0 | KIS47: 0 | KIT47: 0 | KIU47: 0 | KIV47: 0 | KIW47: 0 | KIX47: 0 | KIY47: 0 | KIZ47: 0 | KJA47: 0 | KJB47: =SUM(KJB3:KJB46) -> 0 | KJC47: 0 | KJD47: 0 | KJE47: 0 | KJF47: 0 | KJG47: 0 | KJH47: 0 | KJI47: 0 | KJJ47: 0 | KJK47: 0 | KJL47: 0 | KJM47: 0 | KJN47: 0 | KJO47: 0 | KJP47: 0 | KJQ47: 0 | KJR47: 0 | KJS47: 0 | KJT47: 0 | KJU47: 0 | KJV47: 0 | KJW47: 0 | KJX47: 0 | KJY47: 0 | KJZ47: 0 | KKA47: 0 | KKB47: 0 | KKC47: 0 | KKD47: 0 | KKE47: 0 | KKF47: 0 | KKG47: 0 | KKH47: 0 | KKI47: 0 | KKJ47: 0 | KKK47: 0 | KKL47: 0 | KKM47: 0 | KKN47: 0 | KKO47: 0 | KKP47: 0 | KKQ47: 0 | KKR47: 0 | KKS47: 0 | KKT47: 0 | KKU47: 0 | KKV47: 0 | KKW47: 0 | KKX47: 0 | KKY47: 0 | KKZ47: 0 | KLA47: 0 | KLB47: 0 | KLC47: 0 | KLD47: 0 | KLE47: 0 | KLF47: 0 | KLG47: 0 | KLH47: 0 | KLI47: 0 | KLJ47: 0 | KLK47: 0 | KLL47: 0 | KLM47: 0 | KLN47: =SUM(KLN3:KLN46) -> 0 | KLO47: 0 | KLP47: 0 | KLQ47: 0 | KLR47: 0 | KLS47: 0 | KLT47: 0 | KLU47: 0 | KLV47: 0 | KLW47: 0 | KLX47: 0 | KLY47: 0 | KLZ47: 0 | KMA47: 0 | KMB47: 0 | KMC47: 0 | KMD47: 0 | KME47: 0 | KMF47: 0 | KMG47: 0 | KMH47: 0 | KMI47: 0 | KMJ47: 0 | KMK47: 0 | KML47: 0 | KMM47: 0 | KMN47: 0 | KMO47: 0 | KMP47: 0 | KMQ47: 0 | KMR47: 0 | KMS47: 0 | KMT47: 0 | KMU47: 0 | KMV47: 0 | KMW47: 0 | KMX47: 0 | KMY47: 0 | KMZ47: 0 | KNA47: 0 | KNB47: 0 | KNC47: 0 | KND47: 0 | KNE47: 0 | KNF47: 0 | KNG47: 0 | KNH47: 0 | KNI47: 0 | KNJ47: 0 | KNK47: 0 | KNL47: 0 | KNM47: 0 | KNN47: 0 | KNO47: 0 | KNP47: 0 | KNQ47: 0 | KNR47: 0 | KNS47: 0 | KNT47: 0 | KNU47: 0 | KNV47: 0 | KNW47: 0 | KNX47: 0 | KNY47: 0 | KNZ47: =SUM(KNZ3:KNZ46) -> 0 | KOA47: 0 | KOB47: 0 | KOC47: 0 | KOD47: 0 | KOE47: 0 | KOF47: 0 | KOG47: 0 | KOH47: 0 | KOI47: 0 | KOJ47: 0 | KOK47: 0 | KOL47: 0 | KOM47: 0 | KON47: 0 | KOO47: 0 | KOP47: 0 | KOQ47: 0 | KOR47: 0 | KOS47: 0 | KOT47: 0 | KOU47: 0 | KOV47: 0 | KOW47: 0 | KOX47: 0 | KOY47: 0 | KOZ47: 0 | KPA47: 0 | KPB47: 0 | KPC47: 0 | KPD47: 0 | KPE47: 0 | KPF47: 0 | KPG47: 0 | KPH47: 0 | KPI47: 0 | KPJ47: 0 | KPK47: 0 | KPL47: 0 | KPM47: 0 | KPN47: 0 | KPO47: 0 | KPP47: 0 | KPQ47: 0 | KPR47: 0 | KPS47: 0 | KPT47: 0 | KPU47: 0 | KPV47: 0 | KPW47: 0 | KPX47: 0 | KPY47: 0 | KPZ47: 0 | KQA47: 0 | KQB47: 0 | KQC47: 0 | KQD47: 0 | KQE47: 0 | KQF47: 0 | KQG47: 0 | KQH47: 0 | KQI47: 0 | KQJ47: 0 | KQK47: 0 | KQL47: =SUM(KQL3:KQL46) -> 0 | KQM47: 0 | KQN47: 0 | KQO47: 0 | KQP47: 0 | KQQ47: 0 | KQR47: 0 | KQS47: 0 | KQT47: 0 | KQU47: 0 | KQV47: 0 | KQW47: 0 | KQX47: 0 | KQY47: 0 | KQZ47: 0 | KRA47: 0 | KRB47: 0 | KRC47: 0 | KRD47: 0 | KRE47: 0 | KRF47: 0 | KRG47: 0 | KRH47: 0 | KRI47: 0 | KRJ47: 0 | KRK47: 0 | KRL47: 0 | KRM47: 0 | KRN47: 0 | KRO47: 0 | KRP47: 0 | KRQ47: 0 | KRR47: 0 | KRS47: 0 | KRT47: 0 | KRU47: 0 | KRV47: 0 | KRW47: 0 | KRX47: 0 | KRY47: 0 | KRZ47: 0 | KSA47: 0 | KSB47: 0 | KSC47: 0 | KSD47: 0 | KSE47: 0 | KSF47: 0 | KSG47: 0 | KSH47: 0 | KSI47: 0 | KSJ47: 0 | KSK47: 0 | KSL47: 0 | KSM47: 0 | KSN47: 0 | KSO47: 0 | KSP47: 0 | KSQ47: 0 | KSR47: 0 | KSS47: 0 | KST47: 0 | KSU47: 0 | KSV47: 0 | KSW47: 0 | KSX47: =SUM(KSX3:KSX46) -> 0 | KSY47: 0 | KSZ47: 0 | KTA47: 0 | KTB47: 0 | KTC47: 0 | KTD47: 0 | KTE47: 0 | KTF47: 0 | KTG47: 0 | KTH47: 0 | KTI47: 0 | KTJ47: 0 | KTK47: 0 | KTL47: 0 | KTM47: 0 | KTN47: 0 | KTO47: 0 | KTP47: 0 | KTQ47: 0 | KTR47: 0 | KTS47: 0 | KTT47: 0 | KTU47: 0 | KTV47: 0 | KTW47: 0 | KTX47: 0 | KTY47: 0 | KTZ47: 0 | KUA47: 0 | KUB47: 0 | KUC47: 0 | KUD47: 0 | KUE47: 0 | KUF47: 0 | KUG47: 0 | KUH47: 0 | KUI47: 0 | KUJ47: 0 | KUK47: 0 | KUL47: 0 | KUM47: 0 | KUN47: 0 | KUO47: 0 | KUP47: 0 | KUQ47: 0 | KUR47: 0 | KUS47: 0 | KUT47: 0 | KUU47: 0 | KUV47: 0 | KUW47: 0 | KUX47: 0 | KUY47: 0 | KUZ47: 0 | KVA47: 0 | KVB47: 0 | KVC47: 0 | KVD47: 0 | KVE47: 0 | KVF47: 0 | KVG47: 0 | KVH47: 0 | KVI47: 0 | KVJ47: =SUM(KVJ3:KVJ46) -> 0 | KVK47: 0 | KVL47: 0 | KVM47: 0 | KVN47: 0 | KVO47: 0 | KVP47: 0 | KVQ47: 0 | KVR47: 0 | KVS47: 0 | KVT47: 0 | KVU47: 0 | KVV47: 0 | KVW47: 0 | KVX47: 0 | KVY47: 0 | KVZ47: 0 | KWA47: 0 | KWB47: 0 | KWC47: 0 | KWD47: 0 | KWE47: 0 | KWF47: 0 | KWG47: 0 | KWH47: 0 | KWI47: 0 | KWJ47: 0 | KWK47: 0 | KWL47: 0 | KWM47: 0 | KWN47: 0 | KWO47: 0 | KWP47: 0 | KWQ47: 0 | KWR47: 0 | KWS47: 0 | KWT47: 0 | KWU47: 0 | KWV47: 0 | KWW47: 0 | KWX47: 0 | KWY47: 0 | KWZ47: 0 | KXA47: 0 | KXB47: 0 | KXC47: 0 | KXD47: 0 | KXE47: 0 | KXF47: 0 | KXG47: 0 | KXH47: 0 | KXI47: 0 | KXJ47: 0 | KXK47: 0 | KXL47: 0 | KXM47: 0 | KXN47: 0 | KXO47: 0 | KXP47: 0 | KXQ47: 0 | KXR47: 0 | KXS47: 0 | KXT47: 0 | KXU47: 0 | KXV47: =SUM(KXV3:KXV46) -> 0 | KXW47: 0 | KXX47: 0 | KXY47: 0 | KXZ47: 0 | KYA47: 0 | KYB47: 0 | KYC47: 0 | KYD47: 0 | KYE47: 0 | KYF47: 0 | KYG47: 0 | KYH47: 0 | KYI47: 0 | KYJ47: 0 | KYK47: 0 | KYL47: 0 | KYM47: 0 | KYN47: 0 | KYO47: 0 | KYP47: 0 | KYQ47: 0 | KYR47: 0 | KYS47: 0 | KYT47: 0 | KYU47: 0 | KYV47: 0 | KYW47: 0 | KYX47: 0 | KYY47: 0 | KYZ47: 0 | KZA47: 0 | KZB47: 0 | KZC47: 0 | KZD47: 0 | KZE47: 0 | KZF47: 0 | KZG47: 0 | KZH47: 0 | KZI47: 0 | KZJ47: 0 | KZK47: 0 | KZL47: 0 | KZM47: 0 | KZN47: 0 | KZO47: 0 | KZP47: 0 | KZQ47: 0 | KZR47: 0 | KZS47: 0 | KZT47: 0 | KZU47: 0 | KZV47: 0 | KZW47: 0 | KZX47: 0 | KZY47: 0 | KZZ47: 0 | LAA47: 0 | LAB47: 0 | LAC47: 0 | LAD47: 0 | LAE47: 0 | LAF47: 0 | LAG47: 0 | LAH47: =SUM(LAH3:LAH46) -> 0 | LAI47: 0 | LAJ47: 0 | LAK47: 0 | LAL47: 0 | LAM47: 0 | LAN47: 0 | LAO47: 0 | LAP47: 0 | LAQ47: 0 | LAR47: 0 | LAS47: 0 | LAT47: 0 | LAU47: 0 | LAV47: 0 | LAW47: 0 | LAX47: 0 | LAY47: 0 | LAZ47: 0 | LBA47: 0 | LBB47: 0 | LBC47: 0 | LBD47: 0 | LBE47: 0 | LBF47: 0 | LBG47: 0 | LBH47: 0 | LBI47: 0 | LBJ47: 0 | LBK47: 0 | LBL47: 0 | LBM47: 0 | LBN47: 0 | LBO47: 0 | LBP47: 0 | LBQ47: 0 | LBR47: 0 | LBS47: 0 | LBT47: 0 | LBU47: 0 | LBV47: 0 | LBW47: 0 | LBX47: 0 | LBY47: 0 | LBZ47: 0 | LCA47: 0 | LCB47: 0 | LCC47: 0 | LCD47: 0 | LCE47: 0 | LCF47: 0 | LCG47: 0 | LCH47: 0 | LCI47: 0 | LCJ47: 0 | LCK47: 0 | LCL47: 0 | LCM47: 0 | LCN47: 0 | LCO47: 0 | LCP47: 0 | LCQ47: 0 | LCR47: 0 | LCS47: 0 | LCT47: =SUM(LCT3:LCT46) -> 0 | LCU47: 0 | LCV47: 0 | LCW47: 0 | LCX47: 0 | LCY47: 0 | LCZ47: 0 | LDA47: 0 | LDB47: 0 | LDC47: 0 | LDD47: 0 | LDE47: 0 | LDF47: 0 | LDG47: 0 | LDH47: 0 | LDI47: 0 | LDJ47: 0 | LDK47: 0 | LDL47: 0 | LDM47: 0 | LDN47: 0 | LDO47: 0 | LDP47: 0 | LDQ47: 0 | LDR47: 0 | LDS47: 0 | LDT47: 0 | LDU47: 0 | LDV47: 0 | LDW47: 0 | LDX47: 0 | LDY47: 0 | LDZ47: 0 | LEA47: 0 | LEB47: 0 | LEC47: 0 | LED47: 0 | LEE47: 0 | LEF47: 0 | LEG47: 0 | LEH47: 0 | LEI47: 0 | LEJ47: 0 | LEK47: 0 | LEL47: 0 | LEM47: 0 | LEN47: 0 | LEO47: 0 | LEP47: 0 | LEQ47: 0 | LER47: 0 | LES47: 0 | LET47: 0 | LEU47: 0 | LEV47: 0 | LEW47: 0 | LEX47: 0 | LEY47: 0 | LEZ47: 0 | LFA47: 0 | LFB47: 0 | LFC47: 0 | LFD47: 0 | LFE47: 0 | LFF47: =SUM(LFF3:LFF46) -> 0 | LFG47: 0 | LFH47: 0 | LFI47: 0 | LFJ47: 0 | LFK47: 0 | LFL47: 0 | LFM47: 0 | LFN47: 0 | LFO47: 0 | LFP47: 0 | LFQ47: 0 | LFR47: 0 | LFS47: 0 | LFT47: 0 | LFU47: 0 | LFV47: 0 | LFW47: 0 | LFX47: 0 | LFY47: 0 | LFZ47: 0 | LGA47: 0 | LGB47: 0 | LGC47: 0 | LGD47: 0 | LGE47: 0 | LGF47: 0 | LGG47: 0 | LGH47: 0 | LGI47: 0 | LGJ47: 0 | LGK47: 0 | LGL47: 0 | LGM47: 0 | LGN47: 0 | LGO47: 0 | LGP47: 0 | LGQ47: 0 | LGR47: 0 | LGS47: 0 | LGT47: 0 | LGU47: 0 | LGV47: 0 | LGW47: 0 | LGX47: 0 | LGY47: 0 | LGZ47: 0 | LHA47: 0 | LHB47: 0 | LHC47: 0 | LHD47: 0 | LHE47: 0 | LHF47: 0 | LHG47: 0 | LHH47: 0 | LHI47: 0 | LHJ47: 0 | LHK47: 0 | LHL47: 0 | LHM47: 0 | LHN47: 0 | LHO47: 0 | LHP47: 0 | LHQ47: 0 | LHR47: =SUM(LHR3:LHR46) -> 0 | LHS47: 0 | LHT47: 0 | LHU47: 0 | LHV47: 0 | LHW47: 0 | LHX47: 0 | LHY47: 0 | LHZ47: 0 | LIA47: 0 | LIB47: 0 | LIC47: 0 | LID47: 0 | LIE47: 0 | LIF47: 0 | LIG47: 0 | LIH47: 0 | LII47: 0 | LIJ47: 0 | LIK47: 0 | LIL47: 0 | LIM47: 0 | LIN47: 0 | LIO47: 0 | LIP47: 0 | LIQ47: 0 | LIR47: 0 | LIS47: 0 | LIT47: 0 | LIU47: 0 | LIV47: 0 | LIW47: 0 | LIX47: 0 | LIY47: 0 | LIZ47: 0 | LJA47: 0 | LJB47: 0 | LJC47: 0 | LJD47: 0 | LJE47: 0 | LJF47: 0 | LJG47: 0 | LJH47: 0 | LJI47: 0 | LJJ47: 0 | LJK47: 0 | LJL47: 0 | LJM47: 0 | LJN47: 0 | LJO47: 0 | LJP47: 0 | LJQ47: 0 | LJR47: 0 | LJS47: 0 | LJT47: 0 | LJU47: 0 | LJV47: 0 | LJW47: 0 | LJX47: 0 | LJY47: 0 | LJZ47: 0 | LKA47: 0 | LKB47: 0 | LKC47: 0 | LKD47: =SUM(LKD3:LKD46) -> 0 | LKE47: 0 | LKF47: 0 | LKG47: 0 | LKH47: 0 | LKI47: 0 | LKJ47: 0 | LKK47: 0 | LKL47: 0 | LKM47: 0 | LKN47: 0 | LKO47: 0 | LKP47: 0 | LKQ47: 0 | LKR47: 0 | LKS47: 0 | LKT47: 0 | LKU47: 0 | LKV47: 0 | LKW47: 0 | LKX47: 0 | LKY47: 0 | LKZ47: 0 | LLA47: 0 | LLB47: 0 | LLC47: 0 | LLD47: 0 | LLE47: 0 | LLF47: 0 | LLG47: 0 | LLH47: 0 | LLI47: 0 | LLJ47: 0 | LLK47: 0 | LLL47: 0 | LLM47: 0 | LLN47: 0 | LLO47: 0 | LLP47: 0 | LLQ47: 0 | LLR47: 0 | LLS47: 0 | LLT47: 0 | LLU47: 0 | LLV47: 0 | LLW47: 0 | LLX47: 0 | LLY47: 0 | LLZ47: 0 | LMA47: 0 | LMB47: 0 | LMC47: 0 | LMD47: 0 | LME47: 0 | LMF47: 0 | LMG47: 0 | LMH47: 0 | LMI47: 0 | LMJ47: 0 | LMK47: 0 | LML47: 0 | LMM47: 0 | LMN47: 0 | LMO47: 0 | LMP47: =SUM(LMP3:LMP46) -> 0 | LMQ47: 0 | LMR47: 0 | LMS47: 0 | LMT47: 0 | LMU47: 0 | LMV47: 0 | LMW47: 0 | LMX47: 0 | LMY47: 0 | LMZ47: 0 | LNA47: 0 | LNB47: 0 | LNC47: 0 | LND47: 0 | LNE47: 0 | LNF47: 0 | LNG47: 0 | LNH47: 0 | LNI47: 0 | LNJ47: 0 | LNK47: 0 | LNL47: 0 | LNM47: 0 | LNN47: 0 | LNO47: 0 | LNP47: 0 | LNQ47: 0 | LNR47: 0 | LNS47: 0 | LNT47: 0 | LNU47: 0 | LNV47: 0 | LNW47: 0 | LNX47: 0 | LNY47: 0 | LNZ47: 0 | LOA47: 0 | LOB47: 0 | LOC47: 0 | LOD47: 0 | LOE47: 0 | LOF47: 0 | LOG47: 0 | LOH47: 0 | LOI47: 0 | LOJ47: 0 | LOK47: 0 | LOL47: 0 | LOM47: 0 | LON47: 0 | LOO47: 0 | LOP47: 0 | LOQ47: 0 | LOR47: 0 | LOS47: 0 | LOT47: 0 | LOU47: 0 | LOV47: 0 | LOW47: 0 | LOX47: 0 | LOY47: 0 | LOZ47: 0 | LPA47: 0 | LPB47: =SUM(LPB3:LPB46) -> 0 | LPC47: 0 | LPD47: 0 | LPE47: 0 | LPF47: 0 | LPG47: 0 | LPH47: 0 | LPI47: 0 | LPJ47: 0 | LPK47: 0 | LPL47: 0 | LPM47: 0 | LPN47: 0 | LPO47: 0 | LPP47: 0 | LPQ47: 0 | LPR47: 0 | LPS47: 0 | LPT47: 0 | LPU47: 0 | LPV47: 0 | LPW47: 0 | LPX47: 0 | LPY47: 0 | LPZ47: 0 | LQA47: 0 | LQB47: 0 | LQC47: 0 | LQD47: 0 | LQE47: 0 | LQF47: 0 | LQG47: 0 | LQH47: 0 | LQI47: 0 | LQJ47: 0 | LQK47: 0 | LQL47: 0 | LQM47: 0 | LQN47: 0 | LQO47: 0 | LQP47: 0 | LQQ47: 0 | LQR47: 0 | LQS47: 0 | LQT47: 0 | LQU47: 0 | LQV47: 0 | LQW47: 0 | LQX47: 0 | LQY47: 0 | LQZ47: 0 | LRA47: 0 | LRB47: 0 | LRC47: 0 | LRD47: 0 | LRE47: 0 | LRF47: 0 | LRG47: 0 | LRH47: 0 | LRI47: 0 | LRJ47: 0 | LRK47: 0 | LRL47: 0 | LRM47: 0 | LRN47: =SUM(LRN3:LRN46) -> 0 | LRO47: 0 | LRP47: 0 | LRQ47: 0 | LRR47: 0 | LRS47: 0 | LRT47: 0 | LRU47: 0 | LRV47: 0 | LRW47: 0 | LRX47: 0 | LRY47: 0 | LRZ47: 0 | LSA47: 0 | LSB47: 0 | LSC47: 0 | LSD47: 0 | LSE47: 0 | LSF47: 0 | LSG47: 0 | LSH47: 0 | LSI47: 0 | LSJ47: 0 | LSK47: 0 | LSL47: 0 | LSM47: 0 | LSN47: 0 | LSO47: 0 | LSP47: 0 | LSQ47: 0 | LSR47: 0 | LSS47: 0 | LST47: 0 | LSU47: 0 | LSV47: 0 | LSW47: 0 | LSX47: 0 | LSY47: 0 | LSZ47: 0 | LTA47: 0 | LTB47: 0 | LTC47: 0 | LTD47: 0 | LTE47: 0 | LTF47: 0 | LTG47: 0 | LTH47: 0 | LTI47: 0 | LTJ47: 0 | LTK47: 0 | LTL47: 0 | LTM47: 0 | LTN47: 0 | LTO47: 0 | LTP47: 0 | LTQ47: 0 | LTR47: 0 | LTS47: 0 | LTT47: 0 | LTU47: 0 | LTV47: 0 | LTW47: 0 | LTX47: 0 | LTY47: 0 | LTZ47: =SUM(LTZ3:LTZ46) -> 0 | LUA47: 0 | LUB47: 0 | LUC47: 0 | LUD47: 0 | LUE47: 0 | LUF47: 0 | LUG47: 0 | LUH47: 0 | LUI47: 0 | LUJ47: 0 | LUK47: 0 | LUL47: 0 | LUM47: 0 | LUN47: 0 | LUO47: 0 | LUP47: 0 | LUQ47: 0 | LUR47: 0 | LUS47: 0 | LUT47: 0 | LUU47: 0 | LUV47: 0 | LUW47: 0 | LUX47: 0 | LUY47: 0 | LUZ47: 0 | LVA47: 0 | LVB47: 0 | LVC47: 0 | LVD47: 0 | LVE47: 0 | LVF47: 0 | LVG47: 0 | LVH47: 0 | LVI47: 0 | LVJ47: 0 | LVK47: 0 | LVL47: 0 | LVM47: 0 | LVN47: 0 | LVO47: 0 | LVP47: 0 | LVQ47: 0 | LVR47: 0 | LVS47: 0 | LVT47: 0 | LVU47: 0 | LVV47: 0 | LVW47: 0 | LVX47: 0 | LVY47: 0 | LVZ47: 0 | LWA47: 0 | LWB47: 0 | LWC47: 0 | LWD47: 0 | LWE47: 0 | LWF47: 0 | LWG47: 0 | LWH47: 0 | LWI47: 0 | LWJ47: 0 | LWK47: 0 | LWL47: =SUM(LWL3:LWL46) -> 0 | LWM47: 0 | LWN47: 0 | LWO47: 0 | LWP47: 0 | LWQ47: 0 | LWR47: 0 | LWS47: 0 | LWT47: 0 | LWU47: 0 | LWV47: 0 | LWW47: 0 | LWX47: 0 | LWY47: 0 | LWZ47: 0 | LXA47: 0 | LXB47: 0 | LXC47: 0 | LXD47: 0 | LXE47: 0 | LXF47: 0 | LXG47: 0 | LXH47: 0 | LXI47: 0 | LXJ47: 0 | LXK47: 0 | LXL47: 0 | LXM47: 0 | LXN47: 0 | LXO47: 0 | LXP47: 0 | LXQ47: 0 | LXR47: 0 | LXS47: 0 | LXT47: 0 | LXU47: 0 | LXV47: 0 | LXW47: 0 | LXX47: 0 | LXY47: 0 | LXZ47: 0 | LYA47: 0 | LYB47: 0 | LYC47: 0 | LYD47: 0 | LYE47: 0 | LYF47: 0 | LYG47: 0 | LYH47: 0 | LYI47: 0 | LYJ47: 0 | LYK47: 0 | LYL47: 0 | LYM47: 0 | LYN47: 0 | LYO47: 0 | LYP47: 0 | LYQ47: 0 | LYR47: 0 | LYS47: 0 | LYT47: 0 | LYU47: 0 | LYV47: 0 | LYW47: 0 | LYX47: =SUM(LYX3:LYX46) -> 0 | LYY47: 0 | LYZ47: 0 | LZA47: 0 | LZB47: 0 | LZC47: 0 | LZD47: 0 | LZE47: 0 | LZF47: 0 | LZG47: 0 | LZH47: 0 | LZI47: 0 | LZJ47: 0 | LZK47: 0 | LZL47: 0 | LZM47: 0 | LZN47: 0 | LZO47: 0 | LZP47: 0 | LZQ47: 0 | LZR47: 0 | LZS47: 0 | LZT47: 0 | LZU47: 0 | LZV47: 0 | LZW47: 0 | LZX47: 0 | LZY47: 0 | LZZ47: 0 | MAA47: 0 | MAB47: 0 | MAC47: 0 | MAD47: 0 | MAE47: 0 | MAF47: 0 | MAG47: 0 | MAH47: 0 | MAI47: 0 | MAJ47: 0 | MAK47: 0 | MAL47: 0 | MAM47: 0 | MAN47: 0 | MAO47: 0 | MAP47: 0 | MAQ47: 0 | MAR47: 0 | MAS47: 0 | MAT47: 0 | MAU47: 0 | MAV47: 0 | MAW47: 0 | MAX47: 0 | MAY47: 0 | MAZ47: 0 | MBA47: 0 | MBB47: 0 | MBC47: 0 | MBD47: 0 | MBE47: 0 | MBF47: 0 | MBG47: 0 | MBH47: 0 | MBI47: 0 | MBJ47: =SUM(MBJ3:MBJ46) -> 0 | MBK47: 0 | MBL47: 0 | MBM47: 0 | MBN47: 0 | MBO47: 0 | MBP47: 0 | MBQ47: 0 | MBR47: 0 | MBS47: 0 | MBT47: 0 | MBU47: 0 | MBV47: 0 | MBW47: 0 | MBX47: 0 | MBY47: 0 | MBZ47: 0 | MCA47: 0 | MCB47: 0 | MCC47: 0 | MCD47: 0 | MCE47: 0 | MCF47: 0 | MCG47: 0 | MCH47: 0 | MCI47: 0 | MCJ47: 0 | MCK47: 0 | MCL47: 0 | MCM47: 0 | MCN47: 0 | MCO47: 0 | MCP47: 0 | MCQ47: 0 | MCR47: 0 | MCS47: 0 | MCT47: 0 | MCU47: 0 | MCV47: 0 | MCW47: 0 | MCX47: 0 | MCY47: 0 | MCZ47: 0 | MDA47: 0 | MDB47: 0 | MDC47: 0 | MDD47: 0 | MDE47: 0 | MDF47: 0 | MDG47: 0 | MDH47: 0 | MDI47: 0 | MDJ47: 0 | MDK47: 0 | MDL47: 0 | MDM47: 0 | MDN47: 0 | MDO47: 0 | MDP47: 0 | MDQ47: 0 | MDR47: 0 | MDS47: 0 | MDT47: 0 | MDU47: 0 | MDV47: =SUM(MDV3:MDV46) -> 0 | MDW47: 0 | MDX47: 0 | MDY47: 0 | MDZ47: 0 | MEA47: 0 | MEB47: 0 | MEC47: 0 | MED47: 0 | MEE47: 0 | MEF47: 0 | MEG47: 0 | MEH47: 0 | MEI47: 0 | MEJ47: 0 | MEK47: 0 | MEL47: 0 | MEM47: 0 | MEN47: 0 | MEO47: 0 | MEP47: 0 | MEQ47: 0 | MER47: 0 | MES47: 0 | MET47: 0 | MEU47: 0 | MEV47: 0 | MEW47: 0 | MEX47: 0 | MEY47: 0 | MEZ47: 0 | MFA47: 0 | MFB47: 0 | MFC47: 0 | MFD47: 0 | MFE47: 0 | MFF47: 0 | MFG47: 0 | MFH47: 0 | MFI47: 0 | MFJ47: 0 | MFK47: 0 | MFL47: 0 | MFM47: 0 | MFN47: 0 | MFO47: 0 | MFP47: 0 | MFQ47: 0 | MFR47: 0 | MFS47: 0 | MFT47: 0 | MFU47: 0 | MFV47: 0 | MFW47: 0 | MFX47: 0 | MFY47: 0 | MFZ47: 0 | MGA47: 0 | MGB47: 0 | MGC47: 0 | MGD47: 0 | MGE47: 0 | MGF47: 0 | MGG47: 0 | MGH47: =SUM(MGH3:MGH46) -> 0 | MGI47: 0 | MGJ47: 0 | MGK47: 0 | MGL47: 0 | MGM47: 0 | MGN47: 0 | MGO47: 0 | MGP47: 0 | MGQ47: 0 | MGR47: 0 | MGS47: 0 | MGT47: 0 | MGU47: 0 | MGV47: 0 | MGW47: 0 | MGX47: 0 | MGY47: 0 | MGZ47: 0 | MHA47: 0 | MHB47: 0 | MHC47: 0 | MHD47: 0 | MHE47: 0 | MHF47: 0 | MHG47: 0 | MHH47: 0 | MHI47: 0 | MHJ47: 0 | MHK47: 0 | MHL47: 0 | MHM47: 0 | MHN47: 0 | MHO47: 0 | MHP47: 0 | MHQ47: 0 | MHR47: 0 | MHS47: 0 | MHT47: 0 | MHU47: 0 | MHV47: 0 | MHW47: 0 | MHX47: 0 | MHY47: 0 | MHZ47: 0 | MIA47: 0 | MIB47: 0 | MIC47: 0 | MID47: 0 | MIE47: 0 | MIF47: 0 | MIG47: 0 | MIH47: 0 | MII47: 0 | MIJ47: 0 | MIK47: 0 | MIL47: 0 | MIM47: 0 | MIN47: 0 | MIO47: 0 | MIP47: 0 | MIQ47: 0 | MIR47: 0 | MIS47: 0 | MIT47: =SUM(MIT3:MIT46) -> 0 | MIU47: 0 | MIV47: 0 | MIW47: 0 | MIX47: 0 | MIY47: 0 | MIZ47: 0 | MJA47: 0 | MJB47: 0 | MJC47: 0 | MJD47: 0 | MJE47: 0 | MJF47: 0 | MJG47: 0 | MJH47: 0 | MJI47: 0 | MJJ47: 0 | MJK47: 0 | MJL47: 0 | MJM47: 0 | MJN47: 0 | MJO47: 0 | MJP47: 0 | MJQ47: 0 | MJR47: 0 | MJS47: 0 | MJT47: 0 | MJU47: 0 | MJV47: 0 | MJW47: 0 | MJX47: 0 | MJY47: 0 | MJZ47: 0 | MKA47: 0 | MKB47: 0 | MKC47: 0 | MKD47: 0 | MKE47: 0 | MKF47: 0 | MKG47: 0 | MKH47: 0 | MKI47: 0 | MKJ47: 0 | MKK47: 0 | MKL47: 0 | MKM47: 0 | MKN47: 0 | MKO47: 0 | MKP47: 0 | MKQ47: 0 | MKR47: 0 | MKS47: 0 | MKT47: 0 | MKU47: 0 | MKV47: 0 | MKW47: 0 | MKX47: 0 | MKY47: 0 | MKZ47: 0 | MLA47: 0 | MLB47: 0 | MLC47: 0 | MLD47: 0 | MLE47: 0 | MLF47: =SUM(MLF3:MLF46) -> 0 | MLG47: 0 | MLH47: 0 | MLI47: 0 | MLJ47: 0 | MLK47: 0 | MLL47: 0 | MLM47: 0 | MLN47: 0 | MLO47: 0 | MLP47: 0 | MLQ47: 0 | MLR47: 0 | MLS47: 0 | MLT47: 0 | MLU47: 0 | MLV47: 0 | MLW47: 0 | MLX47: 0 | MLY47: 0 | MLZ47: 0 | MMA47: 0 | MMB47: 0 | MMC47: 0 | MMD47: 0 | MME47: 0 | MMF47: 0 | MMG47: 0 | MMH47: 0 | MMI47: 0 | MMJ47: 0 | MMK47: 0 | MML47: 0 | MMM47: 0 | MMN47: 0 | MMO47: 0 | MMP47: 0 | MMQ47: 0 | MMR47: 0 | MMS47: 0 | MMT47: 0 | MMU47: 0 | MMV47: 0 | MMW47: 0 | MMX47: 0 | MMY47: 0 | MMZ47: 0 | MNA47: 0 | MNB47: 0 | MNC47: 0 | MND47: 0 | MNE47: 0 | MNF47: 0 | MNG47: 0 | MNH47: 0 | MNI47: 0 | MNJ47: 0 | MNK47: 0 | MNL47: 0 | MNM47: 0 | MNN47: 0 | MNO47: 0 | MNP47: 0 | MNQ47: 0 | MNR47: =SUM(MNR3:MNR46) -> 0 | MNS47: 0 | MNT47: 0 | MNU47: 0 | MNV47: 0 | MNW47: 0 | MNX47: 0 | MNY47: 0 | MNZ47: 0 | MOA47: 0 | MOB47: 0 | MOC47: 0 | MOD47: 0 | MOE47: 0 | MOF47: 0 | MOG47: 0 | MOH47: 0 | MOI47: 0 | MOJ47: 0 | MOK47: 0 | MOL47: 0 | MOM47: 0 | MON47: 0 | MOO47: 0 | MOP47: 0 | MOQ47: 0 | MOR47: 0 | MOS47: 0 | MOT47: 0 | MOU47: 0 | MOV47: 0 | MOW47: 0 | MOX47: 0 | MOY47: 0 | MOZ47: 0 | MPA47: 0 | MPB47: 0 | MPC47: 0 | MPD47: 0 | MPE47: 0 | MPF47: 0 | MPG47: 0 | MPH47: 0 | MPI47: 0 | MPJ47: 0 | MPK47: 0 | MPL47: 0 | MPM47: 0 | MPN47: 0 | MPO47: 0 | MPP47: 0 | MPQ47: 0 | MPR47: 0 | MPS47: 0 | MPT47: 0 | MPU47: 0 | MPV47: 0 | MPW47: 0 | MPX47: 0 | MPY47: 0 | MPZ47: 0 | MQA47: 0 | MQB47: 0 | MQC47: 0 | MQD47: =SUM(MQD3:MQD46) -> 0 | MQE47: 0 | MQF47: 0 | MQG47: 0 | MQH47: 0 | MQI47: 0 | MQJ47: 0 | MQK47: 0 | MQL47: 0 | MQM47: 0 | MQN47: 0 | MQO47: 0 | MQP47: 0 | MQQ47: 0 | MQR47: 0 | MQS47: 0 | MQT47: 0 | MQU47: 0 | MQV47: 0 | MQW47: 0 | MQX47: 0 | MQY47: 0 | MQZ47: 0 | MRA47: 0 | MRB47: 0 | MRC47: 0 | MRD47: 0 | MRE47: 0 | MRF47: 0 | MRG47: 0 | MRH47: 0 | MRI47: 0 | MRJ47: 0 | MRK47: 0 | MRL47: 0 | MRM47: 0 | MRN47: 0 | MRO47: 0 | MRP47: 0 | MRQ47: 0 | MRR47: 0 | MRS47: 0 | MRT47: 0 | MRU47: 0 | MRV47: 0 | MRW47: 0 | MRX47: 0 | MRY47: 0 | MRZ47: 0 | MSA47: 0 | MSB47: 0 | MSC47: 0 | MSD47: 0 | MSE47: 0 | MSF47: 0 | MSG47: 0 | MSH47: 0 | MSI47: 0 | MSJ47: 0 | MSK47: 0 | MSL47: 0 | MSM47: 0 | MSN47: 0 | MSO47: 0 | MSP47: =SUM(MSP3:MSP46) -> 0 | MSQ47: 0 | MSR47: 0 | MSS47: 0 | MST47: 0 | MSU47: 0 | MSV47: 0 | MSW47: 0 | MSX47: 0 | MSY47: 0 | MSZ47: 0 | MTA47: 0 | MTB47: 0 | MTC47: 0 | MTD47: 0 | MTE47: 0 | MTF47: 0 | MTG47: 0 | MTH47: 0 | MTI47: 0 | MTJ47: 0 | MTK47: 0 | MTL47: 0 | MTM47: 0 | MTN47: 0 | MTO47: 0 | MTP47: 0 | MTQ47: 0 | MTR47: 0 | MTS47: 0 | MTT47: 0 | MTU47: 0 | MTV47: 0 | MTW47: 0 | MTX47: 0 | MTY47: 0 | MTZ47: 0 | MUA47: 0 | MUB47: 0 | MUC47: 0 | MUD47: 0 | MUE47: 0 | MUF47: 0 | MUG47: 0 | MUH47: 0 | MUI47: 0 | MUJ47: 0 | MUK47: 0 | MUL47: 0 | MUM47: 0 | MUN47: 0 | MUO47: 0 | MUP47: 0 | MUQ47: 0 | MUR47: 0 | MUS47: 0 | MUT47: 0 | MUU47: 0 | MUV47: 0 | MUW47: 0 | MUX47: 0 | MUY47: 0 | MUZ47: 0 | MVA47: 0 | MVB47: =SUM(MVB3:MVB46) -> 0 | MVC47: 0 | MVD47: 0 | MVE47: 0 | MVF47: 0 | MVG47: 0 | MVH47: 0 | MVI47: 0 | MVJ47: 0 | MVK47: 0 | MVL47: 0 | MVM47: 0 | MVN47: 0 | MVO47: 0 | MVP47: 0 | MVQ47: 0 | MVR47: 0 | MVS47: 0 | MVT47: 0 | MVU47: 0 | MVV47: 0 | MVW47: 0 | MVX47: 0 | MVY47: 0 | MVZ47: 0 | MWA47: 0 | MWB47: 0 | MWC47: 0 | MWD47: 0 | MWE47: 0 | MWF47: 0 | MWG47: 0 | MWH47: 0 | MWI47: 0 | MWJ47: 0 | MWK47: 0 | MWL47: 0 | MWM47: 0 | MWN47: 0 | MWO47: 0 | MWP47: 0 | MWQ47: 0 | MWR47: 0 | MWS47: 0 | MWT47: 0 | MWU47: 0 | MWV47: 0 | MWW47: 0 | MWX47: 0 | MWY47: 0 | MWZ47: 0 | MXA47: 0 | MXB47: 0 | MXC47: 0 | MXD47: 0 | MXE47: 0 | MXF47: 0 | MXG47: 0 | MXH47: 0 | MXI47: 0 | MXJ47: 0 | MXK47: 0 | MXL47: 0 | MXM47: 0 | MXN47: =SUM(MXN3:MXN46) -> 0 | MXO47: 0 | MXP47: 0 | MXQ47: 0 | MXR47: 0 | MXS47: 0 | MXT47: 0 | MXU47: 0 | MXV47: 0 | MXW47: 0 | MXX47: 0 | MXY47: 0 | MXZ47: 0 | MYA47: 0 | MYB47: 0 | MYC47: 0 | MYD47: 0 | MYE47: 0 | MYF47: 0 | MYG47: 0 | MYH47: 0 | MYI47: 0 | MYJ47: 0 | MYK47: 0 | MYL47: 0 | MYM47: 0 | MYN47: 0 | MYO47: 0 | MYP47: 0 | MYQ47: 0 | MYR47: 0 | MYS47: 0 | MYT47: 0 | MYU47: 0 | MYV47: 0 | MYW47: 0 | MYX47: 0 | MYY47: 0 | MYZ47: 0 | MZA47: 0 | MZB47: 0 | MZC47: 0 | MZD47: 0 | MZE47: 0 | MZF47: 0 | MZG47: 0 | MZH47: 0 | MZI47: 0 | MZJ47: 0 | MZK47: 0 | MZL47: 0 | MZM47: 0 | MZN47: 0 | MZO47: 0 | MZP47: 0 | MZQ47: 0 | MZR47: 0 | MZS47: 0 | MZT47: 0 | MZU47: 0 | MZV47: 0 | MZW47: 0 | MZX47: 0 | MZY47: 0 | MZZ47: =SUM(MZZ3:MZZ46) -> 0 | NAA47: 0 | NAB47: 0 | NAC47: 0 | NAD47: 0 | NAE47: 0 | NAF47: 0 | NAG47: 0 | NAH47: 0 | NAI47: 0 | NAJ47: 0 | NAK47: 0 | NAL47: 0 | NAM47: 0 | NAN47: 0 | NAO47: 0 | NAP47: 0 | NAQ47: 0 | NAR47: 0 | NAS47: 0 | NAT47: 0 | NAU47: 0 | NAV47: 0 | NAW47: 0 | NAX47: 0 | NAY47: 0 | NAZ47: 0 | NBA47: 0 | NBB47: 0 | NBC47: 0 | NBD47: 0 | NBE47: 0 | NBF47: 0 | NBG47: 0 | NBH47: 0 | NBI47: 0 | NBJ47: 0 | NBK47: 0 | NBL47: 0 | NBM47: 0 | NBN47: 0 | NBO47: 0 | NBP47: 0 | NBQ47: 0 | NBR47: 0 | NBS47: 0 | NBT47: 0 | NBU47: 0 | NBV47: 0 | NBW47: 0 | NBX47: 0 | NBY47: 0 | NBZ47: 0 | NCA47: 0 | NCB47: 0 | NCC47: 0 | NCD47: 0 | NCE47: 0 | NCF47: 0 | NCG47: 0 | NCH47: 0 | NCI47: 0 | NCJ47: 0 | NCK47: 0 | NCL47: =SUM(NCL3:NCL46) -> 0 | NCM47: 0 | NCN47: 0 | NCO47: 0 | NCP47: 0 | NCQ47: 0 | NCR47: 0 | NCS47: 0 | NCT47: 0 | NCU47: 0 | NCV47: 0 | NCW47: 0 | NCX47: 0 | NCY47: 0 | NCZ47: 0 | NDA47: 0 | NDB47: 0 | NDC47: 0 | NDD47: 0 | NDE47: 0 | NDF47: 0 | NDG47: 0 | NDH47: 0 | NDI47: 0 | NDJ47: 0 | NDK47: 0 | NDL47: 0 | NDM47: 0 | NDN47: 0 | NDO47: 0 | NDP47: 0 | NDQ47: 0 | NDR47: 0 | NDS47: 0 | NDT47: 0 | NDU47: 0 | NDV47: 0 | NDW47: 0 | NDX47: 0 | NDY47: 0 | NDZ47: 0 | NEA47: 0 | NEB47: 0 | NEC47: 0 | NED47: 0 | NEE47: 0 | NEF47: 0 | NEG47: 0 | NEH47: 0 | NEI47: 0 | NEJ47: 0 | NEK47: 0 | NEL47: 0 | NEM47: 0 | NEN47: 0 | NEO47: 0 | NEP47: 0 | NEQ47: 0 | NER47: 0 | NES47: 0 | NET47: 0 | NEU47: 0 | NEV47: 0 | NEW47: 0 | NEX47: =SUM(NEX3:NEX46) -> 0 | NEY47: 0 | NEZ47: 0 | NFA47: 0 | NFB47: 0 | NFC47: 0 | NFD47: 0 | NFE47: 0 | NFF47: 0 | NFG47: 0 | NFH47: 0 | NFI47: 0 | NFJ47: 0 | NFK47: 0 | NFL47: 0 | NFM47: 0 | NFN47: 0 | NFO47: 0 | NFP47: 0 | NFQ47: 0 | NFR47: 0 | NFS47: 0 | NFT47: 0 | NFU47: 0 | NFV47: 0 | NFW47: 0 | NFX47: 0 | NFY47: 0 | NFZ47: 0 | NGA47: 0 | NGB47: 0 | NGC47: 0 | NGD47: 0 | NGE47: 0 | NGF47: 0 | NGG47: 0 | NGH47: 0 | NGI47: 0 | NGJ47: 0 | NGK47: 0 | NGL47: 0 | NGM47: 0 | NGN47: 0 | NGO47: 0 | NGP47: 0 | NGQ47: 0 | NGR47: 0 | NGS47: 0 | NGT47: 0 | NGU47: 0 | NGV47: 0 | NGW47: 0 | NGX47: 0 | NGY47: 0 | NGZ47: 0 | NHA47: 0 | NHB47: 0 | NHC47: 0 | NHD47: 0 | NHE47: 0 | NHF47: 0 | NHG47: 0 | NHH47: 0 | NHI47: 0 | NHJ47: =SUM(NHJ3:NHJ46) -> 0 | NHK47: 0 | NHL47: 0 | NHM47: 0 | NHN47: 0 | NHO47: 0 | NHP47: 0 | NHQ47: 0 | NHR47: 0 | NHS47: 0 | NHT47: 0 | NHU47: 0 | NHV47: 0 | NHW47: 0 | NHX47: 0 | NHY47: 0 | NHZ47: 0 | NIA47: 0 | NIB47: 0 | NIC47: 0 | NID47: 0 | NIE47: 0 | NIF47: 0 | NIG47: 0 | NIH47: 0 | NII47: 0 | NIJ47: 0 | NIK47: 0 | NIL47: 0 | NIM47: 0 | NIN47: 0 | NIO47: 0 | NIP47: 0 | NIQ47: 0 | NIR47: 0 | NIS47: 0 | NIT47: 0 | NIU47: 0 | NIV47: 0 | NIW47: 0 | NIX47: 0 | NIY47: 0 | NIZ47: 0 | NJA47: 0 | NJB47: 0 | NJC47: 0 | NJD47: 0 | NJE47: 0 | NJF47: 0 | NJG47: 0 | NJH47: 0 | NJI47: 0 | NJJ47: 0 | NJK47: 0 | NJL47: 0 | NJM47: 0 | NJN47: 0 | NJO47: 0 | NJP47: 0 | NJQ47: 0 | NJR47: 0 | NJS47: 0 | NJT47: 0 | NJU47: 0 | NJV47: =SUM(NJV3:NJV46) -> 0 | NJW47: 0 | NJX47: 0 | NJY47: 0 | NJZ47: 0 | NKA47: 0 | NKB47: 0 | NKC47: 0 | NKD47: 0 | NKE47: 0 | NKF47: 0 | NKG47: 0 | NKH47: 0 | NKI47: 0 | NKJ47: 0 | NKK47: 0 | NKL47: 0 | NKM47: 0 | NKN47: 0 | NKO47: 0 | NKP47: 0 | NKQ47: 0 | NKR47: 0 | NKS47: 0 | NKT47: 0 | NKU47: 0 | NKV47: 0 | NKW47: 0 | NKX47: 0 | NKY47: 0 | NKZ47: 0 | NLA47: 0 | NLB47: 0 | NLC47: 0 | NLD47: 0 | NLE47: 0 | NLF47: 0 | NLG47: 0 | NLH47: 0 | NLI47: 0 | NLJ47: 0 | NLK47: 0 | NLL47: 0 | NLM47: 0 | NLN47: 0 | NLO47: 0 | NLP47: 0 | NLQ47: 0 | NLR47: 0 | NLS47: 0 | NLT47: 0 | NLU47: 0 | NLV47: 0 | NLW47: 0 | NLX47: 0 | NLY47: 0 | NLZ47: 0 | NMA47: 0 | NMB47: 0 | NMC47: 0 | NMD47: 0 | NME47: 0 | NMF47: 0 | NMG47: 0 | NMH47: =SUM(NMH3:NMH46) -> 0 | NMI47: 0 | NMJ47: 0 | NMK47: 0 | NML47: 0 | NMM47: 0 | NMN47: 0 | NMO47: 0 | NMP47: 0 | NMQ47: 0 | NMR47: 0 | NMS47: 0 | NMT47: 0 | NMU47: 0 | NMV47: 0 | NMW47: 0 | NMX47: 0 | NMY47: 0 | NMZ47: 0 | NNA47: 0 | NNB47: 0 | NNC47: 0 | NND47: 0 | NNE47: 0 | NNF47: 0 | NNG47: 0 | NNH47: 0 | NNI47: 0 | NNJ47: 0 | NNK47: 0 | NNL47: 0 | NNM47: 0 | NNN47: 0 | NNO47: 0 | NNP47: 0 | NNQ47: 0 | NNR47: 0 | NNS47: 0 | NNT47: 0 | NNU47: 0 | NNV47: 0 | NNW47: 0 | NNX47: 0 | NNY47: 0 | NNZ47: 0 | NOA47: 0 | NOB47: 0 | NOC47: 0 | NOD47: 0 | NOE47: 0 | NOF47: 0 | NOG47: 0 | NOH47: 0 | NOI47: 0 | NOJ47: 0 | NOK47: 0 | NOL47: 0 | NOM47: 0 | NON47: 0 | NOO47: 0 | NOP47: 0 | NOQ47: 0 | NOR47: 0 | NOS47: 0 | NOT47: =SUM(NOT3:NOT46) -> 0 | NOU47: 0 | NOV47: 0 | NOW47: 0 | NOX47: 0 | NOY47: 0 | NOZ47: 0 | NPA47: 0 | NPB47: 0 | NPC47: 0 | NPD47: 0 | NPE47: 0 | NPF47: 0 | NPG47: 0 | NPH47: 0 | NPI47: 0 | NPJ47: 0 | NPK47: 0 | NPL47: 0 | NPM47: 0 | NPN47: 0 | NPO47: 0 | NPP47: 0 | NPQ47: 0 | NPR47: 0 | NPS47: 0 | NPT47: 0 | NPU47: 0 | NPV47: 0 | NPW47: 0 | NPX47: 0 | NPY47: 0 | NPZ47: 0 | NQA47: 0 | NQB47: 0 | NQC47: 0 | NQD47: 0 | NQE47: 0 | NQF47: 0 | NQG47: 0 | NQH47: 0 | NQI47: 0 | NQJ47: 0 | NQK47: 0 | NQL47: 0 | NQM47: 0 | NQN47: 0 | NQO47: 0 | NQP47: 0 | NQQ47: 0 | NQR47: 0 | NQS47: 0 | NQT47: 0 | NQU47: 0 | NQV47: 0 | NQW47: 0 | NQX47: 0 | NQY47: 0 | NQZ47: 0 | NRA47: 0 | NRB47: 0 | NRC47: 0 | NRD47: 0 | NRE47: 0 | NRF47: =SUM(NRF3:NRF46) -> 0 | NRG47: 0 | NRH47: 0 | NRI47: 0 | NRJ47: 0 | NRK47: 0 | NRL47: 0 | NRM47: 0 | NRN47: 0 | NRO47: 0 | NRP47: 0 | NRQ47: 0 | NRR47: 0 | NRS47: 0 | NRT47: 0 | NRU47: 0 | NRV47: 0 | NRW47: 0 | NRX47: 0 | NRY47: 0 | NRZ47: 0 | NSA47: 0 | NSB47: 0 | NSC47: 0 | NSD47: 0 | NSE47: 0 | NSF47: 0 | NSG47: 0 | NSH47: 0 | NSI47: 0 | NSJ47: 0 | NSK47: 0 | NSL47: 0 | NSM47: 0 | NSN47: 0 | NSO47: 0 | NSP47: 0 | NSQ47: 0 | NSR47: 0 | NSS47: 0 | NST47: 0 | NSU47: 0 | NSV47: 0 | NSW47: 0 | NSX47: 0 | NSY47: 0 | NSZ47: 0 | NTA47: 0 | NTB47: 0 | NTC47: 0 | NTD47: 0 | NTE47: 0 | NTF47: 0 | NTG47: 0 | NTH47: 0 | NTI47: 0 | NTJ47: 0 | NTK47: 0 | NTL47: 0 | NTM47: 0 | NTN47: 0 | NTO47: 0 | NTP47: 0 | NTQ47: 0 | NTR47: =SUM(NTR3:NTR46) -> 0 | NTS47: 0 | NTT47: 0 | NTU47: 0 | NTV47: 0 | NTW47: 0 | NTX47: 0 | NTY47: 0 | NTZ47: 0 | NUA47: 0 | NUB47: 0 | NUC47: 0 | NUD47: 0 | NUE47: 0 | NUF47: 0 | NUG47: 0 | NUH47: 0 | NUI47: 0 | NUJ47: 0 | NUK47: 0 | NUL47: 0 | NUM47: 0 | NUN47: 0 | NUO47: 0 | NUP47: 0 | NUQ47: 0 | NUR47: 0 | NUS47: 0 | NUT47: 0 | NUU47: 0 | NUV47: 0 | NUW47: 0 | NUX47: 0 | NUY47: 0 | NUZ47: 0 | NVA47: 0 | NVB47: 0 | NVC47: 0 | NVD47: 0 | NVE47: 0 | NVF47: 0 | NVG47: 0 | NVH47: 0 | NVI47: 0 | NVJ47: 0 | NVK47: 0 | NVL47: 0 | NVM47: 0 | NVN47: 0 | NVO47: 0 | NVP47: 0 | NVQ47: 0 | NVR47: 0 | NVS47: 0 | NVT47: 0 | NVU47: 0 | NVV47: 0 | NVW47: 0 | NVX47: 0 | NVY47: 0 | NVZ47: 0 | NWA47: 0 | NWB47: 0 | NWC47: 0 | NWD47: =SUM(NWD3:NWD46) -> 0 | NWE47: 0 | NWF47: 0 | NWG47: 0 | NWH47: 0 | NWI47: 0 | NWJ47: 0 | NWK47: 0 | NWL47: 0 | NWM47: 0 | NWN47: 0 | NWO47: 0 | NWP47: 0 | NWQ47: 0 | NWR47: 0 | NWS47: 0 | NWT47: 0 | NWU47: 0 | NWV47: 0 | NWW47: 0 | NWX47: 0 | NWY47: 0 | NWZ47: 0 | NXA47: 0 | NXB47: 0 | NXC47: 0 | NXD47: 0 | NXE47: 0 | NXF47: 0 | NXG47: 0 | NXH47: 0 | NXI47: 0 | NXJ47: 0 | NXK47: 0 | NXL47: 0 | NXM47: 0 | NXN47: 0 | NXO47: 0 | NXP47: 0 | NXQ47: 0 | NXR47: 0 | NXS47: 0 | NXT47: 0 | NXU47: 0 | NXV47: 0 | NXW47: 0 | NXX47: 0 | NXY47: 0 | NXZ47: 0 | NYA47: 0 | NYB47: 0 | NYC47: 0 | NYD47: 0 | NYE47: 0 | NYF47: 0 | NYG47: 0 | NYH47: 0 | NYI47: 0 | NYJ47: 0 | NYK47: 0 | NYL47: 0 | NYM47: 0 | NYN47: 0 | NYO47: 0 | NYP47: =SUM(NYP3:NYP46) -> 0 | NYQ47: 0 | NYR47: 0 | NYS47: 0 | NYT47: 0 | NYU47: 0 | NYV47: 0 | NYW47: 0 | NYX47: 0 | NYY47: 0 | NYZ47: 0 | NZA47: 0 | NZB47: 0 | NZC47: 0 | NZD47: 0 | NZE47: 0 | NZF47: 0 | NZG47: 0 | NZH47: 0 | NZI47: 0 | NZJ47: 0 | NZK47: 0 | NZL47: 0 | NZM47: 0 | NZN47: 0 | NZO47: 0 | NZP47: 0 | NZQ47: 0 | NZR47: 0 | NZS47: 0 | NZT47: 0 | NZU47: 0 | NZV47: 0 | NZW47: 0 | NZX47: 0 | NZY47: 0 | NZZ47: 0 | OAA47: 0 | OAB47: 0 | OAC47: 0 | OAD47: 0 | OAE47: 0 | OAF47: 0 | OAG47: 0 | OAH47: 0 | OAI47: 0 | OAJ47: 0 | OAK47: 0 | OAL47: 0 | OAM47: 0 | OAN47: 0 | OAO47: 0 | OAP47: 0 | OAQ47: 0 | OAR47: 0 | OAS47: 0 | OAT47: 0 | OAU47: 0 | OAV47: 0 | OAW47: 0 | OAX47: 0 | OAY47: 0 | OAZ47: 0 | OBA47: 0 | OBB47: =SUM(OBB3:OBB46) -> 0 | OBC47: 0 | OBD47: 0 | OBE47: 0 | OBF47: 0 | OBG47: 0 | OBH47: 0 | OBI47: 0 | OBJ47: 0 | OBK47: 0 | OBL47: 0 | OBM47: 0 | OBN47: 0 | OBO47: 0 | OBP47: 0 | OBQ47: 0 | OBR47: 0 | OBS47: 0 | OBT47: 0 | OBU47: 0 | OBV47: 0 | OBW47: 0 | OBX47: 0 | OBY47: 0 | OBZ47: 0 | OCA47: 0 | OCB47: 0 | OCC47: 0 | OCD47: 0 | OCE47: 0 | OCF47: 0 | OCG47: 0 | OCH47: 0 | OCI47: 0 | OCJ47: 0 | OCK47: 0 | OCL47: 0 | OCM47: 0 | OCN47: 0 | OCO47: 0 | OCP47: 0 | OCQ47: 0 | OCR47: 0 | OCS47: 0 | OCT47: 0 | OCU47: 0 | OCV47: 0 | OCW47: 0 | OCX47: 0 | OCY47: 0 | OCZ47: 0 | ODA47: 0 | ODB47: 0 | ODC47: 0 | ODD47: 0 | ODE47: 0 | ODF47: 0 | ODG47: 0 | ODH47: 0 | ODI47: 0 | ODJ47: 0 | ODK47: 0 | ODL47: 0 | ODM47: 0 | ODN47: =SUM(ODN3:ODN46) -> 0 | ODO47: 0 | ODP47: 0 | ODQ47: 0 | ODR47: 0 | ODS47: 0 | ODT47: 0 | ODU47: 0 | ODV47: 0 | ODW47: 0 | ODX47: 0 | ODY47: 0 | ODZ47: 0 | OEA47: 0 | OEB47: 0 | OEC47: 0 | OED47: 0 | OEE47: 0 | OEF47: 0 | OEG47: 0 | OEH47: 0 | OEI47: 0 | OEJ47: 0 | OEK47: 0 | OEL47: 0 | OEM47: 0 | OEN47: 0 | OEO47: 0 | OEP47: 0 | OEQ47: 0 | OER47: 0 | OES47: 0 | OET47: 0 | OEU47: 0 | OEV47: 0 | OEW47: 0 | OEX47: 0 | OEY47: 0 | OEZ47: 0 | OFA47: 0 | OFB47: 0 | OFC47: 0 | OFD47: 0 | OFE47: 0 | OFF47: 0 | OFG47: 0 | OFH47: 0 | OFI47: 0 | OFJ47: 0 | OFK47: 0 | OFL47: 0 | OFM47: 0 | OFN47: 0 | OFO47: 0 | OFP47: 0 | OFQ47: 0 | OFR47: 0 | OFS47: 0 | OFT47: 0 | OFU47: 0 | OFV47: 0 | OFW47: 0 | OFX47: 0 | OFY47: 0 | OFZ47: =SUM(OFZ3:OFZ46) -> 0 | OGA47: 0 | OGB47: 0 | OGC47: 0 | OGD47: 0 | OGE47: 0 | OGF47: 0 | OGG47: 0 | OGH47: 0 | OGI47: 0 | OGJ47: 0 | OGK47: 0 | OGL47: 0 | OGM47: 0 | OGN47: 0 | OGO47: 0 | OGP47: 0 | OGQ47: 0 | OGR47: 0 | OGS47: 0 | OGT47: 0 | OGU47: 0 | OGV47: 0 | OGW47: 0 | OGX47: 0 | OGY47: 0 | OGZ47: 0 | OHA47: 0 | OHB47: 0 | OHC47: 0 | OHD47: 0 | OHE47: 0 | OHF47: 0 | OHG47: 0 | OHH47: 0 | OHI47: 0 | OHJ47: 0 | OHK47: 0 | OHL47: 0 | OHM47: 0 | OHN47: 0 | OHO47: 0 | OHP47: 0 | OHQ47: 0 | OHR47: 0 | OHS47: 0 | OHT47: 0 | OHU47: 0 | OHV47: 0 | OHW47: 0 | OHX47: 0 | OHY47: 0 | OHZ47: 0 | OIA47: 0 | OIB47: 0 | OIC47: 0 | OID47: 0 | OIE47: 0 | OIF47: 0 | OIG47: 0 | OIH47: 0 | OII47: 0 | OIJ47: 0 | OIK47: 0 | OIL47: =SUM(OIL3:OIL46) -> 0 | OIM47: 0 | OIN47: 0 | OIO47: 0 | OIP47: 0 | OIQ47: 0 | OIR47: 0 | OIS47: 0 | OIT47: 0 | OIU47: 0 | OIV47: 0 | OIW47: 0 | OIX47: 0 | OIY47: 0 | OIZ47: 0 | OJA47: 0 | OJB47: 0 | OJC47: 0 | OJD47: 0 | OJE47: 0 | OJF47: 0 | OJG47: 0 | OJH47: 0 | OJI47: 0 | OJJ47: 0 | OJK47: 0 | OJL47: 0 | OJM47: 0 | OJN47: 0 | OJO47: 0 | OJP47: 0 | OJQ47: 0 | OJR47: 0 | OJS47: 0 | OJT47: 0 | OJU47: 0 | OJV47: 0 | OJW47: 0 | OJX47: 0 | OJY47: 0 | OJZ47: 0 | OKA47: 0 | OKB47: 0 | OKC47: 0 | OKD47: 0 | OKE47: 0 | OKF47: 0 | OKG47: 0 | OKH47: 0 | OKI47: 0 | OKJ47: 0 | OKK47: 0 | OKL47: 0 | OKM47: 0 | OKN47: 0 | OKO47: 0 | OKP47: 0 | OKQ47: 0 | OKR47: 0 | OKS47: 0 | OKT47: 0 | OKU47: 0 | OKV47: 0 | OKW47: 0 | OKX47: =SUM(OKX3:OKX46) -> 0 | OKY47: 0 | OKZ47: 0 | OLA47: 0 | OLB47: 0 | OLC47: 0 | OLD47: 0 | OLE47: 0 | OLF47: 0 | OLG47: 0 | OLH47: 0 | OLI47: 0 | OLJ47: 0 | OLK47: 0 | OLL47: 0 | OLM47: 0 | OLN47: 0 | OLO47: 0 | OLP47: 0 | OLQ47: 0 | OLR47: 0 | OLS47: 0 | OLT47: 0 | OLU47: 0 | OLV47: 0 | OLW47: 0 | OLX47: 0 | OLY47: 0 | OLZ47: 0 | OMA47: 0 | OMB47: 0 | OMC47: 0 | OMD47: 0 | OME47: 0 | OMF47: 0 | OMG47: 0 | OMH47: 0 | OMI47: 0 | OMJ47: 0 | OMK47: 0 | OML47: 0 | OMM47: 0 | OMN47: 0 | OMO47: 0 | OMP47: 0 | OMQ47: 0 | OMR47: 0 | OMS47: 0 | OMT47: 0 | OMU47: 0 | OMV47: 0 | OMW47: 0 | OMX47: 0 | OMY47: 0 | OMZ47: 0 | ONA47: 0 | ONB47: 0 | ONC47: 0 | OND47: 0 | ONE47: 0 | ONF47: 0 | ONG47: 0 | ONH47: 0 | ONI47: 0 | ONJ47: =SUM(ONJ3:ONJ46) -> 0 | ONK47: 0 | ONL47: 0 | ONM47: 0 | ONN47: 0 | ONO47: 0 | ONP47: 0 | ONQ47: 0 | ONR47: 0 | ONS47: 0 | ONT47: 0 | ONU47: 0 | ONV47: 0 | ONW47: 0 | ONX47: 0 | ONY47: 0 | ONZ47: 0 | OOA47: 0 | OOB47: 0 | OOC47: 0 | OOD47: 0 | OOE47: 0 | OOF47: 0 | OOG47: 0 | OOH47: 0 | OOI47: 0 | OOJ47: 0 | OOK47: 0 | OOL47: 0 | OOM47: 0 | OON47: 0 | OOO47: 0 | OOP47: 0 | OOQ47: 0 | OOR47: 0 | OOS47: 0 | OOT47: 0 | OOU47: 0 | OOV47: 0 | OOW47: 0 | OOX47: 0 | OOY47: 0 | OOZ47: 0 | OPA47: 0 | OPB47: 0 | OPC47: 0 | OPD47: 0 | OPE47: 0 | OPF47: 0 | OPG47: 0 | OPH47: 0 | OPI47: 0 | OPJ47: 0 | OPK47: 0 | OPL47: 0 | OPM47: 0 | OPN47: 0 | OPO47: 0 | OPP47: 0 | OPQ47: 0 | OPR47: 0 | OPS47: 0 | OPT47: 0 | OPU47: 0 | OPV47: =SUM(OPV3:OPV46) -> 0 | OPW47: 0 | OPX47: 0 | OPY47: 0 | OPZ47: 0 | OQA47: 0 | OQB47: 0 | OQC47: 0 | OQD47: 0 | OQE47: 0 | OQF47: 0 | OQG47: 0 | OQH47: 0 | OQI47: 0 | OQJ47: 0 | OQK47: 0 | OQL47: 0 | OQM47: 0 | OQN47: 0 | OQO47: 0 | OQP47: 0 | OQQ47: 0 | OQR47: 0 | OQS47: 0 | OQT47: 0 | OQU47: 0 | OQV47: 0 | OQW47: 0 | OQX47: 0 | OQY47: 0 | OQZ47: 0 | ORA47: 0 | ORB47: 0 | ORC47: 0 | ORD47: 0 | ORE47: 0 | ORF47: 0 | ORG47: 0 | ORH47: 0 | ORI47: 0 | ORJ47: 0 | ORK47: 0 | ORL47: 0 | ORM47: 0 | ORN47: 0 | ORO47: 0 | ORP47: 0 | ORQ47: 0 | ORR47: 0 | ORS47: 0 | ORT47: 0 | ORU47: 0 | ORV47: 0 | ORW47: 0 | ORX47: 0 | ORY47: 0 | ORZ47: 0 | OSA47: 0 | OSB47: 0 | OSC47: 0 | OSD47: 0 | OSE47: 0 | OSF47: 0 | OSG47: 0 | OSH47: =SUM(OSH3:OSH46) -> 0 | OSI47: 0 | OSJ47: 0 | OSK47: 0 | OSL47: 0 | OSM47: 0 | OSN47: 0 | OSO47: 0 | OSP47: 0 | OSQ47: 0 | OSR47: 0 | OSS47: 0 | OST47: 0 | OSU47: 0 | OSV47: 0 | OSW47: 0 | OSX47: 0 | OSY47: 0 | OSZ47: 0 | OTA47: 0 | OTB47: 0 | OTC47: 0 | OTD47: 0 | OTE47: 0 | OTF47: 0 | OTG47: 0 | OTH47: 0 | OTI47: 0 | OTJ47: 0 | OTK47: 0 | OTL47: 0 | OTM47: 0 | OTN47: 0 | OTO47: 0 | OTP47: 0 | OTQ47: 0 | OTR47: 0 | OTS47: 0 | OTT47: 0 | OTU47: 0 | OTV47: 0 | OTW47: 0 | OTX47: 0 | OTY47: 0 | OTZ47: 0 | OUA47: 0 | OUB47: 0 | OUC47: 0 | OUD47: 0 | OUE47: 0 | OUF47: 0 | OUG47: 0 | OUH47: 0 | OUI47: 0 | OUJ47: 0 | OUK47: 0 | OUL47: 0 | OUM47: 0 | OUN47: 0 | OUO47: 0 | OUP47: 0 | OUQ47: 0 | OUR47: 0 | OUS47: 0 | OUT47: =SUM(OUT3:OUT46) -> 0 | OUU47: 0 | OUV47: 0 | OUW47: 0 | OUX47: 0 | OUY47: 0 | OUZ47: 0 | OVA47: 0 | OVB47: 0 | OVC47: 0 | OVD47: 0 | OVE47: 0 | OVF47: 0 | OVG47: 0 | OVH47: 0 | OVI47: 0 | OVJ47: 0 | OVK47: 0 | OVL47: 0 | OVM47: 0 | OVN47: 0 | OVO47: 0 | OVP47: 0 | OVQ47: 0 | OVR47: 0 | OVS47: 0 | OVT47: 0 | OVU47: 0 | OVV47: 0 | OVW47: 0 | OVX47: 0 | OVY47: 0 | OVZ47: 0 | OWA47: 0 | OWB47: 0 | OWC47: 0 | OWD47: 0 | OWE47: 0 | OWF47: 0 | OWG47: 0 | OWH47: 0 | OWI47: 0 | OWJ47: 0 | OWK47: 0 | OWL47: 0 | OWM47: 0 | OWN47: 0 | OWO47: 0 | OWP47: 0 | OWQ47: 0 | OWR47: 0 | OWS47: 0 | OWT47: 0 | OWU47: 0 | OWV47: 0 | OWW47: 0 | OWX47: 0 | OWY47: 0 | OWZ47: 0 | OXA47: 0 | OXB47: 0 | OXC47: 0 | OXD47: 0 | OXE47: 0 | OXF47: =SUM(OXF3:OXF46) -> 0 | OXG47: 0 | OXH47: 0 | OXI47: 0 | OXJ47: 0 | OXK47: 0 | OXL47: 0 | OXM47: 0 | OXN47: 0 | OXO47: 0 | OXP47: 0 | OXQ47: 0 | OXR47: 0 | OXS47: 0 | OXT47: 0 | OXU47: 0 | OXV47: 0 | OXW47: 0 | OXX47: 0 | OXY47: 0 | OXZ47: 0 | OYA47: 0 | OYB47: 0 | OYC47: 0 | OYD47: 0 | OYE47: 0 | OYF47: 0 | OYG47: 0 | OYH47: 0 | OYI47: 0 | OYJ47: 0 | OYK47: 0 | OYL47: 0 | OYM47: 0 | OYN47: 0 | OYO47: 0 | OYP47: 0 | OYQ47: 0 | OYR47: 0 | OYS47: 0 | OYT47: 0 | OYU47: 0 | OYV47: 0 | OYW47: 0 | OYX47: 0 | OYY47: 0 | OYZ47: 0 | OZA47: 0 | OZB47: 0 | OZC47: 0 | OZD47: 0 | OZE47: 0 | OZF47: 0 | OZG47: 0 | OZH47: 0 | OZI47: 0 | OZJ47: 0 | OZK47: 0 | OZL47: 0 | OZM47: 0 | OZN47: 0 | OZO47: 0 | OZP47: 0 | OZQ47: 0 | OZR47: =SUM(OZR3:OZR46) -> 0 | OZS47: 0 | OZT47: 0 | OZU47: 0 | OZV47: 0 | OZW47: 0 | OZX47: 0 | OZY47: 0 | OZZ47: 0 | PAA47: 0 | PAB47: 0 | PAC47: 0 | PAD47: 0 | PAE47: 0 | PAF47: 0 | PAG47: 0 | PAH47: 0 | PAI47: 0 | PAJ47: 0 | PAK47: 0 | PAL47: 0 | PAM47: 0 | PAN47: 0 | PAO47: 0 | PAP47: 0 | PAQ47: 0 | PAR47: 0 | PAS47: 0 | PAT47: 0 | PAU47: 0 | PAV47: 0 | PAW47: 0 | PAX47: 0 | PAY47: 0 | PAZ47: 0 | PBA47: 0 | PBB47: 0 | PBC47: 0 | PBD47: 0 | PBE47: 0 | PBF47: 0 | PBG47: 0 | PBH47: 0 | PBI47: 0 | PBJ47: 0 | PBK47: 0 | PBL47: 0 | PBM47: 0 | PBN47: 0 | PBO47: 0 | PBP47: 0 | PBQ47: 0 | PBR47: 0 | PBS47: 0 | PBT47: 0 | PBU47: 0 | PBV47: 0 | PBW47: 0 | PBX47: 0 | PBY47: 0 | PBZ47: 0 | PCA47: 0 | PCB47: 0 | PCC47: 0 | PCD47: =SUM(PCD3:PCD46) -> 0 | PCE47: 0 | PCF47: 0 | PCG47: 0 | PCH47: 0 | PCI47: 0 | PCJ47: 0 | PCK47: 0 | PCL47: 0 | PCM47: 0 | PCN47: 0 | PCO47: 0 | PCP47: 0 | PCQ47: 0 | PCR47: 0 | PCS47: 0 | PCT47: 0 | PCU47: 0 | PCV47: 0 | PCW47: 0 | PCX47: 0 | PCY47: 0 | PCZ47: 0 | PDA47: 0 | PDB47: 0 | PDC47: 0 | PDD47: 0 | PDE47: 0 | PDF47: 0 | PDG47: 0 | PDH47: 0 | PDI47: 0 | PDJ47: 0 | PDK47: 0 | PDL47: 0 | PDM47: 0 | PDN47: 0 | PDO47: 0 | PDP47: 0 | PDQ47: 0 | PDR47: 0 | PDS47: 0 | PDT47: 0 | PDU47: 0 | PDV47: 0 | PDW47: 0 | PDX47: 0 | PDY47: 0 | PDZ47: 0 | PEA47: 0 | PEB47: 0 | PEC47: 0 | PED47: 0 | PEE47: 0 | PEF47: 0 | PEG47: 0 | PEH47: 0 | PEI47: 0 | PEJ47: 0 | PEK47: 0 | PEL47: 0 | PEM47: 0 | PEN47: 0 | PEO47: 0 | PEP47: =SUM(PEP3:PEP46) -> 0 | PEQ47: 0 | PER47: 0 | PES47: 0 | PET47: 0 | PEU47: 0 | PEV47: 0 | PEW47: 0 | PEX47: 0 | PEY47: 0 | PEZ47: 0 | PFA47: 0 | PFB47: 0 | PFC47: 0 | PFD47: 0 | PFE47: 0 | PFF47: 0 | PFG47: 0 | PFH47: 0 | PFI47: 0 | PFJ47: 0 | PFK47: 0 | PFL47: 0 | PFM47: 0 | PFN47: 0 | PFO47: 0 | PFP47: 0 | PFQ47: 0 | PFR47: 0 | PFS47: 0 | PFT47: 0 | PFU47: 0 | PFV47: 0 | PFW47: 0 | PFX47: 0 | PFY47: 0 | PFZ47: 0 | PGA47: 0 | PGB47: 0 | PGC47: 0 | PGD47: 0 | PGE47: 0 | PGF47: 0 | PGG47: 0 | PGH47: 0 | PGI47: 0 | PGJ47: 0 | PGK47: 0 | PGL47: 0 | PGM47: 0 | PGN47: 0 | PGO47: 0 | PGP47: 0 | PGQ47: 0 | PGR47: 0 | PGS47: 0 | PGT47: 0 | PGU47: 0 | PGV47: 0 | PGW47: 0 | PGX47: 0 | PGY47: 0 | PGZ47: 0 | PHA47: 0 | PHB47: =SUM(PHB3:PHB46) -> 0 | PHC47: 0 | PHD47: 0 | PHE47: 0 | PHF47: 0 | PHG47: 0 | PHH47: 0 | PHI47: 0 | PHJ47: 0 | PHK47: 0 | PHL47: 0 | PHM47: 0 | PHN47: 0 | PHO47: 0 | PHP47: 0 | PHQ47: 0 | PHR47: 0 | PHS47: 0 | PHT47: 0 | PHU47: 0 | PHV47: 0 | PHW47: 0 | PHX47: 0 | PHY47: 0 | PHZ47: 0 | PIA47: 0 | PIB47: 0 | PIC47: 0 | PID47: 0 | PIE47: 0 | PIF47: 0 | PIG47: 0 | PIH47: 0 | PII47: 0 | PIJ47: 0 | PIK47: 0 | PIL47: 0 | PIM47: 0 | PIN47: 0 | PIO47: 0 | PIP47: 0 | PIQ47: 0 | PIR47: 0 | PIS47: 0 | PIT47: 0 | PIU47: 0 | PIV47: 0 | PIW47: 0 | PIX47: 0 | PIY47: 0 | PIZ47: 0 | PJA47: 0 | PJB47: 0 | PJC47: 0 | PJD47: 0 | PJE47: 0 | PJF47: 0 | PJG47: 0 | PJH47: 0 | PJI47: 0 | PJJ47: 0 | PJK47: 0 | PJL47: 0 | PJM47: 0 | PJN47: =SUM(PJN3:PJN46) -> 0 | PJO47: 0 | PJP47: 0 | PJQ47: 0 | PJR47: 0 | PJS47: 0 | PJT47: 0 | PJU47: 0 | PJV47: 0 | PJW47: 0 | PJX47: 0 | PJY47: 0 | PJZ47: 0 | PKA47: 0 | PKB47: 0 | PKC47: 0 | PKD47: 0 | PKE47: 0 | PKF47: 0 | PKG47: 0 | PKH47: 0 | PKI47: 0 | PKJ47: 0 | PKK47: 0 | PKL47: 0 | PKM47: 0 | PKN47: 0 | PKO47: 0 | PKP47: 0 | PKQ47: 0 | PKR47: 0 | PKS47: 0 | PKT47: 0 | PKU47: 0 | PKV47: 0 | PKW47: 0 | PKX47: 0 | PKY47: 0 | PKZ47: 0 | PLA47: 0 | PLB47: 0 | PLC47: 0 | PLD47: 0 | PLE47: 0 | PLF47: 0 | PLG47: 0 | PLH47: 0 | PLI47: 0 | PLJ47: 0 | PLK47: 0 | PLL47: 0 | PLM47: 0 | PLN47: 0 | PLO47: 0 | PLP47: 0 | PLQ47: 0 | PLR47: 0 | PLS47: 0 | PLT47: 0 | PLU47: 0 | PLV47: 0 | PLW47: 0 | PLX47: 0 | PLY47: 0 | PLZ47: =SUM(PLZ3:PLZ46) -> 0 | PMA47: 0 | PMB47: 0 | PMC47: 0 | PMD47: 0 | PME47: 0 | PMF47: 0 | PMG47: 0 | PMH47: 0 | PMI47: 0 | PMJ47: 0 | PMK47: 0 | PML47: 0 | PMM47: 0 | PMN47: 0 | PMO47: 0 | PMP47: 0 | PMQ47: 0 | PMR47: 0 | PMS47: 0 | PMT47: 0 | PMU47: 0 | PMV47: 0 | PMW47: 0 | PMX47: 0 | PMY47: 0 | PMZ47: 0 | PNA47: 0 | PNB47: 0 | PNC47: 0 | PND47: 0 | PNE47: 0 | PNF47: 0 | PNG47: 0 | PNH47: 0 | PNI47: 0 | PNJ47: 0 | PNK47: 0 | PNL47: 0 | PNM47: 0 | PNN47: 0 | PNO47: 0 | PNP47: 0 | PNQ47: 0 | PNR47: 0 | PNS47: 0 | PNT47: 0 | PNU47: 0 | PNV47: 0 | PNW47: 0 | PNX47: 0 | PNY47: 0 | PNZ47: 0 | POA47: 0 | POB47: 0 | POC47: 0 | POD47: 0 | POE47: 0 | POF47: 0 | POG47: 0 | POH47: 0 | POI47: 0 | POJ47: 0 | POK47: 0 | POL47: =SUM(POL3:POL46) -> 0 | POM47: 0 | PON47: 0 | POO47: 0 | POP47: 0 | POQ47: 0 | POR47: 0 | POS47: 0 | POT47: 0 | POU47: 0 | POV47: 0 | POW47: 0 | POX47: 0 | POY47: 0 | POZ47: 0 | PPA47: 0 | PPB47: 0 | PPC47: 0 | PPD47: 0 | PPE47: 0 | PPF47: 0 | PPG47: 0 | PPH47: 0 | PPI47: 0 | PPJ47: 0 | PPK47: 0 | PPL47: 0 | PPM47: 0 | PPN47: 0 | PPO47: 0 | PPP47: 0 | PPQ47: 0 | PPR47: 0 | PPS47: 0 | PPT47: 0 | PPU47: 0 | PPV47: 0 | PPW47: 0 | PPX47: 0 | PPY47: 0 | PPZ47: 0 | PQA47: 0 | PQB47: 0 | PQC47: 0 | PQD47: 0 | PQE47: 0 | PQF47: 0 | PQG47: 0 | PQH47: 0 | PQI47: 0 | PQJ47: 0 | PQK47: 0 | PQL47: 0 | PQM47: 0 | PQN47: 0 | PQO47: 0 | PQP47: 0 | PQQ47: 0 | PQR47: 0 | PQS47: 0 | PQT47: 0 | PQU47: 0 | PQV47: 0 | PQW47: 0 | PQX47: =SUM(PQX3:PQX46) -> 0 | PQY47: 0 | PQZ47: 0 | PRA47: 0 | PRB47: 0 | PRC47: 0 | PRD47: 0 | PRE47: 0 | PRF47: 0 | PRG47: 0 | PRH47: 0 | PRI47: 0 | PRJ47: 0 | PRK47: 0 | PRL47: 0 | PRM47: 0 | PRN47: 0 | PRO47: 0 | PRP47: 0 | PRQ47: 0 | PRR47: 0 | PRS47: 0 | PRT47: 0 | PRU47: 0 | PRV47: 0 | PRW47: 0 | PRX47: 0 | PRY47: 0 | PRZ47: 0 | PSA47: 0 | PSB47: 0 | PSC47: 0 | PSD47: 0 | PSE47: 0 | PSF47: 0 | PSG47: 0 | PSH47: 0 | PSI47: 0 | PSJ47: 0 | PSK47: 0 | PSL47: 0 | PSM47: 0 | PSN47: 0 | PSO47: 0 | PSP47: 0 | PSQ47: 0 | PSR47: 0 | PSS47: 0 | PST47: 0 | PSU47: 0 | PSV47: 0 | PSW47: 0 | PSX47: 0 | PSY47: 0 | PSZ47: 0 | PTA47: 0 | PTB47: 0 | PTC47: 0 | PTD47: 0 | PTE47: 0 | PTF47: 0 | PTG47: 0 | PTH47: 0 | PTI47: 0 | PTJ47: =SUM(PTJ3:PTJ46) -> 0 | PTK47: 0 | PTL47: 0 | PTM47: 0 | PTN47: 0 | PTO47: 0 | PTP47: 0 | PTQ47: 0 | PTR47: 0 | PTS47: 0 | PTT47: 0 | PTU47: 0 | PTV47: 0 | PTW47: 0 | PTX47: 0 | PTY47: 0 | PTZ47: 0 | PUA47: 0 | PUB47: 0 | PUC47: 0 | PUD47: 0 | PUE47: 0 | PUF47: 0 | PUG47: 0 | PUH47: 0 | PUI47: 0 | PUJ47: 0 | PUK47: 0 | PUL47: 0 | PUM47: 0 | PUN47: 0 | PUO47: 0 | PUP47: 0 | PUQ47: 0 | PUR47: 0 | PUS47: 0 | PUT47: 0 | PUU47: 0 | PUV47: 0 | PUW47: 0 | PUX47: 0 | PUY47: 0 | PUZ47: 0 | PVA47: 0 | PVB47: 0 | PVC47: 0 | PVD47: 0 | PVE47: 0 | PVF47: 0 | PVG47: 0 | PVH47: 0 | PVI47: 0 | PVJ47: 0 | PVK47: 0 | PVL47: 0 | PVM47: 0 | PVN47: 0 | PVO47: 0 | PVP47: 0 | PVQ47: 0 | PVR47: 0 | PVS47: 0 | PVT47: 0 | PVU47: 0 | PVV47: =SUM(PVV3:PVV46) -> 0 | PVW47: 0 | PVX47: 0 | PVY47: 0 | PVZ47: 0 | PWA47: 0 | PWB47: 0 | PWC47: 0 | PWD47: 0 | PWE47: 0 | PWF47: 0 | PWG47: 0 | PWH47: 0 | PWI47: 0 | PWJ47: 0 | PWK47: 0 | PWL47: 0 | PWM47: 0 | PWN47: 0 | PWO47: 0 | PWP47: 0 | PWQ47: 0 | PWR47: 0 | PWS47: 0 | PWT47: 0 | PWU47: 0 | PWV47: 0 | PWW47: 0 | PWX47: 0 | PWY47: 0 | PWZ47: 0 | PXA47: 0 | PXB47: 0 | PXC47: 0 | PXD47: 0 | PXE47: 0 | PXF47: 0 | PXG47: 0 | PXH47: 0 | PXI47: 0 | PXJ47: 0 | PXK47: 0 | PXL47: 0 | PXM47: 0 | PXN47: 0 | PXO47: 0 | PXP47: 0 | PXQ47: 0 | PXR47: 0 | PXS47: 0 | PXT47: 0 | PXU47: 0 | PXV47: 0 | PXW47: 0 | PXX47: 0 | PXY47: 0 | PXZ47: 0 | PYA47: 0 | PYB47: 0 | PYC47: 0 | PYD47: 0 | PYE47: 0 | PYF47: 0 | PYG47: 0 | PYH47: =SUM(PYH3:PYH46) -> 0 | PYI47: 0 | PYJ47: 0 | PYK47: 0 | PYL47: 0 | PYM47: 0 | PYN47: 0 | PYO47: 0 | PYP47: 0 | PYQ47: 0 | PYR47: 0 | PYS47: 0 | PYT47: 0 | PYU47: 0 | PYV47: 0 | PYW47: 0 | PYX47: 0 | PYY47: 0 | PYZ47: 0 | PZA47: 0 | PZB47: 0 | PZC47: 0 | PZD47: 0 | PZE47: 0 | PZF47: 0 | PZG47: 0 | PZH47: 0 | PZI47: 0 | PZJ47: 0 | PZK47: 0 | PZL47: 0 | PZM47: 0 | PZN47: 0 | PZO47: 0 | PZP47: 0 | PZQ47: 0 | PZR47: 0 | PZS47: 0 | PZT47: 0 | PZU47: 0 | PZV47: 0 | PZW47: 0 | PZX47: 0 | PZY47: 0 | PZZ47: 0 | QAA47: 0 | QAB47: 0 | QAC47: 0 | QAD47: 0 | QAE47: 0 | QAF47: 0 | QAG47: 0 | QAH47: 0 | QAI47: 0 | QAJ47: 0 | QAK47: 0 | QAL47: 0 | QAM47: 0 | QAN47: 0 | QAO47: 0 | QAP47: 0 | QAQ47: 0 | QAR47: 0 | QAS47: 0 | QAT47: =SUM(QAT3:QAT46) -> 0 | QAU47: 0 | QAV47: 0 | QAW47: 0 | QAX47: 0 | QAY47: 0 | QAZ47: 0 | QBA47: 0 | QBB47: 0 | QBC47: 0 | QBD47: 0 | QBE47: 0 | QBF47: 0 | QBG47: 0 | QBH47: 0 | QBI47: 0 | QBJ47: 0 | QBK47: 0 | QBL47: 0 | QBM47: 0 | QBN47: 0 | QBO47: 0 | QBP47: 0 | QBQ47: 0 | QBR47: 0 | QBS47: 0 | QBT47: 0 | QBU47: 0 | QBV47: 0 | QBW47: 0 | QBX47: 0 | QBY47: 0 | QBZ47: 0 | QCA47: 0 | QCB47: 0 | QCC47: 0 | QCD47: 0 | QCE47: 0 | QCF47: 0 | QCG47: 0 | QCH47: 0 | QCI47: 0 | QCJ47: 0 | QCK47: 0 | QCL47: 0 | QCM47: 0 | QCN47: 0 | QCO47: 0 | QCP47: 0 | QCQ47: 0 | QCR47: 0 | QCS47: 0 | QCT47: 0 | QCU47: 0 | QCV47: 0 | QCW47: 0 | QCX47: 0 | QCY47: 0 | QCZ47: 0 | QDA47: 0 | QDB47: 0 | QDC47: 0 | QDD47: 0 | QDE47: 0 | QDF47: =SUM(QDF3:QDF46) -> 0 | QDG47: 0 | QDH47: 0 | QDI47: 0 | QDJ47: 0 | QDK47: 0 | QDL47: 0 | QDM47: 0 | QDN47: 0 | QDO47: 0 | QDP47: 0 | QDQ47: 0 | QDR47: 0 | QDS47: 0 | QDT47: 0 | QDU47: 0 | QDV47: 0 | QDW47: 0 | QDX47: 0 | QDY47: 0 | QDZ47: 0 | QEA47: 0 | QEB47: 0 | QEC47: 0 | QED47: 0 | QEE47: 0 | QEF47: 0 | QEG47: 0 | QEH47: 0 | QEI47: 0 | QEJ47: 0 | QEK47: 0 | QEL47: 0 | QEM47: 0 | QEN47: 0 | QEO47: 0 | QEP47: 0 | QEQ47: 0 | QER47: 0 | QES47: 0 | QET47: 0 | QEU47: 0 | QEV47: 0 | QEW47: 0 | QEX47: 0 | QEY47: 0 | QEZ47: 0 | QFA47: 0 | QFB47: 0 | QFC47: 0 | QFD47: 0 | QFE47: 0 | QFF47: 0 | QFG47: 0 | QFH47: 0 | QFI47: 0 | QFJ47: 0 | QFK47: 0 | QFL47: 0 | QFM47: 0 | QFN47: 0 | QFO47: 0 | QFP47: 0 | QFQ47: 0 | QFR47: =SUM(QFR3:QFR46) -> 0 | QFS47: 0 | QFT47: 0 | QFU47: 0 | QFV47: 0 | QFW47: 0 | QFX47: 0 | QFY47: 0 | QFZ47: 0 | QGA47: 0 | QGB47: 0 | QGC47: 0 | QGD47: 0 | QGE47: 0 | QGF47: 0 | QGG47: 0 | QGH47: 0 | QGI47: 0 | QGJ47: 0 | QGK47: 0 | QGL47: 0 | QGM47: 0 | QGN47: 0 | QGO47: 0 | QGP47: 0 | QGQ47: 0 | QGR47: 0 | QGS47: 0 | QGT47: 0 | QGU47: 0 | QGV47: 0 | QGW47: 0 | QGX47: 0 | QGY47: 0 | QGZ47: 0 | QHA47: 0 | QHB47: 0 | QHC47: 0 | QHD47: 0 | QHE47: 0 | QHF47: 0 | QHG47: 0 | QHH47: 0 | QHI47: 0 | QHJ47: 0 | QHK47: 0 | QHL47: 0 | QHM47: 0 | QHN47: 0 | QHO47: 0 | QHP47: 0 | QHQ47: 0 | QHR47: 0 | QHS47: 0 | QHT47: 0 | QHU47: 0 | QHV47: 0 | QHW47: 0 | QHX47: 0 | QHY47: 0 | QHZ47: 0 | QIA47: 0 | QIB47: 0 | QIC47: 0 | QID47: =SUM(QID3:QID46) -> 0 | QIE47: 0 | QIF47: 0 | QIG47: 0 | QIH47: 0 | QII47: 0 | QIJ47: 0 | QIK47: 0 | QIL47: 0 | QIM47: 0 | QIN47: 0 | QIO47: 0 | QIP47: 0 | QIQ47: 0 | QIR47: 0 | QIS47: 0 | QIT47: 0 | QIU47: 0 | QIV47: 0 | QIW47: 0 | QIX47: 0 | QIY47: 0 | QIZ47: 0 | QJA47: 0 | QJB47: 0 | QJC47: 0 | QJD47: 0 | QJE47: 0 | QJF47: 0 | QJG47: 0 | QJH47: 0 | QJI47: 0 | QJJ47: 0 | QJK47: 0 | QJL47: 0 | QJM47: 0 | QJN47: 0 | QJO47: 0 | QJP47: 0 | QJQ47: 0 | QJR47: 0 | QJS47: 0 | QJT47: 0 | QJU47: 0 | QJV47: 0 | QJW47: 0 | QJX47: 0 | QJY47: 0 | QJZ47: 0 | QKA47: 0 | QKB47: 0 | QKC47: 0 | QKD47: 0 | QKE47: 0 | QKF47: 0 | QKG47: 0 | QKH47: 0 | QKI47: 0 | QKJ47: 0 | QKK47: 0 | QKL47: 0 | QKM47: 0 | QKN47: 0 | QKO47: 0 | QKP47: =SUM(QKP3:QKP46) -> 0 | QKQ47: 0 | QKR47: 0 | QKS47: 0 | QKT47: 0 | QKU47: 0 | QKV47: 0 | QKW47: 0 | QKX47: 0 | QKY47: 0 | QKZ47: 0 | QLA47: 0 | QLB47: 0 | QLC47: 0 | QLD47: 0 | QLE47: 0 | QLF47: 0 | QLG47: 0 | QLH47: 0 | QLI47: 0 | QLJ47: 0 | QLK47: 0 | QLL47: 0 | QLM47: 0 | QLN47: 0 | QLO47: 0 | QLP47: 0 | QLQ47: 0 | QLR47: 0 | QLS47: 0 | QLT47: 0 | QLU47: 0 | QLV47: 0 | QLW47: 0 | QLX47: 0 | QLY47: 0 | QLZ47: 0 | QMA47: 0 | QMB47: 0 | QMC47: 0 | QMD47: 0 | QME47: 0 | QMF47: 0 | QMG47: 0 | QMH47: 0 | QMI47: 0 | QMJ47: 0 | QMK47: 0 | QML47: 0 | QMM47: 0 | QMN47: 0 | QMO47: 0 | QMP47: 0 | QMQ47: 0 | QMR47: 0 | QMS47: 0 | QMT47: 0 | QMU47: 0 | QMV47: 0 | QMW47: 0 | QMX47: 0 | QMY47: 0 | QMZ47: 0 | QNA47: 0 | QNB47: =SUM(QNB3:QNB46) -> 0 | QNC47: 0 | QND47: 0 | QNE47: 0 | QNF47: 0 | QNG47: 0 | QNH47: 0 | QNI47: 0 | QNJ47: 0 | QNK47: 0 | QNL47: 0 | QNM47: 0 | QNN47: 0 | QNO47: 0 | QNP47: 0 | QNQ47: 0 | QNR47: 0 | QNS47: 0 | QNT47: 0 | QNU47: 0 | QNV47: 0 | QNW47: 0 | QNX47: 0 | QNY47: 0 | QNZ47: 0 | QOA47: 0 | QOB47: 0 | QOC47: 0 | QOD47: 0 | QOE47: 0 | QOF47: 0 | QOG47: 0 | QOH47: 0 | QOI47: 0 | QOJ47: 0 | QOK47: 0 | QOL47: 0 | QOM47: 0 | QON47: 0 | QOO47: 0 | QOP47: 0 | QOQ47: 0 | QOR47: 0 | QOS47: 0 | QOT47: 0 | QOU47: 0 | QOV47: 0 | QOW47: 0 | QOX47: 0 | QOY47: 0 | QOZ47: 0 | QPA47: 0 | QPB47: 0 | QPC47: 0 | QPD47: 0 | QPE47: 0 | QPF47: 0 | QPG47: 0 | QPH47: 0 | QPI47: 0 | QPJ47: 0 | QPK47: 0 | QPL47: 0 | QPM47: 0 | QPN47: =SUM(QPN3:QPN46) -> 0 | QPO47: 0 | QPP47: 0 | QPQ47: 0 | QPR47: 0 | QPS47: 0 | QPT47: 0 | QPU47: 0 | QPV47: 0 | QPW47: 0 | QPX47: 0 | QPY47: 0 | QPZ47: 0 | QQA47: 0 | QQB47: 0 | QQC47: 0 | QQD47: 0 | QQE47: 0 | QQF47: 0 | QQG47: 0 | QQH47: 0 | QQI47: 0 | QQJ47: 0 | QQK47: 0 | QQL47: 0 | QQM47: 0 | QQN47: 0 | QQO47: 0 | QQP47: 0 | QQQ47: 0 | QQR47: 0 | QQS47: 0 | QQT47: 0 | QQU47: 0 | QQV47: 0 | QQW47: 0 | QQX47: 0 | QQY47: 0 | QQZ47: 0 | QRA47: 0 | QRB47: 0 | QRC47: 0 | QRD47: 0 | QRE47: 0 | QRF47: 0 | QRG47: 0 | QRH47: 0 | QRI47: 0 | QRJ47: 0 | QRK47: 0 | QRL47: 0 | QRM47: 0 | QRN47: 0 | QRO47: 0 | QRP47: 0 | QRQ47: 0 | QRR47: 0 | QRS47: 0 | QRT47: 0 | QRU47: 0 | QRV47: 0 | QRW47: 0 | QRX47: 0 | QRY47: 0 | QRZ47: =SUM(QRZ3:QRZ46) -> 0 | QSA47: 0 | QSB47: 0 | QSC47: 0 | QSD47: 0 | QSE47: 0 | QSF47: 0 | QSG47: 0 | QSH47: 0 | QSI47: 0 | QSJ47: 0 | QSK47: 0 | QSL47: 0 | QSM47: 0 | QSN47: 0 | QSO47: 0 | QSP47: 0 | QSQ47: 0 | QSR47: 0 | QSS47: 0 | QST47: 0 | QSU47: 0 | QSV47: 0 | QSW47: 0 | QSX47: 0 | QSY47: 0 | QSZ47: 0 | QTA47: 0 | QTB47: 0 | QTC47: 0 | QTD47: 0 | QTE47: 0 | QTF47: 0 | QTG47: 0 | QTH47: 0 | QTI47: 0 | QTJ47: 0 | QTK47: 0 | QTL47: 0 | QTM47: 0 | QTN47: 0 | QTO47: 0 | QTP47: 0 | QTQ47: 0 | QTR47: 0 | QTS47: 0 | QTT47: 0 | QTU47: 0 | QTV47: 0 | QTW47: 0 | QTX47: 0 | QTY47: 0 | QTZ47: 0 | QUA47: 0 | QUB47: 0 | QUC47: 0 | QUD47: 0 | QUE47: 0 | QUF47: 0 | QUG47: 0 | QUH47: 0 | QUI47: 0 | QUJ47: 0 | QUK47: 0 | QUL47: =SUM(QUL3:QUL46) -> 0 | QUM47: 0 | QUN47: 0 | QUO47: 0 | QUP47: 0 | QUQ47: 0 | QUR47: 0 | QUS47: 0 | QUT47: 0 | QUU47: 0 | QUV47: 0 | QUW47: 0 | QUX47: 0 | QUY47: 0 | QUZ47: 0 | QVA47: 0 | QVB47: 0 | QVC47: 0 | QVD47: 0 | QVE47: 0 | QVF47: 0 | QVG47: 0 | QVH47: 0 | QVI47: 0 | QVJ47: 0 | QVK47: 0 | QVL47: 0 | QVM47: 0 | QVN47: 0 | QVO47: 0 | QVP47: 0 | QVQ47: 0 | QVR47: 0 | QVS47: 0 | QVT47: 0 | QVU47: 0 | QVV47: 0 | QVW47: 0 | QVX47: 0 | QVY47: 0 | QVZ47: 0 | QWA47: 0 | QWB47: 0 | QWC47: 0 | QWD47: 0 | QWE47: 0 | QWF47: 0 | QWG47: 0 | QWH47: 0 | QWI47: 0 | QWJ47: 0 | QWK47: 0 | QWL47: 0 | QWM47: 0 | QWN47: 0 | QWO47: 0 | QWP47: 0 | QWQ47: 0 | QWR47: 0 | QWS47: 0 | QWT47: 0 | QWU47: 0 | QWV47: 0 | QWW47: 0 | QWX47: =SUM(QWX3:QWX46) -> 0 | QWY47: 0 | QWZ47: 0 | QXA47: 0 | QXB47: 0 | QXC47: 0 | QXD47: 0 | QXE47: 0 | QXF47: 0 | QXG47: 0 | QXH47: 0 | QXI47: 0 | QXJ47: 0 | QXK47: 0 | QXL47: 0 | QXM47: 0 | QXN47: 0 | QXO47: 0 | QXP47: 0 | QXQ47: 0 | QXR47: 0 | QXS47: 0 | QXT47: 0 | QXU47: 0 | QXV47: 0 | QXW47: 0 | QXX47: 0 | QXY47: 0 | QXZ47: 0 | QYA47: 0 | QYB47: 0 | QYC47: 0 | QYD47: 0 | QYE47: 0 | QYF47: 0 | QYG47: 0 | QYH47: 0 | QYI47: 0 | QYJ47: 0 | QYK47: 0 | QYL47: 0 | QYM47: 0 | QYN47: 0 | QYO47: 0 | QYP47: 0 | QYQ47: 0 | QYR47: 0 | QYS47: 0 | QYT47: 0 | QYU47: 0 | QYV47: 0 | QYW47: 0 | QYX47: 0 | QYY47: 0 | QYZ47: 0 | QZA47: 0 | QZB47: 0 | QZC47: 0 | QZD47: 0 | QZE47: 0 | QZF47: 0 | QZG47: 0 | QZH47: 0 | QZI47: 0 | QZJ47: =SUM(QZJ3:QZJ46) -> 0 | QZK47: 0 | QZL47: 0 | QZM47: 0 | QZN47: 0 | QZO47: 0 | QZP47: 0 | QZQ47: 0 | QZR47: 0 | QZS47: 0 | QZT47: 0 | QZU47: 0 | QZV47: 0 | QZW47: 0 | QZX47: 0 | QZY47: 0 | QZZ47: 0 | RAA47: 0 | RAB47: 0 | RAC47: 0 | RAD47: 0 | RAE47: 0 | RAF47: 0 | RAG47: 0 | RAH47: 0 | RAI47: 0 | RAJ47: 0 | RAK47: 0 | RAL47: 0 | RAM47: 0 | RAN47: 0 | RAO47: 0 | RAP47: 0 | RAQ47: 0 | RAR47: 0 | RAS47: 0 | RAT47: 0 | RAU47: 0 | RAV47: 0 | RAW47: 0 | RAX47: 0 | RAY47: 0 | RAZ47: 0 | RBA47: 0 | RBB47: 0 | RBC47: 0 | RBD47: 0 | RBE47: 0 | RBF47: 0 | RBG47: 0 | RBH47: 0 | RBI47: 0 | RBJ47: 0 | RBK47: 0 | RBL47: 0 | RBM47: 0 | RBN47: 0 | RBO47: 0 | RBP47: 0 | RBQ47: 0 | RBR47: 0 | RBS47: 0 | RBT47: 0 | RBU47: 0 | RBV47: =SUM(RBV3:RBV46) -> 0 | RBW47: 0 | RBX47: 0 | RBY47: 0 | RBZ47: 0 | RCA47: 0 | RCB47: 0 | RCC47: 0 | RCD47: 0 | RCE47: 0 | RCF47: 0 | RCG47: 0 | RCH47: 0 | RCI47: 0 | RCJ47: 0 | RCK47: 0 | RCL47: 0 | RCM47: 0 | RCN47: 0 | RCO47: 0 | RCP47: 0 | RCQ47: 0 | RCR47: 0 | RCS47: 0 | RCT47: 0 | RCU47: 0 | RCV47: 0 | RCW47: 0 | RCX47: 0 | RCY47: 0 | RCZ47: 0 | RDA47: 0 | RDB47: 0 | RDC47: 0 | RDD47: 0 | RDE47: 0 | RDF47: 0 | RDG47: 0 | RDH47: 0 | RDI47: 0 | RDJ47: 0 | RDK47: 0 | RDL47: 0 | RDM47: 0 | RDN47: 0 | RDO47: 0 | RDP47: 0 | RDQ47: 0 | RDR47: 0 | RDS47: 0 | RDT47: 0 | RDU47: 0 | RDV47: 0 | RDW47: 0 | RDX47: 0 | RDY47: 0 | RDZ47: 0 | REA47: 0 | REB47: 0 | REC47: 0 | RED47: 0 | REE47: 0 | REF47: 0 | REG47: 0 | REH47: =SUM(REH3:REH46) -> 0 | REI47: 0 | REJ47: 0 | REK47: 0 | REL47: 0 | REM47: 0 | REN47: 0 | REO47: 0 | REP47: 0 | REQ47: 0 | RER47: 0 | RES47: 0 | RET47: 0 | REU47: 0 | REV47: 0 | REW47: 0 | REX47: 0 | REY47: 0 | REZ47: 0 | RFA47: 0 | RFB47: 0 | RFC47: 0 | RFD47: 0 | RFE47: 0 | RFF47: 0 | RFG47: 0 | RFH47: 0 | RFI47: 0 | RFJ47: 0 | RFK47: 0 | RFL47: 0 | RFM47: 0 | RFN47: 0 | RFO47: 0 | RFP47: 0 | RFQ47: 0 | RFR47: 0 | RFS47: 0 | RFT47: 0 | RFU47: 0 | RFV47: 0 | RFW47: 0 | RFX47: 0 | RFY47: 0 | RFZ47: 0 | RGA47: 0 | RGB47: 0 | RGC47: 0 | RGD47: 0 | RGE47: 0 | RGF47: 0 | RGG47: 0 | RGH47: 0 | RGI47: 0 | RGJ47: 0 | RGK47: 0 | RGL47: 0 | RGM47: 0 | RGN47: 0 | RGO47: 0 | RGP47: 0 | RGQ47: 0 | RGR47: 0 | RGS47: 0 | RGT47: =SUM(RGT3:RGT46) -> 0 | RGU47: 0 | RGV47: 0 | RGW47: 0 | RGX47: 0 | RGY47: 0 | RGZ47: 0 | RHA47: 0 | RHB47: 0 | RHC47: 0 | RHD47: 0 | RHE47: 0 | RHF47: 0 | RHG47: 0 | RHH47: 0 | RHI47: 0 | RHJ47: 0 | RHK47: 0 | RHL47: 0 | RHM47: 0 | RHN47: 0 | RHO47: 0 | RHP47: 0 | RHQ47: 0 | RHR47: 0 | RHS47: 0 | RHT47: 0 | RHU47: 0 | RHV47: 0 | RHW47: 0 | RHX47: 0 | RHY47: 0 | RHZ47: 0 | RIA47: 0 | RIB47: 0 | RIC47: 0 | RID47: 0 | RIE47: 0 | RIF47: 0 | RIG47: 0 | RIH47: 0 | RII47: 0 | RIJ47: 0 | RIK47: 0 | RIL47: 0 | RIM47: 0 | RIN47: 0 | RIO47: 0 | RIP47: 0 | RIQ47: 0 | RIR47: 0 | RIS47: 0 | RIT47: 0 | RIU47: 0 | RIV47: 0 | RIW47: 0 | RIX47: 0 | RIY47: 0 | RIZ47: 0 | RJA47: 0 | RJB47: 0 | RJC47: 0 | RJD47: 0 | RJE47: 0 | RJF47: =SUM(RJF3:RJF46) -> 0 | RJG47: 0 | RJH47: 0 | RJI47: 0 | RJJ47: 0 | RJK47: 0 | RJL47: 0 | RJM47: 0 | RJN47: 0 | RJO47: 0 | RJP47: 0 | RJQ47: 0 | RJR47: 0 | RJS47: 0 | RJT47: 0 | RJU47: 0 | RJV47: 0 | RJW47: 0 | RJX47: 0 | RJY47: 0 | RJZ47: 0 | RKA47: 0 | RKB47: 0 | RKC47: 0 | RKD47: 0 | RKE47: 0 | RKF47: 0 | RKG47: 0 | RKH47: 0 | RKI47: 0 | RKJ47: 0 | RKK47: 0 | RKL47: 0 | RKM47: 0 | RKN47: 0 | RKO47: 0 | RKP47: 0 | RKQ47: 0 | RKR47: 0 | RKS47: 0 | RKT47: 0 | RKU47: 0 | RKV47: 0 | RKW47: 0 | RKX47: 0 | RKY47: 0 | RKZ47: 0 | RLA47: 0 | RLB47: 0 | RLC47: 0 | RLD47: 0 | RLE47: 0 | RLF47: 0 | RLG47: 0 | RLH47: 0 | RLI47: 0 | RLJ47: 0 | RLK47: 0 | RLL47: 0 | RLM47: 0 | RLN47: 0 | RLO47: 0 | RLP47: 0 | RLQ47: 0 | RLR47: =SUM(RLR3:RLR46) -> 0 | RLS47: 0 | RLT47: 0 | RLU47: 0 | RLV47: 0 | RLW47: 0 | RLX47: 0 | RLY47: 0 | RLZ47: 0 | RMA47: 0 | RMB47: 0 | RMC47: 0 | RMD47: 0 | RME47: 0 | RMF47: 0 | RMG47: 0 | RMH47: 0 | RMI47: 0 | RMJ47: 0 | RMK47: 0 | RML47: 0 | RMM47: 0 | RMN47: 0 | RMO47: 0 | RMP47: 0 | RMQ47: 0 | RMR47: 0 | RMS47: 0 | RMT47: 0 | RMU47: 0 | RMV47: 0 | RMW47: 0 | RMX47: 0 | RMY47: 0 | RMZ47: 0 | RNA47: 0 | RNB47: 0 | RNC47: 0 | RND47: 0 | RNE47: 0 | RNF47: 0 | RNG47: 0 | RNH47: 0 | RNI47: 0 | RNJ47: 0 | RNK47: 0 | RNL47: 0 | RNM47: 0 | RNN47: 0 | RNO47: 0 | RNP47: 0 | RNQ47: 0 | RNR47: 0 | RNS47: 0 | RNT47: 0 | RNU47: 0 | RNV47: 0 | RNW47: 0 | RNX47: 0 | RNY47: 0 | RNZ47: 0 | ROA47: 0 | ROB47: 0 | ROC47: 0 | ROD47: =SUM(ROD3:ROD46) -> 0 | ROE47: 0 | ROF47: 0 | ROG47: 0 | ROH47: 0 | ROI47: 0 | ROJ47: 0 | ROK47: 0 | ROL47: 0 | ROM47: 0 | RON47: 0 | ROO47: 0 | ROP47: 0 | ROQ47: 0 | ROR47: 0 | ROS47: 0 | ROT47: 0 | ROU47: 0 | ROV47: 0 | ROW47: 0 | ROX47: 0 | ROY47: 0 | ROZ47: 0 | RPA47: 0 | RPB47: 0 | RPC47: 0 | RPD47: 0 | RPE47: 0 | RPF47: 0 | RPG47: 0 | RPH47: 0 | RPI47: 0 | RPJ47: 0 | RPK47: 0 | RPL47: 0 | RPM47: 0 | RPN47: 0 | RPO47: 0 | RPP47: 0 | RPQ47: 0 | RPR47: 0 | RPS47: 0 | RPT47: 0 | RPU47: 0 | RPV47: 0 | RPW47: 0 | RPX47: 0 | RPY47: 0 | RPZ47: 0 | RQA47: 0 | RQB47: 0 | RQC47: 0 | RQD47: 0 | RQE47: 0 | RQF47: 0 | RQG47: 0 | RQH47: 0 | RQI47: 0 | RQJ47: 0 | RQK47: 0 | RQL47: 0 | RQM47: 0 | RQN47: 0 | RQO47: 0 | RQP47: =SUM(RQP3:RQP46) -> 0 | RQQ47: 0 | RQR47: 0 | RQS47: 0 | RQT47: 0 | RQU47: 0 | RQV47: 0 | RQW47: 0 | RQX47: 0 | RQY47: 0 | RQZ47: 0 | RRA47: 0 | RRB47: 0 | RRC47: 0 | RRD47: 0 | RRE47: 0 | RRF47: 0 | RRG47: 0 | RRH47: 0 | RRI47: 0 | RRJ47: 0 | RRK47: 0 | RRL47: 0 | RRM47: 0 | RRN47: 0 | RRO47: 0 | RRP47: 0 | RRQ47: 0 | RRR47: 0 | RRS47: 0 | RRT47: 0 | RRU47: 0 | RRV47: 0 | RRW47: 0 | RRX47: 0 | RRY47: 0 | RRZ47: 0 | RSA47: 0 | RSB47: 0 | RSC47: 0 | RSD47: 0 | RSE47: 0 | RSF47: 0 | RSG47: 0 | RSH47: 0 | RSI47: 0 | RSJ47: 0 | RSK47: 0 | RSL47: 0 | RSM47: 0 | RSN47: 0 | RSO47: 0 | RSP47: 0 | RSQ47: 0 | RSR47: 0 | RSS47: 0 | RST47: 0 | RSU47: 0 | RSV47: 0 | RSW47: 0 | RSX47: 0 | RSY47: 0 | RSZ47: 0 | RTA47: 0 | RTB47: =SUM(RTB3:RTB46) -> 0 | RTC47: 0 | RTD47: 0 | RTE47: 0 | RTF47: 0 | RTG47: 0 | RTH47: 0 | RTI47: 0 | RTJ47: 0 | RTK47: 0 | RTL47: 0 | RTM47: 0 | RTN47: 0 | RTO47: 0 | RTP47: 0 | RTQ47: 0 | RTR47: 0 | RTS47: 0 | RTT47: 0 | RTU47: 0 | RTV47: 0 | RTW47: 0 | RTX47: 0 | RTY47: 0 | RTZ47: 0 | RUA47: 0 | RUB47: 0 | RUC47: 0 | RUD47: 0 | RUE47: 0 | RUF47: 0 | RUG47: 0 | RUH47: 0 | RUI47: 0 | RUJ47: 0 | RUK47: 0 | RUL47: 0 | RUM47: 0 | RUN47: 0 | RUO47: 0 | RUP47: 0 | RUQ47: 0 | RUR47: 0 | RUS47: 0 | RUT47: 0 | RUU47: 0 | RUV47: 0 | RUW47: 0 | RUX47: 0 | RUY47: 0 | RUZ47: 0 | RVA47: 0 | RVB47: 0 | RVC47: 0 | RVD47: 0 | RVE47: 0 | RVF47: 0 | RVG47: 0 | RVH47: 0 | RVI47: 0 | RVJ47: 0 | RVK47: 0 | RVL47: 0 | RVM47: 0 | RVN47: =SUM(RVN3:RVN46) -> 0 | RVO47: 0 | RVP47: 0 | RVQ47: 0 | RVR47: 0 | RVS47: 0 | RVT47: 0 | RVU47: 0 | RVV47: 0 | RVW47: 0 | RVX47: 0 | RVY47: 0 | RVZ47: 0 | RWA47: 0 | RWB47: 0 | RWC47: 0 | RWD47: 0 | RWE47: 0 | RWF47: 0 | RWG47: 0 | RWH47: 0 | RWI47: 0 | RWJ47: 0 | RWK47: 0 | RWL47: 0 | RWM47: 0 | RWN47: 0 | RWO47: 0 | RWP47: 0 | RWQ47: 0 | RWR47: 0 | RWS47: 0 | RWT47: 0 | RWU47: 0 | RWV47: 0 | RWW47: 0 | RWX47: 0 | RWY47: 0 | RWZ47: 0 | RXA47: 0 | RXB47: 0 | RXC47: 0 | RXD47: 0 | RXE47: 0 | RXF47: 0 | RXG47: 0 | RXH47: 0 | RXI47: 0 | RXJ47: 0 | RXK47: 0 | RXL47: 0 | RXM47: 0 | RXN47: 0 | RXO47: 0 | RXP47: 0 | RXQ47: 0 | RXR47: 0 | RXS47: 0 | RXT47: 0 | RXU47: 0 | RXV47: 0 | RXW47: 0 | RXX47: 0 | RXY47: 0 | RXZ47: =SUM(RXZ3:RXZ46) -> 0 | RYA47: 0 | RYB47: 0 | RYC47: 0 | RYD47: 0 | RYE47: 0 | RYF47: 0 | RYG47: 0 | RYH47: 0 | RYI47: 0 | RYJ47: 0 | RYK47: 0 | RYL47: 0 | RYM47: 0 | RYN47: 0 | RYO47: 0 | RYP47: 0 | RYQ47: 0 | RYR47: 0 | RYS47: 0 | RYT47: 0 | RYU47: 0 | RYV47: 0 | RYW47: 0 | RYX47: 0 | RYY47: 0 | RYZ47: 0 | RZA47: 0 | RZB47: 0 | RZC47: 0 | RZD47: 0 | RZE47: 0 | RZF47: 0 | RZG47: 0 | RZH47: 0 | RZI47: 0 | RZJ47: 0 | RZK47: 0 | RZL47: 0 | RZM47: 0 | RZN47: 0 | RZO47: 0 | RZP47: 0 | RZQ47: 0 | RZR47: 0 | RZS47: 0 | RZT47: 0 | RZU47: 0 | RZV47: 0 | RZW47: 0 | RZX47: 0 | RZY47: 0 | RZZ47: 0 | SAA47: 0 | SAB47: 0 | SAC47: 0 | SAD47: 0 | SAE47: 0 | SAF47: 0 | SAG47: 0 | SAH47: 0 | SAI47: 0 | SAJ47: 0 | SAK47: 0 | SAL47: =SUM(SAL3:SAL46) -> 0 | SAM47: 0 | SAN47: 0 | SAO47: 0 | SAP47: 0 | SAQ47: 0 | SAR47: 0 | SAS47: 0 | SAT47: 0 | SAU47: 0 | SAV47: 0 | SAW47: 0 | SAX47: 0 | SAY47: 0 | SAZ47: 0 | SBA47: 0 | SBB47: 0 | SBC47: 0 | SBD47: 0 | SBE47: 0 | SBF47: 0 | SBG47: 0 | SBH47: 0 | SBI47: 0 | SBJ47: 0 | SBK47: 0 | SBL47: 0 | SBM47: 0 | SBN47: 0 | SBO47: 0 | SBP47: 0 | SBQ47: 0 | SBR47: 0 | SBS47: 0 | SBT47: 0 | SBU47: 0 | SBV47: 0 | SBW47: 0 | SBX47: 0 | SBY47: 0 | SBZ47: 0 | SCA47: 0 | SCB47: 0 | SCC47: 0 | SCD47: 0 | SCE47: 0 | SCF47: 0 | SCG47: 0 | SCH47: 0 | SCI47: 0 | SCJ47: 0 | SCK47: 0 | SCL47: 0 | SCM47: 0 | SCN47: 0 | SCO47: 0 | SCP47: 0 | SCQ47: 0 | SCR47: 0 | SCS47: 0 | SCT47: 0 | SCU47: 0 | SCV47: 0 | SCW47: 0 | SCX47: =SUM(SCX3:SCX46) -> 0 | SCY47: 0 | SCZ47: 0 | SDA47: 0 | SDB47: 0 | SDC47: 0 | SDD47: 0 | SDE47: 0 | SDF47: 0 | SDG47: 0 | SDH47: 0 | SDI47: 0 | SDJ47: 0 | SDK47: 0 | SDL47: 0 | SDM47: 0 | SDN47: 0 | SDO47: 0 | SDP47: 0 | SDQ47: 0 | SDR47: 0 | SDS47: 0 | SDT47: 0 | SDU47: 0 | SDV47: 0 | SDW47: 0 | SDX47: 0 | SDY47: 0 | SDZ47: 0 | SEA47: 0 | SEB47: 0 | SEC47: 0 | SED47: 0 | SEE47: 0 | SEF47: 0 | SEG47: 0 | SEH47: 0 | SEI47: 0 | SEJ47: 0 | SEK47: 0 | SEL47: 0 | SEM47: 0 | SEN47: 0 | SEO47: 0 | SEP47: 0 | SEQ47: 0 | SER47: 0 | SES47: 0 | SET47: 0 | SEU47: 0 | SEV47: 0 | SEW47: 0 | SEX47: 0 | SEY47: 0 | SEZ47: 0 | SFA47: 0 | SFB47: 0 | SFC47: 0 | SFD47: 0 | SFE47: 0 | SFF47: 0 | SFG47: 0 | SFH47: 0 | SFI47: 0 | SFJ47: =SUM(SFJ3:SFJ46) -> 0 | SFK47: 0 | SFL47: 0 | SFM47: 0 | SFN47: 0 | SFO47: 0 | SFP47: 0 | SFQ47: 0 | SFR47: 0 | SFS47: 0 | SFT47: 0 | SFU47: 0 | SFV47: 0 | SFW47: 0 | SFX47: 0 | SFY47: 0 | SFZ47: 0 | SGA47: 0 | SGB47: 0 | SGC47: 0 | SGD47: 0 | SGE47: 0 | SGF47: 0 | SGG47: 0 | SGH47: 0 | SGI47: 0 | SGJ47: 0 | SGK47: 0 | SGL47: 0 | SGM47: 0 | SGN47: 0 | SGO47: 0 | SGP47: 0 | SGQ47: 0 | SGR47: 0 | SGS47: 0 | SGT47: 0 | SGU47: 0 | SGV47: 0 | SGW47: 0 | SGX47: 0 | SGY47: 0 | SGZ47: 0 | SHA47: 0 | SHB47: 0 | SHC47: 0 | SHD47: 0 | SHE47: 0 | SHF47: 0 | SHG47: 0 | SHH47: 0 | SHI47: 0 | SHJ47: 0 | SHK47: 0 | SHL47: 0 | SHM47: 0 | SHN47: 0 | SHO47: 0 | SHP47: 0 | SHQ47: 0 | SHR47: 0 | SHS47: 0 | SHT47: 0 | SHU47: 0 | SHV47: =SUM(SHV3:SHV46) -> 0 | SHW47: 0 | SHX47: 0 | SHY47: 0 | SHZ47: 0 | SIA47: 0 | SIB47: 0 | SIC47: 0 | SID47: 0 | SIE47: 0 | SIF47: 0 | SIG47: 0 | SIH47: 0 | SII47: 0 | SIJ47: 0 | SIK47: 0 | SIL47: 0 | SIM47: 0 | SIN47: 0 | SIO47: 0 | SIP47: 0 | SIQ47: 0 | SIR47: 0 | SIS47: 0 | SIT47: 0 | SIU47: 0 | SIV47: 0 | SIW47: 0 | SIX47: 0 | SIY47: 0 | SIZ47: 0 | SJA47: 0 | SJB47: 0 | SJC47: 0 | SJD47: 0 | SJE47: 0 | SJF47: 0 | SJG47: 0 | SJH47: 0 | SJI47: 0 | SJJ47: 0 | SJK47: 0 | SJL47: 0 | SJM47: 0 | SJN47: 0 | SJO47: 0 | SJP47: 0 | SJQ47: 0 | SJR47: 0 | SJS47: 0 | SJT47: 0 | SJU47: 0 | SJV47: 0 | SJW47: 0 | SJX47: 0 | SJY47: 0 | SJZ47: 0 | SKA47: 0 | SKB47: 0 | SKC47: 0 | SKD47: 0 | SKE47: 0 | SKF47: 0 | SKG47: 0 | SKH47: =SUM(SKH3:SKH46) -> 0 | SKI47: 0 | SKJ47: 0 | SKK47: 0 | SKL47: 0 | SKM47: 0 | SKN47: 0 | SKO47: 0 | SKP47: 0 | SKQ47: 0 | SKR47: 0 | SKS47: 0 | SKT47: 0 | SKU47: 0 | SKV47: 0 | SKW47: 0 | SKX47: 0 | SKY47: 0 | SKZ47: 0 | SLA47: 0 | SLB47: 0 | SLC47: 0 | SLD47: 0 | SLE47: 0 | SLF47: 0 | SLG47: 0 | SLH47: 0 | SLI47: 0 | SLJ47: 0 | SLK47: 0 | SLL47: 0 | SLM47: 0 | SLN47: 0 | SLO47: 0 | SLP47: 0 | SLQ47: 0 | SLR47: 0 | SLS47: 0 | SLT47: 0 | SLU47: 0 | SLV47: 0 | SLW47: 0 | SLX47: 0 | SLY47: 0 | SLZ47: 0 | SMA47: 0 | SMB47: 0 | SMC47: 0 | SMD47: 0 | SME47: 0 | SMF47: 0 | SMG47: 0 | SMH47: 0 | SMI47: 0 | SMJ47: 0 | SMK47: 0 | SML47: 0 | SMM47: 0 | SMN47: 0 | SMO47: 0 | SMP47: 0 | SMQ47: 0 | SMR47: 0 | SMS47: 0 | SMT47: =SUM(SMT3:SMT46) -> 0 | SMU47: 0 | SMV47: 0 | SMW47: 0 | SMX47: 0 | SMY47: 0 | SMZ47: 0 | SNA47: 0 | SNB47: 0 | SNC47: 0 | SND47: 0 | SNE47: 0 | SNF47: 0 | SNG47: 0 | SNH47: 0 | SNI47: 0 | SNJ47: 0 | SNK47: 0 | SNL47: 0 | SNM47: 0 | SNN47: 0 | SNO47: 0 | SNP47: 0 | SNQ47: 0 | SNR47: 0 | SNS47: 0 | SNT47: 0 | SNU47: 0 | SNV47: 0 | SNW47: 0 | SNX47: 0 | SNY47: 0 | SNZ47: 0 | SOA47: 0 | SOB47: 0 | SOC47: 0 | SOD47: 0 | SOE47: 0 | SOF47: 0 | SOG47: 0 | SOH47: 0 | SOI47: 0 | SOJ47: 0 | SOK47: 0 | SOL47: 0 | SOM47: 0 | SON47: 0 | SOO47: 0 | SOP47: 0 | SOQ47: 0 | SOR47: 0 | SOS47: 0 | SOT47: 0 | SOU47: 0 | SOV47: 0 | SOW47: 0 | SOX47: 0 | SOY47: 0 | SOZ47: 0 | SPA47: 0 | SPB47: 0 | SPC47: 0 | SPD47: 0 | SPE47: 0 | SPF47: =SUM(SPF3:SPF46) -> 0 | SPG47: 0 | SPH47: 0 | SPI47: 0 | SPJ47: 0 | SPK47: 0 | SPL47: 0 | SPM47: 0 | SPN47: 0 | SPO47: 0 | SPP47: 0 | SPQ47: 0 | SPR47: 0 | SPS47: 0 | SPT47: 0 | SPU47: 0 | SPV47: 0 | SPW47: 0 | SPX47: 0 | SPY47: 0 | SPZ47: 0 | SQA47: 0 | SQB47: 0 | SQC47: 0 | SQD47: 0 | SQE47: 0 | SQF47: 0 | SQG47: 0 | SQH47: 0 | SQI47: 0 | SQJ47: 0 | SQK47: 0 | SQL47: 0 | SQM47: 0 | SQN47: 0 | SQO47: 0 | SQP47: 0 | SQQ47: 0 | SQR47: 0 | SQS47: 0 | SQT47: 0 | SQU47: 0 | SQV47: 0 | SQW47: 0 | SQX47: 0 | SQY47: 0 | SQZ47: 0 | SRA47: 0 | SRB47: 0 | SRC47: 0 | SRD47: 0 | SRE47: 0 | SRF47: 0 | SRG47: 0 | SRH47: 0 | SRI47: 0 | SRJ47: 0 | SRK47: 0 | SRL47: 0 | SRM47: 0 | SRN47: 0 | SRO47: 0 | SRP47: 0 | SRQ47: 0 | SRR47: =SUM(SRR3:SRR46) -> 0 | SRS47: 0 | SRT47: 0 | SRU47: 0 | SRV47: 0 | SRW47: 0 | SRX47: 0 | SRY47: 0 | SRZ47: 0 | SSA47: 0 | SSB47: 0 | SSC47: 0 | SSD47: 0 | SSE47: 0 | SSF47: 0 | SSG47: 0 | SSH47: 0 | SSI47: 0 | SSJ47: 0 | SSK47: 0 | SSL47: 0 | SSM47: 0 | SSN47: 0 | SSO47: 0 | SSP47: 0 | SSQ47: 0 | SSR47: 0 | SSS47: 0 | SST47: 0 | SSU47: 0 | SSV47: 0 | SSW47: 0 | SSX47: 0 | SSY47: 0 | SSZ47: 0 | STA47: 0 | STB47: 0 | STC47: 0 | STD47: 0 | STE47: 0 | STF47: 0 | STG47: 0 | STH47: 0 | STI47: 0 | STJ47: 0 | STK47: 0 | STL47: 0 | STM47: 0 | STN47: 0 | STO47: 0 | STP47: 0 | STQ47: 0 | STR47: 0 | STS47: 0 | STT47: 0 | STU47: 0 | STV47: 0 | STW47: 0 | STX47: 0 | STY47: 0 | STZ47: 0 | SUA47: 0 | SUB47: 0 | SUC47: 0 | SUD47: =SUM(SUD3:SUD46) -> 0 | SUE47: 0 | SUF47: 0 | SUG47: 0 | SUH47: 0 | SUI47: 0 | SUJ47: 0 | SUK47: 0 | SUL47: 0 | SUM47: 0 | SUN47: 0 | SUO47: 0 | SUP47: 0 | SUQ47: 0 | SUR47: 0 | SUS47: 0 | SUT47: 0 | SUU47: 0 | SUV47: 0 | SUW47: 0 | SUX47: 0 | SUY47: 0 | SUZ47: 0 | SVA47: 0 | SVB47: 0 | SVC47: 0 | SVD47: 0 | SVE47: 0 | SVF47: 0 | SVG47: 0 | SVH47: 0 | SVI47: 0 | SVJ47: 0 | SVK47: 0 | SVL47: 0 | SVM47: 0 | SVN47: 0 | SVO47: 0 | SVP47: 0 | SVQ47: 0 | SVR47: 0 | SVS47: 0 | SVT47: 0 | SVU47: 0 | SVV47: 0 | SVW47: 0 | SVX47: 0 | SVY47: 0 | SVZ47: 0 | SWA47: 0 | SWB47: 0 | SWC47: 0 | SWD47: 0 | SWE47: 0 | SWF47: 0 | SWG47: 0 | SWH47: 0 | SWI47: 0 | SWJ47: 0 | SWK47: 0 | SWL47: 0 | SWM47: 0 | SWN47: 0 | SWO47: 0 | SWP47: =SUM(SWP3:SWP46) -> 0 | SWQ47: 0 | SWR47: 0 | SWS47: 0 | SWT47: 0 | SWU47: 0 | SWV47: 0 | SWW47: 0 | SWX47: 0 | SWY47: 0 | SWZ47: 0 | SXA47: 0 | SXB47: 0 | SXC47: 0 | SXD47: 0 | SXE47: 0 | SXF47: 0 | SXG47: 0 | SXH47: 0 | SXI47: 0 | SXJ47: 0 | SXK47: 0 | SXL47: 0 | SXM47: 0 | SXN47: 0 | SXO47: 0 | SXP47: 0 | SXQ47: 0 | SXR47: 0 | SXS47: 0 | SXT47: 0 | SXU47: 0 | SXV47: 0 | SXW47: 0 | SXX47: 0 | SXY47: 0 | SXZ47: 0 | SYA47: 0 | SYB47: 0 | SYC47: 0 | SYD47: 0 | SYE47: 0 | SYF47: 0 | SYG47: 0 | SYH47: 0 | SYI47: 0 | SYJ47: 0 | SYK47: 0 | SYL47: 0 | SYM47: 0 | SYN47: 0 | SYO47: 0 | SYP47: 0 | SYQ47: 0 | SYR47: 0 | SYS47: 0 | SYT47: 0 | SYU47: 0 | SYV47: 0 | SYW47: 0 | SYX47: 0 | SYY47: 0 | SYZ47: 0 | SZA47: 0 | SZB47: =SUM(SZB3:SZB46) -> 0 | SZC47: 0 | SZD47: 0 | SZE47: 0 | SZF47: 0 | SZG47: 0 | SZH47: 0 | SZI47: 0 | SZJ47: 0 | SZK47: 0 | SZL47: 0 | SZM47: 0 | SZN47: 0 | SZO47: 0 | SZP47: 0 | SZQ47: 0 | SZR47: 0 | SZS47: 0 | SZT47: 0 | SZU47: 0 | SZV47: 0 | SZW47: 0 | SZX47: 0 | SZY47: 0 | SZZ47: 0 | TAA47: 0 | TAB47: 0 | TAC47: 0 | TAD47: 0 | TAE47: 0 | TAF47: 0 | TAG47: 0 | TAH47: 0 | TAI47: 0 | TAJ47: 0 | TAK47: 0 | TAL47: 0 | TAM47: 0 | TAN47: 0 | TAO47: 0 | TAP47: 0 | TAQ47: 0 | TAR47: 0 | TAS47: 0 | TAT47: 0 | TAU47: 0 | TAV47: 0 | TAW47: 0 | TAX47: 0 | TAY47: 0 | TAZ47: 0 | TBA47: 0 | TBB47: 0 | TBC47: 0 | TBD47: 0 | TBE47: 0 | TBF47: 0 | TBG47: 0 | TBH47: 0 | TBI47: 0 | TBJ47: 0 | TBK47: 0 | TBL47: 0 | TBM47: 0 | TBN47: =SUM(TBN3:TBN46) -> 0 | TBO47: 0 | TBP47: 0 | TBQ47: 0 | TBR47: 0 | TBS47: 0 | TBT47: 0 | TBU47: 0 | TBV47: 0 | TBW47: 0 | TBX47: 0 | TBY47: 0 | TBZ47: 0 | TCA47: 0 | TCB47: 0 | TCC47: 0 | TCD47: 0 | TCE47: 0 | TCF47: 0 | TCG47: 0 | TCH47: 0 | TCI47: 0 | TCJ47: 0 | TCK47: 0 | TCL47: 0 | TCM47: 0 | TCN47: 0 | TCO47: 0 | TCP47: 0 | TCQ47: 0 | TCR47: 0 | TCS47: 0 | TCT47: 0 | TCU47: 0 | TCV47: 0 | TCW47: 0 | TCX47: 0 | TCY47: 0 | TCZ47: 0 | TDA47: 0 | TDB47: 0 | TDC47: 0 | TDD47: 0 | TDE47: 0 | TDF47: 0 | TDG47: 0 | TDH47: 0 | TDI47: 0 | TDJ47: 0 | TDK47: 0 | TDL47: 0 | TDM47: 0 | TDN47: 0 | TDO47: 0 | TDP47: 0 | TDQ47: 0 | TDR47: 0 | TDS47: 0 | TDT47: 0 | TDU47: 0 | TDV47: 0 | TDW47: 0 | TDX47: 0 | TDY47: 0 | TDZ47: =SUM(TDZ3:TDZ46) -> 0 | TEA47: 0 | TEB47: 0 | TEC47: 0 | TED47: 0 | TEE47: 0 | TEF47: 0 | TEG47: 0 | TEH47: 0 | TEI47: 0 | TEJ47: 0 | TEK47: 0 | TEL47: 0 | TEM47: 0 | TEN47: 0 | TEO47: 0 | TEP47: 0 | TEQ47: 0 | TER47: 0 | TES47: 0 | TET47: 0 | TEU47: 0 | TEV47: 0 | TEW47: 0 | TEX47: 0 | TEY47: 0 | TEZ47: 0 | TFA47: 0 | TFB47: 0 | TFC47: 0 | TFD47: 0 | TFE47: 0 | TFF47: 0 | TFG47: 0 | TFH47: 0 | TFI47: 0 | TFJ47: 0 | TFK47: 0 | TFL47: 0 | TFM47: 0 | TFN47: 0 | TFO47: 0 | TFP47: 0 | TFQ47: 0 | TFR47: 0 | TFS47: 0 | TFT47: 0 | TFU47: 0 | TFV47: 0 | TFW47: 0 | TFX47: 0 | TFY47: 0 | TFZ47: 0 | TGA47: 0 | TGB47: 0 | TGC47: 0 | TGD47: 0 | TGE47: 0 | TGF47: 0 | TGG47: 0 | TGH47: 0 | TGI47: 0 | TGJ47: 0 | TGK47: 0 | TGL47: =SUM(TGL3:TGL46) -> 0 | TGM47: 0 | TGN47: 0 | TGO47: 0 | TGP47: 0 | TGQ47: 0 | TGR47: 0 | TGS47: 0 | TGT47: 0 | TGU47: 0 | TGV47: 0 | TGW47: 0 | TGX47: 0 | TGY47: 0 | TGZ47: 0 | THA47: 0 | THB47: 0 | THC47: 0 | THD47: 0 | THE47: 0 | THF47: 0 | THG47: 0 | THH47: 0 | THI47: 0 | THJ47: 0 | THK47: 0 | THL47: 0 | THM47: 0 | THN47: 0 | THO47: 0 | THP47: 0 | THQ47: 0 | THR47: 0 | THS47: 0 | THT47: 0 | THU47: 0 | THV47: 0 | THW47: 0 | THX47: 0 | THY47: 0 | THZ47: 0 | TIA47: 0 | TIB47: 0 | TIC47: 0 | TID47: 0 | TIE47: 0 | TIF47: 0 | TIG47: 0 | TIH47: 0 | TII47: 0 | TIJ47: 0 | TIK47: 0 | TIL47: 0 | TIM47: 0 | TIN47: 0 | TIO47: 0 | TIP47: 0 | TIQ47: 0 | TIR47: 0 | TIS47: 0 | TIT47: 0 | TIU47: 0 | TIV47: 0 | TIW47: 0 | TIX47: =SUM(TIX3:TIX46) -> 0 | TIY47: 0 | TIZ47: 0 | TJA47: 0 | TJB47: 0 | TJC47: 0 | TJD47: 0 | TJE47: 0 | TJF47: 0 | TJG47: 0 | TJH47: 0 | TJI47: 0 | TJJ47: 0 | TJK47: 0 | TJL47: 0 | TJM47: 0 | TJN47: 0 | TJO47: 0 | TJP47: 0 | TJQ47: 0 | TJR47: 0 | TJS47: 0 | TJT47: 0 | TJU47: 0 | TJV47: 0 | TJW47: 0 | TJX47: 0 | TJY47: 0 | TJZ47: 0 | TKA47: 0 | TKB47: 0 | TKC47: 0 | TKD47: 0 | TKE47: 0 | TKF47: 0 | TKG47: 0 | TKH47: 0 | TKI47: 0 | TKJ47: 0 | TKK47: 0 | TKL47: 0 | TKM47: 0 | TKN47: 0 | TKO47: 0 | TKP47: 0 | TKQ47: 0 | TKR47: 0 | TKS47: 0 | TKT47: 0 | TKU47: 0 | TKV47: 0 | TKW47: 0 | TKX47: 0 | TKY47: 0 | TKZ47: 0 | TLA47: 0 | TLB47: 0 | TLC47: 0 | TLD47: 0 | TLE47: 0 | TLF47: 0 | TLG47: 0 | TLH47: 0 | TLI47: 0 | TLJ47: =SUM(TLJ3:TLJ46) -> 0 | TLK47: 0 | TLL47: 0 | TLM47: 0 | TLN47: 0 | TLO47: 0 | TLP47: 0 | TLQ47: 0 | TLR47: 0 | TLS47: 0 | TLT47: 0 | TLU47: 0 | TLV47: 0 | TLW47: 0 | TLX47: 0 | TLY47: 0 | TLZ47: 0 | TMA47: 0 | TMB47: 0 | TMC47: 0 | TMD47: 0 | TME47: 0 | TMF47: 0 | TMG47: 0 | TMH47: 0 | TMI47: 0 | TMJ47: 0 | TMK47: 0 | TML47: 0 | TMM47: 0 | TMN47: 0 | TMO47: 0 | TMP47: 0 | TMQ47: 0 | TMR47: 0 | TMS47: 0 | TMT47: 0 | TMU47: 0 | TMV47: 0 | TMW47: 0 | TMX47: 0 | TMY47: 0 | TMZ47: 0 | TNA47: 0 | TNB47: 0 | TNC47: 0 | TND47: 0 | TNE47: 0 | TNF47: 0 | TNG47: 0 | TNH47: 0 | TNI47: 0 | TNJ47: 0 | TNK47: 0 | TNL47: 0 | TNM47: 0 | TNN47: 0 | TNO47: 0 | TNP47: 0 | TNQ47: 0 | TNR47: 0 | TNS47: 0 | TNT47: 0 | TNU47: 0 | TNV47: =SUM(TNV3:TNV46) -> 0 | TNW47: 0 | TNX47: 0 | TNY47: 0 | TNZ47: 0 | TOA47: 0 | TOB47: 0 | TOC47: 0 | TOD47: 0 | TOE47: 0 | TOF47: 0 | TOG47: 0 | TOH47: 0 | TOI47: 0 | TOJ47: 0 | TOK47: 0 | TOL47: 0 | TOM47: 0 | TON47: 0 | TOO47: 0 | TOP47: 0 | TOQ47: 0 | TOR47: 0 | TOS47: 0 | TOT47: 0 | TOU47: 0 | TOV47: 0 | TOW47: 0 | TOX47: 0 | TOY47: 0 | TOZ47: 0 | TPA47: 0 | TPB47: 0 | TPC47: 0 | TPD47: 0 | TPE47: 0 | TPF47: 0 | TPG47: 0 | TPH47: 0 | TPI47: 0 | TPJ47: 0 | TPK47: 0 | TPL47: 0 | TPM47: 0 | TPN47: 0 | TPO47: 0 | TPP47: 0 | TPQ47: 0 | TPR47: 0 | TPS47: 0 | TPT47: 0 | TPU47: 0 | TPV47: 0 | TPW47: 0 | TPX47: 0 | TPY47: 0 | TPZ47: 0 | TQA47: 0 | TQB47: 0 | TQC47: 0 | TQD47: 0 | TQE47: 0 | TQF47: 0 | TQG47: 0 | TQH47: =SUM(TQH3:TQH46) -> 0 | TQI47: 0 | TQJ47: 0 | TQK47: 0 | TQL47: 0 | TQM47: 0 | TQN47: 0 | TQO47: 0 | TQP47: 0 | TQQ47: 0 | TQR47: 0 | TQS47: 0 | TQT47: 0 | TQU47: 0 | TQV47: 0 | TQW47: 0 | TQX47: 0 | TQY47: 0 | TQZ47: 0 | TRA47: 0 | TRB47: 0 | TRC47: 0 | TRD47: 0 | TRE47: 0 | TRF47: 0 | TRG47: 0 | TRH47: 0 | TRI47: 0 | TRJ47: 0 | TRK47: 0 | TRL47: 0 | TRM47: 0 | TRN47: 0 | TRO47: 0 | TRP47: 0 | TRQ47: 0 | TRR47: 0 | TRS47: 0 | TRT47: 0 | TRU47: 0 | TRV47: 0 | TRW47: 0 | TRX47: 0 | TRY47: 0 | TRZ47: 0 | TSA47: 0 | TSB47: 0 | TSC47: 0 | TSD47: 0 | TSE47: 0 | TSF47: 0 | TSG47: 0 | TSH47: 0 | TSI47: 0 | TSJ47: 0 | TSK47: 0 | TSL47: 0 | TSM47: 0 | TSN47: 0 | TSO47: 0 | TSP47: 0 | TSQ47: 0 | TSR47: 0 | TSS47: 0 | TST47: =SUM(TST3:TST46) -> 0 | TSU47: 0 | TSV47: 0 | TSW47: 0 | TSX47: 0 | TSY47: 0 | TSZ47: 0 | TTA47: 0 | TTB47: 0 | TTC47: 0 | TTD47: 0 | TTE47: 0 | TTF47: 0 | TTG47: 0 | TTH47: 0 | TTI47: 0 | TTJ47: 0 | TTK47: 0 | TTL47: 0 | TTM47: 0 | TTN47: 0 | TTO47: 0 | TTP47: 0 | TTQ47: 0 | TTR47: 0 | TTS47: 0 | TTT47: 0 | TTU47: 0 | TTV47: 0 | TTW47: 0 | TTX47: 0 | TTY47: 0 | TTZ47: 0 | TUA47: 0 | TUB47: 0 | TUC47: 0 | TUD47: 0 | TUE47: 0 | TUF47: 0 | TUG47: 0 | TUH47: 0 | TUI47: 0 | TUJ47: 0 | TUK47: 0 | TUL47: 0 | TUM47: 0 | TUN47: 0 | TUO47: 0 | TUP47: 0 | TUQ47: 0 | TUR47: 0 | TUS47: 0 | TUT47: 0 | TUU47: 0 | TUV47: 0 | TUW47: 0 | TUX47: 0 | TUY47: 0 | TUZ47: 0 | TVA47: 0 | TVB47: 0 | TVC47: 0 | TVD47: 0 | TVE47: 0 | TVF47: =SUM(TVF3:TVF46) -> 0 | TVG47: 0 | TVH47: 0 | TVI47: 0 | TVJ47: 0 | TVK47: 0 | TVL47: 0 | TVM47: 0 | TVN47: 0 | TVO47: 0 | TVP47: 0 | TVQ47: 0 | TVR47: 0 | TVS47: 0 | TVT47: 0 | TVU47: 0 | TVV47: 0 | TVW47: 0 | TVX47: 0 | TVY47: 0 | TVZ47: 0 | TWA47: 0 | TWB47: 0 | TWC47: 0 | TWD47: 0 | TWE47: 0 | TWF47: 0 | TWG47: 0 | TWH47: 0 | TWI47: 0 | TWJ47: 0 | TWK47: 0 | TWL47: 0 | TWM47: 0 | TWN47: 0 | TWO47: 0 | TWP47: 0 | TWQ47: 0 | TWR47: 0 | TWS47: 0 | TWT47: 0 | TWU47: 0 | TWV47: 0 | TWW47: 0 | TWX47: 0 | TWY47: 0 | TWZ47: 0 | TXA47: 0 | TXB47: 0 | TXC47: 0 | TXD47: 0 | TXE47: 0 | TXF47: 0 | TXG47: 0 | TXH47: 0 | TXI47: 0 | TXJ47: 0 | TXK47: 0 | TXL47: 0 | TXM47: 0 | TXN47: 0 | TXO47: 0 | TXP47: 0 | TXQ47: 0 | TXR47: =SUM(TXR3:TXR46) -> 0 | TXS47: 0 | TXT47: 0 | TXU47: 0 | TXV47: 0 | TXW47: 0 | TXX47: 0 | TXY47: 0 | TXZ47: 0 | TYA47: 0 | TYB47: 0 | TYC47: 0 | TYD47: 0 | TYE47: 0 | TYF47: 0 | TYG47: 0 | TYH47: 0 | TYI47: 0 | TYJ47: 0 | TYK47: 0 | TYL47: 0 | TYM47: 0 | TYN47: 0 | TYO47: 0 | TYP47: 0 | TYQ47: 0 | TYR47: 0 | TYS47: 0 | TYT47: 0 | TYU47: 0 | TYV47: 0 | TYW47: 0 | TYX47: 0 | TYY47: 0 | TYZ47: 0 | TZA47: 0 | TZB47: 0 | TZC47: 0 | TZD47: 0 | TZE47: 0 | TZF47: 0 | TZG47: 0 | TZH47: 0 | TZI47: 0 | TZJ47: 0 | TZK47: 0 | TZL47: 0 | TZM47: 0 | TZN47: 0 | TZO47: 0 | TZP47: 0 | TZQ47: 0 | TZR47: 0 | TZS47: 0 | TZT47: 0 | TZU47: 0 | TZV47: 0 | TZW47: 0 | TZX47: 0 | TZY47: 0 | TZZ47: 0 | UAA47: 0 | UAB47: 0 | UAC47: 0 | UAD47: =SUM(UAD3:UAD46) -> 0 | UAE47: 0 | UAF47: 0 | UAG47: 0 | UAH47: 0 | UAI47: 0 | UAJ47: 0 | UAK47: 0 | UAL47: 0 | UAM47: 0 | UAN47: 0 | UAO47: 0 | UAP47: 0 | UAQ47: 0 | UAR47: 0 | UAS47: 0 | UAT47: 0 | UAU47: 0 | UAV47: 0 | UAW47: 0 | UAX47: 0 | UAY47: 0 | UAZ47: 0 | UBA47: 0 | UBB47: 0 | UBC47: 0 | UBD47: 0 | UBE47: 0 | UBF47: 0 | UBG47: 0 | UBH47: 0 | UBI47: 0 | UBJ47: 0 | UBK47: 0 | UBL47: 0 | UBM47: 0 | UBN47: 0 | UBO47: 0 | UBP47: 0 | UBQ47: 0 | UBR47: 0 | UBS47: 0 | UBT47: 0 | UBU47: 0 | UBV47: 0 | UBW47: 0 | UBX47: 0 | UBY47: 0 | UBZ47: 0 | UCA47: 0 | UCB47: 0 | UCC47: 0 | UCD47: 0 | UCE47: 0 | UCF47: 0 | UCG47: 0 | UCH47: 0 | UCI47: 0 | UCJ47: 0 | UCK47: 0 | UCL47: 0 | UCM47: 0 | UCN47: 0 | UCO47: 0 | UCP47: =SUM(UCP3:UCP46) -> 0 | UCQ47: 0 | UCR47: 0 | UCS47: 0 | UCT47: 0 | UCU47: 0 | UCV47: 0 | UCW47: 0 | UCX47: 0 | UCY47: 0 | UCZ47: 0 | UDA47: 0 | UDB47: 0 | UDC47: 0 | UDD47: 0 | UDE47: 0 | UDF47: 0 | UDG47: 0 | UDH47: 0 | UDI47: 0 | UDJ47: 0 | UDK47: 0 | UDL47: 0 | UDM47: 0 | UDN47: 0 | UDO47: 0 | UDP47: 0 | UDQ47: 0 | UDR47: 0 | UDS47: 0 | UDT47: 0 | UDU47: 0 | UDV47: 0 | UDW47: 0 | UDX47: 0 | UDY47: 0 | UDZ47: 0 | UEA47: 0 | UEB47: 0 | UEC47: 0 | UED47: 0 | UEE47: 0 | UEF47: 0 | UEG47: 0 | UEH47: 0 | UEI47: 0 | UEJ47: 0 | UEK47: 0 | UEL47: 0 | UEM47: 0 | UEN47: 0 | UEO47: 0 | UEP47: 0 | UEQ47: 0 | UER47: 0 | UES47: 0 | UET47: 0 | UEU47: 0 | UEV47: 0 | UEW47: 0 | UEX47: 0 | UEY47: 0 | UEZ47: 0 | UFA47: 0 | UFB47: =SUM(UFB3:UFB46) -> 0 | UFC47: 0 | UFD47: 0 | UFE47: 0 | UFF47: 0 | UFG47: 0 | UFH47: 0 | UFI47: 0 | UFJ47: 0 | UFK47: 0 | UFL47: 0 | UFM47: 0 | UFN47: 0 | UFO47: 0 | UFP47: 0 | UFQ47: 0 | UFR47: 0 | UFS47: 0 | UFT47: 0 | UFU47: 0 | UFV47: 0 | UFW47: 0 | UFX47: 0 | UFY47: 0 | UFZ47: 0 | UGA47: 0 | UGB47: 0 | UGC47: 0 | UGD47: 0 | UGE47: 0 | UGF47: 0 | UGG47: 0 | UGH47: 0 | UGI47: 0 | UGJ47: 0 | UGK47: 0 | UGL47: 0 | UGM47: 0 | UGN47: 0 | UGO47: 0 | UGP47: 0 | UGQ47: 0 | UGR47: 0 | UGS47: 0 | UGT47: 0 | UGU47: 0 | UGV47: 0 | UGW47: 0 | UGX47: 0 | UGY47: 0 | UGZ47: 0 | UHA47: 0 | UHB47: 0 | UHC47: 0 | UHD47: 0 | UHE47: 0 | UHF47: 0 | UHG47: 0 | UHH47: 0 | UHI47: 0 | UHJ47: 0 | UHK47: 0 | UHL47: 0 | UHM47: 0 | UHN47: =SUM(UHN3:UHN46) -> 0 | UHO47: 0 | UHP47: 0 | UHQ47: 0 | UHR47: 0 | UHS47: 0 | UHT47: 0 | UHU47: 0 | UHV47: 0 | UHW47: 0 | UHX47: 0 | UHY47: 0 | UHZ47: 0 | UIA47: 0 | UIB47: 0 | UIC47: 0 | UID47: 0 | UIE47: 0 | UIF47: 0 | UIG47: 0 | UIH47: 0 | UII47: 0 | UIJ47: 0 | UIK47: 0 | UIL47: 0 | UIM47: 0 | UIN47: 0 | UIO47: 0 | UIP47: 0 | UIQ47: 0 | UIR47: 0 | UIS47: 0 | UIT47: 0 | UIU47: 0 | UIV47: 0 | UIW47: 0 | UIX47: 0 | UIY47: 0 | UIZ47: 0 | UJA47: 0 | UJB47: 0 | UJC47: 0 | UJD47: 0 | UJE47: 0 | UJF47: 0 | UJG47: 0 | UJH47: 0 | UJI47: 0 | UJJ47: 0 | UJK47: 0 | UJL47: 0 | UJM47: 0 | UJN47: 0 | UJO47: 0 | UJP47: 0 | UJQ47: 0 | UJR47: 0 | UJS47: 0 | UJT47: 0 | UJU47: 0 | UJV47: 0 | UJW47: 0 | UJX47: 0 | UJY47: 0 | UJZ47: =SUM(UJZ3:UJZ46) -> 0 | UKA47: 0 | UKB47: 0 | UKC47: 0 | UKD47: 0 | UKE47: 0 | UKF47: 0 | UKG47: 0 | UKH47: 0 | UKI47: 0 | UKJ47: 0 | UKK47: 0 | UKL47: 0 | UKM47: 0 | UKN47: 0 | UKO47: 0 | UKP47: 0 | UKQ47: 0 | UKR47: 0 | UKS47: 0 | UKT47: 0 | UKU47: 0 | UKV47: 0 | UKW47: 0 | UKX47: 0 | UKY47: 0 | UKZ47: 0 | ULA47: 0 | ULB47: 0 | ULC47: 0 | ULD47: 0 | ULE47: 0 | ULF47: 0 | ULG47: 0 | ULH47: 0 | ULI47: 0 | ULJ47: 0 | ULK47: 0 | ULL47: 0 | ULM47: 0 | ULN47: 0 | ULO47: 0 | ULP47: 0 | ULQ47: 0 | ULR47: 0 | ULS47: 0 | ULT47: 0 | ULU47: 0 | ULV47: 0 | ULW47: 0 | ULX47: 0 | ULY47: 0 | ULZ47: 0 | UMA47: 0 | UMB47: 0 | UMC47: 0 | UMD47: 0 | UME47: 0 | UMF47: 0 | UMG47: 0 | UMH47: 0 | UMI47: 0 | UMJ47: 0 | UMK47: 0 | UML47: =SUM(UML3:UML46) -> 0 | UMM47: 0 | UMN47: 0 | UMO47: 0 | UMP47: 0 | UMQ47: 0 | UMR47: 0 | UMS47: 0 | UMT47: 0 | UMU47: 0 | UMV47: 0 | UMW47: 0 | UMX47: 0 | UMY47: 0 | UMZ47: 0 | UNA47: 0 | UNB47: 0 | UNC47: 0 | UND47: 0 | UNE47: 0 | UNF47: 0 | UNG47: 0 | UNH47: 0 | UNI47: 0 | UNJ47: 0 | UNK47: 0 | UNL47: 0 | UNM47: 0 | UNN47: 0 | UNO47: 0 | UNP47: 0 | UNQ47: 0 | UNR47: 0 | UNS47: 0 | UNT47: 0 | UNU47: 0 | UNV47: 0 | UNW47: 0 | UNX47: 0 | UNY47: 0 | UNZ47: 0 | UOA47: 0 | UOB47: 0 | UOC47: 0 | UOD47: 0 | UOE47: 0 | UOF47: 0 | UOG47: 0 | UOH47: 0 | UOI47: 0 | UOJ47: 0 | UOK47: 0 | UOL47: 0 | UOM47: 0 | UON47: 0 | UOO47: 0 | UOP47: 0 | UOQ47: 0 | UOR47: 0 | UOS47: 0 | UOT47: 0 | UOU47: 0 | UOV47: 0 | UOW47: 0 | UOX47: =SUM(UOX3:UOX46) -> 0 | UOY47: 0 | UOZ47: 0 | UPA47: 0 | UPB47: 0 | UPC47: 0 | UPD47: 0 | UPE47: 0 | UPF47: 0 | UPG47: 0 | UPH47: 0 | UPI47: 0 | UPJ47: 0 | UPK47: 0 | UPL47: 0 | UPM47: 0 | UPN47: 0 | UPO47: 0 | UPP47: 0 | UPQ47: 0 | UPR47: 0 | UPS47: 0 | UPT47: 0 | UPU47: 0 | UPV47: 0 | UPW47: 0 | UPX47: 0 | UPY47: 0 | UPZ47: 0 | UQA47: 0 | UQB47: 0 | UQC47: 0 | UQD47: 0 | UQE47: 0 | UQF47: 0 | UQG47: 0 | UQH47: 0 | UQI47: 0 | UQJ47: 0 | UQK47: 0 | UQL47: 0 | UQM47: 0 | UQN47: 0 | UQO47: 0 | UQP47: 0 | UQQ47: 0 | UQR47: 0 | UQS47: 0 | UQT47: 0 | UQU47: 0 | UQV47: 0 | UQW47: 0 | UQX47: 0 | UQY47: 0 | UQZ47: 0 | URA47: 0 | URB47: 0 | URC47: 0 | URD47: 0 | URE47: 0 | URF47: 0 | URG47: 0 | URH47: 0 | URI47: 0 | URJ47: =SUM(URJ3:URJ46) -> 0 | URK47: 0 | URL47: 0 | URM47: 0 | URN47: 0 | URO47: 0 | URP47: 0 | URQ47: 0 | URR47: 0 | URS47: 0 | URT47: 0 | URU47: 0 | URV47: 0 | URW47: 0 | URX47: 0 | URY47: 0 | URZ47: 0 | USA47: 0 | USB47: 0 | USC47: 0 | USD47: 0 | USE47: 0 | USF47: 0 | USG47: 0 | USH47: 0 | USI47: 0 | USJ47: 0 | USK47: 0 | USL47: 0 | USM47: 0 | USN47: 0 | USO47: 0 | USP47: 0 | USQ47: 0 | USR47: 0 | USS47: 0 | UST47: 0 | USU47: 0 | USV47: 0 | USW47: 0 | USX47: 0 | USY47: 0 | USZ47: 0 | UTA47: 0 | UTB47: 0 | UTC47: 0 | UTD47: 0 | UTE47: 0 | UTF47: 0 | UTG47: 0 | UTH47: 0 | UTI47: 0 | UTJ47: 0 | UTK47: 0 | UTL47: 0 | UTM47: 0 | UTN47: 0 | UTO47: 0 | UTP47: 0 | UTQ47: 0 | UTR47: 0 | UTS47: 0 | UTT47: 0 | UTU47: 0 | UTV47: =SUM(UTV3:UTV46) -> 0 | UTW47: 0 | UTX47: 0 | UTY47: 0 | UTZ47: 0 | UUA47: 0 | UUB47: 0 | UUC47: 0 | UUD47: 0 | UUE47: 0 | UUF47: 0 | UUG47: 0 | UUH47: 0 | UUI47: 0 | UUJ47: 0 | UUK47: 0 | UUL47: 0 | UUM47: 0 | UUN47: 0 | UUO47: 0 | UUP47: 0 | UUQ47: 0 | UUR47: 0 | UUS47: 0 | UUT47: 0 | UUU47: 0 | UUV47: 0 | UUW47: 0 | UUX47: 0 | UUY47: 0 | UUZ47: 0 | UVA47: 0 | UVB47: 0 | UVC47: 0 | UVD47: 0 | UVE47: 0 | UVF47: 0 | UVG47: 0 | UVH47: 0 | UVI47: 0 | UVJ47: 0 | UVK47: 0 | UVL47: 0 | UVM47: 0 | UVN47: 0 | UVO47: 0 | UVP47: 0 | UVQ47: 0 | UVR47: 0 | UVS47: 0 | UVT47: 0 | UVU47: 0 | UVV47: 0 | UVW47: 0 | UVX47: 0 | UVY47: 0 | UVZ47: 0 | UWA47: 0 | UWB47: 0 | UWC47: 0 | UWD47: 0 | UWE47: 0 | UWF47: 0 | UWG47: 0 | UWH47: =SUM(UWH3:UWH46) -> 0 | UWI47: 0 | UWJ47: 0 | UWK47: 0 | UWL47: 0 | UWM47: 0 | UWN47: 0 | UWO47: 0 | UWP47: 0 | UWQ47: 0 | UWR47: 0 | UWS47: 0 | UWT47: 0 | UWU47: 0 | UWV47: 0 | UWW47: 0 | UWX47: 0 | UWY47: 0 | UWZ47: 0 | UXA47: 0 | UXB47: 0 | UXC47: 0 | UXD47: 0 | UXE47: 0 | UXF47: 0 | UXG47: 0 | UXH47: 0 | UXI47: 0 | UXJ47: 0 | UXK47: 0 | UXL47: 0 | UXM47: 0 | UXN47: 0 | UXO47: 0 | UXP47: 0 | UXQ47: 0 | UXR47: 0 | UXS47: 0 | UXT47: 0 | UXU47: 0 | UXV47: 0 | UXW47: 0 | UXX47: 0 | UXY47: 0 | UXZ47: 0 | UYA47: 0 | UYB47: 0 | UYC47: 0 | UYD47: 0 | UYE47: 0 | UYF47: 0 | UYG47: 0 | UYH47: 0 | UYI47: 0 | UYJ47: 0 | UYK47: 0 | UYL47: 0 | UYM47: 0 | UYN47: 0 | UYO47: 0 | UYP47: 0 | UYQ47: 0 | UYR47: 0 | UYS47: 0 | UYT47: =SUM(UYT3:UYT46) -> 0 | UYU47: 0 | UYV47: 0 | UYW47: 0 | UYX47: 0 | UYY47: 0 | UYZ47: 0 | UZA47: 0 | UZB47: 0 | UZC47: 0 | UZD47: 0 | UZE47: 0 | UZF47: 0 | UZG47: 0 | UZH47: 0 | UZI47: 0 | UZJ47: 0 | UZK47: 0 | UZL47: 0 | UZM47: 0 | UZN47: 0 | UZO47: 0 | UZP47: 0 | UZQ47: 0 | UZR47: 0 | UZS47: 0 | UZT47: 0 | UZU47: 0 | UZV47: 0 | UZW47: 0 | UZX47: 0 | UZY47: 0 | UZZ47: 0 | VAA47: 0 | VAB47: 0 | VAC47: 0 | VAD47: 0 | VAE47: 0 | VAF47: 0 | VAG47: 0 | VAH47: 0 | VAI47: 0 | VAJ47: 0 | VAK47: 0 | VAL47: 0 | VAM47: 0 | VAN47: 0 | VAO47: 0 | VAP47: 0 | VAQ47: 0 | VAR47: 0 | VAS47: 0 | VAT47: 0 | VAU47: 0 | VAV47: 0 | VAW47: 0 | VAX47: 0 | VAY47: 0 | VAZ47: 0 | VBA47: 0 | VBB47: 0 | VBC47: 0 | VBD47: 0 | VBE47: 0 | VBF47: =SUM(VBF3:VBF46) -> 0 | VBG47: 0 | VBH47: 0 | VBI47: 0 | VBJ47: 0 | VBK47: 0 | VBL47: 0 | VBM47: 0 | VBN47: 0 | VBO47: 0 | VBP47: 0 | VBQ47: 0 | VBR47: 0 | VBS47: 0 | VBT47: 0 | VBU47: 0 | VBV47: 0 | VBW47: 0 | VBX47: 0 | VBY47: 0 | VBZ47: 0 | VCA47: 0 | VCB47: 0 | VCC47: 0 | VCD47: 0 | VCE47: 0 | VCF47: 0 | VCG47: 0 | VCH47: 0 | VCI47: 0 | VCJ47: 0 | VCK47: 0 | VCL47: 0 | VCM47: 0 | VCN47: 0 | VCO47: 0 | VCP47: 0 | VCQ47: 0 | VCR47: 0 | VCS47: 0 | VCT47: 0 | VCU47: 0 | VCV47: 0 | VCW47: 0 | VCX47: 0 | VCY47: 0 | VCZ47: 0 | VDA47: 0 | VDB47: 0 | VDC47: 0 | VDD47: 0 | VDE47: 0 | VDF47: 0 | VDG47: 0 | VDH47: 0 | VDI47: 0 | VDJ47: 0 | VDK47: 0 | VDL47: 0 | VDM47: 0 | VDN47: 0 | VDO47: 0 | VDP47: 0 | VDQ47: 0 | VDR47: =SUM(VDR3:VDR46) -> 0 | VDS47: 0 | VDT47: 0 | VDU47: 0 | VDV47: 0 | VDW47: 0 | VDX47: 0 | VDY47: 0 | VDZ47: 0 | VEA47: 0 | VEB47: 0 | VEC47: 0 | VED47: 0 | VEE47: 0 | VEF47: 0 | VEG47: 0 | VEH47: 0 | VEI47: 0 | VEJ47: 0 | VEK47: 0 | VEL47: 0 | VEM47: 0 | VEN47: 0 | VEO47: 0 | VEP47: 0 | VEQ47: 0 | VER47: 0 | VES47: 0 | VET47: 0 | VEU47: 0 | VEV47: 0 | VEW47: 0 | VEX47: 0 | VEY47: 0 | VEZ47: 0 | VFA47: 0 | VFB47: 0 | VFC47: 0 | VFD47: 0 | VFE47: 0 | VFF47: 0 | VFG47: 0 | VFH47: 0 | VFI47: 0 | VFJ47: 0 | VFK47: 0 | VFL47: 0 | VFM47: 0 | VFN47: 0 | VFO47: 0 | VFP47: 0 | VFQ47: 0 | VFR47: 0 | VFS47: 0 | VFT47: 0 | VFU47: 0 | VFV47: 0 | VFW47: 0 | VFX47: 0 | VFY47: 0 | VFZ47: 0 | VGA47: 0 | VGB47: 0 | VGC47: 0 | VGD47: =SUM(VGD3:VGD46) -> 0 | VGE47: 0 | VGF47: 0 | VGG47: 0 | VGH47: 0 | VGI47: 0 | VGJ47: 0 | VGK47: 0 | VGL47: 0 | VGM47: 0 | VGN47: 0 | VGO47: 0 | VGP47: 0 | VGQ47: 0 | VGR47: 0 | VGS47: 0 | VGT47: 0 | VGU47: 0 | VGV47: 0 | VGW47: 0 | VGX47: 0 | VGY47: 0 | VGZ47: 0 | VHA47: 0 | VHB47: 0 | VHC47: 0 | VHD47: 0 | VHE47: 0 | VHF47: 0 | VHG47: 0 | VHH47: 0 | VHI47: 0 | VHJ47: 0 | VHK47: 0 | VHL47: 0 | VHM47: 0 | VHN47: 0 | VHO47: 0 | VHP47: 0 | VHQ47: 0 | VHR47: 0 | VHS47: 0 | VHT47: 0 | VHU47: 0 | VHV47: 0 | VHW47: 0 | VHX47: 0 | VHY47: 0 | VHZ47: 0 | VIA47: 0 | VIB47: 0 | VIC47: 0 | VID47: 0 | VIE47: 0 | VIF47: 0 | VIG47: 0 | VIH47: 0 | VII47: 0 | VIJ47: 0 | VIK47: 0 | VIL47: 0 | VIM47: 0 | VIN47: 0 | VIO47: 0 | VIP47: =SUM(VIP3:VIP46) -> 0 | VIQ47: 0 | VIR47: 0 | VIS47: 0 | VIT47: 0 | VIU47: 0 | VIV47: 0 | VIW47: 0 | VIX47: 0 | VIY47: 0 | VIZ47: 0 | VJA47: 0 | VJB47: 0 | VJC47: 0 | VJD47: 0 | VJE47: 0 | VJF47: 0 | VJG47: 0 | VJH47: 0 | VJI47: 0 | VJJ47: 0 | VJK47: 0 | VJL47: 0 | VJM47: 0 | VJN47: 0 | VJO47: 0 | VJP47: 0 | VJQ47: 0 | VJR47: 0 | VJS47: 0 | VJT47: 0 | VJU47: 0 | VJV47: 0 | VJW47: 0 | VJX47: 0 | VJY47: 0 | VJZ47: 0 | VKA47: 0 | VKB47: 0 | VKC47: 0 | VKD47: 0 | VKE47: 0 | VKF47: 0 | VKG47: 0 | VKH47: 0 | VKI47: 0 | VKJ47: 0 | VKK47: 0 | VKL47: 0 | VKM47: 0 | VKN47: 0 | VKO47: 0 | VKP47: 0 | VKQ47: 0 | VKR47: 0 | VKS47: 0 | VKT47: 0 | VKU47: 0 | VKV47: 0 | VKW47: 0 | VKX47: 0 | VKY47: 0 | VKZ47: 0 | VLA47: 0 | VLB47: =SUM(VLB3:VLB46) -> 0 | VLC47: 0 | VLD47: 0 | VLE47: 0 | VLF47: 0 | VLG47: 0 | VLH47: 0 | VLI47: 0 | VLJ47: 0 | VLK47: 0 | VLL47: 0 | VLM47: 0 | VLN47: 0 | VLO47: 0 | VLP47: 0 | VLQ47: 0 | VLR47: 0 | VLS47: 0 | VLT47: 0 | VLU47: 0 | VLV47: 0 | VLW47: 0 | VLX47: 0 | VLY47: 0 | VLZ47: 0 | VMA47: 0 | VMB47: 0 | VMC47: 0 | VMD47: 0 | VME47: 0 | VMF47: 0 | VMG47: 0 | VMH47: 0 | VMI47: 0 | VMJ47: 0 | VMK47: 0 | VML47: 0 | VMM47: 0 | VMN47: 0 | VMO47: 0 | VMP47: 0 | VMQ47: 0 | VMR47: 0 | VMS47: 0 | VMT47: 0 | VMU47: 0 | VMV47: 0 | VMW47: 0 | VMX47: 0 | VMY47: 0 | VMZ47: 0 | VNA47: 0 | VNB47: 0 | VNC47: 0 | VND47: 0 | VNE47: 0 | VNF47: 0 | VNG47: 0 | VNH47: 0 | VNI47: 0 | VNJ47: 0 | VNK47: 0 | VNL47: 0 | VNM47: 0 | VNN47: =SUM(VNN3:VNN46) -> 0 | VNO47: 0 | VNP47: 0 | VNQ47: 0 | VNR47: 0 | VNS47: 0 | VNT47: 0 | VNU47: 0 | VNV47: 0 | VNW47: 0 | VNX47: 0 | VNY47: 0 | VNZ47: 0 | VOA47: 0 | VOB47: 0 | VOC47: 0 | VOD47: 0 | VOE47: 0 | VOF47: 0 | VOG47: 0 | VOH47: 0 | VOI47: 0 | VOJ47: 0 | VOK47: 0 | VOL47: 0 | VOM47: 0 | VON47: 0 | VOO47: 0 | VOP47: 0 | VOQ47: 0 | VOR47: 0 | VOS47: 0 | VOT47: 0 | VOU47: 0 | VOV47: 0 | VOW47: 0 | VOX47: 0 | VOY47: 0 | VOZ47: 0 | VPA47: 0 | VPB47: 0 | VPC47: 0 | VPD47: 0 | VPE47: 0 | VPF47: 0 | VPG47: 0 | VPH47: 0 | VPI47: 0 | VPJ47: 0 | VPK47: 0 | VPL47: 0 | VPM47: 0 | VPN47: 0 | VPO47: 0 | VPP47: 0 | VPQ47: 0 | VPR47: 0 | VPS47: 0 | VPT47: 0 | VPU47: 0 | VPV47: 0 | VPW47: 0 | VPX47: 0 | VPY47: 0 | VPZ47: =SUM(VPZ3:VPZ46) -> 0 | VQA47: 0 | VQB47: 0 | VQC47: 0 | VQD47: 0 | VQE47: 0 | VQF47: 0 | VQG47: 0 | VQH47: 0 | VQI47: 0 | VQJ47: 0 | VQK47: 0 | VQL47: 0 | VQM47: 0 | VQN47: 0 | VQO47: 0 | VQP47: 0 | VQQ47: 0 | VQR47: 0 | VQS47: 0 | VQT47: 0 | VQU47: 0 | VQV47: 0 | VQW47: 0 | VQX47: 0 | VQY47: 0 | VQZ47: 0 | VRA47: 0 | VRB47: 0 | VRC47: 0 | VRD47: 0 | VRE47: 0 | VRF47: 0 | VRG47: 0 | VRH47: 0 | VRI47: 0 | VRJ47: 0 | VRK47: 0 | VRL47: 0 | VRM47: 0 | VRN47: 0 | VRO47: 0 | VRP47: 0 | VRQ47: 0 | VRR47: 0 | VRS47: 0 | VRT47: 0 | VRU47: 0 | VRV47: 0 | VRW47: 0 | VRX47: 0 | VRY47: 0 | VRZ47: 0 | VSA47: 0 | VSB47: 0 | VSC47: 0 | VSD47: 0 | VSE47: 0 | VSF47: 0 | VSG47: 0 | VSH47: 0 | VSI47: 0 | VSJ47: 0 | VSK47: 0 | VSL47: =SUM(VSL3:VSL46) -> 0 | VSM47: 0 | VSN47: 0 | VSO47: 0 | VSP47: 0 | VSQ47: 0 | VSR47: 0 | VSS47: 0 | VST47: 0 | VSU47: 0 | VSV47: 0 | VSW47: 0 | VSX47: 0 | VSY47: 0 | VSZ47: 0 | VTA47: 0 | VTB47: 0 | VTC47: 0 | VTD47: 0 | VTE47: 0 | VTF47: 0 | VTG47: 0 | VTH47: 0 | VTI47: 0 | VTJ47: 0 | VTK47: 0 | VTL47: 0 | VTM47: 0 | VTN47: 0 | VTO47: 0 | VTP47: 0 | VTQ47: 0 | VTR47: 0 | VTS47: 0 | VTT47: 0 | VTU47: 0 | VTV47: 0 | VTW47: 0 | VTX47: 0 | VTY47: 0 | VTZ47: 0 | VUA47: 0 | VUB47: 0 | VUC47: 0 | VUD47: 0 | VUE47: 0 | VUF47: 0 | VUG47: 0 | VUH47: 0 | VUI47: 0 | VUJ47: 0 | VUK47: 0 | VUL47: 0 | VUM47: 0 | VUN47: 0 | VUO47: 0 | VUP47: 0 | VUQ47: 0 | VUR47: 0 | VUS47: 0 | VUT47: 0 | VUU47: 0 | VUV47: 0 | VUW47: 0 | VUX47: =SUM(VUX3:VUX46) -> 0 | VUY47: 0 | VUZ47: 0 | VVA47: 0 | VVB47: 0 | VVC47: 0 | VVD47: 0 | VVE47: 0 | VVF47: 0 | VVG47: 0 | VVH47: 0 | VVI47: 0 | VVJ47: 0 | VVK47: 0 | VVL47: 0 | VVM47: 0 | VVN47: 0 | VVO47: 0 | VVP47: 0 | VVQ47: 0 | VVR47: 0 | VVS47: 0 | VVT47: 0 | VVU47: 0 | VVV47: 0 | VVW47: 0 | VVX47: 0 | VVY47: 0 | VVZ47: 0 | VWA47: 0 | VWB47: 0 | VWC47: 0 | VWD47: 0 | VWE47: 0 | VWF47: 0 | VWG47: 0 | VWH47: 0 | VWI47: 0 | VWJ47: 0 | VWK47: 0 | VWL47: 0 | VWM47: 0 | VWN47: 0 | VWO47: 0 | VWP47: 0 | VWQ47: 0 | VWR47: 0 | VWS47: 0 | VWT47: 0 | VWU47: 0 | VWV47: 0 | VWW47: 0 | VWX47: 0 | VWY47: 0 | VWZ47: 0 | VXA47: 0 | VXB47: 0 | VXC47: 0 | VXD47: 0 | VXE47: 0 | VXF47: 0 | VXG47: 0 | VXH47: 0 | VXI47: 0 | VXJ47: =SUM(VXJ3:VXJ46) -> 0 | VXK47: 0 | VXL47: 0 | VXM47: 0 | VXN47: 0 | VXO47: 0 | VXP47: 0 | VXQ47: 0 | VXR47: 0 | VXS47: 0 | VXT47: 0 | VXU47: 0 | VXV47: 0 | VXW47: 0 | VXX47: 0 | VXY47: 0 | VXZ47: 0 | VYA47: 0 | VYB47: 0 | VYC47: 0 | VYD47: 0 | VYE47: 0 | VYF47: 0 | VYG47: 0 | VYH47: 0 | VYI47: 0 | VYJ47: 0 | VYK47: 0 | VYL47: 0 | VYM47: 0 | VYN47: 0 | VYO47: 0 | VYP47: 0 | VYQ47: 0 | VYR47: 0 | VYS47: 0 | VYT47: 0 | VYU47: 0 | VYV47: 0 | VYW47: 0 | VYX47: 0 | VYY47: 0 | VYZ47: 0 | VZA47: 0 | VZB47: 0 | VZC47: 0 | VZD47: 0 | VZE47: 0 | VZF47: 0 | VZG47: 0 | VZH47: 0 | VZI47: 0 | VZJ47: 0 | VZK47: 0 | VZL47: 0 | VZM47: 0 | VZN47: 0 | VZO47: 0 | VZP47: 0 | VZQ47: 0 | VZR47: 0 | VZS47: 0 | VZT47: 0 | VZU47: 0 | VZV47: =SUM(VZV3:VZV46) -> 0 | VZW47: 0 | VZX47: 0 | VZY47: 0 | VZZ47: 0 | WAA47: 0 | WAB47: 0 | WAC47: 0 | WAD47: 0 | WAE47: 0 | WAF47: 0 | WAG47: 0 | WAH47: 0 | WAI47: 0 | WAJ47: 0 | WAK47: 0 | WAL47: 0 | WAM47: 0 | WAN47: 0 | WAO47: 0 | WAP47: 0 | WAQ47: 0 | WAR47: 0 | WAS47: 0 | WAT47: 0 | WAU47: 0 | WAV47: 0 | WAW47: 0 | WAX47: 0 | WAY47: 0 | WAZ47: 0 | WBA47: 0 | WBB47: 0 | WBC47: 0 | WBD47: 0 | WBE47: 0 | WBF47: 0 | WBG47: 0 | WBH47: 0 | WBI47: 0 | WBJ47: 0 | WBK47: 0 | WBL47: 0 | WBM47: 0 | WBN47: 0 | WBO47: 0 | WBP47: 0 | WBQ47: 0 | WBR47: 0 | WBS47: 0 | WBT47: 0 | WBU47: 0 | WBV47: 0 | WBW47: 0 | WBX47: 0 | WBY47: 0 | WBZ47: 0 | WCA47: 0 | WCB47: 0 | WCC47: 0 | WCD47: 0 | WCE47: 0 | WCF47: 0 | WCG47: 0 | WCH47: =SUM(WCH3:WCH46) -> 0 | WCI47: 0 | WCJ47: 0 | WCK47: 0 | WCL47: 0 | WCM47: 0 | WCN47: 0 | WCO47: 0 | WCP47: 0 | WCQ47: 0 | WCR47: 0 | WCS47: 0 | WCT47: 0 | WCU47: 0 | WCV47: 0 | WCW47: 0 | WCX47: 0 | WCY47: 0 | WCZ47: 0 | WDA47: 0 | WDB47: 0 | WDC47: 0 | WDD47: 0 | WDE47: 0 | WDF47: 0 | WDG47: 0 | WDH47: 0 | WDI47: 0 | WDJ47: 0 | WDK47: 0 | WDL47: 0 | WDM47: 0 | WDN47: 0 | WDO47: 0 | WDP47: 0 | WDQ47: 0 | WDR47: 0 | WDS47: 0 | WDT47: 0 | WDU47: 0 | WDV47: 0 | WDW47: 0 | WDX47: 0 | WDY47: 0 | WDZ47: 0 | WEA47: 0 | WEB47: 0 | WEC47: 0 | WED47: 0 | WEE47: 0 | WEF47: 0 | WEG47: 0 | WEH47: 0 | WEI47: 0 | WEJ47: 0 | WEK47: 0 | WEL47: 0 | WEM47: 0 | WEN47: 0 | WEO47: 0 | WEP47: 0 | WEQ47: 0 | WER47: 0 | WES47: 0 | WET47: =SUM(WET3:WET46) -> 0 | WEU47: 0 | WEV47: 0 | WEW47: 0 | WEX47: 0 | WEY47: 0 | WEZ47: 0 | WFA47: 0 | WFB47: 0 | WFC47: 0 | WFD47: 0 | WFE47: 0 | WFF47: 0 | WFG47: 0 | WFH47: 0 | WFI47: 0 | WFJ47: 0 | WFK47: 0 | WFL47: 0 | WFM47: 0 | WFN47: 0 | WFO47: 0 | WFP47: 0 | WFQ47: 0 | WFR47: 0 | WFS47: 0 | WFT47: 0 | WFU47: 0 | WFV47: 0 | WFW47: 0 | WFX47: 0 | WFY47: 0 | WFZ47: 0 | WGA47: 0 | WGB47: 0 | WGC47: 0 | WGD47: 0 | WGE47: 0 | WGF47: 0 | WGG47: 0 | WGH47: 0 | WGI47: 0 | WGJ47: 0 | WGK47: 0 | WGL47: 0 | WGM47: 0 | WGN47: 0 | WGO47: 0 | WGP47: 0 | WGQ47: 0 | WGR47: 0 | WGS47: 0 | WGT47: 0 | WGU47: 0 | WGV47: 0 | WGW47: 0 | WGX47: 0 | WGY47: 0 | WGZ47: 0 | WHA47: 0 | WHB47: 0 | WHC47: 0 | WHD47: 0 | WHE47: 0 | WHF47: =SUM(WHF3:WHF46) -> 0 | WHG47: 0 | WHH47: 0 | WHI47: 0 | WHJ47: 0 | WHK47: 0 | WHL47: 0 | WHM47: 0 | WHN47: 0 | WHO47: 0 | WHP47: 0 | WHQ47: 0 | WHR47: 0 | WHS47: 0 | WHT47: 0 | WHU47: 0 | WHV47: 0 | WHW47: 0 | WHX47: 0 | WHY47: 0 | WHZ47: 0 | WIA47: 0 | WIB47: 0 | WIC47: 0 | WID47: 0 | WIE47: 0 | WIF47: 0 | WIG47: 0 | WIH47: 0 | WII47: 0 | WIJ47: 0 | WIK47: 0 | WIL47: 0 | WIM47: 0 | WIN47: 0 | WIO47: 0 | WIP47: 0 | WIQ47: 0 | WIR47: 0 | WIS47: 0 | WIT47: 0 | WIU47: 0 | WIV47: 0 | WIW47: 0 | WIX47: 0 | WIY47: 0 | WIZ47: 0 | WJA47: 0 | WJB47: 0 | WJC47: 0 | WJD47: 0 | WJE47: 0 | WJF47: 0 | WJG47: 0 | WJH47: 0 | WJI47: 0 | WJJ47: 0 | WJK47: 0 | WJL47: 0 | WJM47: 0 | WJN47: 0 | WJO47: 0 | WJP47: 0 | WJQ47: 0 | WJR47: =SUM(WJR3:WJR46) -> 0 | WJS47: 0 | WJT47: 0 | WJU47: 0 | WJV47: 0 | WJW47: 0 | WJX47: 0 | WJY47: 0 | WJZ47: 0 | WKA47: 0 | WKB47: 0 | WKC47: 0 | WKD47: 0 | WKE47: 0 | WKF47: 0 | WKG47: 0 | WKH47: 0 | WKI47: 0 | WKJ47: 0 | WKK47: 0 | WKL47: 0 | WKM47: 0 | WKN47: 0 | WKO47: 0 | WKP47: 0 | WKQ47: 0 | WKR47: 0 | WKS47: 0 | WKT47: 0 | WKU47: 0 | WKV47: 0 | WKW47: 0 | WKX47: 0 | WKY47: 0 | WKZ47: 0 | WLA47: 0 | WLB47: 0 | WLC47: 0 | WLD47: 0 | WLE47: 0 | WLF47: 0 | WLG47: 0 | WLH47: 0 | WLI47: 0 | WLJ47: 0 | WLK47: 0 | WLL47: 0 | WLM47: 0 | WLN47: 0 | WLO47: 0 | WLP47: 0 | WLQ47: 0 | WLR47: 0 | WLS47: 0 | WLT47: 0 | WLU47: 0 | WLV47: 0 | WLW47: 0 | WLX47: 0 | WLY47: 0 | WLZ47: 0 | WMA47: 0 | WMB47: 0 | WMC47: 0 | WMD47: =SUM(WMD3:WMD46) -> 0 | WME47: 0 | WMF47: 0 | WMG47: 0 | WMH47: 0 | WMI47: 0 | WMJ47: 0 | WMK47: 0 | WML47: 0 | WMM47: 0 | WMN47: 0 | WMO47: 0 | WMP47: 0 | WMQ47: 0 | WMR47: 0 | WMS47: 0 | WMT47: 0 | WMU47: 0 | WMV47: 0 | WMW47: 0 | WMX47: 0 | WMY47: 0 | WMZ47: 0 | WNA47: 0 | WNB47: 0 | WNC47: 0 | WND47: 0 | WNE47: 0 | WNF47: 0 | WNG47: 0 | WNH47: 0 | WNI47: 0 | WNJ47: 0 | WNK47: 0 | WNL47: 0 | WNM47: 0 | WNN47: 0 | WNO47: 0 | WNP47: 0 | WNQ47: 0 | WNR47: 0 | WNS47: 0 | WNT47: 0 | WNU47: 0 | WNV47: 0 | WNW47: 0 | WNX47: 0 | WNY47: 0 | WNZ47: 0 | WOA47: 0 | WOB47: 0 | WOC47: 0 | WOD47: 0 | WOE47: 0 | WOF47: 0 | WOG47: 0 | WOH47: 0 | WOI47: 0 | WOJ47: 0 | WOK47: 0 | WOL47: 0 | WOM47: 0 | WON47: 0 | WOO47: 0 | WOP47: =SUM(WOP3:WOP46) -> 0 | WOQ47: 0 | WOR47: 0 | WOS47: 0 | WOT47: 0 | WOU47: 0 | WOV47: 0 | WOW47: 0 | WOX47: 0 | WOY47: 0 | WOZ47: 0 | WPA47: 0 | WPB47: 0 | WPC47: 0 | WPD47: 0 | WPE47: 0 | WPF47: 0 | WPG47: 0 | WPH47: 0 | WPI47: 0 | WPJ47: 0 | WPK47: 0 | WPL47: 0 | WPM47: 0 | WPN47: 0 | WPO47: 0 | WPP47: 0 | WPQ47: 0 | WPR47: 0 | WPS47: 0 | WPT47: 0 | WPU47: 0 | WPV47: 0 | WPW47: 0 | WPX47: 0 | WPY47: 0 | WPZ47: 0 | WQA47: 0 | WQB47: 0 | WQC47: 0 | WQD47: 0 | WQE47: 0 | WQF47: 0 | WQG47: 0 | WQH47: 0 | WQI47: 0 | WQJ47: 0 | WQK47: 0 | WQL47: 0 | WQM47: 0 | WQN47: 0 | WQO47: 0 | WQP47: 0 | WQQ47: 0 | WQR47: 0 | WQS47: 0 | WQT47: 0 | WQU47: 0 | WQV47: 0 | WQW47: 0 | WQX47: 0 | WQY47: 0 | WQZ47: 0 | WRA47: 0 | WRB47: =SUM(WRB3:WRB46) -> 0 | WRC47: 0 | WRD47: 0 | WRE47: 0 | WRF47: 0 | WRG47: 0 | WRH47: 0 | WRI47: 0 | WRJ47: 0 | WRK47: 0 | WRL47: 0 | WRM47: 0 | WRN47: 0 | WRO47: 0 | WRP47: 0 | WRQ47: 0 | WRR47: 0 | WRS47: 0 | WRT47: 0 | WRU47: 0 | WRV47: 0 | WRW47: 0 | WRX47: 0 | WRY47: 0 | WRZ47: 0 | WSA47: 0 | WSB47: 0 | WSC47: 0 | WSD47: 0 | WSE47: 0 | WSF47: 0 | WSG47: 0 | WSH47: 0 | WSI47: 0 | WSJ47: 0 | WSK47: 0 | WSL47: 0 | WSM47: 0 | WSN47: 0 | WSO47: 0 | WSP47: 0 | WSQ47: 0 | WSR47: 0 | WSS47: 0 | WST47: 0 | WSU47: 0 | WSV47: 0 | WSW47: 0 | WSX47: 0 | WSY47: 0 | WSZ47: 0 | WTA47: 0 | WTB47: 0 | WTC47: 0 | WTD47: 0 | WTE47: 0 | WTF47: 0 | WTG47: 0 | WTH47: 0 | WTI47: 0 | WTJ47: 0 | WTK47: 0 | WTL47: 0 | WTM47: 0 | WTN47: =SUM(WTN3:WTN46) -> 0 | WTO47: 0 | WTP47: 0 | WTQ47: 0 | WTR47: 0 | WTS47: 0 | WTT47: 0 | WTU47: 0 | WTV47: 0 | WTW47: 0 | WTX47: 0 | WTY47: 0 | WTZ47: 0 | WUA47: 0 | WUB47: 0 | WUC47: 0 | WUD47: 0 | WUE47: 0 | WUF47: 0 | WUG47: 0 | WUH47: 0 | WUI47: 0 | WUJ47: 0 | WUK47: 0 | WUL47: 0 | WUM47: 0 | WUN47: 0 | WUO47: 0 | WUP47: 0 | WUQ47: 0 | WUR47: 0 | WUS47: 0 | WUT47: 0 | WUU47: 0 | WUV47: 0 | WUW47: 0 | WUX47: 0 | WUY47: 0 | WUZ47: 0 | WVA47: 0 | WVB47: 0 | WVC47: 0 | WVD47: 0 | WVE47: 0 | WVF47: 0 | WVG47: 0 | WVH47: 0 | WVI47: 0 | WVJ47: 0 | WVK47: 0 | WVL47: 0 | WVM47: 0 | WVN47: 0 | WVO47: 0 | WVP47: 0 | WVQ47: 0 | WVR47: 0 | WVS47: 0 | WVT47: 0 | WVU47: 0 | WVV47: 0 | WVW47: 0 | WVX47: 0 | WVY47: 0 | WVZ47: =SUM(WVZ3:WVZ46) -> 0 | WWA47: 0 | WWB47: 0 | WWC47: 0 | WWD47: 0 | WWE47: 0 | WWF47: 0 | WWG47: 0 | WWH47: 0 | WWI47: 0 | WWJ47: 0 | WWK47: 0 | WWL47: 0 | WWM47: 0 | WWN47: 0 | WWO47: 0 | WWP47: 0 | WWQ47: 0 | WWR47: 0 | WWS47: 0 | WWT47: 0 | WWU47: 0 | WWV47: 0 | WWW47: 0 | WWX47: 0 | WWY47: 0 | WWZ47: 0 | WXA47: 0 | WXB47: 0 | WXC47: 0 | WXD47: 0 | WXE47: 0 | WXF47: 0 | WXG47: 0 | WXH47: 0 | WXI47: 0 | WXJ47: 0 | WXK47: 0 | WXL47: 0 | WXM47: 0 | WXN47: 0 | WXO47: 0 | WXP47: 0 | WXQ47: 0 | WXR47: 0 | WXS47: 0 | WXT47: 0 | WXU47: 0 | WXV47: 0 | WXW47: 0 | WXX47: 0 | WXY47: 0 | WXZ47: 0 | WYA47: 0 | WYB47: 0 | WYC47: 0 | WYD47: 0 | WYE47: 0 | WYF47: 0 | WYG47: 0 | WYH47: 0 | WYI47: 0 | WYJ47: 0 | WYK47: 0 | WYL47: =SUM(WYL3:WYL46) -> 0 | WYM47: 0 | WYN47: 0 | WYO47: 0 | WYP47: 0 | WYQ47: 0 | WYR47: 0 | WYS47: 0 | WYT47: 0 | WYU47: 0 | WYV47: 0 | WYW47: 0 | WYX47: 0 | WYY47: 0 | WYZ47: 0 | WZA47: 0 | WZB47: 0 | WZC47: 0 | WZD47: 0 | WZE47: 0 | WZF47: 0 | WZG47: 0 | WZH47: 0 | WZI47: 0 | WZJ47: 0 | WZK47: 0 | WZL47: 0 | WZM47: 0 | WZN47: 0 | WZO47: 0 | WZP47: 0 | WZQ47: 0 | WZR47: 0 | WZS47: 0 | WZT47: 0 | WZU47: 0 | WZV47: 0 | WZW47: 0 | WZX47: 0 | WZY47: 0 | WZZ47: 0 | XAA47: 0 | XAB47: 0 | XAC47: 0 | XAD47: 0 | XAE47: 0 | XAF47: 0 | XAG47: 0 | XAH47: 0 | XAI47: 0 | XAJ47: 0 | XAK47: 0 | XAL47: 0 | XAM47: 0 | XAN47: 0 | XAO47: 0 | XAP47: 0 | XAQ47: 0 | XAR47: 0 | XAS47: 0 | XAT47: 0 | XAU47: 0 | XAV47: 0 | XAW47: 0 | XAX47: =SUM(XAX3:XAX46) -> 0 | XAY47: 0 | XAZ47: 0 | XBA47: 0 | XBB47: 0 | XBC47: 0 | XBD47: 0 | XBE47: 0 | XBF47: 0 | XBG47: 0 | XBH47: 0 | XBI47: 0 | XBJ47: 0 | XBK47: 0 | XBL47: 0 | XBM47: 0 | XBN47: 0 | XBO47: 0 | XBP47: 0 | XBQ47: 0 | XBR47: 0 | XBS47: 0 | XBT47: 0 | XBU47: 0 | XBV47: 0 | XBW47: 0 | XBX47: 0 | XBY47: 0 | XBZ47: 0 | XCA47: 0 | XCB47: 0 | XCC47: 0 | XCD47: 0 | XCE47: 0 | XCF47: 0 | XCG47: 0 | XCH47: 0 | XCI47: 0 | XCJ47: 0 | XCK47: 0 | XCL47: 0 | XCM47: 0 | XCN47: 0 | XCO47: 0 | XCP47: 0 | XCQ47: 0 | XCR47: 0 | XCS47: 0 | XCT47: 0 | XCU47: 0 | XCV47: 0 | XCW47: 0 | XCX47: 0 | XCY47: 0 | XCZ47: 0 | XDA47: 0 | XDB47: 0 | XDC47: 0 | XDD47: 0 | XDE47: 0 | XDF47: 0 | XDG47: 0 | XDH47: 0 | XDI47: 0 | XDJ47: =SUM(XDJ3:XDJ46) -> 0 | XDK47: 0 | XDL47: 0 | XDM47: 0 | XDN47: 0 | XDO47: 0 | XDP47: 0 | XDQ47: 0 | XDR47: 0 | XDS47: 0 | XDT47: 0 | XDU47: 0 | XDV47: 0 | XDW47: 0 | XDX47: 0 | XDY47: 0 | XDZ47: 0 | XEA47: 0 | XEB47: 0 | XEC47: 0 | XED47: 0 | XEE47: 0 | XEF47: 0 | XEG47: 0 | XEH47: 0 | XEI47: 0 | XEJ47: 0 | XEK47: 0 | XEL47: 0 | XEM47: 0 | XEN47: 0 | XEO47: 0 | XEP47: 0 | XEQ47: 0 | XER47: 0 | XES47: 0 | XET47: 0 | XEU47: 0 | XEV47: 0 | XEW47: 0 | XEX47: 0 | XEY47: 0 | XEZ47: 0 | XFA47: 0 | XFB47: 0 | XFC47: 0 | XFD47: 0
K48: * Nettoflow er nettokøb, brutto korrigeret for udbytte.
A49: Investering Danmark Amaliegade 7 DK-1256 København K Tel: 3370 1000

Sheet 2.1 Formue (A)
A1: Samlet formue opgjort på foreningsgruppe
B2: Bruttoformue | I2: Nettoformue*
A3: Kursværdi - mio kr. | B3: 2018 | C3: 2019 | D3: 2020 | E3: 2021 | F3: 2022 | G3: October | H3: November | I3: 2018 | J3: 2019 | K3: 2020 | L3: 2021 | M3: 2022 | N3: October | O3: November
A4: ACM Forvaltning A/S | B4: 731 | C4: 1134 | D4: 2501 | E4: 3448.25326 | F4: 3257.706956 | G4: 4687.769389 | H4: 4850.533195 | I4: 731 | J4: 1134 | K4: 2501 | L4: 3448.253266 | M4: 3257.706956 | N4: 4687.769389 | O4: 4850.533195
A5: Advice Capital | F5: 75.87596 | G5: 93.969328 | H5: 99.440846 | M5: 75.87596 | N5: 93.969328 | O5: 99.440846
A6: Alm. Brand Invest | B6: 3693.140065 | C6: 4037.934804 | D6: 4479.60997 | E6: 0 | I6: 3533.906863 | J6: 3868.634641 | K6: 4302.193359 | L6: 0
A7: Amalie Invest | B7: 736.2297374 | I7: 736.2297374
A8: BankInvest | B8: 75430.18986 | C8: 96093.31189 | D8: 112539.0153 | E8: 134657.5835 | F8: 114814.4886 | G8: 114548.748 | H8: 119971.1008 | I8: 71987.99808 | J8: 86163.43833 | K8: 98393.75898 | L8: 116189.7602 | M8: 98281.31833 | N8: 97286.3047 | O8: 101970.6116
A9: BIL Danmark | B9: 367.1323227 | C9: 836.1180982 | D9: 1204.813079 | E9: 973.3025655 | F9: 0 | G9: 0 | H9: 0 | I9: 367.1323232 | J9: 836.1180982 | K9: 1204.813079 | L9: 973.3025654 | M9: 0 | N9: 0 | O9: 0
A10: BLS Invest | B10: 5108.257897 | C10: 9789.219411 | D10: 12771.58144 | E10: 15542.00797 | F10: 14309.82283 | G10: 14709.1449 | H10: 15533.34702 | I10: 5108.257898 | J10: 9789.219411 | K10: 12771.58145 | L10: 15542.00797 | M10: 14309.82283 | N10: 14709.1449 | O10: 15533.34702
A11: C Worldwide | B11: 6192.217509 | C11: 7269.630255 | D11: 8172.534572 | E11: 10561.78191 | F11: 8250.555691 | G11: 8059.461185 | H11: 8379.24849 | I11: 6192.217509 | J11: 7269.630255 | K11: 8172.534572 | L11: 10561.78191 | M11: 8250.555691 | N11: 8059.461185 | O11: 8379.24849
A12: Carnegie Wealth Management | D12: 3155.411666 | E12: 4116.431624 | F12: 3272.8607 | G12: 2933.996521 | H12: 3125.086316 | K12: 3155.123148 | L12: 4116.431624 | M12: 3272.8607 | N12: 2933.996521 | O12: 3125.086316
A13: Danske Invest | B13: 438053.75 | C13: 483652.9182 | D13: 476807.2658 | E13: 531488.207 | F13: 351526.4023 | G13: 363514.7527 | H13: 381050.3733 | I13: 425819.1454 | J13: 468716.3832 | K13: 462515.9002 | L13: 511560.5422 | M13: 335909.18 | N13: 348598.9236 | O13: 365964.6223
A14: Falcon Invest | B14: 206.747497 | C14: 259.946419 | D14: 330.073998 | E14: 385.297069 | F14: 239.712942 | G14: 198.77262 | H14: 202.263014 | I14: 206.747497 | J14: 259.946419 | K14: 330.073998 | L14: 385.297069 | M14: 239.712942 | N14: 198.77262 | O14: 202.263014
A15: Formuepleje | B15: 28946.03229 | C15: 43757.53542 | D15: 52955.53581 | E15: 55080.21858 | F15: 35956.38557 | G15: 31606.28921 | H15: 33432.84687 | I15: 17852.35114 | J15: 27126.9984 | K15: 33820.97327 | L15: 35404.72614 | M15: 23830.12839 | N15: 20199.66799 | O15: 21128.11543
A16: Fundamental Invest | B16: 1446.92969 | C16: 1247.379609 | D16: 1301.425376 | E16: 1360.735977 | F16: 835.46786 | G16: 608.253173 | H16: 654.244161 | I16: 1446.92969 | J16: 1247.379609 | K16: 1301.425376 | L16: 1360.735977 | M16: 835.46786 | N16: 608.253173 | O16: 654.244161
A17: Great Dane | B17: 247.861736 | C17: 257.134837 | D17: 142.678533 | E17: 369.123833 | F17: 750.402557 | G17: 714.604865 | H17: 765.913901 | I17: 247.861736 | J17: 257.134837 | K17: 142.678533 | L17: 369.123833 | M17: 750.402557 | N17: 714.604865 | O17: 765.913901
A18: Handelsinvest | B18: 13221.31356 | C18: 14823.88792 | D18: 16756.92243 | E18: 23720.60522 | F18: 18197.07564 | G18: 8457.651313 | H18: 8322.456675 | I18: 12129.5214 | J18: 13449.58021 | K18: 15061.14172 | L18: 21760.98957 | M18: 16778.71226 | N18: 7918.461641 | O18: 7950.395454
A19: HP Hedge | G19: 577.956208 | H19: 585.676746 | N19: 577.956208 | O19: 585.676746
A20: HP Invest | B20: 3022.602632 | C20: 2661.715929 | D20: 2090.402678 | E20: 1724.668904 | F20: 1528.477455 | I20: 2917.66633 | J20: 2457.309027 | K20: 1975.492948 | L20: 1640.488284 | M20: 1476.734325
A21: IA Invest | B21: 1570.097486 | C21: 2234.029786 | D21: 290.709538 | E21: 626.391871 | F21: 633.643227 | G21: 1008.567451 | H21: 1125.328217 | I21: 1646.972075 | J21: 2234.029786 | K21: 290.712239 | L21: 626.391871 | M21: 633.643227 | N21: 1008.567451 | O21: 1125.328217
A22: Investeringsforeningen Gudme Raaschou | B22: 3770.735784 | C22: 2451.436152 | D22: 2742.317101 | E22: 3041.762544 | F22: 2421.857015 | G22: 2621.053257 | H22: 2731.987869 | I22: 3770.737812 | J22: 2451.436152 | K22: 2742.317101 | L22: 3041.762544 | M22: 2421.857015 | N22: 2621.053257 | O22: 2731.987869
A23: Investin | B23: 12444.34861 | C23: 8300.370612 | D23: 11943.05854 | E23: 15134.28182 | F23: 11732.13473 | G23: 7052.892147 | H23: 7333.237642 | I23: 9673.49891 | J23: 8300.370612 | K23: 10855.88517 | L23: 14045.42306 | M23: 10799.08811 | N23: 7052.892146 | O23: 7333.237643
A24: IR Invest | B24: 29.453568 | C24: 62.186201 | D24: 151.157226 | I24: 29.453568 | J24: 62.186201 | K24: 151.157226
A25: Jyske Invest | B25: 80547.89395 | C25: 101461.3329 | D25: 101920.2227 | E25: 130034.7363 | F25: 113685.3765 | G25: 129037.361 | H25: 134226.6509 | I25: 68471.04858 | J25: 79811.08877 | K25: 82062.89078 | L25: 91234.41098 | M25: 79430.32905 | N25: 90146.32036 | O25: 93913.53907
A26: Kapitalforeningen Blue Strait Capital | D26: 362.7756472 | E26: 453.0660095 | F26: 532.9654514 | G26: 467.5133538 | H26: 478.5691553 | K26: 362.7756472 | L26: 453.0660095 | M26: 532.9654514 | N26: 467.5133538 | O26: 478.5691553
A27: Kapitalforeningen Investering & Tryghed | B27: 3554.373679 | C27: 4826.140668 | D27: 6516.292168 | E27: 9585.33196 | F27: 7033.9793 | G27: 5371.024155 | H27: 5605.63608 | I27: 3554.373674 | J27: 4826.140668 | K27: 6516.292167 | L27: 9585.33196 | M27: 7033.979299 | N27: 5371.024156 | O27: 5605.636081
A28: Lægernes Invest | B28: 26399.73276 | C28: 36672.63165 | D28: 47843.88216 | E28: 39937.60768 | F28: 31791.16536 | G28: 29502.27999 | H28: 33289.56168 | I28: 26399.73277 | J28: 36672.63165 | K28: 47843.88216 | L28: 39937.60768 | M28: 30608.39068 | N28: 28344.00832 | O28: 32074.51361
A29: Lån & Spar Invest | B29: 5599.484722 | C29: 6430.523472 | D29: 7278.425415 | E29: 9127.490719 | F29: 7757.141628 | G29: 7407.392315 | H29: 7840.143393 | I29: 5171.640539 | J29: 5950.419753 | K29: 6668.99805 | L29: 5454.597909 | M29: 6378.026124 | N29: 7106.031311 | O29: 7519.241191
A30: Maj Invest | B30: 21142.10209 | C30: 25069.82523 | D30: 24942.03034 | E30: 27224.06037 | F30: 19976.39497 | G30: 18814.14201 | H30: 19401.65491 | I30: 21142.10219 | J30: 25069.82522 | K30: 24942.03034 | L30: 27224.06037 | M30: 19977.5007 | N30: 18814.142 | O30: 19401.65491
A31: MS Invest | B31: 481.263697 | C31: 452.06367 | D31: 341.416207 | E31: 398.058763 | F31: 0 | G31: 0 | H31: 0 | I31: 481.2636969 | J31: 452.0636699 | K31: 341.416207 | L31: 398.0587633 | M31: 0 | N31: 0 | O31: 0
A32: Nielsen Capital Management | B32: 173.1208158 | C32: 264.2732953 | I32: 173.1209416 | J32: 264.2732953
A33: Nordea Invest | B33: 177370.4651 | C33: 201955.639 | D33: 229484.709 | E33: 287132.5231 | F33: 242769.2849 | G33: 264652.6673 | H33: 274963.8693 | I33: 169442.8874 | J33: 194307.9922 | K33: 221398.3207 | L33: 274629.1591 | M33: 228758.0514 | N33: 247932.855 | O33: 257353.183
A34: Nykredit Portefølje Administration | B34: 696697.6416 | C34: 818976.7266 | D34: 793234.0925 | E34: 850498.1371 | F34: 702275.5108 | G34: 680943.2732 | H34: 693066.6109 | I34: 589781.7008 | J34: 690563.4926 | K34: 644162.2238 | L34: 699167.7012 | M34: 573035.2555 | N34: 555697.7545 | O34: 573967.1422
A35: PFA Invest | B35: 293319.2408 | C35: 336510.2273 | D35: 338449.8807 | E35: 361766.3157 | F35: 223828.9212 | G35: 22540.58924 | H35: 22855.46763 | I35: 289314.7862 | J35: 332167.3698 | K35: 333639.7541 | L35: 356551.2146 | M35: 219178.8112 | N35: 18443.16881 | O35: 19092.74809
A36: PortfolioManager | B36: 61.669912 | C36: 366.6132178 | D36: 621.8883048 | E36: 1121.207058 | F36: 1982.390527 | G36: 2796.228802 | H36: 2821.80567 | I36: 61.65656627 | J36: 366.6132102 | K36: 621.9578654 | L36: 1103.664416 | M36: 1948.255466 | N36: 2713.571668 | O36: 2763.344484
A37: SEBinvest | B37: 25906.49963 | C37: 23222.06147 | D37: 19197.18315 | E37: 21353.88248 | F37: 17552.72841 | G37: 19436.82696 | H37: 20260.94887 | I37: 25749.19362 | J37: 23156.94467 | K37: 19457.09686 | L37: 21353.88248 | M37: 17552.72842 | N37: 19436.82696 | O37: 20260.94886
A38: Selected Investments | D38: 722.238163 | E38: 680.913046 | F38: 611.410075 | G38: 649.777715 | H38: 682.062522 | K38: 722.238163 | L38: 680.913046 | M38: 611.410075 | N38: 649.777715 | O38: 682.062522
A39: SparDanmark | F39: 3663.543496 | G39: 4133.143929 | H39: 4303.755307 | M39: 3663.543496 | N39: 4133.143929 | O39: 4303.755307
A40: Sparinvest | B40: 48477.073 | C40: 56554.5878 | D40: 61330.01001 | E40: 79357.11871 | F40: 76027.02316 | G40: 87150.98531 | H40: 91334.9296 | I40: 43498.86345 | J40: 50425.99345 | K40: 54578.31245 | L40: 68388.77008 | M40: 63208.77722 | N40: 69850.37145 | O40: 73111.89363
A41: StockRate Invest | B41: 453.60371 | C41: 612.237653 | D41: 725.629132 | E41: 1204.490466 | F41: 1076.718164 | G41: 1183.314647 | H41: 1250.110374 | I41: 453.60371 | J41: 612.237653 | K41: 725.629132 | L41: 1204.490466 | M41: 1076.718164 | N41: 1183.314647 | O41: 1250.110374
A42: Stonehenge | B42: 1046.432773 | C42: 1386.627578 | D42: 1345.301681 | E42: 1669.326196 | F42: 1635.553979 | G42: 1436.449417 | H42: 1404.652868 | I42: 1045.969206 | J42: 1386.627578 | K42: 1345.301681 | L42: 1669.326196 | M42: 1635.553979 | N42: 1436.449417 | O42: 1404.652868
A43: Strategi Invest | B43: 613.2720579 | I43: 613.2720579
A44: Sydinvest | B44: 47216.63814 | C44: 52227.22914 | D44: 60465.58795 | E44: 79229.55941 | F44: 71258.05401 | G44: 72166.84988 | H44: 74513.25641 | I44: 44452.18925 | J44: 48567.0485 | K44: 53514.20899 | L44: 69122.537 | M44: 55226.0076 | N44: 57919.5811 | O44: 60138.20455
A45: TRP-Invest | B45: 1487.842288 | C45: 1359.692006 | D45: 1425.497296 | E45: 2074.512653 | F45: 1086.641641 | G45: 1100.267324 | H45: 1097.220722 | I45: 83.28751935 | J45: 81.68320285 | K45: 107.8824099 | L45: 128.2598744 | M45: 117.4047868 | N45: 118.1041556 | O45: 71.16883722
A46: ValueInvest Danmark | B46: 5589.389431 | C46: 5523.471716 | D46: 4459.796321 | E46: 4474.48359 | F46: 3481.291952 | G46: 2292.387916 | H46: 2337.080991 | I46: 5590.505187 | J46: 5523.471716 | K46: 4459.796321 | L46: 4474.48359 | M46: 3481.291952 | N46: 2292.387916 | O46: 2337.080991
A47: Wealth Invest | B47: 10591.49252 | C47: 11448.7704 | D47: 16369.41928 | E47: 19486.3329 | F47: 16159.09982 | G47: 21556.38972 | H47: 20935.528 | I47: 10369.83238 | J47: 11338.61916 | K47: 16342.17622 | L47: 19463.99411 | M47: 16129.80632 | N47: 21524.1261 | O47: 20902.83192
A48: I alt danske foreninger | B48: =SUM(B4:B47) -> 2041947.273 | C48: 2364189.43 | D48: 2427371.791 | E48: 2729039.808 | F48: 2111988.065 | G48: 1934032.747 | H48: 2000832.6 | I48: 1870248.658 | J48: 2147168.332 | K48: 2179501.946 | L48: 2433252.548 | M48: 1850707.874 | N48: 1670850.272 | O48: =SUM(O4:O47) -> 1739032.334
A49: * Nettoformuen angiver de investeringer, der er tilgået fondene i den enkelte foreningsgruppe fra eksterne investorer.
A50: Investering Danmark Amaliegade 7 DK-1256 København K Tel: 3370 1000

Sheet 2.2 Typer (A)
A1: Samlet formue opgjort på foreningsgruppeniveau og efter fondstype
B2: Bruttoformue | I2: Nettoformue*
A3: Kursværdi - mio kr. | B3: 2018 | C3: 2019 | D3: 2020 | E3: 2021 | F3: 2022 | G3: October | H3: November | I3: 2018 | J3: 2019 | K3: 2020 | L3: 2021 | M3: 2022 | N3: October | O3: November
A4: ACM Forvaltning A/S | B4: 720.252748 | C4: 1122.088891 | D4: 1625.700277 | E4: 1926.568137 | F4: 1793.557564 | G4: 2860.419376 | H4: 2950.407906 | I4: 719.7377997 | J4: 1122.088891 | K4: 1625.700277 | L4: 1926.568137 | M4: 1793.557564 | N4: 2860.419376 | O4: 2950.407906
A5: Advice Capital | F5: 75.87596 | G5: 93.969328 | H5: 99.440846 | M5: 75.87596 | N5: 93.969328 | O5: 99.440846
A6: Alm. Brand Invest | B6: 3693.140065 | C6: 4037.934804 | D6: 4479.60997 | E6: 0 | I6: 3533.906863 | J6: 3868.634641 | K6: 4302.193359 | L6: 0
A7: Amalie Invest | B7: 736.2297374 | C7: 0 | I7: 736.2297374 | J7: 0
A8: BankInvest | B8: 69798.6199 | C8: 91336.31254 | D8: 106187.6951 | E8: 127628.1194 | F8: 110496.0074 | G8: 110318.9661 | H8: 115603.617 | I8: 66357.39516 | J8: 81406.43898 | K8: 92042.43878 | L8: 109160.2961 | M8: 93962.83713 | N8: 93056.52276 | O8: 97603.12789
A9: BIL Danmark | B9: 367.1323227 | C9: 836.1180982 | D9: 1204.813079 | E9: 973.3025655 | I9: 367.1323232 | J9: 836.1180982 | K9: 1204.813079 | L9: 973.3025654
A10: BLS Invest | B10: 5108.257897 | C10: 9789.219411 | D10: 12771.58144 | E10: 15542.00797 | F10: 14309.82283 | G10: 14709.1449 | H10: 15533.34702 | I10: 5108.257898 | J10: 9789.219411 | K10: 12771.58145 | L10: 15542.00797 | M10: 14309.82283 | N10: 14709.1449 | O10: 15533.34702
A11: C Worldwide | B11: 6192.217509 | C11: 7269.630255 | D11: 8172.534572 | E11: 10561.78191 | F11: 8250.555691 | G11: 8059.461185 | H11: 8379.24849 | I11: 6192.217509 | J11: 7269.630255 | K11: 8172.534572 | L11: 10561.78191 | M11: 8250.555691 | N11: 8059.461185 | O11: 8379.24849
A12: Carnegie Wealth Management | D12: 196.447847 | E12: 417.178441 | F12: 271.296568 | G12: 198.102736 | H12: 214.868312 | K12: 196.434567 | L12: 417.178441 | M12: 271.296568 | N12: 198.102736 | O12: 214.868312
A13: Danske Invest | B13: 217748.6112 | C13: 224626.0572 | D13: 223570.5902 | E13: 242942.4655 | F13: 191432.9803 | G13: 196269.9265 | H13: 205724.0611 | I13: 207961.3981 | J13: 212535.9554 | K13: 211891.4959 | L13: 225909.3395 | M13: 178019.8754 | N13: 183253.2198 | O13: 192702.1352
A14: Falcon Invest | B14: 206.747497 | C14: 259.946419 | D14: 330.073998 | E14: 385.297069 | F14: 239.712942 | G14: 198.77262 | H14: 202.263014 | I14: 206.747497 | J14: 259.946419 | K14: 330.073998 | L14: 385.297069 | M14: 239.712942 | N14: 198.77262 | O14: 202.263014
A15: Formuepleje | B15: 28233.40302 | C15: 42848.8152 | D15: 52955.53581 | E15: 55080.21858 | F15: 35956.38557 | G15: 31606.28921 | H15: 33432.84687 | I15: 17139.73321 | J15: 26218.27817 | K15: 33820.97327 | L15: 35404.72614 | M15: 23830.12839 | N15: 20199.66799 | O15: 21128.11543
A16: Fundamental Invest | B16: 1446.92969 | C16: 1247.379609 | D16: 1301.425376 | E16: 1360.735977 | F16: 835.46786 | G16: 608.253173 | H16: 654.244161 | I16: 1446.92969 | J16: 1247.379609 | K16: 1301.425376 | L16: 1360.735977 | M16: 835.46786 | N16: 608.253173 | O16: 654.244161
A17: Great Dane | B17: 247.861736 | C17: 257.134837 | D17: 142.678533 | E17: 369.123833 | F17: 750.402557 | G17: 714.604865 | H17: 765.913901 | I17: 247.861736 | J17: 257.134837 | K17: 142.678533 | L17: 369.123833 | M17: 750.402557 | N17: 714.604865 | O17: 765.913901
A18: Handelsinvest | B18: 12855.19057 | C18: 14557.30698 | D18: 16423.84069 | E18: 21546.23273 | F18: 17039.15854 | G18: 7560.029106 | H18: 7190.092123 | I18: 11838.06319 | J18: 13268.52352 | K18: 14844.66865 | L18: 19747.57488 | M18: 15749.46749 | N18: 7080.634949 | O18: 7068.571427
A19: HP Hedge | G19: 577.956208 | H19: 585.676746 | N19: 577.956208 | O19: 585.676746
A20: HP Invest | B20: 2999.212915 | C20: 2650.936117 | D20: 2090.402678 | E20: 1724.668904 | F20: 1528.477455 | I20: 2894.276613 | J20: 2446.529215 | K20: 1975.492948 | L20: 1640.488284 | M20: 1476.734325
A21: IA Invest | D21: 151.157226 | E21: 158.390275 | F21: 55.008577 | G21: 48.272683 | H21: 53.422838 | K21: 151.159927 | L21: 158.390275 | M21: 55.008577 | N21: 48.272683 | O21: 53.422838
A22: Investeringsforeningen Gudme Raaschou | B22: 3550.963532 | C22: 2097.219206 | D22: 2426.545439 | E22: 2664.49867 | F22: 2182.687297 | G22: 2297.486697 | H22: 2390.385062 | I22: 3550.963532 | J22: 2097.219206 | K22: 2426.545439 | L22: 2664.49867 | M22: 2182.687297 | N22: 2297.486697 | O22: 2390.385062
A23: Investin | B23: 11198.9005 | C23: 7297.185527 | D23: 5409.059405 | E23: 6632.917907 | F23: 5210.536026 | G23: 1128.288062 | H23: 1212.355695 | I23: 8428.050802 | J23: 7297.185527 | K23: 5409.059405 | L23: 6632.917906 | M23: 5210.536026 | N23: 1128.288062 | O23: 1212.355695
